Workbook

Sheet Brassage
A1: # Projet - Weissbier exemple | I1: =A1 -> # Projet - Weissbier exemple | P1: =A1 -> # Projet - Weissbier exemple
A3: Style | B3: 10A - Weissbier | D3: =VLOOKUP(Brassage!B3,BJCCP!A2:AC119,29,FALSE) -> 10-German Wheat Beer | E3: Brassin | F3: BJCCP 2015 min/max | I3: Profil exemple | J3: Température du malt | L3: 17 | M3: Température cuve d'empatage | O3: 70.3 | P3: Sels de brassage
A4: Volume | B4: 28 | D4: DI | E4: =L28 -> 1.05 | F4: =IF($B$3="","",VLOOKUP($B$3,BJCCP!$A$1:$AH$119,2,FALSE)) -> 1.044 | H4: =IF($B$3="","",VLOOKUP($B$3,BJCCP!$A$1:$AH$119,3,FALSE)) -> 1.052 | J4: Humidité du malt | L4: 0.04 | M4: c*m cuve empatage | O4: =5.83*500 -> 2915 | P4: Nom générique | Q4: Nomenclature UICPA | R4: Formule chimique | S4: Ajout en g/L | T4: Ajout Empatage | U4: Ajout Rinçage | V4: Ajout Total
A5: Date | B5: 2023-10-15 | D5: DF | E5: =IF(D5="DF",L28-((L28-1)*MAX(E61,E62)),N62) -> 1.0115231 | F5: =IF($B$3="","",VLOOKUP($B$3,BJCCP!$A$1:$AH$119,4,FALSE)) -> 1.01 | H5: =IF($B$3="","",VLOOKUP($B$3,BJCCP!$A$1:$AH$119,5,FALSE)) -> 1.014 | J5: Rétention grains | L5: 1 | M5: Facteur correctif T°empatage | O5: =-((232.2934*(Brassage!$L$4*100)^2 -7471.1515*(Brassage!$L$4*100)+63999.0441)*0.5*Brassage!$H$34/1000)/((Brassage!$H$34/1000)*(23.9246*Brassage!$L$4*100+1585.0029)+Brassage!$M$10*4185) -> -1.158459888
A6: Rendement d'empatage | C6: 0.7 | D6: Couleur | E6: =2.9396*((4.23*(C25*H25+C26*H26+C27*H27+C28*H28+C29*H29+C30*H30+C31*H31+C32*H32+C33*H33)/1000)/ L29 )^0.6859 -> 12.3739512 | F6: =IF($B$3="","",VLOOKUP($B$3,BJCCP!$A$1:$AH$119,6,FALSE)) -> 3.94 | H6: =IF($B$3="","",VLOOKUP($B$3,BJCCP!$A$1:$AH$119,7,FALSE)) -> 11.82 | J6: Durée d'ébulition | L6: 60 | M6: Pertes cuve filtration | O6: 1 | P6: Gypse | Q6: Sulfate de Calcium | R6: CaSO4 | S6: ='Profil d''eau'!C36 -> 0.02 | T6: ='Profil d''eau'!D36 -> 0.5105770756 | U6: ='Profil d''eau'!F36 -> 0.3108576444 | V6: ='Profil d''eau'!H36 -> 0.82143472
A7: Palier 1 | B7: 66 | C7: 60 | D7: Amertume | E7: =H58 -> 11.71336855 | F7: =IF($B$3="","",VLOOKUP($B$3,BJCCP!$A$1:$AH$119,8,FALSE)) -> 8 | H7: =IF($B$3="","",VLOOKUP($B$3,BJCCP!$A$1:$AH$119,9,FALSE)) -> 15 | J7: % d'évaporation/h | L7: 0.1 | M7: Pertes cuve ébu | O7: 0.5 | P7: Sel de table | Q7: Chlorure de Sodium | R7: NaCl | S7: ='Profil d''eau'!C37 -> 0.03 | T7: ='Profil d''eau'!D37 -> 0.7658656134 | U7: ='Profil d''eau'!F37 -> 0.4662864666 | V7: ='Profil d''eau'!H37 -> 1.23215208
A8: Palier 2 | D8: ABV | E8: =IF(D8="ABV",1000*(E4-E5)/7.6,(76.08*((E4+(L61/2.57452)/1000)-E5)/(1.775-(E4+(L61/2.57452)/1000))*(E5/0.794))) -> 5.06275 | F8: =IF($B$3="","",VLOOKUP($B$3,BJCCP!$A$1:$AH$119,10,FALSE)) -> 4.3 | H8: =IF($B$3="","",VLOOKUP($B$3,BJCCP!$A$1:$AH$119,11,FALSE)) -> 5.6 | J8: =IFERROR("Ratio d'empatage ("&ROUND(L9/(H34/1000),2)&" max)","Ratio d'empatage") -> Ratio d'empatage (5,63 max) | L8: 3.5 | M8: Pertes cuve tampon | O8: 1 | P8: Sel d'Epsom | Q8: Sulfate de Magnésium | R8: MgSO4 | S8: ='Profil d''eau'!C38 -> 0.14 | T8: ='Profil d''eau'!D38 -> 3.574039529 | U8: ='Profil d''eau'!F38 -> 2.176003511 | V8: ='Profil d''eau'!H38 -> 5.75004304
A9: Palier 3 | D9: vol CO2 | E9: 3.6 | F9: =IF($B$3="","",VLOOKUP($B$3,BJCCP!$A$1:$AH$119,20,FALSE)) -> 3.3 | H9: =IF($B$3="","",VLOOKUP($B$3,BJCCP!$A$1:$AH$119,21,FALSE)) -> 4.3 | J9: Volume d'eau total | L9: =M10+M18 -> 41.071736 | M9: Pertes fermenteur | O9: 1 | P9: E509 | Q9: Chlorure de Calcium | R9: CaCl2 | S9: ='Profil d''eau'!C39 -> 0.08 | T9: ='Profil d''eau'!D39 -> 2.042308303 | U9: ='Profil d''eau'!F39 -> 1.243430578 | V9: ='Profil d''eau'!H39 -> 3.28573888
A10: Mash-Out | D10: IBU/DI | E10: =E7/((E4-1)*1000) -> 0.2342673709 | F10: =F7/((H4-1)*1000) -> 0.1538461538 | H10: =H7/((F4-1)*1000) -> 0.3409090909 | I10: Chauffe Directe | J10: 100 | K10: Eau d'empatage | M10: =H34*L8/1000 -> 25.52885378 | N10: à | O10: =B7+O5+(((H34/1000)*(23.9246*L4*100+1585.0029))*(B7 - L3)+(O4*(B7-O3)))/(M10 *4185) -> 70.34663563 | P10: Bicarbonate de soude | Q10: Hydrogénocarbonate de Sodium | R10: NaHCO3 | S10: ='Profil d''eau'!C40 -> 0 | T10: ='Profil d''eau'!D40 -> 0 | U10: ='Profil d''eau'!F40 -> 0 | V10: ='Profil d''eau'!H40 -> 0
A11: Total hors MO | B11: =B7*C7/C11+B8*C8/C11+B9*C9/C11 -> 66 | C11: =SUM(C7:C9) -> 60 | D11: RBR : IBU/RE | E11: =E7/(0.1808*(259-(259/E4))+(0.8192*(259-(259/E5)))) -> 2.520682653 | F11: =F7/(0.1808*(259-(259/H4))+(0.8192*(259-(259/F5)))) -> 1.811851348 | H11: =H7/(0.1808*(259-(259/F4))+(0.8192*(259-(259/H5)))) -> 3.059371604 | I11: Empatage | K11: Volume de la maische à l'empatage | N11: =IF(I10="Infusion",H36/1000*1.65+(M10-H36/1000),H36/1000*1.65+(M10-H36/1000)) -> 30.26992663 | P11: Craie/Desacid/Blanc de Medon | Q11: Carbonate de Calcium | R11: CaCO3 | S11: ='Profil d''eau'!C41 -> 0 | T11: ='Profil d''eau'!D41 -> 0 | U11: ='Profil d''eau'!F41 -> 0 | V11: ='Profil d''eau'!H41 -> 0
A12: x | B12: x | C12: x | D12: x | E12: x | F12: x | G12: x | H12: x | K12: pH Ez-water | M12: =VLOOKUP(K12,F16:H18,3,FALSE) -> 5.523683616 | N12: ph réel
A13: BJCCP | B13: =IF($B$3="","",VLOOKUP($B$3,BJCCP!$A$1:$AH$119,22,FALSE)) -> 50-100 | C13: =IF($B$3="","",VLOOKUP($B$3,BJCCP!$A$1:$AH$119,23,FALSE)) -> 0-30 | D13: =IF($B$3="","",VLOOKUP($B$3,BJCCP!$A$1:$AH$119,24,FALSE)) -> 0-80 | E13: =IF($B$3="","",VLOOKUP($B$3,BJCCP!$A$1:$AH$119,25,FALSE)) -> 0-50 | F13: =IF($B$3="","",VLOOKUP($B$3,BJCCP!$A$1:$AH$119,26,FALSE)) -> 0-100 | G13: (0-250) | H13: Profil utilisé | K13: Profil | L13: =A7 -> Palier 1 | M13: =B7 -> 66 | N13: =IF(C7=0,"",C7) -> 60 | O13: =IF($I$10="Chauffe Directe","",IF($I$10="Infusion",M10,"")) -> 
A14: Eau | B14: Ca (50-150) | C14: Mg (10-40) | D14: Na (0-150) | E14: SO4 (50-250) | F14: Cl (0-250) | G14: HCO3 | L14: =A8 -> Palier 2 | M14: =IF($I$10="Chauffe Directe",IF(B8=0,"",B8),IF(B8=0,M13,B8)) ->  | N14: =IF(C8=0,"",C8) ->  | O14: =IF($I$10="Chauffe Directe","",IF($I$10="Infusion",((M14-M13)*(0.41*$H$34/1000+($M$10))/($J$10-M14)),(M14-M13)/($J$10-M13)*$N$11)) ->  | P14: =VLOOKUP(K12,F16:H18,2,FALSE) -> 0
B15: 56.4644 | C15: 16.8054 | D15: 20.8017 | E15: 68.7222 | F15: 66.7846 | G15: 111 | H15: Weissbier V2 | L15: =A9 -> Palier 3 | M15: =IF($I$10="Chauffe Directe",IF(B9=0,"",B9),IF(B9=0,M14,B9)) ->  | N15: =IF(C9=0,"",C9) ->  | O15: =IF($I$10="Chauffe Directe","",IF($I$10="Infusion",((M15-M14)*(0.41*$H$34/1000+($O$13+O14))/(J10-M15)),(M15-M14)/($J$10-M14)*$N$11)) -> 
B16: =B15/20 -> 2.82322 | C16: =C15/12.15 -> 1.383160494 | D16: A. Totale | E16: A. Résiduelle | F16: pH 25°C | H16: =D34+H21*0.084 -> 5.649110668 | L16: =A10 -> Mash-Out | M16: =IF($I$10="Chauffe Directe",IF(B10=0,"",B10),IF(B10=0,M15,B10)) ->  | N16: =IF(C10=0,"",C10) ->  | O16: =IF($I$10="Chauffe Directe","",IF($I$10="Infusion",((M16-M15)*(0.41*$H$34/1000+($O$13+O14+O15))/(J10-M16)),(M16-M15)/($J$10-M15)*$N$11)) -> 
B17: ratio SO4/Cl | C17: =INDEX({"Extrêmement maltée";"Très maltée";"Maltée";"Equilibrée";"Légèrement amère";"Amère";"Très amère";"Extrêmement amère";"Hors-Limites"},MATCH(B18,{0;0.4;0.6;0.8;1.5;2;6;8;18},1)) -> Equilibrée | D17: =G15/1.22 -> 90.98360656 | E17: =D17-(B15/1.4+C15/1.7) -> 40.76636286 | F17: pH 65°C | H17: =H16-0.35 -> 5.299110668 | I17: x | J17: x | K17: x | L17: x | M17: x | N17: x | O17: x
B18: =E15/F15 -> 1.029012677 | D18: =G15/61 -> 1.819672131 | E18: =D18-(B16/3.5)-(C16/7) -> 0.8154434892 | F18: pH Ez-water | H18: =D34+(0.1085*(M10/3.785412)/(H34*2.20462/1000)+0.013)*F21/50 -> 5.523683616 | I18: Rinçage | K18: Eau de rinçage | M18: =IF($I$10="Infusion",L23/(1+0.04)-SUM(O13:O16)+H34*L5/1000+O6,L23/(1+0.04)-M10+H34*L5/1000+O6) -> 15.54288222 | N18: Densité fin de rinçage | P18: =IF($I$10="Infusion",L23-O16+H34*L5/1000+O6,L23-M10+H34*L5/1000+O6) -> 16.85399333
A19: x | B19: x | C19: x | D19: x | E19: x | F19: x | G19: x | H19: x | M19: 78
A20: Acide Lactique | B20: Concentration | C20: Quantié | D20: Alcalinité totale corrigée | F20: A. Résiduelle corrigée | I20: x | J20: x | K20: x | L20: x | M20: x | N20: x | O20: x
B21: 0.88 | C21: 7 | D21: =D17-(176.1*B21*C21*2)/(M10*0.264172) -> -230.7170622 | F21: =D21-(B15/1.4+C15/1.7) -> -280.9343059 | H21: =E18-B22/M10 -> -2.4201111 | I21: Pré-ébullition | L21: Théorique | N21: Réel
B22: =IFERROR(C21*VLOOKUP(B21,Paramètres!H45:I48,2,FALSE),0) -> 82.6 | C22: BJCCP => | D22: =IF($B$3="","",VLOOKUP($B$3,BJCCP!$A$1:$AH$119,27,FALSE)) -> <100 | F22: =IF($B$3="","",VLOOKUP($B$3,BJCCP!$A$1:$AH$119,28,FALSE)) -> 30 - 30 | K22: Densité | L22: =1+(((E34*C6*H34))/(2.57452*L23)/1000) -> 1.045 | N22: 1.046
A23: x | B23: x | C23: x | D23: x | E23: DI cible | F23: 1.05 | G23: x | H23: x | K23: Volume | L23: =((B4+O7+O8)/(1-L7*L6/60))*(1+0.04) -> 34.08888889 | N23: 33
A24: Grains | B24: Type | C24: EBC | D24: pH | E24: Rmax théo | F24: % max | G24: % | H24: Poids | K24: Rendement d'empatage | L24: =C6 -> 0.7 | N24: =(2.57452*(N22-1)*N23*1000)/(H34*E34) -> 0.6926988266
B25: Pale ale Swaen | C25: =IF(B25="",0,VLOOKUP(B25,Paramètres!$A$1:$E$300,3,FALSE)) -> 7.1 | D25: =IF(B25="",0,VLOOKUP(B25,Paramètres!$A$1:$E$300,5,FALSE)) -> 5.7 | E25: =IF(B25="",0,VLOOKUP(B25,Paramètres!$A$1:$E$300,2,FALSE)) -> 0.8 | F25: =IF(B25="",0,VLOOKUP(B25,Paramètres!$A$1:$E$300,4,FALSE)) -> 1 | G25: 0.49 | H25: =((1000*($F$23-1)*2.57452*$L$29*$F$34/$F$36)/($C$6*$E$34))*G25/$G$34 -> 3574.039529
B26: Froment - Vieux Silo | C26: =IF(B26="",0,VLOOKUP(B26,Paramètres!$A$1:$E$300,3,FALSE)) -> 4.5 | D26: =IF(B26="",0,VLOOKUP(B26,Paramètres!$A$1:$E$300,5,FALSE)) -> 6.04 | E26: =IF(B26="",0,VLOOKUP(B26,Paramètres!$A$1:$E$300,2,FALSE)) -> 0.75 | F26: =IF(B26="",0,VLOOKUP(B26,Paramètres!$A$1:$E$300,4,FALSE)) -> 0.35 | G26: 0.49 | H26: =((1000*($F$23-1)*2.57452*$L$29*$F$34/$F$36)/($C$6*$E$34))*G26/$G$34 -> 3574.039529 | I26: x | J26: x | K26: x | L26: x | M26: x | N26: x | O26: x
B27: Cara Gold - Vieux Silo | C27: =IF(B27="",0,VLOOKUP(B27,Paramètres!$A$1:$E$300,3,FALSE)) -> 120 | D27: =IF(B27="",0,VLOOKUP(B27,Paramètres!$A$1:$E$300,5,FALSE)) -> 4.99 | E27: =IF(B27="",0,VLOOKUP(B27,Paramètres!$A$1:$E$300,2,FALSE)) -> 0.7 | F27: =IF(B27="",0,VLOOKUP(B27,Paramètres!$A$1:$E$300,4,FALSE)) -> 0.2 | G27: 0.02 | H27: =((1000*($F$23-1)*2.57452*$L$29*$F$34/$F$36)/($C$6*$E$34))*G27/$G$34 -> 145.8791645 | I27: Post-ébullition | L27: Théorique | N27: Réel
C28: =IF(B28="",0,VLOOKUP(B28,Paramètres!$A$1:$E$300,3,FALSE)) -> 0 | D28: =IF(B28="",0,VLOOKUP(B28,Paramètres!$A$1:$E$300,5,FALSE)) -> 0 | E28: =IF(B28="",0,VLOOKUP(B28,Paramètres!$A$1:$E$300,2,FALSE)) -> 0 | F28: =IF(B28="",0,VLOOKUP(B28,Paramètres!$A$1:$E$300,4,FALSE)) -> 0 | G28: 0 | H28: =((1000*($F$23-1)*2.57452*$L$29*$F$34/$F$36)/($C$6*$E$34))*G28/$G$34 -> 0 | K28: Densité | L28: =1+(((E34*C6*H34)+(E32*H32+E33*H33))/(2.57452*L29)/1000) -> 1.05 | N28: 1.049
C29: =IF(B29="",0,VLOOKUP(B29,Paramètres!$A$1:$E$300,3,FALSE)) -> 0 | D29: =IF(B29="",0,VLOOKUP(B29,Paramètres!$A$1:$E$300,5,FALSE)) -> 0 | E29: =IF(B29="",0,VLOOKUP(B29,Paramètres!$A$1:$E$300,2,FALSE)) -> 0 | F29: =IF(B29="",0,VLOOKUP(B29,Paramètres!$A$1:$E$300,4,FALSE)) -> 0 | G29: 0 | H29: =((1000*($F$23-1)*2.57452*$L$29*$F$34/$F$36)/($C$6*$E$34))*G29/$G$34 -> 0 | K29: Volume | L29: =L23*(1-L7*L6/60) -> 30.68 | N29: 31
C30: =IF(B30="",0,VLOOKUP(B30,Paramètres!$A$1:$E$300,3,FALSE)) -> 0 | D30: =IF(B30="",0,VLOOKUP(B30,Paramètres!$A$1:$E$300,5,FALSE)) -> 0 | E30: =IF(B30="",0,VLOOKUP(B30,Paramètres!$A$1:$E$300,2,FALSE)) -> 0 | F30: =IF(B30="",0,VLOOKUP(B30,Paramètres!$A$1:$E$300,4,FALSE)) -> 0 | G30: 0 | H30: =((1000*($F$23-1)*2.57452*$L$29*$F$34/$F$36)/($C$6*$E$34))*G30/$G$34 -> 0 | K30: Evaporation | L30: =L7*100 -> 10 | M30: =L7*L23*L6/60 -> 3.408888889 | N30: =((N23-N29)/N23)*100*60/L6 -> 6.060606061 | O30: =N30/100*N23 -> 2
A31: Selon stock | C31: =IF(B31="",0,VLOOKUP(B31,Paramètres!$A$1:$E$300,3,FALSE)) -> 0 | D31: =IF(B31="",0,VLOOKUP(B31,Paramètres!$A$1:$E$300,5,FALSE)) -> 0 | E31: =IF(B31="",0,VLOOKUP(B31,Paramètres!$A$1:$E$300,2,FALSE)) -> 0 | F31: =IF(B31="",0,VLOOKUP(B31,Paramètres!$A$1:$E$300,4,FALSE)) -> 0 | G31: 0 | H31: =((1000*($F$23-1)*2.57452*$L$29*$F$34/$F$36)/($C$6*$E$34))*G31/$G$34 -> 0 | K31: Vérif' : Différence quantité de sucre pré et post-ébu | O31: =((N22-1)*1000)*N23*2.57452-((N28-1)*1000)*N29*2.57452 -> -2.57452
A32: Sucres | C32: =IF(B32="",0,VLOOKUP(B32,Paramètres!$F$18:$I$31,3,FALSE)) -> 0 | E32: =IF(B32="",0,VLOOKUP(B32,Paramètres!$F$18:$I$31,2,FALSE)) -> 0 | G32: 0 | H32: =IFERROR((1000*($F$23-1)*2.57452*$L$29*$F$35/$F$36*$E$35)*(G32/$G$35),0) -> 0 | I32: x | J32: x | K32: x | L32: x | M32: x | N32: x | O32: x
C33: =IF(B33="",0,VLOOKUP(B33,Paramètres!$F$18:$I$31,3,FALSE)) -> 0 | E33: =IF(B33="",0,VLOOKUP(B33,Paramètres!$F$18:$I$31,2,FALSE)) -> 0 | G33: 0 | H33: =IFERROR((1000*($F$23-1)*2.57452*$L$29*$F$35/$F$36*$E$35)*(G33/$G$35),0) -> 0 | I33: En fermenteur | L33: Théorique | N33: Réel
A34: Total | B34: grains | C34: =2.9396*((4.23*(C25*H25+C26*H26+C27*H27+C28*H28+C29*H29+C30*H30+C31*H31)/1000)/ L29 )^0.6859 -> 12.3739512 | D34: =(D25*H25+D26*H26+D27*H27+D28*H28+D29*H29+D30*H30+D31*H31)/H34 -> 5.8524 | E34: =SUMPRODUCT(Tableau2[Rmax théo],Tableau2[%])/SUM(Tableau2[%]) -> 0.7735 | F34: =E34*C6*G34 -> 0.54145 | G34: =SUM(G25:G31) -> 1 | H34: =SUM(H25:H31) -> 7293.958223 | K34: DI | L34: =L28 -> 1.05 | N34: 1.049
A35: Total | B35: sucres | C35: =IFERROR(2.9396*((4.23*SUMPRODUCT(C32:C33,H32:H33)/1000)/ L29 )^0.6859,0) -> 0 | E35: =IFERROR(SUMPRODUCT(E32:E33,G32:G33)/SUM(G32:G33),0) -> 0 | F35: =IFERROR(G35/E35,0) -> 0 | G35: =SUM(G32:G33) -> 0 | H35: =SUM(H32:H33) -> 0 | K35: Volume | L35: =L29/(1+0.04)-O8-O7 -> 28 | N35: 29
A36: Total | B36: général | C36: =2.9396*((4.23*SUMPRODUCT(C25:C33,H25:H33)/1000)/ L29 )^0.6859 -> 12.3739512 | D36: =SUMPRODUCT(D25:D31,H25:H31)/H34 -> 5.8524 | E36: =SUMPRODUCT(E25:E33,G25:G33) -> 0.7735 | F36: =SUM(F34:F35) -> 0.54145 | G36: =SUM(G34:G35) -> 1 | H36: =SUM(H25:H33) -> 7293.958223 | K36: Efficacité du brassage | L36: =(2.57452*L35*(L34-1)*1000)/(E36*H36) -> 0.6388526728 | N36: =(2.57452*N35*(N34-1)*1000)/(E36*H36) -> 0.6484354628
A38: Autre | B38: Type | D38: Utilisation | E38: Durée | F38: Quantité | H38: Notes
I39: x | J39: x | K39: x | L39: x | M39: x | N39: x | O39: x | S39: =S36/G34*G33 -> 0
I40: Fermentation | K40: Profil | L40: T°C | M40: Durée | N40: Fin théorique | O40: Fin réelle
L41: 21 | M41: 21 | N41: =B5+M41 -> 2023-11-05 | O41: 2023-11-01
A42: Tous | L42: 2 | M42: 2 | N42: =IF(M42="","",N41+M42) -> 2023-11-07 | O42: 2023-11-06
A43: x | B43: x | C43: x | D43: x | E43: x | F43: x | G43: x | H43: x | N43: =IF(M43="","",N42+M43) -> 
A44: Houblons | B44: Type | C44: Acide Alpha | D44: Utilisation | E44: Durée | F44: Poids | G44: g/L | H44: IBUs | N44: =IF(M44="","",N43+M44) ->  | Q44: =R42/(2.57452*L29) -> 0
B45: Magnum | C45: 0.139 | D45: Ebullition | E45: 60 | F45: 8 | G45: =F45/$B$4 -> 0.2857142857 | H45: =IFERROR(IF(D45="Ebullition",((1.65*(0.000125^($L$28-1))*((1-EXP(-0.04*E45))/4.15))*C45*F45*1000)/($L$29)*Paramètres!$H$2,IF(D45="DH",((1.65*(0.000125^($L$28-1))*((1-EXP(-0.04*E45))/4.15))*C45*F45*1000)/($L$29)*Paramètres!$H$3,IF(D45="Hop-stand",((1.65*(0.000125^($L$28-1))*((1-EXP(-0.04*E45))/4.15))*C45*F45*1000)/($L$29)*Paramètres!$H$4,IF(D45="FWH",((1.65*(0.000125^($L$28-1))*((1-EXP(-0.04*E45))/4.15))*C45*F45*1000)/($L$29)*Paramètres!$H$5,IF(D45="Mash-hop",((1.65*(0.000125^($L$28-1))*((1-EXP(-0.04*E45))/4.15))*C45*F45*1000)/($L$29)*Paramètres!$H$6,IF(D45="Flame-out",((1.65*(0.000125^($L$28-1))*((1-EXP(-0.04*E45))/4.15))*C45*F45*1000)/($L$29)*Paramètres!$H$7,"")))))),0) -> 8.360445042 | K45: Suivi de la fermentation
B46: Tettnanger | C46: 0.041 | D46: Ebullition | E46: 10 | F46: 30 | G46: =F46/$B$4 -> 1.071428571 | H46: =IFERROR(IF(D46="Ebullition",((1.65*(0.000125^($L$28-1))*((1-EXP(-0.04*E46))/4.15))*C46*F46*1000)/($L$29)*Paramètres!$H$2,IF(D46="DH",((1.65*(0.000125^($L$28-1))*((1-EXP(-0.04*E46))/4.15))*C46*F46*1000)/($L$29)*Paramètres!$H$3,IF(D46="Hop-stand",((1.65*(0.000125^($L$28-1))*((1-EXP(-0.04*E46))/4.15))*C46*F46*1000)/($L$29)*Paramètres!$H$4,IF(D46="FWH",((1.65*(0.000125^($L$28-1))*((1-EXP(-0.04*E46))/4.15))*C46*F46*1000)/($L$29)*Paramètres!$H$5,IF(D46="Mash-hop",((1.65*(0.000125^($L$28-1))*((1-EXP(-0.04*E46))/4.15))*C46*F46*1000)/($L$29)*Paramètres!$H$6,IF(D46="Flame-out",((1.65*(0.000125^($L$28-1))*((1-EXP(-0.04*E46))/4.15))*C46*F46*1000)/($L$29)*Paramètres!$H$7,"")))))),0) -> 3.352923504 | K46: Date | L46: Brix | M46: Densité | N46: Atténuation | O46: Progression
G47: 0 | H47: =IFERROR(IF(D47="Ebullition",((1.65*(0.000125^($L$28-1))*((1-EXP(-0.04*E47))/4.15))*C47*F47*1000)/($L$29)*Paramètres!$H$2,IF(D47="DH",((1.65*(0.000125^($L$28-1))*((1-EXP(-0.04*E47))/4.15))*C47*F47*1000)/($L$29)*Paramètres!$H$3,IF(D47="Hop-stand",((1.65*(0.000125^($L$28-1))*((1-EXP(-0.04*E47))/4.15))*C47*F47*1000)/($L$29)*Paramètres!$H$4,IF(D47="FWH",((1.65*(0.000125^($L$28-1))*((1-EXP(-0.04*E47))/4.15))*C47*F47*1000)/($L$29)*Paramètres!$H$5,IF(D47="Mash-hop",((1.65*(0.000125^($L$28-1))*((1-EXP(-0.04*E47))/4.15))*C47*F47*1000)/($L$29)*Paramètres!$H$6,IF(D47="Flame-out",((1.65*(0.000125^($L$28-1))*((1-EXP(-0.04*E47))/4.15))*C47*F47*1000)/($L$29)*Paramètres!$H$7,"")))))),0) ->  | K47: 2023-10-22 | L47: 8 | M47: =IF(L47=0,"",1-0.000856829*(-616.868 + 1111.14 * $N$34- 630.272 * $N$34^ 2+135.997 *$N$34^3)+0.00349412*(L47/1.04)) -> 1.016467317 | N47: =IF(M47="","",($N$34-M47)/($N$34-1)) -> 0.663932305 | O47: =IF(N47="","",N47/$L$57) -> 0.8627674072
G48: 0 | H48: =IFERROR(IF(D48="Ebullition",((1.65*(0.000125^($L$28-1))*((1-EXP(-0.04*E48))/4.15))*C48*F48*1000)/($L$29)*Paramètres!$H$2,IF(D48="DH",((1.65*(0.000125^($L$28-1))*((1-EXP(-0.04*E48))/4.15))*C48*F48*1000)/($L$29)*Paramètres!$H$3,IF(D48="Hop-stand",((1.65*(0.000125^($L$28-1))*((1-EXP(-0.04*E48))/4.15))*C48*F48*1000)/($L$29)*Paramètres!$H$4,IF(D48="FWH",((1.65*(0.000125^($L$28-1))*((1-EXP(-0.04*E48))/4.15))*C48*F48*1000)/($L$29)*Paramètres!$H$5,IF(D48="Mash-hop",((1.65*(0.000125^($L$28-1))*((1-EXP(-0.04*E48))/4.15))*C48*F48*1000)/($L$29)*Paramètres!$H$6,IF(D48="Flame-out",((1.65*(0.000125^($L$28-1))*((1-EXP(-0.04*E48))/4.15))*C48*F48*1000)/($L$29)*Paramètres!$H$7,"")))))),0) ->  | K48: 2023-10-29 | L48: 6 | M48: 1.009747856 | N48: 0.8010641731 | O48: 1.040967663
G49: 0 | H49: =IFERROR(IF(D49="Ebullition",((1.65*(0.000125^($L$28-1))*((1-EXP(-0.04*E49))/4.15))*C49*F49*1000)/($L$29)*Paramètres!$H$2,IF(D49="DH",((1.65*(0.000125^($L$28-1))*((1-EXP(-0.04*E49))/4.15))*C49*F49*1000)/($L$29)*Paramètres!$H$3,IF(D49="Hop-stand",((1.65*(0.000125^($L$28-1))*((1-EXP(-0.04*E49))/4.15))*C49*F49*1000)/($L$29)*Paramètres!$H$4,IF(D49="FWH",((1.65*(0.000125^($L$28-1))*((1-EXP(-0.04*E49))/4.15))*C49*F49*1000)/($L$29)*Paramètres!$H$5,IF(D49="Mash-hop",((1.65*(0.000125^($L$28-1))*((1-EXP(-0.04*E49))/4.15))*C49*F49*1000)/($L$29)*Paramètres!$H$6,IF(D49="Flame-out",((1.65*(0.000125^($L$28-1))*((1-EXP(-0.04*E49))/4.15))*C49*F49*1000)/($L$29)*Paramètres!$H$7,"")))))),0) ->  | K49: 2023-11-01 | L49: 6 | M49: 1.009747856 | N49: 0.8010641731 | O49: 1.040967663
G50: 0 | H50: =IFERROR(IF(D50="Ebullition",((1.65*(0.000125^($L$28-1))*((1-EXP(-0.04*E50))/4.15))*C50*F50*1000)/($L$29)*Paramètres!$H$2,IF(D50="DH",((1.65*(0.000125^($L$28-1))*((1-EXP(-0.04*E50))/4.15))*C50*F50*1000)/($L$29)*Paramètres!$H$3,IF(D50="Hop-stand",((1.65*(0.000125^($L$28-1))*((1-EXP(-0.04*E50))/4.15))*C50*F50*1000)/($L$29)*Paramètres!$H$4,IF(D50="FWH",((1.65*(0.000125^($L$28-1))*((1-EXP(-0.04*E50))/4.15))*C50*F50*1000)/($L$29)*Paramètres!$H$5,IF(D50="Mash-hop",((1.65*(0.000125^($L$28-1))*((1-EXP(-0.04*E50))/4.15))*C50*F50*1000)/($L$29)*Paramètres!$H$6,IF(D50="Flame-out",((1.65*(0.000125^($L$28-1))*((1-EXP(-0.04*E50))/4.15))*C50*F50*1000)/($L$29)*Paramètres!$H$7,"")))))),0) -> 
G51: 0 | H51: =IFERROR(IF(D51="Ebullition",((1.65*(0.000125^($L$28-1))*((1-EXP(-0.04*E51))/4.15))*C51*F51*1000)/($L$29)*Paramètres!$H$2,IF(D51="DH",((1.65*(0.000125^($L$28-1))*((1-EXP(-0.04*E51))/4.15))*C51*F51*1000)/($L$29)*Paramètres!$H$3,IF(D51="Hop-stand",((1.65*(0.000125^($L$28-1))*((1-EXP(-0.04*E51))/4.15))*C51*F51*1000)/($L$29)*Paramètres!$H$4,IF(D51="FWH",((1.65*(0.000125^($L$28-1))*((1-EXP(-0.04*E51))/4.15))*C51*F51*1000)/($L$29)*Paramètres!$H$5,IF(D51="Mash-hop",((1.65*(0.000125^($L$28-1))*((1-EXP(-0.04*E51))/4.15))*C51*F51*1000)/($L$29)*Paramètres!$H$6,IF(D51="Flame-out",((1.65*(0.000125^($L$28-1))*((1-EXP(-0.04*E51))/4.15))*C51*F51*1000)/($L$29)*Paramètres!$H$7,"")))))),0) -> 
G52: 0 | H52: =IFERROR(IF(D52="Ebullition",((1.65*(0.000125^($L$28-1))*((1-EXP(-0.04*E52))/4.15))*C52*F52*1000)/($L$29)*Paramètres!$H$2,IF(D52="DH",((1.65*(0.000125^($L$28-1))*((1-EXP(-0.04*E52))/4.15))*C52*F52*1000)/($L$29)*Paramètres!$H$3,IF(D52="Hop-stand",((1.65*(0.000125^($L$28-1))*((1-EXP(-0.04*E52))/4.15))*C52*F52*1000)/($L$29)*Paramètres!$H$4,IF(D52="FWH",((1.65*(0.000125^($L$28-1))*((1-EXP(-0.04*E52))/4.15))*C52*F52*1000)/($L$29)*Paramètres!$H$5,IF(D52="Mash-hop",((1.65*(0.000125^($L$28-1))*((1-EXP(-0.04*E52))/4.15))*C52*F52*1000)/($L$29)*Paramètres!$H$6,IF(D52="Flame-out",((1.65*(0.000125^($L$28-1))*((1-EXP(-0.04*E52))/4.15))*C52*F52*1000)/($L$29)*Paramètres!$H$7,"")))))),0) -> 
G53: 0 | H53: =IFERROR(IF(D53="Ebullition",((1.65*(0.000125^($L$28-1))*((1-EXP(-0.04*E53))/4.15))*C53*F53*1000)/($L$29)*Paramètres!$H$2,IF(D53="DH",((1.65*(0.000125^($L$28-1))*((1-EXP(-0.04*E53))/4.15))*C53*F53*1000)/($L$29)*Paramètres!$H$3,IF(D53="Hop-stand",((1.65*(0.000125^($L$28-1))*((1-EXP(-0.04*E53))/4.15))*C53*F53*1000)/($L$29)*Paramètres!$H$4,IF(D53="FWH",((1.65*(0.000125^($L$28-1))*((1-EXP(-0.04*E53))/4.15))*C53*F53*1000)/($L$29)*Paramètres!$H$5,IF(D53="Mash-hop",((1.65*(0.000125^($L$28-1))*((1-EXP(-0.04*E53))/4.15))*C53*F53*1000)/($L$29)*Paramètres!$H$6,IF(D53="Flame-out",((1.65*(0.000125^($L$28-1))*((1-EXP(-0.04*E53))/4.15))*C53*F53*1000)/($L$29)*Paramètres!$H$7,"")))))),0) ->  | I53: x | J53: x | K53: x | L53: x | M53: x | N53: x | O53: x
G54: 0 | H54: =IFERROR(IF(D54="Ebullition",((1.65*(0.000125^($L$28-1))*((1-EXP(-0.04*E54))/4.15))*C54*F54*1000)/($L$29)*Paramètres!$H$2,IF(D54="DH",((1.65*(0.000125^($L$28-1))*((1-EXP(-0.04*E54))/4.15))*C54*F54*1000)/($L$29)*Paramètres!$H$3,IF(D54="Hop-stand",((1.65*(0.000125^($L$28-1))*((1-EXP(-0.04*E54))/4.15))*C54*F54*1000)/($L$29)*Paramètres!$H$4,IF(D54="FWH",((1.65*(0.000125^($L$28-1))*((1-EXP(-0.04*E54))/4.15))*C54*F54*1000)/($L$29)*Paramètres!$H$5,IF(D54="Mash-hop",((1.65*(0.000125^($L$28-1))*((1-EXP(-0.04*E54))/4.15))*C54*F54*1000)/($L$29)*Paramètres!$H$6,IF(D54="Flame-out",((1.65*(0.000125^($L$28-1))*((1-EXP(-0.04*E54))/4.15))*C54*F54*1000)/($L$29)*Paramètres!$H$7,"")))))),0) ->  | I54: Embouteillage | K54: 2023-11-06 | L54: Théorique | N54: Réel
G55: 0 | H55: =IFERROR(IF(D55="Ebullition",((1.65*(0.000125^($L$28-1))*((1-EXP(-0.04*E55))/4.15))*C55*F55*1000)/($L$29)*Paramètres!$H$2,IF(D55="DH",((1.65*(0.000125^($L$28-1))*((1-EXP(-0.04*E55))/4.15))*C55*F55*1000)/($L$29)*Paramètres!$H$3,IF(D55="Hop-stand",((1.65*(0.000125^($L$28-1))*((1-EXP(-0.04*E55))/4.15))*C55*F55*1000)/($L$29)*Paramètres!$H$4,IF(D55="FWH",((1.65*(0.000125^($L$28-1))*((1-EXP(-0.04*E55))/4.15))*C55*F55*1000)/($L$29)*Paramètres!$H$5,IF(D55="Mash-hop",((1.65*(0.000125^($L$28-1))*((1-EXP(-0.04*E55))/4.15))*C55*F55*1000)/($L$29)*Paramètres!$H$6,IF(D55="Flame-out",((1.65*(0.000125^($L$28-1))*((1-EXP(-0.04*E55))/4.15))*C55*F55*1000)/($L$29)*Paramètres!$H$7,"")))))),0) ->  | K55: Volume | L55: =L35-O9 -> 27 | N55: 28.5
G56: 0 | H56: =IFERROR(IF(D56="Ebullition",((1.65*(0.000125^($L$28-1))*((1-EXP(-0.04*E56))/4.15))*C56*F56*1000)/($L$29)*Paramètres!$H$2,IF(D56="DH",((1.65*(0.000125^($L$28-1))*((1-EXP(-0.04*E56))/4.15))*C56*F56*1000)/($L$29)*Paramètres!$H$3,IF(D56="Hop-stand",((1.65*(0.000125^($L$28-1))*((1-EXP(-0.04*E56))/4.15))*C56*F56*1000)/($L$29)*Paramètres!$H$4,IF(D56="FWH",((1.65*(0.000125^($L$28-1))*((1-EXP(-0.04*E56))/4.15))*C56*F56*1000)/($L$29)*Paramètres!$H$5,IF(D56="Mash-hop",((1.65*(0.000125^($L$28-1))*((1-EXP(-0.04*E56))/4.15))*C56*F56*1000)/($L$29)*Paramètres!$H$6,IF(D56="Flame-out",((1.65*(0.000125^($L$28-1))*((1-EXP(-0.04*E56))/4.15))*C56*F56*1000)/($L$29)*Paramètres!$H$7,"")))))),0) ->  | K56: DF | L56: =L28-((L28-1)*MAX(E61,E62)) -> 1.0115231 | N56: 1.01
G57: 0 | H57: =IFERROR(IF(D57="Ebullition",((1.65*(0.000125^($L$28-1))*((1-EXP(-0.04*E57))/4.15))*C57*F57*1000)/($L$29)*Paramètres!$H$2,IF(D57="DH",((1.65*(0.000125^($L$28-1))*((1-EXP(-0.04*E57))/4.15))*C57*F57*1000)/($L$29)*Paramètres!$H$3,IF(D57="Hop-stand",((1.65*(0.000125^($L$28-1))*((1-EXP(-0.04*E57))/4.15))*C57*F57*1000)/($L$29)*Paramètres!$H$4,IF(D57="FWH",((1.65*(0.000125^($L$28-1))*((1-EXP(-0.04*E57))/4.15))*C57*F57*1000)/($L$29)*Paramètres!$H$5,IF(D57="Mash-hop",((1.65*(0.000125^($L$28-1))*((1-EXP(-0.04*E57))/4.15))*C57*F57*1000)/($L$29)*Paramètres!$H$6,IF(D57="Flame-out",((1.65*(0.000125^($L$28-1))*((1-EXP(-0.04*E57))/4.15))*C57*F57*1000)/($L$29)*Paramètres!$H$7,"")))))),0) ->  | K57: Atténuation | L57: =E61 -> 0.769538 | N57: =(N34-N56)/(N34-1) -> 0.7959183673
A58: Selon stock | B58: TOTAL | E58: =E45 -> 60 | F58: =SUM(F45:F57) -> 38 | G58: =SUM(G45:G57) -> 1.357142857 | H58: =SUM(H45:H57) -> 11.71336855 | K58: % alcool | L58: =(76.08 * (L34 - L56) / (1.775 - L34 )) * (L56 / 0.794) -> 5.143845014 | N58: =(76.08 * (N34 - N56) / (1.775 - N34 )) * (N56 / 0.794) -> 5.198755126
B59: x | C59: x | D59: x | E59: x | F59: x | G59: x | H59: x | K59: Carbonatation en keg | L59: T°C | M59: Pression d'équilibre | O59: % alcool
A60: Levures | B60: Type | D60: Quantité recommandée | E60: Atténuation corrigée | F60: T°C min | G60: T°C max | H60: Quantité utilisée (mds) | L60: 4 | M60: =( -16.6999 - 0.0101059*(32+L60*9/5)+ 0.00116512 *(32+L60*9/5)^2 + 0.173354 *(32+L60*9/5)*E9 + 4.24267 *E9 - 0.0684226*E9^2)/14.515 -> 1.622107496 | O60: =N58 -> 5.198755126
B61: Wyeast 3068 Weihenstephan Weizen | D61: =IF(B61="","",$L$35*(-676.67+1286.4*$L$34-800.47*$L$34^2+190.74*$L$34^3)*IF($E$4<Paramètres!$H$10,Paramètres!$H$11,Paramètres!$I$11)*IF(ISNUMBER(SEARCH("lager",$B$3)),2,1)) -> 259.0815675 | E61: =IF(B61="","",(-0.003*$B$11^2+0.3904*$B$11-11.699)*VLOOKUP(B61,Paramètres!$J$2:$Q$300,4,FALSE)) -> 0.769538 | F61: =IF(B61="","",VLOOKUP(B61,Paramètres!$J$2:$Q$300,6,FALSE)) -> 18 | G61: =IF(B61="","",VLOOKUP(B61,Paramètres!$J$2:$Q$300,7,FALSE)) -> 24 | H61: 260 | K61: Resucrage | L61: =(E9-(3.0378-5.0062*0.01*(MAX(L41:L43)*1.8+32)+2.6555*0.0001*(MAX(L41:L43)*1.8+32)^2))*4 -> 11.05102951 | M61: soit | N61: =L61*N55 -> 314.9543411 | O61: =(76.08*((N34+(L61/2.57452)/1000)-N56)/(1.775-(N34+(L61/2.57452)/1000))*(N56/0.794)) -> 5.805269946
A62: Tous | D62: =IF(B62="","",$L$35*(-676.67+1286.4*$L$34-800.47*$L$34^2+190.74*$L$34^3)*IF($E$4<Paramètres!$H$10,Paramètres!$H$11,Paramètres!$I$11)*IF(ISNUMBER(SEARCH("lager",$B$3)),2,1)) ->  | E62: =IF(B62="","",(-0.003*$B$11^2+0.3904*$B$11-11.699)*VLOOKUP(B62,Paramètres!$J$2:$Q$300,4,FALSE)) ->  | F62: =IF(B62="","",VLOOKUP(B62,Paramètres!$J$2:$Q$300,6,FALSE)) ->  | G62: =IF(B62="","",VLOOKUP(B62,Paramètres!$J$2:$Q$300,7,FALSE)) ->  | I62: Ajout de non-fermentiscibles | K62: Lactose | M62: =L62*N55 -> 0 | N62: =L56+(L62*(VLOOKUP(K62,Paramètres!F35:I41,2,FALSE))/2.57452)/1000 -> 1.0115231 | O62: =N56+(L62*(VLOOKUP(K62,Paramètres!F35:I41,2,FALSE))/2.57452)/1000 -> 1.01
M64: =VLOOKUP(K62,Paramètres!F35:I41,2,TRUE) -> 
B70: =IF(ROWS($1:7)<=COUNTIF(Utilisation,$F$64),INDEX(result,SMALL(IF(Utilisation=$F$64,ROW(INDIRECT("1:"&ROWS(Utilisation)))),ROWS($1:7))),"") ->  | E70: =IF(ROWS($1:7)<=COUNTIF(Utilisation,"Ebullition"),INDEX(poids,SMALL(IF(Utilisation="Ebullition",ROW(INDIRECT("1:"&ROWS(Utilisation)))),ROWS($1:7))),"") ->  | F70: =IF(ROWS($1:7)<=COUNTIF(Utilisation,"Ebullition"),INDEX(Durée,SMALL(IF(Utilisation="Ebullition",ROW(INDIRECT("1:"&ROWS(Utilisation)))),ROWS($1:7))),"") -> 
B71: =IF(ROWS($1:8)<=COUNTIF(Utilisation,$F$64),INDEX(result,SMALL(IF(Utilisation=$F$64,ROW(INDIRECT("1:"&ROWS(Utilisation)))),ROWS($1:8))),"") -> 

Sheet Feuille de Brassage
A1: =Brassage!A1 -> # Projet - Weissbier exemple
A2: x | B2: x | C2: x | D2: x | E2: x | F2: x | G2: x
A3: Préparation du grain | D3: Préparation de l'eau
A4: Peser, (+/-conditionner) puis broyer : | E4: Empatage | F4: Rinçage | G4: Total
A5: =Brassage!H25 -> 3574.039529 | B5: =IF(A5=0,"",Brassage!B25&" ("&Brassage!C25&" EBC)") -> Pale ale Swaen (7,1 EBC) | D5: Volume | E5: =Brassage!M10 -> 25.52885378 | F5: =Brassage!M18 -> 15.54288222 | G5: =E5+F5 -> 41.071736
A6: =IF(Brassage!H26>0,Brassage!H26,"-") -> 3574.039529 | B6: =IF(A6="-","",Brassage!B26&" ("&Brassage!C26&" EBC)") -> Froment - Vieux Silo (4,5 EBC) | D6: =Brassage!R6 -> CaSO4 | E6: =Brassage!T6 -> 0.5105770756 | F6: =Brassage!U6 -> 0.3108576444 | G6: =Brassage!S6 -> 0.02
A7: =IF(Brassage!H27>0,Brassage!H27,"-") -> 145.8791645 | B7: =IF(A7="-","",Brassage!B27&" ("&Brassage!C27&" EBC)") -> Cara Gold - Vieux Silo (120 EBC) | D7: =Brassage!R7 -> NaCl | E7: =Brassage!T7 -> 0.7658656134 | F7: =Brassage!U7 -> 0.4662864666 | G7: =Brassage!S7 -> 0.03
A8: =IF(Brassage!H28>0,Brassage!H28,"-") -> - | B8: =IF(A8="-","",Brassage!B28&" ("&Brassage!C28&" EBC)") ->  | D8: =Brassage!R8 -> MgSO4 | E8: =Brassage!T8 -> 3.574039529 | F8: =Brassage!U8 -> 2.176003511 | G8: =Brassage!S8 -> 0.14 | O8: =Brassage!AC7 -> 0 | P8: =Brassage!AE8 -> 0
A9: =IF(Brassage!H29>0,Brassage!H29,"-") -> - | B9: =IF(A9="-","",Brassage!B29&" ("&Brassage!C29&" EBC)") ->  | D9: =Brassage!R9 -> CaCl2 | E9: =Brassage!T9 -> 2.042308303 | F9: =Brassage!U9 -> 1.243430578 | G9: =Brassage!S9 -> 0.08 | O9: =Brassage!AC8 -> 0 | P9: =Brassage!AE9 -> 0
A10: =IF(Brassage!H30>0,Brassage!H30,"-") -> - | B10: =IF(A10="-","",Brassage!B30&" ("&Brassage!C30&" EBC)") ->  | D10: =Brassage!R10 -> NaHCO3 | E10: =Brassage!T10 -> 0 | F10: =Brassage!U10 -> 0 | G10: =Brassage!S10 -> 0 | O10: =Brassage!AC9 -> 0 | P10: =Brassage!AE10 -> 0
A11: =IF(Brassage!H31>0,Brassage!H31,"-") -> - | B11: =IF(A11="-","",Brassage!B31&" ("&Brassage!C31&" EBC)") ->  | D11: =Brassage!R11 -> CaCO3 | E11: =Brassage!T11 -> 0 | F11: =Brassage!U11 -> 0 | G11: =Brassage!S11 -> 0 | O11: =Brassage!AC10 -> 0 | P11: =Brassage!AE11 -> 0
A12: x | B12: x | C12: x | D12: x | E12: x | F12: x | G12: x
A13: Correction du pH
A14: =IF(Brassage!A20>0,"Ajouter",0) -> Ajouter | B14: =IF(A14>0,Brassage!C21,"") -> 7 | C14: =IF(A14>0,"de","") -> de | D14: =IF(A14>0,Brassage!A20,"") -> Acide Lactique | F14: =IF(A14>0,"à","") -> à | G14: =IF(A14>0,Brassage!B21,"") -> 0.88
A15: Objectif : le pH à l'empatage doit être d'environ | E15: =Brassage!M12 -> 5.523683616 | F15: ph réel
A16: x | B16: x | C16: x | D16: x | E16: x | F16: x | G16: x
A17: Empatage et Mash-Hop
A18: =IF(B18="","","Ajouter") ->  | B18: =IF(ROWS($1:1)<=COUNTIF(Utilisation,"Mash-Hop"),INDEX(poids,SMALL(IF(Utilisation="Mash-Hop",ROW(INDIRECT("1:"&ROWS(Utilisation)))),ROWS($1:1))),"") ->  | C18: =IF(B18="","","de") ->  | D18: =IF(ROWS($1:1)<=COUNTIF(Utilisation,"Mash-Hop"),INDEX(result,SMALL(IF(Utilisation="Mash-Hop",ROW(INDIRECT("1:"&ROWS(Utilisation)))),ROWS($1:1))),"") ->  | E18: =IF(D18="","","pour le Mash-Hop") -> 
A19: =IF(B19="","","Ajouter") ->  | B19: =IF(ROWS($1:2)<=COUNTIF(Utilisation,"Mash-Hop"),INDEX(poids,SMALL(IF(Utilisation="Mash-Hop",ROW(INDIRECT("1:"&ROWS(Utilisation)))),ROWS($1:2))),"") ->  | C19: =IF(B19="","","de") ->  | D19: =IF(ROWS($1:2)<=COUNTIF(Utilisation,"Mash-Hop"),INDEX(result,SMALL(IF(Utilisation="Mash-Hop",ROW(INDIRECT("1:"&ROWS(Utilisation)))),ROWS($1:2))),"") -> 
B20: =IF(ROWS($1:3)<=COUNTIF(Utilisation,"Mash-Hop"),INDEX(poids,SMALL(IF(Utilisation="Mash-Hop",ROW(INDIRECT("1:"&ROWS(Utilisation)))),ROWS($1:3))),"") ->  | D20: =IF(ROWS($1:3)<=COUNTIF(Utilisation,"Mash-Hop"),INDEX(result,SMALL(IF(Utilisation="Mash-Hop",ROW(INDIRECT("1:"&ROWS(Utilisation)))),ROWS($1:3))),"") -> 
B21: =IF(ROWS($1:4)<=COUNTIF(Utilisation,"Mash-Hop"),INDEX(poids,SMALL(IF(Utilisation="Mash-Hop",ROW(INDIRECT("1:"&ROWS(Utilisation)))),ROWS($1:4))),"") ->  | D21: =IF(ROWS($1:4)<=COUNTIF(Utilisation,"Mash-Hop"),INDEX(result,SMALL(IF(Utilisation="Mash-Hop",ROW(INDIRECT("1:"&ROWS(Utilisation)))),ROWS($1:4))),"") -> 
B22: =IF(ROWS($1:5)<=COUNTIF(Utilisation,"Mash-Hop"),INDEX(poids,SMALL(IF(Utilisation="Mash-Hop",ROW(INDIRECT("1:"&ROWS(Utilisation)))),ROWS($1:5))),"") ->  | D22: =IF(ROWS($1:5)<=COUNTIF(Utilisation,"Mash-Hop"),INDEX(result,SMALL(IF(Utilisation="Mash-Hop",ROW(INDIRECT("1:"&ROWS(Utilisation)))),ROWS($1:5))),"") -> 
B23: =IF(ROWS($1:6)<=COUNTIF(Utilisation,"Mash-Hop"),INDEX(poids,SMALL(IF(Utilisation="Mash-Hop",ROW(INDIRECT("1:"&ROWS(Utilisation)))),ROWS($1:6))),"") ->  | D23: =IF(ROWS($1:6)<=COUNTIF(Utilisation,"Mash-Hop"),INDEX(result,SMALL(IF(Utilisation="Mash-Hop",ROW(INDIRECT("1:"&ROWS(Utilisation)))),ROWS($1:6))),"") -> 
B24: =IF(ROWS($1:7)<=COUNTIF(Utilisation,"Mash-Hop"),INDEX(poids,SMALL(IF(Utilisation="Mash-Hop",ROW(INDIRECT("1:"&ROWS(Utilisation)))),ROWS($1:7))),"") ->  | D24: =IF(ROWS($1:7)<=COUNTIF(Utilisation,"Mash-Hop"),INDEX(result,SMALL(IF(Utilisation="Mash-Hop",ROW(INDIRECT("1:"&ROWS(Utilisation)))),ROWS($1:7))),"") -> 
B25: =IF(ROWS($1:8)<=COUNTIF(Utilisation,"Mash-Hop"),INDEX(poids,SMALL(IF(Utilisation="Mash-Hop",ROW(INDIRECT("1:"&ROWS(Utilisation)))),ROWS($1:8))),"") ->  | D25: =IF(ROWS($1:8)<=COUNTIF(Utilisation,"Mash-Hop"),INDEX(result,SMALL(IF(Utilisation="Mash-Hop",ROW(INDIRECT("1:"&ROWS(Utilisation)))),ROWS($1:8))),"") -> 
B26: =IF(ROWS($1:9)<=COUNTIF(Utilisation,"Mash-Hop"),INDEX(poids,SMALL(IF(Utilisation="Mash-Hop",ROW(INDIRECT("1:"&ROWS(Utilisation)))),ROWS($1:9))),"") ->  | D26: =IF(ROWS($1:9)<=COUNTIF(Utilisation,"Mash-Hop"),INDEX(result,SMALL(IF(Utilisation="Mash-Hop",ROW(INDIRECT("1:"&ROWS(Utilisation)))),ROWS($1:9))),"") -> 
B27: =IF(ROWS($1:10)<=COUNTIF(Utilisation,"Mash-Hop"),INDEX(poids,SMALL(IF(Utilisation="Mash-Hop",ROW(INDIRECT("1:"&ROWS(Utilisation)))),ROWS($1:10))),"") ->  | D27: =IF(ROWS($1:10)<=COUNTIF(Utilisation,"Mash-Hop"),INDEX(result,SMALL(IF(Utilisation="Mash-Hop",ROW(INDIRECT("1:"&ROWS(Utilisation)))),ROWS($1:10))),"") -> 
B28: =IF(ROWS($1:11)<=COUNTIF(Utilisation,"Mash-Hop"),INDEX(poids,SMALL(IF(Utilisation="Mash-Hop",ROW(INDIRECT("1:"&ROWS(Utilisation)))),ROWS($1:11))),"") ->  | D28: =IF(ROWS($1:11)<=COUNTIF(Utilisation,"Mash-Hop"),INDEX(result,SMALL(IF(Utilisation="Mash-Hop",ROW(INDIRECT("1:"&ROWS(Utilisation)))),ROWS($1:11))),"") -> 
A29: =Brassage!A7 -> Palier 1 | B29: Ajouter | C29: =Brassage!M10 -> 25.52885378 | D29: d'eau à | E29: =Brassage!O10 -> 70.34663563 | F29: =Brassage!B7 -> 66 | G29: =Brassage!C7 -> 60
A30: =IF(Brassage!B8="","",Brassage!A8) ->  | B30: =IF(F30=0,"",IF(Brassage!$I$10="Chauffe Directe","Relancer",IF(Brassage!$I$10="Décoction","Prélever","Ajouter"))) ->  | C30: =IF(F30=0,"",IF(Brassage!$I$10="Chauffe Directe","la chauffe",IF(Brassage!$I$10="Décoction",Brassage!$O$13,Brassage!$O$13))) ->  | D30: =IF(F30=0,"",IF(Brassage!$I$10="Chauffe Directe","jusqu'à",IF(Brassage!$I$10="Décoction","les porter à","d'eau à"))) ->  | E30: =IF(F30=0,"",IF(Brassage!$I$10="Chauffe Directe","atteindre",IF(Brassage!$I$10="Décoction",Brassage!$J$10&"°C ",Brassage!$J$10&"°C "))) ->  | F30: =Brassage!B8 -> 0 | G30: =Brassage!C8 -> 0
A31: =IF(Brassage!B9="","",Brassage!A9) ->  | B31: =IF(F31=0,"",IF(Brassage!$I$10="Chauffe Directe","Relancer",IF(Brassage!$I$10="Décoction","Prélever","Ajouter"))) ->  | C31: =IF(F31=0,"",IF(Brassage!$I$10="Chauffe Directe","la chauffe",IF(Brassage!$I$10="Décoction",Brassage!$O$13,Brassage!$O$13))) ->  | D31: =IF(F31=0,"",IF(Brassage!$I$10="Chauffe Directe","jusqu'à",IF(Brassage!$I$10="Décoction","les porter à","d'eau à"))) ->  | E31: =IF(F31=0,"",IF(Brassage!$I$10="Chauffe Directe","atteindre",IF(Brassage!$I$10="Décoction",Brassage!$J$10&"°C ",Brassage!$J$10&"°C "))) ->  | F31: =Brassage!B9 -> 0 | G31: =Brassage!C9 -> 0
A32: =Brassage!A10 -> Mash-Out | B32: =IF(F32=0,"",IF(Brassage!$I$10="Chauffe Directe","Relancer",IF(Brassage!$I$10="Décoction","Prélever","Ajouter"))) ->  | C32: =IF(F32=0,"",IF(Brassage!$I$10="Chauffe Directe","la chauffe",IF(Brassage!$I$10="Décoction",Brassage!$O$13,Brassage!$O$13))) ->  | D32: =IF(F32=0,"",IF(Brassage!$I$10="Chauffe Directe","jusqu'à",IF(Brassage!$I$10="Décoction","les porter à","d'eau à"))) ->  | E32: =IF(F32=0,"",IF(Brassage!$I$10="Chauffe Directe","atteindre",IF(Brassage!$I$10="Décoction",Brassage!$J$10&"°C ",Brassage!$J$10&"°C "))) ->  | F32: =Brassage!B10 -> 0 | G32: =Brassage!C10 -> 0
A33: x | B33: x | C33: x | D33: x | E33: x | F33: x | G33: x
A34: Filtration et FWH
A35: Filtrer les drêches et les rincer avec | E35: =Brassage!M18 -> 15.54288222 | F35: d'eau à | G35: =Brassage!M19 -> 78
A36: Ajouter les sels minéraux nécessaires à l'eau de rinçage ou au mout avant ébullition
A37: =IF(B37="","","Ajouter") ->  | B37: =IF(ROWS($1:1)<=COUNTIF(Utilisation,"FWH"),INDEX(poids,SMALL(IF(Utilisation="FWH",ROW(INDIRECT("1:"&ROWS(Utilisation)))),ROWS($1:1))),"") ->  | C37: =IF(B37="","","de") ->  | D37: =IF(ROWS($1:1)<=COUNTIF(Utilisation,"FWH"),INDEX(result,SMALL(IF(Utilisation="FWH",ROW(INDIRECT("1:"&ROWS(Utilisation)))),ROWS($1:1))),"") ->  | E37: =IF(B37="","","dans la cuve ébu pour le FWH") -> 
A38: =IF(B38="","","Ajouter") ->  | B38: =IF(ROWS($1:2)<=COUNTIF(Utilisation,"FWH"),INDEX(poids,SMALL(IF(Utilisation="FWH",ROW(INDIRECT("1:"&ROWS(Utilisation)))),ROWS($1:2))),"") ->  | C38: =IF(B38="","","de") ->  | D38: =IF(ROWS($1:2)<=COUNTIF(Utilisation,"FWH"),INDEX(result,SMALL(IF(Utilisation="FWH",ROW(INDIRECT("1:"&ROWS(Utilisation)))),ROWS($1:2))),"") -> 
B39: =IF(ROWS($1:3)<=COUNTIF(Utilisation,"FWH"),INDEX(poids,SMALL(IF(Utilisation="FWH",ROW(INDIRECT("1:"&ROWS(Utilisation)))),ROWS($1:3))),"") ->  | D39: =IF(ROWS($1:3)<=COUNTIF(Utilisation,"FWH"),INDEX(result,SMALL(IF(Utilisation="FWH",ROW(INDIRECT("1:"&ROWS(Utilisation)))),ROWS($1:3))),"") -> 
B40: =IF(ROWS($1:4)<=COUNTIF(Utilisation,"FWH"),INDEX(poids,SMALL(IF(Utilisation="FWH",ROW(INDIRECT("1:"&ROWS(Utilisation)))),ROWS($1:4))),"") ->  | D40: =IF(ROWS($1:4)<=COUNTIF(Utilisation,"FWH"),INDEX(result,SMALL(IF(Utilisation="FWH",ROW(INDIRECT("1:"&ROWS(Utilisation)))),ROWS($1:4))),"") -> 
B41: =IF(ROWS($1:5)<=COUNTIF(Utilisation,"FWH"),INDEX(poids,SMALL(IF(Utilisation="FWH",ROW(INDIRECT("1:"&ROWS(Utilisation)))),ROWS($1:5))),"") ->  | D41: =IF(ROWS($1:5)<=COUNTIF(Utilisation,"FWH"),INDEX(result,SMALL(IF(Utilisation="FWH",ROW(INDIRECT("1:"&ROWS(Utilisation)))),ROWS($1:5))),"") -> 
B42: =IF(ROWS($1:6)<=COUNTIF(Utilisation,"FWH"),INDEX(poids,SMALL(IF(Utilisation="FWH",ROW(INDIRECT("1:"&ROWS(Utilisation)))),ROWS($1:6))),"") ->  | D42: =IF(ROWS($1:6)<=COUNTIF(Utilisation,"FWH"),INDEX(result,SMALL(IF(Utilisation="FWH",ROW(INDIRECT("1:"&ROWS(Utilisation)))),ROWS($1:6))),"") -> 
B43: =IF(ROWS($1:7)<=COUNTIF(Utilisation,"FWH"),INDEX(poids,SMALL(IF(Utilisation="FWH",ROW(INDIRECT("1:"&ROWS(Utilisation)))),ROWS($1:7))),"") ->  | D43: =IF(ROWS($1:7)<=COUNTIF(Utilisation,"FWH"),INDEX(result,SMALL(IF(Utilisation="FWH",ROW(INDIRECT("1:"&ROWS(Utilisation)))),ROWS($1:7))),"") -> 
B44: =IF(ROWS($1:8)<=COUNTIF(Utilisation,"FWH"),INDEX(poids,SMALL(IF(Utilisation="FWH",ROW(INDIRECT("1:"&ROWS(Utilisation)))),ROWS($1:8))),"") ->  | D44: =IF(ROWS($1:8)<=COUNTIF(Utilisation,"FWH"),INDEX(result,SMALL(IF(Utilisation="FWH",ROW(INDIRECT("1:"&ROWS(Utilisation)))),ROWS($1:8))),"") -> 
B45: =IF(ROWS($1:9)<=COUNTIF(Utilisation,"FWH"),INDEX(poids,SMALL(IF(Utilisation="FWH",ROW(INDIRECT("1:"&ROWS(Utilisation)))),ROWS($1:9))),"") ->  | D45: =IF(ROWS($1:9)<=COUNTIF(Utilisation,"FWH"),INDEX(result,SMALL(IF(Utilisation="FWH",ROW(INDIRECT("1:"&ROWS(Utilisation)))),ROWS($1:9))),"") -> 
A46: x | B46: x | C46: x | D46: x | E46: x | F46: x | G46: x
A47: Ebullition et houblonnage
A48: Porter à le mout à ébulition pendant | C48: =Brassage!L6 -> 60 | D48: Objectif : | E48: =Brassage!L23 -> 34.08888889 | F48: =Brassage!L22 -> 1.045 | G48: =(-616.868 + 1111.14 *F48- 630.272 * F48^ 2+ 135.997 *F48^3)*1.04 -> 11.64351625
D49: Réel :
A50: =IF(B50="","","Ajouter") -> Ajouter | B50: =IF(ROWS($1:1)<=COUNTIF(Utilisation,"Ebullition"),INDEX(poids,SMALL(IF(Utilisation="Ebullition",ROW(INDIRECT("1:"&ROWS(Utilisation)))),ROWS($1:1))),"") -> 8 | C50: =IF(B50="","","de") -> de | D50: =IF(ROWS($1:1)<=COUNTIF(Utilisation,"Ebullition"),INDEX(result,SMALL(IF(Utilisation="Ebullition",ROW(INDIRECT("1:"&ROWS(Utilisation)))),ROWS($1:1))),"") -> Magnum | F50: =IF(B50="","","pendant") -> pendant | G50: =IF(D50="","",IF(COUNTIF(Brassage!B32:B33,'Feuille de Brassage'!D50)>0,10,IF(ROWS($1:1)<=COUNTIF(Utilisation,"Ebullition"),INDEX(Durée,SMALL(IF(Utilisation="Ebullition",ROW(INDIRECT("1:"&ROWS(Utilisation)))),ROWS($1:1))),""))) -> 60
A51: =IF(B51="","","Ajouter") -> Ajouter | B51: =IF(ROWS($1:2)<=COUNTIF(Utilisation,"Ebullition"),INDEX(poids,SMALL(IF(Utilisation="Ebullition",ROW(INDIRECT("1:"&ROWS(Utilisation)))),ROWS($1:2))),"") -> 30 | C51: =IF(B51="","","de") -> de | D51: =IF(ROWS($1:2)<=COUNTIF(Utilisation,"Ebullition"),INDEX(result,SMALL(IF(Utilisation="Ebullition",ROW(INDIRECT("1:"&ROWS(Utilisation)))),ROWS($1:2))),"") -> Tettnanger | F51: =IF(B51="","","pendant") -> pendant | G51: =IF(D51="","",IF(COUNTIF(Brassage!B33:B34,'Feuille de Brassage'!D51)>0,10,IF(ROWS($1:2)<=COUNTIF(Utilisation,"Ebullition"),INDEX(Durée,SMALL(IF(Utilisation="Ebullition",ROW(INDIRECT("1:"&ROWS(Utilisation)))),ROWS($1:2))),""))) -> 10
A52: =IF(B52="","","Ajouter") ->  | B52: =IF(ROWS($1:3)<=COUNTIF(Utilisation,"Ebullition"),INDEX(poids,SMALL(IF(Utilisation="Ebullition",ROW(INDIRECT("1:"&ROWS(Utilisation)))),ROWS($1:3))),"") ->  | C52: =IF(B52="","","de") ->  | D52: =IF(ROWS($1:3)<=COUNTIF(Utilisation,"Ebullition"),INDEX(result,SMALL(IF(Utilisation="Ebullition",ROW(INDIRECT("1:"&ROWS(Utilisation)))),ROWS($1:3))),"") ->  | G52: =IF(D52="","",IF(COUNTIF(Brassage!B34:B36,'Feuille de Brassage'!D52)>0,10,IF(ROWS($1:3)<=COUNTIF(Utilisation,"Ebullition"),INDEX(Durée,SMALL(IF(Utilisation="Ebullition",ROW(INDIRECT("1:"&ROWS(Utilisation)))),ROWS($1:3))),""))) -> 
B53: =IF(ROWS($1:4)<=COUNTIF(Utilisation,"Ebullition"),INDEX(poids,SMALL(IF(Utilisation="Ebullition",ROW(INDIRECT("1:"&ROWS(Utilisation)))),ROWS($1:4))),"") ->  | D53: =IF(ROWS($1:4)<=COUNTIF(Utilisation,"Ebullition"),INDEX(result,SMALL(IF(Utilisation="Ebullition",ROW(INDIRECT("1:"&ROWS(Utilisation)))),ROWS($1:4))),"") ->  | G53: =IF(D53="","",IF(COUNTIF(Brassage!B36:B36,'Feuille de Brassage'!D53)>0,10,IF(ROWS($1:4)<=COUNTIF(Utilisation,"Ebullition"),INDEX(Durée,SMALL(IF(Utilisation="Ebullition",ROW(INDIRECT("1:"&ROWS(Utilisation)))),ROWS($1:4))),""))) -> 
B54: =IF(ROWS($1:5)<=COUNTIF(Utilisation,"Ebullition"),INDEX(poids,SMALL(IF(Utilisation="Ebullition",ROW(INDIRECT("1:"&ROWS(Utilisation)))),ROWS($1:5))),"") ->  | D54: =IF(ROWS($1:5)<=COUNTIF(Utilisation,"Ebullition"),INDEX(result,SMALL(IF(Utilisation="Ebullition",ROW(INDIRECT("1:"&ROWS(Utilisation)))),ROWS($1:5))),"") ->  | G54: =IF(D54="","",IF(COUNTIF(Brassage!B36:B38,'Feuille de Brassage'!D54)>0,10,IF(ROWS($1:5)<=COUNTIF(Utilisation,"Ebullition"),INDEX(Durée,SMALL(IF(Utilisation="Ebullition",ROW(INDIRECT("1:"&ROWS(Utilisation)))),ROWS($1:5))),""))) -> 
B55: =IF(ROWS($1:6)<=COUNTIF(Utilisation,"Ebullition"),INDEX(poids,SMALL(IF(Utilisation="Ebullition",ROW(INDIRECT("1:"&ROWS(Utilisation)))),ROWS($1:6))),"") ->  | D55: =IF(ROWS($1:6)<=COUNTIF(Utilisation,"Ebullition"),INDEX(result,SMALL(IF(Utilisation="Ebullition",ROW(INDIRECT("1:"&ROWS(Utilisation)))),ROWS($1:6))),"") ->  | G55: =IF(D55="","",IF(COUNTIF(Brassage!B38:B39,'Feuille de Brassage'!D55)>0,10,IF(ROWS($1:6)<=COUNTIF(Utilisation,"Ebullition"),INDEX(Durée,SMALL(IF(Utilisation="Ebullition",ROW(INDIRECT("1:"&ROWS(Utilisation)))),ROWS($1:6))),""))) -> 
B56: =IF(ROWS($1:7)<=COUNTIF(Utilisation,"Ebullition"),INDEX(poids,SMALL(IF(Utilisation="Ebullition",ROW(INDIRECT("1:"&ROWS(Utilisation)))),ROWS($1:7))),"") ->  | D56: =IF(ROWS($1:7)<=COUNTIF(Utilisation,"Ebullition"),INDEX(result,SMALL(IF(Utilisation="Ebullition",ROW(INDIRECT("1:"&ROWS(Utilisation)))),ROWS($1:7))),"") ->  | G56: =IF(D56="","",IF(COUNTIF(Brassage!B39:B40,'Feuille de Brassage'!D56)>0,10,IF(ROWS($1:7)<=COUNTIF(Utilisation,"Ebullition"),INDEX(Durée,SMALL(IF(Utilisation="Ebullition",ROW(INDIRECT("1:"&ROWS(Utilisation)))),ROWS($1:7))),""))) ->  | I56: =IF(D56="","",IF(COUNTIF(Brassage!B39:B40,'Feuille de Brassage'!D56)>0,10,IF(ROWS($1:7)<=COUNTIF(Utilisation,"Ebullition"),INDEX(Durée,SMALL(IF(Utilisation="Ebullition",ROW(INDIRECT("1:"&ROWS(Utilisation)))),ROWS($1:7))),""))) -> 
B57: =IF(ROWS($1:8)<=COUNTIF(Utilisation,"Ebullition"),INDEX(poids,SMALL(IF(Utilisation="Ebullition",ROW(INDIRECT("1:"&ROWS(Utilisation)))),ROWS($1:8))),"") ->  | D57: =IF(ROWS($1:8)<=COUNTIF(Utilisation,"Ebullition"),INDEX(result,SMALL(IF(Utilisation="Ebullition",ROW(INDIRECT("1:"&ROWS(Utilisation)))),ROWS($1:8))),"") ->  | G57: =IF(D57="","",IF(COUNTIF(Brassage!B40:B41,'Feuille de Brassage'!D57)>0,10,IF(ROWS($1:8)<=COUNTIF(Utilisation,"Ebullition"),INDEX(Durée,SMALL(IF(Utilisation="Ebullition",ROW(INDIRECT("1:"&ROWS(Utilisation)))),ROWS($1:8))),""))) ->  | I57: =IF(D57="","",IF(COUNTIF(Brassage!B40:B41,'Feuille de Brassage'!D57)>0,10,IF(ROWS($1:8)<=COUNTIF(Utilisation,"Ebullition"),INDEX(Durée,SMALL(IF(Utilisation="Ebullition",ROW(INDIRECT("1:"&ROWS(Utilisation)))),ROWS($1:8))),""))) -> 
B58: =IF(ROWS($1:9)<=COUNTIF(Utilisation,"Ebullition"),INDEX(poids,SMALL(IF(Utilisation="Ebullition",ROW(INDIRECT("1:"&ROWS(Utilisation)))),ROWS($1:9))),"") ->  | D58: =IF(ROWS($1:9)<=COUNTIF(Utilisation,"Ebullition"),INDEX(result,SMALL(IF(Utilisation="Ebullition",ROW(INDIRECT("1:"&ROWS(Utilisation)))),ROWS($1:9))),"") ->  | G58: =IF(D58="","",IF(COUNTIF(Brassage!B41:B43,'Feuille de Brassage'!D58)>0,10,IF(ROWS($1:9)<=COUNTIF(Utilisation,"Ebullition"),INDEX(Durée,SMALL(IF(Utilisation="Ebullition",ROW(INDIRECT("1:"&ROWS(Utilisation)))),ROWS($1:9))),""))) ->  | I58: =IF(D58="","",IF(COUNTIF(Brassage!B41:B43,'Feuille de Brassage'!D58)>0,10,IF(ROWS($1:9)<=COUNTIF(Utilisation,"Ebullition"),INDEX(Durée,SMALL(IF(Utilisation="Ebullition",ROW(INDIRECT("1:"&ROWS(Utilisation)))),ROWS($1:9))),""))) -> 
B59: =IF(ROWS($1:10)<=COUNTIF(Utilisation,"Ebullition"),INDEX(poids,SMALL(IF(Utilisation="Ebullition",ROW(INDIRECT("1:"&ROWS(Utilisation)))),ROWS($1:10))),"") ->  | D59: =IF(ROWS($1:10)<=COUNTIF(Utilisation,"Ebullition"),INDEX(result,SMALL(IF(Utilisation="Ebullition",ROW(INDIRECT("1:"&ROWS(Utilisation)))),ROWS($1:10))),"") ->  | G59: =IF(D59="","",IF(COUNTIF(Brassage!B43:B44,'Feuille de Brassage'!D59)>0,10,IF(ROWS($1:10)<=COUNTIF(Utilisation,"Ebullition"),INDEX(Durée,SMALL(IF(Utilisation="Ebullition",ROW(INDIRECT("1:"&ROWS(Utilisation)))),ROWS($1:10))),""))) ->  | I59: =IF(D59="","",IF(COUNTIF(Brassage!B43:B44,'Feuille de Brassage'!D59)>0,10,IF(ROWS($1:10)<=COUNTIF(Utilisation,"Ebullition"),INDEX(Durée,SMALL(IF(Utilisation="Ebullition",ROW(INDIRECT("1:"&ROWS(Utilisation)))),ROWS($1:10))),""))) -> 
B60: =IF(ROWS($1:11)<=COUNTIF(Utilisation,"Ebullition"),INDEX(poids,SMALL(IF(Utilisation="Ebullition",ROW(INDIRECT("1:"&ROWS(Utilisation)))),ROWS($1:11))),"") ->  | D60: =IF(ROWS($1:11)<=COUNTIF(Utilisation,"Ebullition"),INDEX(result,SMALL(IF(Utilisation="Ebullition",ROW(INDIRECT("1:"&ROWS(Utilisation)))),ROWS($1:11))),"") ->  | G60: =IF(D60="","",IF(COUNTIF(Brassage!B44:B45,'Feuille de Brassage'!D60)>0,10,IF(ROWS($1:11)<=COUNTIF(Utilisation,"Ebullition"),INDEX(Durée,SMALL(IF(Utilisation="Ebullition",ROW(INDIRECT("1:"&ROWS(Utilisation)))),ROWS($1:11))),""))) ->  | I60: =IF(D60="","",IF(COUNTIF(Brassage!B44:B45,'Feuille de Brassage'!D60)>0,10,IF(ROWS($1:11)<=COUNTIF(Utilisation,"Ebullition"),INDEX(Durée,SMALL(IF(Utilisation="Ebullition",ROW(INDIRECT("1:"&ROWS(Utilisation)))),ROWS($1:11))),""))) -> 
B61: =IF(ROWS($1:12)<=COUNTIF(Utilisation,"Ebullition"),INDEX(poids,SMALL(IF(Utilisation="Ebullition",ROW(INDIRECT("1:"&ROWS(Utilisation)))),ROWS($1:12))),"") ->  | D61: =IF(ROWS($1:12)<=COUNTIF(Utilisation,"Ebullition"),INDEX(result,SMALL(IF(Utilisation="Ebullition",ROW(INDIRECT("1:"&ROWS(Utilisation)))),ROWS($1:12))),"") ->  | G61: =IF(D61="","",IF(COUNTIF(Brassage!B45:B46,'Feuille de Brassage'!D61)>0,10,IF(ROWS($1:12)<=COUNTIF(Utilisation,"Ebullition"),INDEX(Durée,SMALL(IF(Utilisation="Ebullition",ROW(INDIRECT("1:"&ROWS(Utilisation)))),ROWS($1:12))),""))) ->  | I61: =IF(D61="","",IF(COUNTIF(Brassage!B45:B46,'Feuille de Brassage'!D61)>0,10,IF(ROWS($1:12)<=COUNTIF(Utilisation,"Ebullition"),INDEX(Durée,SMALL(IF(Utilisation="Ebullition",ROW(INDIRECT("1:"&ROWS(Utilisation)))),ROWS($1:12))),""))) -> 
B62: =IF(ROWS($1:13)<=COUNTIF(Utilisation,"Ebullition"),INDEX(poids,SMALL(IF(Utilisation="Ebullition",ROW(INDIRECT("1:"&ROWS(Utilisation)))),ROWS($1:13))),"") ->  | D62: =IF(ROWS($1:13)<=COUNTIF(Utilisation,"Ebullition"),INDEX(result,SMALL(IF(Utilisation="Ebullition",ROW(INDIRECT("1:"&ROWS(Utilisation)))),ROWS($1:13))),"") ->  | G62: =IF(D62="","",IF(COUNTIF(Brassage!B46:B47,'Feuille de Brassage'!D62)>0,10,IF(ROWS($1:13)<=COUNTIF(Utilisation,"Ebullition"),INDEX(Durée,SMALL(IF(Utilisation="Ebullition",ROW(INDIRECT("1:"&ROWS(Utilisation)))),ROWS($1:13))),""))) ->  | I62: =IF(D62="","",IF(COUNTIF(Brassage!B46:B47,'Feuille de Brassage'!D62)>0,10,IF(ROWS($1:13)<=COUNTIF(Utilisation,"Ebullition"),INDEX(Durée,SMALL(IF(Utilisation="Ebullition",ROW(INDIRECT("1:"&ROWS(Utilisation)))),ROWS($1:13))),""))) -> 
B63: =IF(ROWS($1:14)<=COUNTIF(Utilisation,"Ebullition"),INDEX(poids,SMALL(IF(Utilisation="Ebullition",ROW(INDIRECT("1:"&ROWS(Utilisation)))),ROWS($1:14))),"") ->  | D63: =IF(ROWS($1:14)<=COUNTIF(Utilisation,"Ebullition"),INDEX(result,SMALL(IF(Utilisation="Ebullition",ROW(INDIRECT("1:"&ROWS(Utilisation)))),ROWS($1:14))),"") ->  | G63: =IF(D63="","",IF(COUNTIF(Brassage!B47:B48,'Feuille de Brassage'!D63)>0,10,IF(ROWS($1:14)<=COUNTIF(Utilisation,"Ebullition"),INDEX(Durée,SMALL(IF(Utilisation="Ebullition",ROW(INDIRECT("1:"&ROWS(Utilisation)))),ROWS($1:14))),""))) ->  | I63: =IF(D63="","",IF(COUNTIF(Brassage!B47:B48,'Feuille de Brassage'!D63)>0,10,IF(ROWS($1:14)<=COUNTIF(Utilisation,"Ebullition"),INDEX(Durée,SMALL(IF(Utilisation="Ebullition",ROW(INDIRECT("1:"&ROWS(Utilisation)))),ROWS($1:14))),""))) -> 
A64: x | B64: x | C64: x | D64: x | E64: x | F64: x | G64: x
A65: Fin d'ébullition et Flame-out
A66: Objectif en fin d'ébullition : | E66: =Brassage!L29 -> 30.68 | F66: =Brassage!L28 -> 1.05 | G66: =(-616.868 + 1111.14 *F66- 630.272 * F66^ 2+ 135.997 *F66^3)*1.04 -> 12.88315301
A67: Relevé réel (à reporter dans l'onglet "Brassage") :
A68: =IF(E68="","","Flame-out : Arrêter l'ébullition et ajouter") ->  | D68: =IF(ROWS($1:1)<=COUNTIF(Utilisation,"Flame-out"),INDEX(poids,SMALL(IF(Utilisation="Flame-out",ROW(INDIRECT("1:"&ROWS(Utilisation)))),ROWS($1:1))),"") ->  | E68: =IF(ROWS($1:1)<=COUNTIF(Utilisation,"Flame-out"),INDEX(result,SMALL(IF(Utilisation="Flame-out",ROW(INDIRECT("1:"&ROWS(Utilisation)))),ROWS($1:1))),"") ->  | F68: =IF(E68="","","pendant") ->  | G68: =IF(ROWS($1:1)<=COUNTIF(Utilisation,"Flame-out"),INDEX(Durée,SMALL(IF(Utilisation="Flame-out",ROW(INDIRECT("1:"&ROWS(Utilisation)))),ROWS($1:1))),"") -> 
A69: =IF(E69="","","Flame-out : Arrêter l'ébullition et ajouter") ->  | D69: =IF(ROWS($1:2)<=COUNTIF(Utilisation,"Flame-out"),INDEX(poids,SMALL(IF(Utilisation="Flame-out",ROW(INDIRECT("1:"&ROWS(Utilisation)))),ROWS($1:2))),"") ->  | E69: =IF(ROWS($1:2)<=COUNTIF(Utilisation,"Flame-out"),INDEX(result,SMALL(IF(Utilisation="Flame-out",ROW(INDIRECT("1:"&ROWS(Utilisation)))),ROWS($1:2))),"") ->  | F69: =IF(E69="","","pendant") ->  | G69: =IF(ROWS($1:2)<=COUNTIF(Utilisation,"Flame-out"),INDEX(Durée,SMALL(IF(Utilisation="Flame-out",ROW(INDIRECT("1:"&ROWS(Utilisation)))),ROWS($1:2))),"") -> 
D70: =IF(ROWS($1:3)<=COUNTIF(Utilisation,"Flame-out"),INDEX(poids,SMALL(IF(Utilisation="Flame-out",ROW(INDIRECT("1:"&ROWS(Utilisation)))),ROWS($1:3))),"") ->  | E70: =IF(ROWS($1:3)<=COUNTIF(Utilisation,"Flame-out"),INDEX(result,SMALL(IF(Utilisation="Flame-out",ROW(INDIRECT("1:"&ROWS(Utilisation)))),ROWS($1:3))),"") ->  | G70: =IF(ROWS($1:3)<=COUNTIF(Utilisation,"Flame-out"),INDEX(Durée,SMALL(IF(Utilisation="Flame-out",ROW(INDIRECT("1:"&ROWS(Utilisation)))),ROWS($1:3))),"") -> 
A71: =IF(E71="","","Flame-out : Arrêter l'ébullition et ajouter") ->  | D71: =IF(ROWS($1:4)<=COUNTIF(Utilisation,"Flame-out"),INDEX(poids,SMALL(IF(Utilisation="Flame-out",ROW(INDIRECT("1:"&ROWS(Utilisation)))),ROWS($1:4))),"") ->  | E71: =IF(ROWS($1:4)<=COUNTIF(Utilisation,"Flame-out"),INDEX(result,SMALL(IF(Utilisation="Flame-out",ROW(INDIRECT("1:"&ROWS(Utilisation)))),ROWS($1:4))),"") ->  | G71: =IF(ROWS($1:4)<=COUNTIF(Utilisation,"Flame-out"),INDEX(Durée,SMALL(IF(Utilisation="Flame-out",ROW(INDIRECT("1:"&ROWS(Utilisation)))),ROWS($1:4))),"") -> 
D72: =IF(ROWS($1:5)<=COUNTIF(Utilisation,"Flame-out"),INDEX(poids,SMALL(IF(Utilisation="Flame-out",ROW(INDIRECT("1:"&ROWS(Utilisation)))),ROWS($1:5))),"") ->  | E72: =IF(ROWS($1:5)<=COUNTIF(Utilisation,"Flame-out"),INDEX(result,SMALL(IF(Utilisation="Flame-out",ROW(INDIRECT("1:"&ROWS(Utilisation)))),ROWS($1:5))),"") ->  | G72: =IF(ROWS($1:5)<=COUNTIF(Utilisation,"Flame-out"),INDEX(Durée,SMALL(IF(Utilisation="Flame-out",ROW(INDIRECT("1:"&ROWS(Utilisation)))),ROWS($1:5))),"") -> 
D73: =IF(ROWS($1:6)<=COUNTIF(Utilisation,"Flame-out"),INDEX(poids,SMALL(IF(Utilisation="Flame-out",ROW(INDIRECT("1:"&ROWS(Utilisation)))),ROWS($1:6))),"") ->  | E73: =IF(ROWS($1:6)<=COUNTIF(Utilisation,"Flame-out"),INDEX(result,SMALL(IF(Utilisation="Flame-out",ROW(INDIRECT("1:"&ROWS(Utilisation)))),ROWS($1:6))),"") ->  | G73: =IF(ROWS($1:6)<=COUNTIF(Utilisation,"Flame-out"),INDEX(Durée,SMALL(IF(Utilisation="Flame-out",ROW(INDIRECT("1:"&ROWS(Utilisation)))),ROWS($1:6))),"") -> 
D74: =IF(ROWS($1:7)<=COUNTIF(Utilisation,"Flame-out"),INDEX(poids,SMALL(IF(Utilisation="Flame-out",ROW(INDIRECT("1:"&ROWS(Utilisation)))),ROWS($1:7))),"") ->  | E74: =IF(ROWS($1:7)<=COUNTIF(Utilisation,"Flame-out"),INDEX(result,SMALL(IF(Utilisation="Flame-out",ROW(INDIRECT("1:"&ROWS(Utilisation)))),ROWS($1:7))),"") ->  | G74: =IF(ROWS($1:7)<=COUNTIF(Utilisation,"Flame-out"),INDEX(Durée,SMALL(IF(Utilisation="Flame-out",ROW(INDIRECT("1:"&ROWS(Utilisation)))),ROWS($1:7))),"") -> 
D75: =IF(ROWS($1:8)<=COUNTIF(Utilisation,"Flame-out"),INDEX(poids,SMALL(IF(Utilisation="Flame-out",ROW(INDIRECT("1:"&ROWS(Utilisation)))),ROWS($1:8))),"") ->  | E75: =IF(ROWS($1:8)<=COUNTIF(Utilisation,"Flame-out"),INDEX(result,SMALL(IF(Utilisation="Flame-out",ROW(INDIRECT("1:"&ROWS(Utilisation)))),ROWS($1:8))),"") ->  | G75: =IF(ROWS($1:8)<=COUNTIF(Utilisation,"Flame-out"),INDEX(Durée,SMALL(IF(Utilisation="Flame-out",ROW(INDIRECT("1:"&ROWS(Utilisation)))),ROWS($1:8))),"") -> 
D76: =IF(ROWS($1:9)<=COUNTIF(Utilisation,"Flame-out"),INDEX(poids,SMALL(IF(Utilisation="Flame-out",ROW(INDIRECT("1:"&ROWS(Utilisation)))),ROWS($1:9))),"") ->  | E76: =IF(ROWS($1:9)<=COUNTIF(Utilisation,"Flame-out"),INDEX(result,SMALL(IF(Utilisation="Flame-out",ROW(INDIRECT("1:"&ROWS(Utilisation)))),ROWS($1:9))),"") ->  | G76: =IF(ROWS($1:9)<=COUNTIF(Utilisation,"Flame-out"),INDEX(Durée,SMALL(IF(Utilisation="Flame-out",ROW(INDIRECT("1:"&ROWS(Utilisation)))),ROWS($1:9))),"") -> 
D77: =IF(ROWS($1:10)<=COUNTIF(Utilisation,"Flame-out"),INDEX(poids,SMALL(IF(Utilisation="Flame-out",ROW(INDIRECT("1:"&ROWS(Utilisation)))),ROWS($1:10))),"") ->  | E77: =IF(ROWS($1:10)<=COUNTIF(Utilisation,"Flame-out"),INDEX(result,SMALL(IF(Utilisation="Flame-out",ROW(INDIRECT("1:"&ROWS(Utilisation)))),ROWS($1:10))),"") ->  | G77: =IF(ROWS($1:10)<=COUNTIF(Utilisation,"Flame-out"),INDEX(Durée,SMALL(IF(Utilisation="Flame-out",ROW(INDIRECT("1:"&ROWS(Utilisation)))),ROWS($1:10))),"") -> 
D78: =IF(ROWS($1:11)<=COUNTIF(Utilisation,"Flame-out"),INDEX(poids,SMALL(IF(Utilisation="Flame-out",ROW(INDIRECT("1:"&ROWS(Utilisation)))),ROWS($1:11))),"") ->  | E78: =IF(ROWS($1:11)<=COUNTIF(Utilisation,"Flame-out"),INDEX(result,SMALL(IF(Utilisation="Flame-out",ROW(INDIRECT("1:"&ROWS(Utilisation)))),ROWS($1:11))),"") ->  | G78: =IF(ROWS($1:11)<=COUNTIF(Utilisation,"Flame-out"),INDEX(Durée,SMALL(IF(Utilisation="Flame-out",ROW(INDIRECT("1:"&ROWS(Utilisation)))),ROWS($1:11))),"") -> 
A79: x | B79: x | C79: x | D79: x | E79: x | F79: x | G79: x
A80: Refroidissement, Hop-Stand et ensemencement
A81: =IF(E81="","","Hop-Stand : refroidir < 80°C et ajouter") ->  | D81: =IF(ROWS($1:1)<=COUNTIF(Utilisation,"Hop-Stand"),INDEX(poids,SMALL(IF(Utilisation="Hop-Stand",ROW(INDIRECT("1:"&ROWS(Utilisation)))),ROWS($1:1))),"") ->  | E81: =IF(ROWS($1:1)<=COUNTIF(Utilisation,"Hop-Stand"),INDEX(result,SMALL(IF(Utilisation="Hop-Stand",ROW(INDIRECT("1:"&ROWS(Utilisation)))),ROWS($1:1))),"") ->  | F81: =IF(E81="","","pendant") ->  | G81: =IF(ROWS($1:1)<=COUNTIF(Utilisation,"Hop-Stand"),INDEX(Durée,SMALL(IF(Utilisation="Hop-Stand",ROW(INDIRECT("1:"&ROWS(Utilisation)))),ROWS($1:1))),"") -> 
A82: =IF(E82="","","Hop-Stand : refroidir < 80°C et ajouter") ->  | D82: =IF(ROWS($1:2)<=COUNTIF(Utilisation,"Hop-Stand"),INDEX(poids,SMALL(IF(Utilisation="Hop-Stand",ROW(INDIRECT("1:"&ROWS(Utilisation)))),ROWS($1:2))),"") ->  | E82: =IF(ROWS($1:2)<=COUNTIF(Utilisation,"Hop-Stand"),INDEX(result,SMALL(IF(Utilisation="Hop-Stand",ROW(INDIRECT("1:"&ROWS(Utilisation)))),ROWS($1:2))),"") ->  | F82: =IF(E82="","","pendant") ->  | G82: =IF(ROWS($1:2)<=COUNTIF(Utilisation,"Hop-Stand"),INDEX(Durée,SMALL(IF(Utilisation="Hop-Stand",ROW(INDIRECT("1:"&ROWS(Utilisation)))),ROWS($1:2))),"") -> 
D83: =IF(ROWS($1:3)<=COUNTIF(Utilisation,"Hop-Stand"),INDEX(poids,SMALL(IF(Utilisation="Hop-Stand",ROW(INDIRECT("1:"&ROWS(Utilisation)))),ROWS($1:3))),"") ->  | E83: =IF(ROWS($1:3)<=COUNTIF(Utilisation,"Hop-Stand"),INDEX(result,SMALL(IF(Utilisation="Hop-Stand",ROW(INDIRECT("1:"&ROWS(Utilisation)))),ROWS($1:3))),"") ->  | G83: =IF(ROWS($1:3)<=COUNTIF(Utilisation,"Hop-Stand"),INDEX(Durée,SMALL(IF(Utilisation="Hop-Stand",ROW(INDIRECT("1:"&ROWS(Utilisation)))),ROWS($1:3))),"") -> 
D84: =IF(ROWS($1:4)<=COUNTIF(Utilisation,"Hop-Stand"),INDEX(poids,SMALL(IF(Utilisation="Hop-Stand",ROW(INDIRECT("1:"&ROWS(Utilisation)))),ROWS($1:4))),"") ->  | E84: =IF(ROWS($1:4)<=COUNTIF(Utilisation,"Hop-Stand"),INDEX(result,SMALL(IF(Utilisation="Hop-Stand",ROW(INDIRECT("1:"&ROWS(Utilisation)))),ROWS($1:4))),"") ->  | G84: =IF(ROWS($1:4)<=COUNTIF(Utilisation,"Hop-Stand"),INDEX(Durée,SMALL(IF(Utilisation="Hop-Stand",ROW(INDIRECT("1:"&ROWS(Utilisation)))),ROWS($1:4))),"") -> 
D85: =IF(ROWS($1:5)<=COUNTIF(Utilisation,"Hop-Stand"),INDEX(poids,SMALL(IF(Utilisation="Hop-Stand",ROW(INDIRECT("1:"&ROWS(Utilisation)))),ROWS($1:5))),"") ->  | E85: =IF(ROWS($1:5)<=COUNTIF(Utilisation,"Hop-Stand"),INDEX(result,SMALL(IF(Utilisation="Hop-Stand",ROW(INDIRECT("1:"&ROWS(Utilisation)))),ROWS($1:5))),"") ->  | G85: =IF(ROWS($1:5)<=COUNTIF(Utilisation,"Hop-Stand"),INDEX(Durée,SMALL(IF(Utilisation="Hop-Stand",ROW(INDIRECT("1:"&ROWS(Utilisation)))),ROWS($1:5))),"") -> 
A86: Selon l'installation effectuer whirpool, transfert(s) et refroidir jusqu'à | G86: =Brassage!L41 -> 21
A87: Objectif en fermenteur : | E87: =Brassage!L35 -> 28 | F87: =Brassage!L34 -> 1.05 | G87: =(-616.868 + 1111.14 *F87- 630.272 * F87^ 2+ 135.997 *F87^3)*1.04 -> 12.88315301
A88: Relevé réel (à reporter dans l'onglet "Brassage") :
A89: =IF(C89="","","Ensemencer avec") -> Ensemencer avec | C89: =IF(Brassage!H61>0,Brassage!H61,"") -> 260 | D89: =IF(C89="","","de") -> de | E89: =IF(Brassage!B61>0,Brassage!B61,"") -> Wyeast 3068 Weihenstephan Weizen
A90: =IF(C90="","","Ensemencer avec") ->  | C90: =IF(Brassage!H62>0,Brassage!H62,"") ->  | D90: =IF(C90="","","de") ->  | E90: =IF(Brassage!B62>0,Brassage!B62,"") -> 
A91: x | B91: x | C91: x | D91: x | E91: x | F91: x | G91: x
A92: Fermentation
A93: =IF(B93=0,"","Placer à ") -> Placer à | B93: =Brassage!L41 -> 21 | C93: =IF(B93=0,"","pendant ") -> pendant | D93: =Brassage!M41 -> 21 | E93: =IF(D93=0,"","théoriquement jusqu'au ") -> théoriquement jusqu'au | G93: =Brassage!N41 -> 2023-11-05
A94: =IF(B94=0,"","puis placer à ") -> puis placer à | B94: =Brassage!L42 -> 2 | C94: =IF(B94=0,"","pendant ") -> pendant | D94: =Brassage!M42 -> 2 | E94: =IF(D94=0,"","théoriquement jusqu'au ") -> théoriquement jusqu'au | G94: =Brassage!N42 -> 2023-11-07
A95: =IF(B95=0,"","puis placer à ") ->  | B95: =Brassage!L43 -> 0 | D95: =Brassage!M43 -> 0 | G95: =Brassage!N43 -> 
A96: =IF(C96="","","Faire un DH avec") ->  | C96: =IF(ROWS($1:1)<=COUNTIF(Utilisation,"DH"),INDEX(poids,SMALL(IF(Utilisation="DH",ROW(INDIRECT("1:"&ROWS(Utilisation)))),ROWS($1:1))),"") ->  | D96: =IF(C96="","","de") ->  | E96: =IF(ROWS($1:1)<=COUNTIF(Utilisation,"DH"),INDEX(result,SMALL(IF(Utilisation="DH",ROW(INDIRECT("1:"&ROWS(Utilisation)))),ROWS($1:1))),"") ->  | F96: =IF(C96="","","pendant") ->  | G96: =IF(ROWS($1:1)<=COUNTIF(Utilisation,"DH"),INDEX(Durée,SMALL(IF(Utilisation="DH",ROW(INDIRECT("1:"&ROWS(Utilisation)))),ROWS($1:1))),"") -> 
A97: =IF(C97="","","Faire un DH avec") ->  | C97: =IF(ROWS($1:2)<=COUNTIF(Utilisation,"DH"),INDEX(poids,SMALL(IF(Utilisation="DH",ROW(INDIRECT("1:"&ROWS(Utilisation)))),ROWS($1:2))),"") ->  | E97: =IF(ROWS($1:2)<=COUNTIF(Utilisation,"DH"),INDEX(result,SMALL(IF(Utilisation="DH",ROW(INDIRECT("1:"&ROWS(Utilisation)))),ROWS($1:2))),"") ->  | F97: =IF(C97="","","pendant") ->  | G97: =IF(ROWS($1:2)<=COUNTIF(Utilisation,"DH"),INDEX(Durée,SMALL(IF(Utilisation="DH",ROW(INDIRECT("1:"&ROWS(Utilisation)))),ROWS($1:2))),"") -> 
C98: =IF(ROWS($1:3)<=COUNTIF(Utilisation,"DH"),INDEX(poids,SMALL(IF(Utilisation="DH",ROW(INDIRECT("1:"&ROWS(Utilisation)))),ROWS($1:3))),"") ->  | E98: =IF(ROWS($1:3)<=COUNTIF(Utilisation,"DH"),INDEX(result,SMALL(IF(Utilisation="DH",ROW(INDIRECT("1:"&ROWS(Utilisation)))),ROWS($1:3))),"") ->  | G98: =IF(ROWS($1:3)<=COUNTIF(Utilisation,"DH"),INDEX(Durée,SMALL(IF(Utilisation="DH",ROW(INDIRECT("1:"&ROWS(Utilisation)))),ROWS($1:3))),"") -> 
C99: =IF(ROWS($1:4)<=COUNTIF(Utilisation,"DH"),INDEX(poids,SMALL(IF(Utilisation="DH",ROW(INDIRECT("1:"&ROWS(Utilisation)))),ROWS($1:4))),"") ->  | E99: =IF(ROWS($1:4)<=COUNTIF(Utilisation,"DH"),INDEX(result,SMALL(IF(Utilisation="DH",ROW(INDIRECT("1:"&ROWS(Utilisation)))),ROWS($1:4))),"") ->  | G99: =IF(ROWS($1:4)<=COUNTIF(Utilisation,"DH"),INDEX(Durée,SMALL(IF(Utilisation="DH",ROW(INDIRECT("1:"&ROWS(Utilisation)))),ROWS($1:4))),"") -> 
C100: =IF(ROWS($1:5)<=COUNTIF(Utilisation,"DH"),INDEX(poids,SMALL(IF(Utilisation="DH",ROW(INDIRECT("1:"&ROWS(Utilisation)))),ROWS($1:5))),"") ->  | E100: =IF(ROWS($1:5)<=COUNTIF(Utilisation,"DH"),INDEX(result,SMALL(IF(Utilisation="DH",ROW(INDIRECT("1:"&ROWS(Utilisation)))),ROWS($1:5))),"") ->  | G100: =IF(ROWS($1:5)<=COUNTIF(Utilisation,"DH"),INDEX(Durée,SMALL(IF(Utilisation="DH",ROW(INDIRECT("1:"&ROWS(Utilisation)))),ROWS($1:5))),"") -> 
C101: =IF(ROWS($1:6)<=COUNTIF(Utilisation,"DH"),INDEX(poids,SMALL(IF(Utilisation="DH",ROW(INDIRECT("1:"&ROWS(Utilisation)))),ROWS($1:6))),"") ->  | E101: =IF(ROWS($1:6)<=COUNTIF(Utilisation,"DH"),INDEX(result,SMALL(IF(Utilisation="DH",ROW(INDIRECT("1:"&ROWS(Utilisation)))),ROWS($1:6))),"") ->  | G101: =IF(ROWS($1:6)<=COUNTIF(Utilisation,"DH"),INDEX(Durée,SMALL(IF(Utilisation="DH",ROW(INDIRECT("1:"&ROWS(Utilisation)))),ROWS($1:6))),"") -> 
C102: =IF(ROWS($1:7)<=COUNTIF(Utilisation,"DH"),INDEX(poids,SMALL(IF(Utilisation="DH",ROW(INDIRECT("1:"&ROWS(Utilisation)))),ROWS($1:7))),"") ->  | E102: =IF(ROWS($1:7)<=COUNTIF(Utilisation,"DH"),INDEX(result,SMALL(IF(Utilisation="DH",ROW(INDIRECT("1:"&ROWS(Utilisation)))),ROWS($1:7))),"") ->  | G102: =IF(ROWS($1:7)<=COUNTIF(Utilisation,"DH"),INDEX(Durée,SMALL(IF(Utilisation="DH",ROW(INDIRECT("1:"&ROWS(Utilisation)))),ROWS($1:7))),"") -> 
C103: =IF(ROWS($1:8)<=COUNTIF(Utilisation,"DH"),INDEX(poids,SMALL(IF(Utilisation="DH",ROW(INDIRECT("1:"&ROWS(Utilisation)))),ROWS($1:8))),"") ->  | E103: =IF(ROWS($1:8)<=COUNTIF(Utilisation,"DH"),INDEX(result,SMALL(IF(Utilisation="DH",ROW(INDIRECT("1:"&ROWS(Utilisation)))),ROWS($1:8))),"") ->  | G103: =IF(ROWS($1:8)<=COUNTIF(Utilisation,"DH"),INDEX(Durée,SMALL(IF(Utilisation="DH",ROW(INDIRECT("1:"&ROWS(Utilisation)))),ROWS($1:8))),"") -> 
C104: =IF(ROWS($1:9)<=COUNTIF(Utilisation,"DH"),INDEX(poids,SMALL(IF(Utilisation="DH",ROW(INDIRECT("1:"&ROWS(Utilisation)))),ROWS($1:9))),"") ->  | E104: =IF(ROWS($1:9)<=COUNTIF(Utilisation,"DH"),INDEX(result,SMALL(IF(Utilisation="DH",ROW(INDIRECT("1:"&ROWS(Utilisation)))),ROWS($1:9))),"") ->  | G104: =IF(ROWS($1:9)<=COUNTIF(Utilisation,"DH"),INDEX(Durée,SMALL(IF(Utilisation="DH",ROW(INDIRECT("1:"&ROWS(Utilisation)))),ROWS($1:9))),"") -> 
C105: =IF(ROWS($1:10)<=COUNTIF(Utilisation,"DH"),INDEX(poids,SMALL(IF(Utilisation="DH",ROW(INDIRECT("1:"&ROWS(Utilisation)))),ROWS($1:10))),"") ->  | E105: =IF(ROWS($1:10)<=COUNTIF(Utilisation,"DH"),INDEX(result,SMALL(IF(Utilisation="DH",ROW(INDIRECT("1:"&ROWS(Utilisation)))),ROWS($1:10))),"") ->  | G105: =IF(ROWS($1:10)<=COUNTIF(Utilisation,"DH"),INDEX(Durée,SMALL(IF(Utilisation="DH",ROW(INDIRECT("1:"&ROWS(Utilisation)))),ROWS($1:10))),"") -> 
C106: =IF(ROWS($1:11)<=COUNTIF(Utilisation,"DH"),INDEX(poids,SMALL(IF(Utilisation="DH",ROW(INDIRECT("1:"&ROWS(Utilisation)))),ROWS($1:11))),"") ->  | E106: =IF(ROWS($1:11)<=COUNTIF(Utilisation,"DH"),INDEX(result,SMALL(IF(Utilisation="DH",ROW(INDIRECT("1:"&ROWS(Utilisation)))),ROWS($1:11))),"") ->  | G106: =IF(ROWS($1:11)<=COUNTIF(Utilisation,"DH"),INDEX(Durée,SMALL(IF(Utilisation="DH",ROW(INDIRECT("1:"&ROWS(Utilisation)))),ROWS($1:11))),"") -> 
C107: =IF(ROWS($1:12)<=COUNTIF(Utilisation,"DH"),INDEX(poids,SMALL(IF(Utilisation="DH",ROW(INDIRECT("1:"&ROWS(Utilisation)))),ROWS($1:12))),"") ->  | E107: =IF(ROWS($1:12)<=COUNTIF(Utilisation,"DH"),INDEX(result,SMALL(IF(Utilisation="DH",ROW(INDIRECT("1:"&ROWS(Utilisation)))),ROWS($1:12))),"") ->  | G107: =IF(ROWS($1:12)<=COUNTIF(Utilisation,"DH"),INDEX(Durée,SMALL(IF(Utilisation="DH",ROW(INDIRECT("1:"&ROWS(Utilisation)))),ROWS($1:12))),"") -> 
A108: x | B108: x | C108: x | D108: x | E108: x | F108: x | G108: x
A109: Autres ingrédients
A110: A ajouter aux moments choisis : | B110: =Brassage!B38 -> Type | D110: =Brassage!D38 -> Utilisation | E110: =Brassage!E38 -> Durée | F110: =Brassage!F38 -> Quantité | G110: =Brassage!H38 -> Notes
B111: =Brassage!B39 -> 0 | D111: =Brassage!D39 -> 0 | E111: =Brassage!E39 -> 0 | F111: =Brassage!F39 -> 0 | G111: =Brassage!H39 -> 0
B112: =Brassage!B40 -> 0 | D112: =Brassage!D40 -> 0 | E112: =Brassage!E40 -> 0 | F112: =Brassage!F40 -> 0 | G112: =Brassage!H40 -> 0
B113: =Brassage!B41 -> 0 | D113: =Brassage!D41 -> 0 | E113: =Brassage!E41 -> 0 | F113: =Brassage!F41 -> 0 | G113: =Brassage!H41 -> 0
B114: =Brassage!B42 -> 0 | D114: =Brassage!D42 -> 0 | E114: =Brassage!E42 -> 0 | F114: =Brassage!F42 -> 0 | G114: =Brassage!H42 -> 0

Sheet Profil d'eau
A1: Outil de mélange d'eau | K1: Profils d'eau - ppm
J2: Profil recette | K2: =VLOOKUP(Brassage!$H$15,'Profil d''eau'!$K$4:$Q$98,1,FALSE) -> Weissbier V2 | L2: =VLOOKUP(Brassage!$H$15,'Profil d''eau'!$K$4:$Q$98,2,FALSE) -> 50 | M2: =VLOOKUP(Brassage!$H$15,'Profil d''eau'!$K$4:$Q$98,3,FALSE) -> 10 | N2: =VLOOKUP(Brassage!$H$15,'Profil d''eau'!$K$4:$Q$98,4,FALSE) -> 16 | O2: =VLOOKUP(Brassage!$H$15,'Profil d''eau'!$K$4:$Q$98,5,FALSE) -> 70 | P2: =VLOOKUP(Brassage!$H$15,'Profil d''eau'!$K$4:$Q$98,6,FALSE) -> 70 | Q2: =VLOOKUP(Brassage!$H$15,'Profil d''eau'!$K$4:$Q$98,7,FALSE) -> 120
A3: PROFIL | C3: NOM | D3: Ca (50-150) | E3: Mg (10-40) | F3: Na (0-150) | G3: SO4 (50-250) | H3: Cl (0-250) | I3: HCO3 (0-250) | K3: Profil | L3: Ca | M3: Mg | N3: Na | O3: SO4 | P3: Cl | Q3: HCO3
A4: Style BJCCP | C4: 10A - Weissbier | D4: =IF($C$4="","",VLOOKUP($C$4,BJCCP!$A$2:$AU$119,22,FALSE)) -> 50-100 | E4: =IF($C$4="","",VLOOKUP($C$4,BJCCP!$A$2:$AU$119,23,FALSE)) -> 0-30 | F4: =IF($C$4="","",VLOOKUP($C$4,BJCCP!$A$2:$AU$119,24,FALSE)) -> 0-80 | G4: =IF($C$4="","",VLOOKUP($C$4,BJCCP!$A$2:$AU$119,25,FALSE)) -> 0-50 | H4: =IF($C$4="","",VLOOKUP($C$4,BJCCP!$A$2:$AU$119,26,FALSE)) -> 0-100 | I4: =IF($C$4="","",VLOOKUP($C$4,BJCCP!$A$2:$AU$119,27,FALSE)) -> <100 | K4: 0 Recette actuelle 0 | L4: =Brassage!B15 -> 56.4644 | M4: =Brassage!C15 -> 16.8054 | N4: =Brassage!D15 -> 20.8017 | O4: =Brassage!E15 -> 68.7222 | P4: =Brassage!F15 -> 66.7846 | Q4: =Brassage!G15 -> 111
A5: Profil cible (manuel) | K5: 00 Saint-Paulet | L5: 30 | M5: 3 | N5: 9 | O5: 3 | P5: 10 | Q5: 111
A6: Profil cible (liste) | C6: Weissbier V2 | D6: =IF($C$6="","",VLOOKUP($C$6,$K$4:$Q$98,2,FALSE)) -> 50 | E6: =IF($C$6="","",VLOOKUP($C$6,$K$4:$Q$98,3,FALSE)) -> 10 | F6: =IF($C$6="","",VLOOKUP($C$6,$K$4:$Q$98,4,FALSE)) -> 16 | G6: =IF($C$6="","",VLOOKUP($C$6,$K$4:$Q$98,5,FALSE)) -> 70 | H6: =IF($C$6="","",VLOOKUP($C$6,$K$4:$Q$98,6,FALSE)) -> 70 | I6: =IF($C$6="","",VLOOKUP($C$6,$K$4:$Q$98,7,FALSE)) -> 120 | K6: APA | L6: 60 | M6: 20 | N6: 70 | O6: 200 | P6: 100 | Q6: 111
A7: Profil cible retenu | C7: =IF($C$6="",C5,C6) -> Weissbier V2 | D7: =IF($C$6="",D5,D6) -> 50 | E7: 10 | F7: 16 | G7: 70 | H7: 70 | I7: 120 | K7: APL | L7: 60 | M7: 20 | N7: 30 | O7: 150 | P7: 50 | Q7: 111
A8: Eau de départ 1 | B8: 10 | C8: 00 Saint-Paulet | D8: =IF($C8="",0,VLOOKUP($C8,$K$4:$Q$98,2,FALSE)) -> 30 | E8: =IF($C8="",0,VLOOKUP($C8,$K$4:$Q$98,3,FALSE)) -> 3 | F8: =IF($C8="",0,VLOOKUP($C8,$K$4:$Q$98,4,FALSE)) -> 9 | G8: =IF($C8="",0,VLOOKUP($C8,$K$4:$Q$98,5,FALSE)) -> 3 | H8: =IF($C8="",0,VLOOKUP($C8,$K$4:$Q$98,6,FALSE)) -> 10 | I8: =IF($C8="",0,VLOOKUP($C8,$K$4:$Q$98,7,FALSE)) -> 111 | K8: Buffalo, NY | L8: 34 | M8: 9 | N8: 11 | O8: 23 | P8: 19 | Q8: 110
A9: Eau de départ 2 | B9: 10 | C9: Eau déminéralisée | D9: =IF($C9="",0,VLOOKUP($C9,$K$4:$Q$98,2,FALSE)) -> 0 | E9: =IF($C9="",0,VLOOKUP($C9,$K$4:$Q$98,3,FALSE)) -> 0 | F9: =IF($C9="",0,VLOOKUP($C9,$K$4:$Q$98,4,FALSE)) -> 0 | G9: =IF($C9="",0,VLOOKUP($C9,$K$4:$Q$98,5,FALSE)) -> 0 | H9: =IF($C9="",0,VLOOKUP($C9,$K$4:$Q$98,6,FALSE)) -> 0 | I9: =IF($C9="",0,VLOOKUP($C9,$K$4:$Q$98,7,FALSE)) -> 0 | K9: Burton-on-Trent | L9: 268 | M9: 62 | N9: 30 | O9: 638 | P9: 36 | Q9: 141
A10: Eau de départ 3 | D10: =IF($C10="",0,VLOOKUP($C10,$K$4:$Q$98,2,FALSE)) -> 0 | E10: =IF($C10="",0,VLOOKUP($C10,$K$4:$Q$98,3,FALSE)) -> 0 | F10: =IF($C10="",0,VLOOKUP($C10,$K$4:$Q$98,4,FALSE)) -> 0 | G10: =IF($C10="",0,VLOOKUP($C10,$K$4:$Q$98,5,FALSE)) -> 0 | H10: =IF($C10="",0,VLOOKUP($C10,$K$4:$Q$98,6,FALSE)) -> 0 | I10: =IF($C10="",0,VLOOKUP($C10,$K$4:$Q$98,7,FALSE)) -> 0 | K10: Dortmund | L10: 260 | M10: 23 | N10: 69 | O10: 240 | P10: 106 | Q10: 270
A11: Eau de départ 4 | D11: =IF($C11="",0,VLOOKUP($C11,$K$4:$Q$98,2,FALSE)) -> 0 | E11: =IF($C11="",0,VLOOKUP($C11,$K$4:$Q$98,3,FALSE)) -> 0 | F11: =IF($C11="",0,VLOOKUP($C11,$K$4:$Q$98,4,FALSE)) -> 0 | G11: =IF($C11="",0,VLOOKUP($C11,$K$4:$Q$98,5,FALSE)) -> 0 | H11: =IF($C11="",0,VLOOKUP($C11,$K$4:$Q$98,6,FALSE)) -> 0 | I11: =IF($C11="",0,VLOOKUP($C11,$K$4:$Q$98,7,FALSE)) -> 0 | K11: Dublin | L11: 118 | M11: 4 | N11: 12 | O11: 54 | P11: 19 | Q11: 319
A12: Eau de départ 5 | D12: =IF($C12="",0,VLOOKUP($C12,$K$4:$Q$98,2,FALSE)) -> 0 | E12: =IF($C12="",0,VLOOKUP($C12,$K$4:$Q$98,3,FALSE)) -> 0 | F12: =IF($C12="",0,VLOOKUP($C12,$K$4:$Q$98,4,FALSE)) -> 0 | G12: =IF($C12="",0,VLOOKUP($C12,$K$4:$Q$98,5,FALSE)) -> 0 | H12: =IF($C12="",0,VLOOKUP($C12,$K$4:$Q$98,6,FALSE)) -> 0 | I12: =IF($C12="",0,VLOOKUP($C12,$K$4:$Q$98,7,FALSE)) -> 0 | K12: East Flanders | L12: 134 | M12: 22 | N12: 52 | O12: 76 | P12: 47 | Q12: 306
A13: Eau obtenue | B13: =SUM(B8:B12) -> 20 | C13: Nouvelle eau | D13: =(D8*$B$8+D9*$B$9+D10*$B$10+D11*$B$11+D12*$B$12)/$B$13 -> 15 | E13: =(E8*$B$8+E9*$B$9+E10*$B$10+E11*$B$11+E12*$B$12)/$B$13 -> 1.5 | F13: 4.5 | G13: 1.5 | H13: 5 | I13: 55.5 | K13: Eau déminéralisée | L13: 0 | M13: 0 | N13: 0 | O13: 0 | P13: 0 | Q13: 0
A14: Différence profil cible | D14: =D13-D7 -> -35 | E14: =E13-E7 -> -8.5 | F14: -11.5 | G14: -68.5 | H14: -65 | I14: -64.5 | K14: Edinburgh | L14: 140 | M14: 36 | N14: 92 | O14: 231 | P14: 60 | Q14: 270
K15: Erie County | L15: 31 | M15: 8 | N15: 10 | O15: 24 | P15: 18 | Q15: 102
K16: ESB bellebouche | L16: 152 | M16: 18 | N16: 18 | O16: 185 | P16: 66 | Q16: 120
A17: Outil sels minéraux | K17: IRA | L17: 50 | M17: 20 | N17: 60 | O17: 50 | P17: 100 | Q17: 120
K18: Lockport | L18: 36 | M18: 6 | N18: 9 | O18: 23 | P18: 18 | Q18: 95
A19: PROFIL | C19: NOM | D19: Ca (50-150) | E19: Mg (10-40) | F19: Na (0-150) | G19: SO4 (50-250) | H19: Cl (0-250) | I19: HCO3 (0-250) | K19: London | L19: 90 | M19: 4 | N19: 24 | O19: 58 | P19: 18 | Q19: 123
A20: Style BJCCP | C20: 10A - Weissbier | D20: =IF($C$4="","",VLOOKUP($C$4,BJCCP!$A$2:$AU$119,22,FALSE)) -> 50-100 | E20: =IF($C$4="","",VLOOKUP($C$4,BJCCP!$A$2:$AU$119,23,FALSE)) -> 0-30 | F20: =IF($C$4="","",VLOOKUP($C$4,BJCCP!$A$2:$AU$119,24,FALSE)) -> 0-80 | G20: =IF($C$4="","",VLOOKUP($C$4,BJCCP!$A$2:$AU$119,25,FALSE)) -> 0-50 | H20: =IF($C$4="","",VLOOKUP($C$4,BJCCP!$A$2:$AU$119,26,FALSE)) -> 0-100 | I20: =IF($C$4="","",VLOOKUP($C$4,BJCCP!$A$2:$AU$119,27,FALSE)) -> <100 | K20: Mild Ale - Dark Lager | L20: 75 | M20: 12 | N20: 35 | O20: 120 | P20: 100 | Q20: 120
A21: Profil cible (manuel) | K21: Munich | L21: 76 | M21: 18 | N21: 1 | O21: 10 | P21: 2 | Q21: 152
A22: Profil cible (liste) | C22: Weissbier V2 | D22: =IF($C$22="","",VLOOKUP($C$22,$K$4:$Q$98,2,FALSE)) -> 50 | E22: =IF($C$22="","",VLOOKUP($C$22,$K$4:$Q$98,3,FALSE)) -> 10 | F22: =IF($C$22="","",VLOOKUP($C$22,$K$4:$Q$98,4,FALSE)) -> 16 | G22: =IF($C$22="","",VLOOKUP($C$22,$K$4:$Q$98,5,FALSE)) -> 70 | H22: =IF($C$22="","",VLOOKUP($C$22,$K$4:$Q$98,6,FALSE)) -> 70 | I22: =IF($C$22="","",VLOOKUP($C$22,$K$4:$Q$98,7,FALSE)) -> 120 | K22: Niagara County | L22: 31 | M22: 10 | N22: 10 | O22: 25 | P22: 20 | Q22: 109
A23: Profil cible retenu | C23: =IF($C$22="",C21,C22) -> Weissbier V2 | D23: 50 | E23: 10 | F23: 16 | G23: 70 | H23: 70 | I23: 120 | K23: Niagara Falls | L23: 35 | M23: 7 | N23: 10 | O23: 32 | P23: 26 | Q23: 107
A24: Eau de départ | C24: 00 Saint-Paulet | D24: =IF($C24="",0,VLOOKUP($C24,$K$4:$Q$98,2,FALSE)) -> 30 | E24: =IF($C24="",0,VLOOKUP($C24,$K$4:$Q$98,3,FALSE)) -> 3 | F24: =IF($C24="",0,VLOOKUP($C24,$K$4:$Q$98,4,FALSE)) -> 9 | G24: =IF($C24="",0,VLOOKUP($C24,$K$4:$Q$98,5,FALSE)) -> 3 | H24: =IF($C24="",0,VLOOKUP($C24,$K$4:$Q$98,6,FALSE)) -> 10 | I24: =IF($C24="",0,VLOOKUP($C24,$K$4:$Q$98,7,FALSE)) -> 111 | K24: Pale Ale | L24: 110 | M24: 18 | N24: 17 | O24: 350 | P24: 50 | Q24: 70
A25: Sulfate de Calcium | B25: CaSO4 | C25: 0.02 | D25: =$C25*232.78 -> 4.6556 | G25: =$C25*557.93 -> 11.1586 | K25: Pale Lager | L25: 20 | M25: 6 | N25: 24 | O25: 5 | P25: 18 | Q25: 60
A26: Chlorure de Sodium | B26: NaCl | C26: 0.03 | F26: =$C26*393.39 -> 11.8017 | H26: =$C26*606.66 -> 18.1998 | K26: Pilsen | L26: 7 | M26: 3 | N26: 3 | O26: 6 | P26: 5 | Q26: 9
A27: Sulfate de Magnésium | B27: MgSO4 | C27: 0.14 | E27: =$C27*98.61 -> 13.8054 | G27: =$C27*389.74 -> 54.5636 | K27: Pollock Pines | L27: 5 | M27: 1 | N27: 6 | O27: 4 | P27: 5 | Q27: 22
A28: Chlorure de Calcium | B28: CaCl2 | C28: 0.08 | D28: =$C28*272.61 -> 21.8088 | H28: =$C28*482.31 -> 38.5848 | K28: St Felix | L28: 27.8 | M28: 3.1 | N28: 8.3 | O28: 3.2 | P28: 9.1 | Q28: 114
A29: Bicarbonate de Sodium | B29: NaHCO3 | F29: =$C29*273.66 -> 0 | I29: =$C29*726.33 -> 0 | K29: Stout - Porter | L29: 50 | M29: 12 | N29: 60 | O29: 46 | P29: 175 | Q29: 170
A30: Carbonate de Calcium | B30: CaCO3 | D30: =$C30*400.43 -> 0 | I30: =$C30*599.57 -> 0 | K30: Vienna | L30: 200 | M30: 60 | N30: 8 | O30: 125 | P30: 12 | Q30: 120
A31: Profil obtenu | D31: =SUM(D24:D30) -> 56.4644 | E31: =SUM(E24:E30) -> 16.8054 | F31: 20.8017 | G31: 68.7222 | H31: 66.7846 | I31: 111 | K31: Weissbier V2 | L31: 50 | M31: 10 | N31: 16 | O31: 70 | P31: 70 | Q31: 120
A32: Différence profil cible | D32: =D31-D23 -> 6.4644 | E32: =E31-E23 -> 6.8054 | F32: 4.8017 | G32: -1.2778 | H32: -3.2154 | I32: -9 | K32: West Flanders | L32: 114 | M32: 10 | N32: 125 | O32: 145 | P32: 139 | Q32: 370
C33: Recette actuelle | D33: =Brassage!M10 -> 25.52885378 | F33: =Brassage!M18 -> 15.54288222 | H33: =Brassage!L9 -> 41.071736 | K33: Yorkshire | L33: 105 | M33: 17 | N33: 23 | O33: 66 | P33: 30 | Q33: 153
A34: Ajout des sels minéraux | D34: Empatage | F34: Rinçage | H34: Total | K34: Dark Strong Ale | L34: 50 | M34: 30 | N34: 100 | O34: 155 | P34: 155 | Q34: 114
D35: 25.52885378 | F35: 15.54288222 | H35: 41.071736
A36: Sulfate de Calcium | B36: CaSO4 | C36: =C25 -> 0.02 | D36: =$C36*$D$35 -> 0.5105770756 | F36: =$C36*$F$35 -> 0.3108576444 | H36: =D36+F36 -> 0.82143472 | J36: Attention ! Les volumes d'eau ne sont pas ceux de la recette en cours
A37: Chlorure de Sodium | B37: NaCl | C37: =C26 -> 0.03 | D37: =$C37*$D$35 -> 0.7658656134 | F37: =$C37*$F$35 -> 0.4662864666 | H37: 1.23215208
A38: Sulfate de Magnésium | B38: MgSO4 | C38: 0.14 | D38: 3.574039529 | F38: 2.176003511 | H38: =D38+F38 -> 5.75004304
A39: Chlorure de Calcium | B39: CaCl2 | C39: 0.08 | D39: 2.042308303 | F39: 1.243430578 | H39: =D39+F39 -> 3.28573888
A40: Bicarbonate de Sodium | B40: NaHCO3 | C40: 0 | D40: 0 | F40: 0 | H40: 0
A41: Carbonate de Calcium | B41: CaCO3 | C41: 0 | D41: 0 | F41: 0 | H41: 0

Sheet Calculateur
A1: Calculateur/Convertisseur
B3: Densité | G3: Mout Fermenté | N3: Amertume
B4: 1.032 | C4: =-616.868 + 1111.14 * B4- 630.272 * B4^ 2+ 135.997 *B4^3 -> 8.048624606 | D4: =C4*1.04 -> 8.37056959 | G4: Facteur de correction | H4: 1.04 | I4: DI/BRIX | J4: BRIX | K4: DI/DF | L4: Trouvé DI | N4: Volume post-ébu | O4: 29.1 | Q4: Densité post-ébu | S4: 1.04
B5: 1.01 | C5: =1.00001 + 0.0038661*B5 + 1.3488* 10^-5*B5^2 + 4.3074 *10^-8*B5^3 -> 1.003928564 | D5: =B5*1.04 -> 1.0504 | G5: DI | I5: 1.064 | J5: =1 + J6/ ( 258.6 - 0.8796 * J6)/1.04 -> 1.097170247 | K5: 1.086 | L5: =(1+(L6/1.04)/(258.6-0.8796*(L6/1.04))) -> 1.04777254
B6: 8 | C6: =B6/1.04 -> 7.692307692 | D6: =1 + C6/ ( 258.6 - 0.8796 * C6) -> 1.03054517 | G6: DI °Brix | I6: =(-616.868 + 1111.14 * I5- 630.272 * I5^ 2+135.997 *I5^3)*1.04 -> 16.29862605 | J6: 24 | K6: =(-616.868 + 1111.14 * K5- 630.272 * K5^ 2+135.997 *K5^3)*1.04 -> 21.50511317 | L6: =(1+(0.00349412/1.04)*L8-L7)*(1.04/0.000856829) -> 12.33002151 | N6: Houblons | O6: Acide Alpha | P6: Utilisation | Q6: Durée | R6: Poids | S6: IBU
G7: DF | I7: =I10 -> 1.00673037 | J7: =J10 -> 1.012144465 | K7: 1.028 | L7: 1.01 | N7: Magnum | O7: 0.139 | P7: FWH | Q7: 60 | R7: 15 | S7: =IF(P7="Ebullition",((1.65*(0.000125^($S$4-1))*((1-EXP(-0.04*Q7))/4.15))*O7*R7*1000)/($O$4)*Paramètres!$H$2,IF(P7="DH",((1.65*(0.000125^($S$4-1))*((1-EXP(-0.04*Q7))/4.15))*O7*R7*1000)/($O$4)*Paramètres!$H$3,IF(P7="Hop-stand",((1.65*(0.000125^($S$4-1))*((1-EXP(-0.04*Q7))/4.15))*O7*R7*1000)/($O$4)*Paramètres!$H$4,IF(P7="FWH",((1.65*(0.000125^($S$4-1))*((1-EXP(-0.04*Q7))/4.15))*O7*R7*1000)/($O$4)*Paramètres!$H$5,IF(P7="Mash-hop",((1.65*(0.000125^($S$4-1))*((1-EXP(-0.04*Q7))/4.15))*O7*R7*1000)/($O$4)*Paramètres!$H$6,IF(P7="Flame-out",((1.65*(0.000125^($S$4-1))*((1-EXP(-0.04*Q7))/4.15))*O7*R7*1000)/($O$4)*Paramètres!$H$7,"")))))) -> 19.88916816
G8: DF Brix | I8: 6 | J8: 9.5 | K8: =(K7-1+(0.000856829/1.04)*K6)*1.04/0.00349412 -> 13.60749047 | L8: 6 | N8: Hallertau Hersbrucker | O8: 0.139 | P8: Ebullition | Q8: 60 | R8: 15 | S8: =IF(P8="Ebullition",((1.65*(0.000125^($S$4-1))*((1-EXP(-0.04*Q8))/4.15))*O8*R8*1000)/($O$4)*Paramètres!$H$2,IF(P8="DH",((1.65*(0.000125^($S$4-1))*((1-EXP(-0.04*Q8))/4.15))*O8*R8*1000)/($O$4)*Paramètres!$H$3,IF(P8="Hop-stand",((1.65*(0.000125^($S$4-1))*((1-EXP(-0.04*Q8))/4.15))*O8*R8*1000)/($O$4)*Paramètres!$H$4,IF(P8="FWH",((1.65*(0.000125^($S$4-1))*((1-EXP(-0.04*Q8))/4.15))*O8*R8*1000)/($O$4)*Paramètres!$H$5,IF(P8="Mash-hop",((1.65*(0.000125^($S$4-1))*((1-EXP(-0.04*Q8))/4.15))*O8*R8*1000)/($O$4)*Paramètres!$H$6,IF(P8="Flame-out",((1.65*(0.000125^($S$4-1))*((1-EXP(-0.04*Q8))/4.15))*O8*R8*1000)/($O$4)*Paramètres!$H$7,"")))))) -> 18.08106197
G9: DF Fct cubique | I9: =IF(I8=0, "XXX", 1 - 0.0044993*(I6/1.04) + 0.0117741*(I8/1.04) + 0.000275806*(I6/1.04)^2 - 0.00127169*(I8/1.04)^2 - 0.00000727999*(I6/1.04)^3 + 0.0000632929*(I8/1.04)^3) -> 1.006960345 | J9: =IF(J8=0, "XXX", 1 - 0.0044993*(J6/1.04) + 0.0117741*(J8/1.04) + 0.000275806*(J6/1.04)^2 - 0.00127169*(J8/1.04)^2 - 0.00000727999*(J6/1.04)^3 + 0.0000632929*(J8/1.04)^3) -> 1.003264194 | K9: =IF(K8=0, "XXX", 1 - 0.0044993*(K6/1.04) + 0.0117741*(K8/1.04) + 0.000275806*(K6/1.04)^2 - 0.00127169*(K8/1.04)^2 - 0.00000727999*(K6/1.04)^3 + 0.0000632929*(K8/1.04)^3) -> 1.038645779 | L9: =IF(L8=0, "XXX", 1 - 0.0044993*(L6/1.04) + 0.0117741*(L8/1.04) + 0.000275806*(L6/1.04)^2 - 0.00127169*(L8/1.04)^2 - 0.00000727999*(L6/1.04)^3 + 0.0000632929*(L8/1.04)^3) -> 1.011046997
G10: DF Fct linéaire | I10: =IF(I8=0, "XXX", 1 - 0.000856829*(I6/1.04) + 0.00349412*(I8/1.04)) -> 1.00673037 | J10: =IF(J8=0, "XXX", 1 - 0.000856829*(J6/1.04) + 0.00349412*(J8/1.04)) -> 1.012144465 | K10: =1-0.000856829*(K6/1.04)+0.00349412*(K8/1.04) -> 1.028 | L10: =IF(L8=0, "XXX", 1 - 0.000856829*(L6/1.04) + 0.00349412*(L8/1.04)) -> 1.01
G11: DF Fct univ-bière | I11: =IF(I8=0, "XXX", 1.001843-0.002318474*I6-0.000007775*I6^2-0.000000034*I6^3+0.00574*I8+0.00003344*I8^2+0.000000086*I8^3) -> 0.9975048756 | J11: =IF(J8=0, "XXX", 1.001843-0.002318474*J6-0.000007775*J6^2-0.000000034*J6^3+0.00574*J8+0.00003344*J8^2+0.000000086*J8^3) -> 0.9988729023 | K11: =IF(K8=0, "XXX", 1.001843-0.002318474*K6-0.000007775*K6^2-0.000000034*K6^3+0.00574*K8+0.00003344*K8^2+0.000000086*K8^3) -> 1.032565664 | L11: =IF(L8=0, "XXX", 1.001843-0.002318474*L6-0.000007775*L6^2-0.000000034*L6^3+0.00574*L8+0.00003344*L8^2+0.000000086*L8^3) -> 1.007672819 | S11: =IF(P11="Ebullition",((1.65*(0.000125^($S$4-1))*((1-EXP(-0.04*Q11))/4.15))*O11*R11*1000)/($O$4)*Paramètres!$H$2,IF(P11="DH",((1.65*(0.000125^($S$4-1))*((1-EXP(-0.04*Q11))/4.15))*O11*R11*1000)/($O$4)*Paramètres!$H$3,IF(P11="Hop-stand",((1.65*(0.000125^($S$4-1))*((1-EXP(-0.04*Q11))/4.15))*O11*R11*1000)/($O$4)*Paramètres!$H$4,IF(P11="FWH",((1.65*(0.000125^($S$4-1))*((1-EXP(-0.04*Q11))/4.15))*O11*R11*1000)/($O$4)*Paramètres!$H$5,IF(P11="Mash-hop",((1.65*(0.000125^($S$4-1))*((1-EXP(-0.04*Q11))/4.15))*O11*R11*1000)/($O$4)*Paramètres!$H$6,IF(P11="Flame-out",((1.65*(0.000125^($S$4-1))*((1-EXP(-0.04*Q11))/4.15))*O11*R11*1000)/($O$4)*Paramètres!$H$7,"")))))) -> 
B12: Volume | G12: Atténuation Apparente | I12: =(I5-I7)/(I5-1) -> 0.8948379727 | J12: =(J5-J7)/(J5-1) -> 0.8750186835 | K12: =(K5-K7)/(K5-1) -> 0.6744186047 | L12: =(L5-L7)/(L5-1) -> 0.790674726 | S12: =IF(P12="Ebullition",((1.65*(0.000125^($S$4-1))*((1-EXP(-0.04*Q12))/4.15))*O12*R12*1000)/($O$4)*Paramètres!$H$2,IF(P12="DH",((1.65*(0.000125^($S$4-1))*((1-EXP(-0.04*Q12))/4.15))*O12*R12*1000)/($O$4)*Paramètres!$H$3,IF(P12="Hop-stand",((1.65*(0.000125^($S$4-1))*((1-EXP(-0.04*Q12))/4.15))*O12*R12*1000)/($O$4)*Paramètres!$H$4,IF(P12="FWH",((1.65*(0.000125^($S$4-1))*((1-EXP(-0.04*Q12))/4.15))*O12*R12*1000)/($O$4)*Paramètres!$H$5,IF(P12="Mash-hop",((1.65*(0.000125^($S$4-1))*((1-EXP(-0.04*Q12))/4.15))*O12*R12*1000)/($O$4)*Paramètres!$H$6,IF(P12="Flame-out",((1.65*(0.000125^($S$4-1))*((1-EXP(-0.04*Q12))/4.15))*O12*R12*1000)/($O$4)*Paramètres!$H$7,"")))))) -> 
B13: 1 | C13: =3.785 *B13 -> 3.785 | G13: Atténuation réelle | I13: =((-676.67 + 1286.4 * I5- 800.47 * I5^ 2+ 190.74 *I5^3)-I14)/(-676.67 + 1286.4 * I5- 800.47 * I5^ 2+ 190.74 *I5^3) -> 0.7215062067 | J13: =((-676.67 + 1286.4 * J5- 800.47 * J5^ 2+ 190.74 *J5^3)-J14)/(-676.67 + 1286.4 * J5- 800.47 * J5^ 2+ 190.74 *J5^3) -> 0.7020069321 | K13: =((-676.67 + 1286.4 * K5- 800.47 * K5^ 2+ 190.74 *K5^3)-K14)/(-676.67 + 1286.4 * K5- 800.47 * K5^ 2+ 190.74 *K5^3) -> 0.5319431549 | L13: =((-676.67 + 1286.4 * L5- 800.47 * L5^ 2+ 190.74 *L5^3)-L14)/(-676.67 + 1286.4 * L5- 800.47 * L5^ 2+ 190.74 *L5^3) -> 0.6348290573 | S13: =IF(P13="Ebullition",((1.65*(0.000125^($S$4-1))*((1-EXP(-0.04*Q13))/4.15))*O13*R13*1000)/($O$4)*Paramètres!$H$2,IF(P13="DH",((1.65*(0.000125^($S$4-1))*((1-EXP(-0.04*Q13))/4.15))*O13*R13*1000)/($O$4)*Paramètres!$H$3,IF(P13="Hop-stand",((1.65*(0.000125^($S$4-1))*((1-EXP(-0.04*Q13))/4.15))*O13*R13*1000)/($O$4)*Paramètres!$H$4,IF(P13="FWH",((1.65*(0.000125^($S$4-1))*((1-EXP(-0.04*Q13))/4.15))*O13*R13*1000)/($O$4)*Paramètres!$H$5,IF(P13="Mash-hop",((1.65*(0.000125^($S$4-1))*((1-EXP(-0.04*Q13))/4.15))*O13*R13*1000)/($O$4)*Paramètres!$H$6,IF(P13="Flame-out",((1.65*(0.000125^($S$4-1))*((1-EXP(-0.04*Q13))/4.15))*O13*R13*1000)/($O$4)*Paramètres!$H$7,"")))))) -> 
B14: 1 | C14: =B14/3.785 -> 0.2642007926 | G14: Sucre Résiduel | I14: =0.188 * ( -676.67 + 1286.4 *I5- 800.47 * I5^ 2+ 190.74 *I5^3) + 0.8192 * ( -676.67 + 1286.4 *I7- 800.47 * I7^ 2+ 190.74 *I7^3) -> 4.346343838 | J14: =0.188 * ( -676.67 + 1286.4 *J5- 800.47 * J5^ 2+ 190.74 *J5^3) + 0.8192 * ( -676.67 + 1286.4 *J7- 800.47 * J7^ 2+ 190.74 *J7^3) -> 6.871327158 | K14: =0.188 * ( -676.67 + 1286.4 *K5- 800.47 * K5^ 2+ 190.74 *K5^3) + 0.8192 * ( -676.67 + 1286.4 *K7- 800.47 * K7^ 2+ 190.74 *K7^3) -> 9.639005551 | L14: =0.188 * ( -676.67 + 1286.4 *L5- 800.47 * L5^ 2+ 190.74 *L5^3) + 0.8192 * ( -676.67 + 1286.4 *L7- 800.47 * L7^ 2+ 190.74 *L7^3) -> 4.312635321 | S14: =IF(P14="Ebullition",((1.65*(0.000125^($S$4-1))*((1-EXP(-0.04*Q14))/4.15))*O14*R14*1000)/($O$4)*Paramètres!$H$2,IF(P14="DH",((1.65*(0.000125^($S$4-1))*((1-EXP(-0.04*Q14))/4.15))*O14*R14*1000)/($O$4)*Paramètres!$H$3,IF(P14="Hop-stand",((1.65*(0.000125^($S$4-1))*((1-EXP(-0.04*Q14))/4.15))*O14*R14*1000)/($O$4)*Paramètres!$H$4,IF(P14="FWH",((1.65*(0.000125^($S$4-1))*((1-EXP(-0.04*Q14))/4.15))*O14*R14*1000)/($O$4)*Paramètres!$H$5,IF(P14="Mash-hop",((1.65*(0.000125^($S$4-1))*((1-EXP(-0.04*Q14))/4.15))*O14*R14*1000)/($O$4)*Paramètres!$H$6,IF(P14="Flame-out",((1.65*(0.000125^($S$4-1))*((1-EXP(-0.04*Q14))/4.15))*O14*R14*1000)/($O$4)*Paramètres!$H$7,"")))))) -> 
G15: Sucre Résiduel | I15: =I14*10*I5 -> 46.24509844 | J15: =J14*10*J5 -> 75.39015715 | K15: =K14*10*K5 -> 104.6796003 | L15: =L14*10*L5 -> 45.18660864 | S15: =IF(P15="Ebullition",((1.65*(0.000125^($S$4-1))*((1-EXP(-0.04*Q15))/4.15))*O15*R15*1000)/($O$4)*Paramètres!$H$2,IF(P15="DH",((1.65*(0.000125^($S$4-1))*((1-EXP(-0.04*Q15))/4.15))*O15*R15*1000)/($O$4)*Paramètres!$H$3,IF(P15="Hop-stand",((1.65*(0.000125^($S$4-1))*((1-EXP(-0.04*Q15))/4.15))*O15*R15*1000)/($O$4)*Paramètres!$H$4,IF(P15="FWH",((1.65*(0.000125^($S$4-1))*((1-EXP(-0.04*Q15))/4.15))*O15*R15*1000)/($O$4)*Paramètres!$H$5,IF(P15="Mash-hop",((1.65*(0.000125^($S$4-1))*((1-EXP(-0.04*Q15))/4.15))*O15*R15*1000)/($O$4)*Paramètres!$H$6,IF(P15="Flame-out",((1.65*(0.000125^($S$4-1))*((1-EXP(-0.04*Q15))/4.15))*O15*R15*1000)/($O$4)*Paramètres!$H$7,"")))))) -> 
B16: Poids | G16: Taux d'alcool | I16: =1000 * (I5 -I7) / 7.6 -> 7.535477665 | J16: =1000 * (J5 -J7) / 7.6 -> 11.18760284 | K16: 7.631578947 | L16: 4.970071037 | S16: =IF(P16="Ebullition",((1.65*(0.000125^($S$4-1))*((1-EXP(-0.04*Q16))/4.15))*O16*R16*1000)/($O$4)*Paramètres!$H$2,IF(P16="DH",((1.65*(0.000125^($S$4-1))*((1-EXP(-0.04*Q16))/4.15))*O16*R16*1000)/($O$4)*Paramètres!$H$3,IF(P16="Hop-stand",((1.65*(0.000125^($S$4-1))*((1-EXP(-0.04*Q16))/4.15))*O16*R16*1000)/($O$4)*Paramètres!$H$4,IF(P16="FWH",((1.65*(0.000125^($S$4-1))*((1-EXP(-0.04*Q16))/4.15))*O16*R16*1000)/($O$4)*Paramètres!$H$5,IF(P16="Mash-hop",((1.65*(0.000125^($S$4-1))*((1-EXP(-0.04*Q16))/4.15))*O16*R16*1000)/($O$4)*Paramètres!$H$6,IF(P16="Flame-out",((1.65*(0.000125^($S$4-1))*((1-EXP(-0.04*Q16))/4.15))*O16*R16*1000)/($O$4)*Paramètres!$H$7,"")))))) -> 
B17: 4.25 | C17: =B17*453.592 -> 1927.766 | S17: =IF(P17="Ebullition",((1.65*(0.000125^($S$4-1))*((1-EXP(-0.04*Q17))/4.15))*O17*R17*1000)/($O$4)*Paramètres!$H$2,IF(P17="DH",((1.65*(0.000125^($S$4-1))*((1-EXP(-0.04*Q17))/4.15))*O17*R17*1000)/($O$4)*Paramètres!$H$3,IF(P17="Hop-stand",((1.65*(0.000125^($S$4-1))*((1-EXP(-0.04*Q17))/4.15))*O17*R17*1000)/($O$4)*Paramètres!$H$4,IF(P17="FWH",((1.65*(0.000125^($S$4-1))*((1-EXP(-0.04*Q17))/4.15))*O17*R17*1000)/($O$4)*Paramètres!$H$5,IF(P17="Mash-hop",((1.65*(0.000125^($S$4-1))*((1-EXP(-0.04*Q17))/4.15))*O17*R17*1000)/($O$4)*Paramètres!$H$6,IF(P17="Flame-out",((1.65*(0.000125^($S$4-1))*((1-EXP(-0.04*Q17))/4.15))*O17*R17*1000)/($O$4)*Paramètres!$H$7,"")))))) -> 
B18: 453 | C18: =B18/453.592 -> 0.9986948623 | F18: Dilution | J18: ABV / Extrait réel | N18: TOTAL | O18: =(O7*R7+O8*R8+O12*R12+O13*R13+O14*R14+O15*R15+O16*R16+O17*R17)/R18 -> 0.139 | Q18: =Q7 -> 60 | R18: =SUM(R7:R17) -> 30 | S18: =SUM(S7:S17) -> 37.97023013
B19: 1 | C19: =B19*28.35 -> 28.35 | F19: Densité actuelle | H19: 1.05 | K19: DS | L19: Plato
B20: 28 | C20: =B20/28.35 -> 0.987654321 | F20: Volume actuel | H20: 20 | J20: DI | K20: 1.1 | L20: 23.77 | N20: Pied de cuve | Q20: modèle : | R20: Braukaiser (agitateur)
F21: Malt 1 | G21: 5000 | H21: 8 | J21: DF | K21: 1.012 | L21: 3.07 | N21: Nombre de levures initial | O21: Volume | P21: Densité | Q21: Extrait sec | R21: Nombre de levures final
B22: Température | F22: Malt 2 | G22: 400 | H22: 50 | J22: DI | K22: =-616.868 + 1111.14 * K20- 630.272 * K20^ 2+ 135.997 *K20^3 -> 23.768887 | L22: =1.00001 + 0.0038661*L20 + 1.3488* 10^-5*L20^2 + 4.3074 *10^-8*L20^3 -> 1.10010659
B23: 24 | C23: =32+B23*9/5 -> 75.2 | D23: =B23+273.15 -> 297.15 | F23: Malt 3 | G23: 0 | H23: 542 | J23: DF | K23: =-616.868 + 1111.14 * K21- 630.272 * K21^ 2+ 135.997 *K21^3 -> 3.068270539 | L23: =1.00001 + 0.0038661*L21 + 1.3488* 10^-5*L21^2 + 4.3074 *10^-8*L21^3 -> 1.012007296 | N23: 100 | O23: 5 | P23: 1.035 | Q23: =O23*100*(P23-1)/0.0376 -> 465.4255319 | R23: =IF($R$20="White (simple)",IF(((12.54793776 * (N23/O23)^-0.4594858324) - 0.9994994906)*N23+N23>200*O23,200*O23,((12.54793776 * (N23/O23)^-0.4594858324) - 0.9994994906)*N23+N23),IF($R$20="Braukaiser (agitateur) ",IF((N23/Q23)<1.4,N23+Q23*1.4,N23+(2.33-0.67*(N23/Q23))))) -> 751.5957447
B24: 80 | C24: =(B24-32)*5/9 -> 26.66666667 | D24: =C24+273.15 -> 299.8166667 | F24: Malt 4 | G24: 0 | H24: 0 | J24: ER final | K24: =0.8114*K23 + 0.1886*K22 -> 6.972406803 | L24: =0.8114*L21+ 0.1886*L20 -> 6.97402 | N24: 100 | O24: 4.5 | P24: 1.035 | Q24: =O24*100*(P24-1)/0.0376 -> 418.8829787 | R24: =IF($R$20="White (simple)",IF(((12.54793776 * (N24/O24)^-0.4594858324) - 0.9994994906)*N24+N24>200*O24,200*O24,((12.54793776 * (N24/O24)^-0.4594858324) - 0.9994994906)*N24+N24),IF($R$20="Braukaiser (agitateur) ",IF((N24/Q24)<1.4,N24+Q24*1.4,N24+(2.33-0.67*(N24/Q24))))) -> 686.4361702
B25: 295.75 | C25: =B25-273.15 -> 22.6 | D25: =32+C25*9/5 -> 72.68 | F25: Malt 5 | G25: 0 | H25: 0 | J25: ABV 1 | K25: =1000*(K20-K21)/7.6 -> 11.57894737 | L25: =1000*(L22-L23)/7.6 -> 11.59201234 | N25: 10 | O25: 1.5 | P25: 1.035 | Q25: =O25*100*(P25-1)/0.0376 -> 139.6276596 | R25: =IF($R$20="White (simple)",IF(((12.54793776 * (N25/O25)^-0.4594858324) - 0.9994994906)*N25+N25>200*O25,200*O25,((12.54793776 * (N25/O25)^-0.4594858324) - 0.9994994906)*N25+N25),IF($R$20="Braukaiser (agitateur) ",IF((N25/Q25)<1.4,N25+Q25*1.4,N25+(2.33-0.67*(N25/Q25))))) -> 205.4787234
F26: Malt 6 | G26: 0 | H26: 0 | J26: ABV 2 | K26: =133*(L22-L23)/L22 -> 10.65097344 | L26: =133*(L22-L23)/L22 -> 10.65097344 | N26: 50 | O26: 2.5 | P26: 1.04 | Q26: =O26*100*(P26-1)/0.0376 -> 265.9574468 | R26: =IF($R$20="White (simple)",IF(((12.54793776 * (N26/O26)^-0.4594858324) - 0.9994994906)*N26+N26>200*O26,200*O26,((12.54793776 * (N26/O26)^-0.4594858324) - 0.9994994906)*N26+N26),IF($R$20="Braukaiser (agitateur) ",IF((N26/Q26)<1.4,N26+Q26*1.4,N26+(2.33-0.67*(N26/Q26))))) -> 422.3404255
B27: Couleur | F27: Malt 7 | G27: 0 | H27: 0 | J27: ABV 3 | K27: =((K22-K24)/(2.0665-0.010665*K22))*(K21/0.794) -> 11.80808127 | L27: =((L20-L24)/(2.0665-0.010665*L20))*(L23/0.794) -> 11.80789207
B28: Moût | C28: 1 | D28: =C28*1.97 -> 1.97 | F28: EBC actuel | H28: =2.9396*((4.23*(G21*H21+G22*H22+G23*H23+G24*H24+G25*H25+G26*H26+G27*H27)/1000)/ H20)^0.6859 -> 16.79393876 | J28: ABV 4 | K28: =VLOOKUP(((K20-K21)*1000),K37:L47,2,TRUE)*(K20-K21)*1000 -> 11.792 | L28: =VLOOKUP(((L22-L23)*1000),K37:L47,2,TRUE)*(L22-L23)*1000 -> 11.80530537 | N28: Ensemencement
C29: 2 | D29: =C29/1.97 -> 1.015228426 | F29: Densité visée | H29: 1.04 | N29: Volume | O29: Densité | P29: Taux d'ensemencement | R29: Levures nécessaire
B30: Malt | C30: 1 | D30: =2.6686 * C30 - 1.497 -> 1.1716 | F30: Type d'ajout | J30: Sucre présent | N30: 120 | O30: 1.1 | P30: 0.75 | R30: =N30*(-676.67+1286.4*O30-800.47*O30^2+190.74*O30^3)*P30 -> 2130.8616
C31: 40 | D31: =1.3546 *C31 - 0.76 -> 53.424 | F31: Quantité à ajouter | H31: =IF(F18="Dilution",1000*((H19-1)/(H29-1)*H20-H20)/H20,VLOOKUP(H30,Paramètres!F18:I31,2,FALSE)*2.57452*1000*(H29-H19)) -> 250 | J31: DI | K31: Volume | L31: Sucre | N31: 26 | O31: 1.047 | P31: 0.75 | R31: =N31*(-676.67+1286.4*O31-800.47*O31^2+190.74*O31^3)*P31 -> 226.7178995
C32: 4.5 | D32: =(C32+1.479)/2.6686 -> 2.240500637 | F32: Quantité à ajouter | H32: =IF(F18="Dilution",H31*H20/1000,H31*H20) -> 5 | J32: 1.04 | K32: 20 | L32: =K32*(J32-1)*1000*2.57452 -> 2059.616 | N32: 26 | O32: 1.047 | P32: 0.75 | R32: 226.7178995
C33: 53.42 | D33: =(C33+0.76)/1.3546 -> 39.9970471 | F33: EBC Final | H33: =IF(F18="Dilution",2.9396*((4.23*(G21*H21+G22*H22+G23*H23+G24*H24+G25*H25+G26*H26+G27*H27)/1000)/ (H20+H32/1000))^0.6859,2.9396*((4.23*(G21*H21+G22*H22+G23*H23+G24*H24+G25*H25+G26*H26+G27*H27+H32*(VLOOKUP(H30,Paramètres!F18:H31,3,FALSE)))/1000)/ H20)^0.6859) -> 16.79105963 | J33: 1.076 | K33: 29.1 | L33: =K33*(J33-1)*1000*2.57452 -> 5693.808432
N34: Mout à partir d'extrait
A35: Rendement brut | K35: Abaque pour ABV 4 | N35: Type d'extrait | O35: DME | P35: DME | Q35: LME
A36: Ingrédients utilisés | F36: Mout | K36: DI-DF | L36: Facteur | N36: Volume | O36: 2 | P36: 2 | Q36: =Q37/(1000*(Q38-1)*IF(Q35="DME",2.66,3.24)) -> 4.978096376
B37: Type | C37: Poids | D37: Rendement | E37: Eq Sucre | F37: Densité | G37: Volume | H37: Eq sucre | I37: Rendement | K37: 0 | L37: 0.125 | N37: Quantité d'extrait | O37: 259 | P37: =1000*(P38-1)*(IF(P35="DME",2.66,3.24))*P36 -> 260.68 | Q37: 500
A38: Malt | B38: Pale ale Château | C38: 3600 | D38: =IF(B38="",0,VLOOKUP(B38,Paramètres!A3:E300,2,FALSE)) -> 0.81 | E38: =IF(C38="","",C38*D38) -> 2916 | F38: 1.067 | G38: 15 | H38: =G38*(F38-1)*1000*2.57452 -> 2587.3926 | I38: =H38/$E$48 -> 0.8055394147 | K38: 7 | L38: 0.126 | N38: Densité | O38: =1+(O37/((IF(O35="DME",2.66,3.24))*O36))/1000 -> 1.048684211 | P38: 1.049 | Q38: 1.031
B39: Arôme | C39: 400 | D39: =IF(B39="",0,VLOOKUP(B39,Paramètres!A4:E301,2,FALSE)) -> 0.74 | E39: =IF(C39="","",C39*D39) -> 296 | F39: 1.053 | G39: 19 | H39: =G39*(F39-1)*1000*2.57452 -> 2592.54164 | I39: =H39/$E$48 -> 0.8071424782 | K39: 10.5 | L39: 0.127
D40: =IF(B40="",0,VLOOKUP(B40,Paramètres!A5:E302,2,FALSE)) -> 0 | H40: 0 | I40: 0 | K40: 17.3 | L40: 0.128 | N40: pH des malts crystal/cara
D41: =IF(B41="",0,VLOOKUP(B41,Paramètres!A6:E303,2,FALSE)) -> 0 | H41: 0 | I41: 0 | K41: 26.2 | L41: 0.129 | N41: Crystal/Cara Malt | P41: 0 | Q41: =5.22-0.00504*(P41+1.479)/2.6686 -> 5.217206715
D42: =IF(B42="",0,VLOOKUP(B42,Paramètres!A7:E304,2,FALSE)) -> 0 | H42: 0 | I42: 0 | K42: 36.1 | L42: 0.13 | N42: Crystal/Cara Malt | P42: 0 | Q42: =5.22-0.00504*(P42+1.479)/2.6686 -> 5.217206715
D43: =IF(B43="",0,VLOOKUP(B43,Paramètres!A8:E305,2,FALSE)) -> 0 | H43: 0 | I43: 0 | K43: 46.6 | L43: 0.131
D44: =IF(B44="",0,VLOOKUP(B44,Paramètres!A9:E306,2,FALSE)) -> 0 | H44: 0 | I44: 0 | K44: 57.2 | L44: 0.132
A45: Sucre | D45: =IF(B45="",0,VLOOKUP(B45,Paramètres!A10:E307,2,FALSE)) -> 0 | H45: 0 | I45: 0 | K45: 68 | L45: 0.133
D46: =IF(B46="",0,VLOOKUP(B46,Paramètres!A11:E308,2,FALSE)) -> 0 | H46: 0 | I46: 0 | K46: 78.9 | L46: 0.134
D47: =IF(B47="",0,VLOOKUP(B47,Paramètres!A12:E309,2,FALSE)) -> 0 | H47: 0 | I47: 0 | K47: 89.8 | L47: 0.135
A48: Total | B48: =COUNTA(B38:B47) -> 2 | C48: =SUM(C38:C47) -> 4000 | D48: =(D38*C38+D39*C39+D40*C40+D41*C41+D42*C42+D43*C43+D44*C44+D45*C45+D46*C46+D47*C47)/C48 -> 0.803 | E48: =SUM(E38:E47) -> 3212 | H48: 0 | I48: 0

Sheet Stock
A1: STOCK
A3: GRAINS | H3: HOUBLONS | P3: LEVURES | U3: AUTRE
A4: Stock Grains | D4: Recette en cours | H4: Stock Houblons | L4: Recette en cours | P4: Stock Levures | R4: Recette en cours | U4: Stock Autre | W4: Recette en cours
A5: Type | B5: EBC | C5: Quantité | D5: Type | E5: EBC | F5: Quantité | H5: Type | I5: Acide Alpha | J5: Année | K5: Quantité | L5: Type | M5: Acide Alpha | N5: Quantité | P5: Type | Q5: Quantité mds/paquets | R5: Type | S5: Quantité | U5: Type | V5: Quantité mds/paquets | W5: Type | X5: Quantité
A6: =IF([2]Stock!A6="","",[2]Stock!A6) -> Cara Gold - Vieux Silo | B6: =IF([2]Stock!B6="","",[2]Stock!B6) -> 120 | C6: =IF([2]Stock!C6="","",[2]Stock!C6) -> 1800 | D6: =IF(A6="","",IFERROR(VLOOKUP(A6,Brassage!$B$25:$H$33,1,FALSE),"")) -> Cara Gold - Vieux Silo | E6: =IF(A6="","",IFERROR(VLOOKUP(A6,Brassage!$B$25:$H$33,2,FALSE),"")) -> 120 | F6: =IF(Stock!D6="0","0",SUMIF(Brassage!$B$25:$B$33,Stock!D6,Brassage!$H$25:$H$33)) -> 145.8791645 | H6: =IF([2]Stock!E6="","",[2]Stock!E6) -> Hallertau cascade | I6: =IF([2]Stock!F6="","",[2]Stock!F6) -> 0.06 | J6: =IF([2]Stock!G6="","",[2]Stock!G6) -> 2021 | K6: =IF([2]Stock!H6="","",[2]Stock!H6) -> 100 | L6: =IF(H6="","",IFERROR(VLOOKUP(H6,Brassage!$B$45:$H$57,1,FALSE),"")) ->  | M6: =IF(L6="","",IFERROR(VLOOKUP(L6,Brassage!$B$45:$H$57,2,FALSE),"")) ->  | N6: =IF(L6="0","0",SUMIF(Brassage!$B$45:$B$57,L6,Brassage!$F$45:$F$57)) -> 0 | P6: =IF([2]Stock!J6="","",[2]Stock!J6) -> WLP4046 - Simonaitis Lithuanian Farmhouse | Q6: =IF([2]Stock!K6="","",[2]Stock!K6) -> 1000 | R6: =IF(P6="","",IFERROR(VLOOKUP(P6,Brassage!$B$61:$H$62,1,FALSE),"")) ->  | S6: =IF(R6="0","0",IFERROR(VLOOKUP(P6,Brassage!$B$61:$H$62,7,FALSE),"0")) -> 0 | U6: =IF([2]Stock!M6="","",[2]Stock!M6) ->  | V6: =IF([2]Stock!N6="","",[2]Stock!N6) -> 0 | W6: =IF(U6="","",IFERROR(VLOOKUP(U6,Brassage!$B$39:$H$42,1,FALSE),"")) ->  | X6: =IF(U6="0","0",IFERROR(VLOOKUP(U6,Brassage!$B$39:$H$42,5,FALSE),"0")) -> 0
A7: =IF([2]Stock!A7="","",[2]Stock!A7) -> Château Biscuit Malt | B7: =IF([2]Stock!B7="","",[2]Stock!B7) -> 50 | C7: =IF([2]Stock!C7="","",[2]Stock!C7) -> 850 | D7: =IF(A7="","",IFERROR(VLOOKUP(A7,Brassage!$B$25:$H$33,1,FALSE),"")) ->  | E7: =IF(A7="","",IFERROR(VLOOKUP(A7,Brassage!$B$25:$H$33,2,FALSE),"")) ->  | F7: =IF(Stock!D7="0","0",SUMIF(Brassage!$B$25:$B$33,Stock!D7,Brassage!$H$25:$H$33)) -> 0 | H7: =IF([2]Stock!E7="","",[2]Stock!E7) -> Hallertau Mittelfrüh | I7: =IF([2]Stock!F7="","",[2]Stock!F7) -> 0.046 | J7: =IF([2]Stock!G7="","",[2]Stock!G7) -> 2019 | K7: =IF([2]Stock!H7="","",[2]Stock!H7) -> 70 | L7: =IF(H7="","",IFERROR(VLOOKUP(H7,Brassage!$B$45:$H$57,1,FALSE),"")) ->  | M7: =IF(L7="","",IFERROR(VLOOKUP(L7,Brassage!$B$45:$H$57,2,FALSE),"")) ->  | N7: =IF(L7="0","0",SUMIF(Brassage!$B$45:$B$57,L7,Brassage!$F$45:$F$57)) -> 0 | P7: =IF([2]Stock!J7="","",[2]Stock!J7) -> Whitelabs - WLP013 London Ale Yeast | Q7: =IF([2]Stock!K7="","",[2]Stock!K7) -> 1000 | R7: =IF(P7="","",IFERROR(VLOOKUP(P7,Brassage!$B$61:$H$62,1,FALSE),"")) ->  | S7: =IF(R7="0","0",IFERROR(VLOOKUP(P7,Brassage!$B$61:$H$62,7,FALSE),"0")) -> 0 | U7: =IF([2]Stock!M7="","",[2]Stock!M7) ->  | V7: =IF([2]Stock!N7="","",[2]Stock!N7) -> 0 | W7: =IF(U7="","",IFERROR(VLOOKUP(U7,Brassage!$B$39:$H$42,1,FALSE),"")) ->  | X7: =IF(U7="0","0",IFERROR(VLOOKUP(U7,Brassage!$B$39:$H$42,5,FALSE),"0")) -> 0
A8: =IF([2]Stock!A8="","",[2]Stock!A8) -> Château Chocolat | B8: =IF([2]Stock!B8="","",[2]Stock!B8) -> 900 | C8: =IF([2]Stock!C8="","",[2]Stock!C8) -> 430 | D8: =IF(A8="","",IFERROR(VLOOKUP(A8,Brassage!$B$25:$H$33,1,FALSE),"")) ->  | E8: =IF(A8="","",IFERROR(VLOOKUP(A8,Brassage!$B$25:$H$33,2,FALSE),"")) ->  | F8: =IF(Stock!D8="0","0",SUMIF(Brassage!$B$25:$B$33,Stock!D8,Brassage!$H$25:$H$33)) -> 0 | H8: =IF([2]Stock!E8="","",[2]Stock!E8) -> Hersbrucker | I8: =IF([2]Stock!F8="","",[2]Stock!F8) -> 0.028 | J8: =IF([2]Stock!G8="","",[2]Stock!G8) -> 2018 | K8: =IF([2]Stock!H8="","",[2]Stock!H8) -> 50 | L8: =IF(H8="","",IFERROR(VLOOKUP(H8,Brassage!$B$45:$H$57,1,FALSE),"")) ->  | M8: =IF(L8="","",IFERROR(VLOOKUP(L8,Brassage!$B$45:$H$57,2,FALSE),"")) ->  | N8: =IF(L8="0","0",SUMIF(Brassage!$B$45:$B$57,L8,Brassage!$F$45:$F$57)) -> 0 | P8: =IF([2]Stock!J8="","",[2]Stock!J8) -> Whitelabs - WLP380 - Hefeweizen Ale IV | Q8: =IF([2]Stock!K8="","",[2]Stock!K8) -> 1000 | R8: =IF(P8="","",IFERROR(VLOOKUP(P8,Brassage!$B$61:$H$62,1,FALSE),"")) ->  | S8: =IF(R8="0","0",IFERROR(VLOOKUP(P8,Brassage!$B$61:$H$62,7,FALSE),"0")) -> 0 | U8: =IF([2]Stock!M8="","",[2]Stock!M8) ->  | V8: =IF([2]Stock!N8="","",[2]Stock!N8) -> 0 | W8: =IF(U8="","",IFERROR(VLOOKUP(U8,Brassage!$B$39:$H$42,1,FALSE),"")) ->  | X8: =IF(U8="0","0",IFERROR(VLOOKUP(U8,Brassage!$B$39:$H$42,5,FALSE),"0")) -> 0
A9: =IF([2]Stock!A9="","",[2]Stock!A9) -> Château Roasted Barley | B9: =IF([2]Stock!B9="","",[2]Stock!B9) -> 1150 | C9: =IF([2]Stock!C9="","",[2]Stock!C9) -> 790 | D9: =IF(A9="","",IFERROR(VLOOKUP(A9,Brassage!$B$25:$H$33,1,FALSE),"")) ->  | E9: =IF(A9="","",IFERROR(VLOOKUP(A9,Brassage!$B$25:$H$33,2,FALSE),"")) ->  | F9: =IF(Stock!D9="0","0",SUMIF(Brassage!$B$25:$B$33,Stock!D9,Brassage!$H$25:$H$33)) -> 0 | H9: =IF([2]Stock!E9="","",[2]Stock!E9) -> Magnum | I9: =IF([2]Stock!F9="","",[2]Stock!F9) -> 0.139 | J9: =IF([2]Stock!G9="","",[2]Stock!G9) -> 2019 | K9: =IF([2]Stock!H9="","",[2]Stock!H9) -> 50 | L9: =IF(H9="","",IFERROR(VLOOKUP(H9,Brassage!$B$45:$H$57,1,FALSE),"")) -> Magnum | M9: =IF(L9="","",IFERROR(VLOOKUP(L9,Brassage!$B$45:$H$57,2,FALSE),"")) -> 0.139 | N9: =IF(L9="0","0",SUMIF(Brassage!$B$45:$B$57,L9,Brassage!$F$45:$F$57)) -> 8 | P9: =IF([2]Stock!J9="","",[2]Stock!J9) -> Wyeast 2352 - Munich Lager II | Q9: =IF([2]Stock!K9="","",[2]Stock!K9) -> 0 | R9: =IF(P9="","",IFERROR(VLOOKUP(P9,Brassage!$B$61:$H$62,1,FALSE),"")) ->  | S9: =IF(R9="0","0",IFERROR(VLOOKUP(P9,Brassage!$B$61:$H$62,7,FALSE),"0")) -> 0 | U9: =IF([2]Stock!M9="","",[2]Stock!M9) ->  | V9: =IF([2]Stock!N9="","",[2]Stock!N9) -> 0 | W9: =IF(U9="","",IFERROR(VLOOKUP(U9,Brassage!$B$39:$H$42,1,FALSE),"")) ->  | X9: =IF(U9="0","0",IFERROR(VLOOKUP(U9,Brassage!$B$39:$H$42,5,FALSE),"0")) -> 0
A10: =IF([2]Stock!A10="","",[2]Stock!A10) -> Froment - Vieux Silo | B10: =IF([2]Stock!B10="","",[2]Stock!B10) -> 4.5 | C10: =IF([2]Stock!C10="","",[2]Stock!C10) -> 13700 | D10: =IF(A10="","",IFERROR(VLOOKUP(A10,Brassage!$B$25:$H$33,1,FALSE),"")) -> Froment - Vieux Silo | E10: =IF(A10="","",IFERROR(VLOOKUP(A10,Brassage!$B$25:$H$33,2,FALSE),"")) -> 4.5 | F10: =IF(Stock!D10="0","0",SUMIF(Brassage!$B$25:$B$33,Stock!D10,Brassage!$H$25:$H$33)) -> 3574.039529 | H10: =IF([2]Stock!E10="","",[2]Stock!E10) -> Northern Brewer | I10: =IF([2]Stock!F10="","",[2]Stock!F10) -> 0.083 | J10: =IF([2]Stock!G10="","",[2]Stock!G10) -> 2019 | K10: =IF([2]Stock!H10="","",[2]Stock!H10) -> 20 | L10: =IF(H10="","",IFERROR(VLOOKUP(H10,Brassage!$B$45:$H$57,1,FALSE),"")) ->  | M10: =IF(L10="","",IFERROR(VLOOKUP(L10,Brassage!$B$45:$H$57,2,FALSE),"")) ->  | N10: =IF(L10="0","0",SUMIF(Brassage!$B$45:$B$57,L10,Brassage!$F$45:$F$57)) -> 0 | P10: =IF([2]Stock!J10="","",[2]Stock!J10) ->  | Q10: =IF([2]Stock!K10="","",[2]Stock!K10) -> 0 | R10: =IF(P10="","",IFERROR(VLOOKUP(P10,Brassage!$B$61:$H$62,1,FALSE),"")) ->  | S10: =IF(R10="0","0",IFERROR(VLOOKUP(P10,Brassage!$B$61:$H$62,7,FALSE),"0")) -> 0 | U10: =IF([2]Stock!M10="","",[2]Stock!M10) ->  | V10: =IF([2]Stock!N10="","",[2]Stock!N10) -> 0 | W10: =IF(U10="","",IFERROR(VLOOKUP(U10,Brassage!$B$39:$H$42,1,FALSE),"")) ->  | X10: =IF(U10="0","0",IFERROR(VLOOKUP(U10,Brassage!$B$39:$H$42,5,FALSE),"0")) -> 0
A11: =IF([2]Stock!A11="","",[2]Stock!A11) -> Munich light | B11: =IF([2]Stock!B11="","",[2]Stock!B11) -> 15 | C11: =IF([2]Stock!C11="","",[2]Stock!C11) -> 4200 | D11: =IF(A11="","",IFERROR(VLOOKUP(A11,Brassage!$B$25:$H$33,1,FALSE),"")) ->  | E11: =IF(A11="","",IFERROR(VLOOKUP(A11,Brassage!$B$25:$H$33,2,FALSE),"")) ->  | F11: =IF(Stock!D11="0","0",SUMIF(Brassage!$B$25:$B$33,Stock!D11,Brassage!$H$25:$H$33)) -> 0 | H11: =IF([2]Stock!E11="","",[2]Stock!E11) -> Styrian Golding Celeia | I11: =IF([2]Stock!F11="","",[2]Stock!F11) -> 0.05 | J11: =IF([2]Stock!G11="","",[2]Stock!G11) -> 2021 | K11: =IF([2]Stock!H11="","",[2]Stock!H11) -> 100 | L11: =IF(H11="","",IFERROR(VLOOKUP(H11,Brassage!$B$45:$H$57,1,FALSE),"")) ->  | M11: =IF(L11="","",IFERROR(VLOOKUP(L11,Brassage!$B$45:$H$57,2,FALSE),"")) ->  | N11: =IF(L11="0","0",SUMIF(Brassage!$B$45:$B$57,L11,Brassage!$F$45:$F$57)) -> 0 | P11: =IF([2]Stock!J11="","",[2]Stock!J11) ->  | Q11: =IF([2]Stock!K11="","",[2]Stock!K11) -> 0 | R11: =IF(P11="","",IFERROR(VLOOKUP(P11,Brassage!$B$61:$H$62,1,FALSE),"")) ->  | S11: =IF(R11="0","0",IFERROR(VLOOKUP(P11,Brassage!$B$61:$H$62,7,FALSE),"0")) -> 0 | U11: =IF([2]Stock!M11="","",[2]Stock!M11) ->  | V11: =IF([2]Stock!N11="","",[2]Stock!N11) -> 0 | W11: =IF(U11="","",IFERROR(VLOOKUP(U11,Brassage!$B$39:$H$42,1,FALSE),"")) ->  | X11: =IF(U11="0","0",IFERROR(VLOOKUP(U11,Brassage!$B$39:$H$42,5,FALSE),"0")) -> 0
A12: =IF([2]Stock!A12="","",[2]Stock!A12) -> Pale ale Swaen | B12: =IF([2]Stock!B12="","",[2]Stock!B12) -> 7.1 | C12: =IF([2]Stock!C12="","",[2]Stock!C12) -> 16000 | D12: =IF(A12="","",IFERROR(VLOOKUP(A12,Brassage!$B$25:$H$33,1,FALSE),"")) -> Pale ale Swaen | E12: =IF(A12="","",IFERROR(VLOOKUP(A12,Brassage!$B$25:$H$33,2,FALSE),"")) -> 7.1 | F12: =IF(Stock!D12="0","0",SUMIF(Brassage!$B$25:$B$33,Stock!D12,Brassage!$H$25:$H$33)) -> 3574.039529 | H12: =IF([2]Stock!E12="","",[2]Stock!E12) -> Tettnanger | I12: =IF([2]Stock!F12="","",[2]Stock!F12) -> 0.041 | J12: =IF([2]Stock!G12="","",[2]Stock!G12) -> 2019 | K12: =IF([2]Stock!H12="","",[2]Stock!H12) -> 50 | L12: =IF(H12="","",IFERROR(VLOOKUP(H12,Brassage!$B$45:$H$57,1,FALSE),"")) -> Tettnanger | M12: =IF(L12="","",IFERROR(VLOOKUP(L12,Brassage!$B$45:$H$57,2,FALSE),"")) -> 0.041 | N12: =IF(L12="0","0",SUMIF(Brassage!$B$45:$B$57,L12,Brassage!$F$45:$F$57)) -> 30 | P12: =IF([2]Stock!J12="","",[2]Stock!J12) ->  | Q12: =IF([2]Stock!K12="","",[2]Stock!K12) -> 0 | R12: =IF(P12="","",IFERROR(VLOOKUP(P12,Brassage!$B$61:$H$62,1,FALSE),"")) ->  | S12: =IF(R12="0","0",IFERROR(VLOOKUP(P12,Brassage!$B$61:$H$62,7,FALSE),"0")) -> 0 | U12: =IF([2]Stock!M12="","",[2]Stock!M12) ->  | V12: =IF([2]Stock!N12="","",[2]Stock!N12) -> 0 | W12: =IF(U12="","",IFERROR(VLOOKUP(U12,Brassage!$B$39:$H$42,1,FALSE),"")) ->  | X12: =IF(U12="0","0",IFERROR(VLOOKUP(U12,Brassage!$B$39:$H$42,5,FALSE),"0")) -> 0
A13: =IF([2]Stock!A13="","",[2]Stock!A13) -> Special B | B13: =IF([2]Stock!B13="","",[2]Stock!B13) -> 300 | C13: =IF([2]Stock!C13="","",[2]Stock!C13) -> 360 | D13: =IF(A13="","",IFERROR(VLOOKUP(A13,Brassage!$B$25:$H$33,1,FALSE),"")) ->  | E13: =IF(A13="","",IFERROR(VLOOKUP(A13,Brassage!$B$25:$H$33,2,FALSE),"")) ->  | F13: =IF(Stock!D13="0","0",SUMIF(Brassage!$B$25:$B$33,Stock!D13,Brassage!$H$25:$H$33)) -> 0 | H13: =IF([2]Stock!E13="","",[2]Stock!E13) -> Magnum | I13: =IF([2]Stock!F13="","",[2]Stock!F13) -> 0.139 | J13: =IF([2]Stock!G13="","",[2]Stock!G13) -> 2021 | K13: =IF([2]Stock!H13="","",[2]Stock!H13) -> 100 | L13: =IF(H13="","",IFERROR(VLOOKUP(H13,Brassage!$B$45:$H$57,1,FALSE),"")) -> Magnum | M13: =IF(L13="","",IFERROR(VLOOKUP(L13,Brassage!$B$45:$H$57,2,FALSE),"")) -> 0.139 | N13: =IF(L13="0","0",SUMIF(Brassage!$B$45:$B$57,L13,Brassage!$F$45:$F$57)) -> 8 | P13: =IF([2]Stock!J13="","",[2]Stock!J13) ->  | Q13: =IF([2]Stock!K13="","",[2]Stock!K13) -> 0 | R13: =IF(P13="","",IFERROR(VLOOKUP(P13,Brassage!$B$61:$H$62,1,FALSE),"")) ->  | S13: =IF(R13="0","0",IFERROR(VLOOKUP(P13,Brassage!$B$61:$H$62,7,FALSE),"0")) -> 0 | U13: =IF([2]Stock!M13="","",[2]Stock!M13) ->  | V13: =IF([2]Stock!N13="","",[2]Stock!N13) -> 0 | W13: =IF(U13="","",IFERROR(VLOOKUP(U13,Brassage!$B$39:$H$42,1,FALSE),"")) ->  | X13: =IF(U13="0","0",IFERROR(VLOOKUP(U13,Brassage!$B$39:$H$42,5,FALSE),"0")) -> 0
A14: =IF([2]Stock!A14="","",[2]Stock!A14) -> Viking Vienna | B14: =IF([2]Stock!B14="","",[2]Stock!B14) -> 8 | C14: =IF([2]Stock!C14="","",[2]Stock!C14) -> 5000 | D14: =IF(A14="","",IFERROR(VLOOKUP(A14,Brassage!$B$25:$H$33,1,FALSE),"")) ->  | E14: =IF(A14="","",IFERROR(VLOOKUP(A14,Brassage!$B$25:$H$33,2,FALSE),"")) ->  | F14: =IF(Stock!D14="0","0",SUMIF(Brassage!$B$25:$B$33,Stock!D14,Brassage!$H$25:$H$33)) -> 0 | H14: =IF([2]Stock!E14="","",[2]Stock!E14) ->  | I14: =IF([2]Stock!F14="","",[2]Stock!F14) ->  | J14: =IF([2]Stock!G14="","",[2]Stock!G14) ->  | K14: =IF([2]Stock!H14="","",[2]Stock!H14) -> 0 | L14: =IF(H14="","",IFERROR(VLOOKUP(H14,Brassage!$B$45:$H$57,1,FALSE),"")) ->  | M14: =IF(L14="","",IFERROR(VLOOKUP(L14,Brassage!$B$45:$H$57,2,FALSE),"")) ->  | N14: =IF(L14="0","0",SUMIF(Brassage!$B$45:$B$57,L14,Brassage!$F$45:$F$57)) -> 0 | P14: =IF([2]Stock!J14="","",[2]Stock!J14) ->  | Q14: =IF([2]Stock!K14="","",[2]Stock!K14) -> 0 | R14: =IF(P14="","",IFERROR(VLOOKUP(P14,Brassage!$B$61:$H$62,1,FALSE),"")) ->  | S14: =IF(R14="0","0",IFERROR(VLOOKUP(P14,Brassage!$B$61:$H$62,7,FALSE),"0")) -> 0 | U14: =IF([2]Stock!M14="","",[2]Stock!M14) ->  | V14: =IF([2]Stock!N14="","",[2]Stock!N14) -> 0 | W14: =IF(U14="","",IFERROR(VLOOKUP(U14,Brassage!$B$39:$H$42,1,FALSE),"")) ->  | X14: =IF(U14="0","0",IFERROR(VLOOKUP(U14,Brassage!$B$39:$H$42,5,FALSE),"0")) -> 0
A15: =IF([2]Stock!A15="","",[2]Stock!A15) ->  | B15: =IF([2]Stock!B15="","",[2]Stock!B15) ->  | C15: =IF([2]Stock!C15="","",[2]Stock!C15) ->  | D15: =IF(A15="","",IFERROR(VLOOKUP(A15,Brassage!$B$25:$H$33,1,FALSE),"")) ->  | E15: =IF(A15="","",IFERROR(VLOOKUP(A15,Brassage!$B$25:$H$33,2,FALSE),"")) ->  | F15: =IF(Stock!D15="0","0",SUMIF(Brassage!$B$25:$B$33,Stock!D15,Brassage!$H$25:$H$33)) -> 0 | H15: =IF([2]Stock!E15="","",[2]Stock!E15) ->  | I15: =IF([2]Stock!F15="","",[2]Stock!F15) ->  | J15: =IF([2]Stock!G15="","",[2]Stock!G15) ->  | K15: =IF([2]Stock!H15="","",[2]Stock!H15) -> 0 | L15: =IF(H15="","",IFERROR(VLOOKUP(H15,Brassage!$B$45:$H$57,1,FALSE),"")) ->  | M15: =IF(L15="","",IFERROR(VLOOKUP(L15,Brassage!$B$45:$H$57,2,FALSE),"")) ->  | N15: =IF(L15="0","0",SUMIF(Brassage!$B$45:$B$57,L15,Brassage!$F$45:$F$57)) -> 0 | P15: =IF([2]Stock!J15="","",[2]Stock!J15) ->  | Q15: =IF([2]Stock!K15="","",[2]Stock!K15) -> 0 | R15: =IF(P15="","",IFERROR(VLOOKUP(P15,Brassage!$B$61:$H$62,1,FALSE),"")) ->  | S15: =IF(R15="0","0",IFERROR(VLOOKUP(P15,Brassage!$B$61:$H$62,7,FALSE),"0")) -> 0 | U15: =IF([2]Stock!M15="","",[2]Stock!M15) ->  | V15: =IF([2]Stock!N15="","",[2]Stock!N15) -> 0 | W15: =IF(U15="","",IFERROR(VLOOKUP(U15,Brassage!$B$39:$H$42,1,FALSE),"")) ->  | X15: =IF(U15="0","0",IFERROR(VLOOKUP(U15,Brassage!$B$39:$H$42,5,FALSE),"0")) -> 0
A16: =IF([2]Stock!A16="","",[2]Stock!A16) ->  | B16: =IF([2]Stock!B16="","",[2]Stock!B16) ->  | C16: =IF([2]Stock!C16="","",[2]Stock!C16) -> 0 | D16: =IF(A16="","",IFERROR(VLOOKUP(A16,Brassage!$B$25:$H$33,1,FALSE),"")) ->  | E16: =IF(A16="","",IFERROR(VLOOKUP(A16,Brassage!$B$25:$H$33,2,FALSE),"")) ->  | F16: =IF(Stock!D16="0","0",SUMIF(Brassage!$B$25:$B$33,Stock!D16,Brassage!$H$25:$H$33)) -> 0 | H16: =IF([2]Stock!E16="","",[2]Stock!E16) ->  | I16: =IF([2]Stock!F16="","",[2]Stock!F16) ->  | J16: =IF([2]Stock!G16="","",[2]Stock!G16) ->  | K16: =IF([2]Stock!H16="","",[2]Stock!H16) -> 0 | L16: =IF(H16="","",IFERROR(VLOOKUP(H16,Brassage!$B$45:$H$57,1,FALSE),"")) ->  | M16: =IF(L16="","",IFERROR(VLOOKUP(L16,Brassage!$B$45:$H$57,2,FALSE),"")) ->  | N16: =IF(L16="0","0",SUMIF(Brassage!$B$45:$B$57,L16,Brassage!$F$45:$F$57)) -> 0 | P16: =IF([2]Stock!J16="","",[2]Stock!J16) ->  | Q16: =IF([2]Stock!K16="","",[2]Stock!K16) -> 0 | R16: =IF(P16="","",IFERROR(VLOOKUP(P16,Brassage!$B$61:$H$62,1,FALSE),"")) ->  | S16: =IF(R16="0","0",IFERROR(VLOOKUP(P16,Brassage!$B$61:$H$62,7,FALSE),"0")) -> 0 | U16: =IF([2]Stock!M16="","",[2]Stock!M16) ->  | V16: =IF([2]Stock!N16="","",[2]Stock!N16) -> 0 | W16: =IF(U16="","",IFERROR(VLOOKUP(U16,Brassage!$B$39:$H$42,1,FALSE),"")) ->  | X16: =IF(U16="0","0",IFERROR(VLOOKUP(U16,Brassage!$B$39:$H$42,5,FALSE),"0")) -> 0
A17: =IF([2]Stock!A17="","",[2]Stock!A17) ->  | B17: =IF([2]Stock!B17="","",[2]Stock!B17) ->  | C17: =IF([2]Stock!C17="","",[2]Stock!C17) -> 0 | D17: =IF(A17="","",IFERROR(VLOOKUP(A17,Brassage!$B$25:$H$33,1,FALSE),"")) ->  | E17: =IF(A17="","",IFERROR(VLOOKUP(A17,Brassage!$B$25:$H$33,2,FALSE),"")) ->  | F17: =IF(Stock!D17="0","0",SUMIF(Brassage!$B$25:$B$33,Stock!D17,Brassage!$H$25:$H$33)) -> 0 | H17: =IF([2]Stock!E17="","",[2]Stock!E17) ->  | I17: =IF([2]Stock!F17="","",[2]Stock!F17) ->  | J17: =IF([2]Stock!G17="","",[2]Stock!G17) ->  | K17: =IF([2]Stock!H17="","",[2]Stock!H17) -> 0 | L17: =IF(H17="","",IFERROR(VLOOKUP(H17,Brassage!$B$45:$H$57,1,FALSE),"")) ->  | M17: =IF(L17="","",IFERROR(VLOOKUP(L17,Brassage!$B$45:$H$57,2,FALSE),"")) ->  | N17: =IF(L17="0","0",SUMIF(Brassage!$B$45:$B$57,L17,Brassage!$F$45:$F$57)) -> 0 | P17: =IF([2]Stock!J17="","",[2]Stock!J17) ->  | Q17: =IF([2]Stock!K17="","",[2]Stock!K17) -> 0 | R17: =IF(P17="","",IFERROR(VLOOKUP(P17,Brassage!$B$61:$H$62,1,FALSE),"")) ->  | S17: =IF(R17="0","0",IFERROR(VLOOKUP(P17,Brassage!$B$61:$H$62,7,FALSE),"0")) -> 0 | U17: =IF([2]Stock!M17="","",[2]Stock!M17) ->  | V17: =IF([2]Stock!N17="","",[2]Stock!N17) -> 0 | W17: =IF(U17="","",IFERROR(VLOOKUP(U17,Brassage!$B$39:$H$42,1,FALSE),"")) ->  | X17: =IF(U17="0","0",IFERROR(VLOOKUP(U17,Brassage!$B$39:$H$42,5,FALSE),"0")) -> 0
A18: =IF([2]Stock!A18="","",[2]Stock!A18) ->  | B18: =IF([2]Stock!B18="","",[2]Stock!B18) ->  | C18: =IF([2]Stock!C18="","",[2]Stock!C18) -> 0 | D18: =IF(A18="","",IFERROR(VLOOKUP(A18,Brassage!$B$25:$H$33,1,FALSE),"")) ->  | E18: =IF(A18="","",IFERROR(VLOOKUP(A18,Brassage!$B$25:$H$33,2,FALSE),"")) ->  | F18: =IF(Stock!D18="0","0",SUMIF(Brassage!$B$25:$B$33,Stock!D18,Brassage!$H$25:$H$33)) -> 0 | H18: =IF([2]Stock!E18="","",[2]Stock!E18) ->  | I18: =IF([2]Stock!F18="","",[2]Stock!F18) ->  | J18: =IF([2]Stock!G18="","",[2]Stock!G18) ->  | K18: =IF([2]Stock!H18="","",[2]Stock!H18) -> 0 | L18: =IF(H18="","",IFERROR(VLOOKUP(H18,Brassage!$B$45:$H$57,1,FALSE),"")) ->  | M18: =IF(L18="","",IFERROR(VLOOKUP(L18,Brassage!$B$45:$H$57,2,FALSE),"")) ->  | N18: =IF(L18="0","0",SUMIF(Brassage!$B$45:$B$57,L18,Brassage!$F$45:$F$57)) -> 0 | Q18: =IF([2]Stock!K18="","",[2]Stock!K18) -> 0 | R18: =IF(P18="","",IFERROR(VLOOKUP(P18,Brassage!$B$61:$H$62,1,FALSE),"")) ->  | S18: =IF(R18="0","0",IFERROR(VLOOKUP(P18,Brassage!$B$61:$H$62,7,FALSE),"0")) -> 0 | U18: =IF([2]Stock!M18="","",[2]Stock!M18) ->  | V18: =IF([2]Stock!N18="","",[2]Stock!N18) -> 0 | W18: =IF(U18="","",IFERROR(VLOOKUP(U18,Brassage!$B$39:$H$42,1,FALSE),"")) ->  | X18: =IF(U18="0","0",IFERROR(VLOOKUP(U18,Brassage!$B$39:$H$42,5,FALSE),"0")) -> 0
A19: =IF([2]Stock!A19="","",[2]Stock!A19) ->  | B19: =IF([2]Stock!B19="","",[2]Stock!B19) ->  | C19: =IF([2]Stock!C19="","",[2]Stock!C19) -> 0 | D19: =IF(A19="","",IFERROR(VLOOKUP(A19,Brassage!$B$25:$H$33,1,FALSE),"")) ->  | E19: =IF(A19="","",IFERROR(VLOOKUP(A19,Brassage!$B$25:$H$33,2,FALSE),"")) ->  | F19: =IF(Stock!D19="0","0",SUMIF(Brassage!$B$25:$B$33,Stock!D19,Brassage!$H$25:$H$33)) -> 0 | H19: =IF([2]Stock!E19="","",[2]Stock!E19) ->  | I19: =IF([2]Stock!F19="","",[2]Stock!F19) ->  | J19: =IF([2]Stock!G19="","",[2]Stock!G19) ->  | K19: =IF([2]Stock!H19="","",[2]Stock!H19) -> 0 | L19: =IF(H19="","",IFERROR(VLOOKUP(H19,Brassage!$B$45:$H$57,1,FALSE),"")) ->  | M19: =IF(L19="","",IFERROR(VLOOKUP(L19,Brassage!$B$45:$H$57,2,FALSE),"")) ->  | N19: =IF(L19="0","0",SUMIF(Brassage!$B$45:$B$57,L19,Brassage!$F$45:$F$57)) -> 0 | P19: =IF([2]Stock!J19="","",[2]Stock!J19) ->  | Q19: =IF([2]Stock!K19="","",[2]Stock!K19) -> 0 | R19: =IF(P19="","",IFERROR(VLOOKUP(P19,Brassage!$B$61:$H$62,1,FALSE),"")) ->  | S19: =IF(R19="0","0",IFERROR(VLOOKUP(P19,Brassage!$B$61:$H$62,7,FALSE),"0")) -> 0 | U19: =IF([2]Stock!M19="","",[2]Stock!M19) ->  | V19: =IF([2]Stock!N19="","",[2]Stock!N19) -> 0 | W19: =IF(U19="","",IFERROR(VLOOKUP(U19,Brassage!$B$39:$H$42,1,FALSE),"")) ->  | X19: =IF(U19="0","0",IFERROR(VLOOKUP(U19,Brassage!$B$39:$H$42,5,FALSE),"0")) -> 0
A20: =IF([2]Stock!A20="","",[2]Stock!A20) ->  | B20: =IF([2]Stock!B20="","",[2]Stock!B20) ->  | C20: =IF([2]Stock!C20="","",[2]Stock!C20) -> 0 | D20: =IF(A20="","",IFERROR(VLOOKUP(A20,Brassage!$B$25:$H$33,1,FALSE),"")) ->  | E20: =IF(A20="","",IFERROR(VLOOKUP(A20,Brassage!$B$25:$H$33,2,FALSE),"")) ->  | F20: =IF(Stock!D20="0","0",SUMIF(Brassage!$B$25:$B$33,Stock!D20,Brassage!$H$25:$H$33)) -> 0 | H20: =IF([2]Stock!E20="","",[2]Stock!E20) ->  | I20: =IF([2]Stock!F20="","",[2]Stock!F20) ->  | J20: =IF([2]Stock!G20="","",[2]Stock!G20) ->  | K20: =IF([2]Stock!H20="","",[2]Stock!H20) -> 0 | L20: =IF(H20="","",IFERROR(VLOOKUP(H20,Brassage!$B$45:$H$57,1,FALSE),"")) ->  | M20: =IF(L20="","",IFERROR(VLOOKUP(L20,Brassage!$B$45:$H$57,2,FALSE),"")) ->  | N20: =IF(L20="0","0",SUMIF(Brassage!$B$45:$B$57,L20,Brassage!$F$45:$F$57)) -> 0 | P20: =IF([2]Stock!J20="","",[2]Stock!J20) ->  | Q20: =IF([2]Stock!K20="","",[2]Stock!K20) -> 0 | R20: =IF(P20="","",IFERROR(VLOOKUP(P20,Brassage!$B$61:$H$62,1,FALSE),"")) ->  | S20: =IF(R20="0","0",IFERROR(VLOOKUP(P20,Brassage!$B$61:$H$62,7,FALSE),"0")) -> 0 | U20: =IF([2]Stock!M20="","",[2]Stock!M20) ->  | V20: =IF([2]Stock!N20="","",[2]Stock!N20) -> 0 | W20: =IF(U20="","",IFERROR(VLOOKUP(U20,Brassage!$B$39:$H$42,1,FALSE),"")) ->  | X20: =IF(U20="0","0",IFERROR(VLOOKUP(U20,Brassage!$B$39:$H$42,5,FALSE),"0")) -> 0
A21: =IF([2]Stock!A21="","",[2]Stock!A21) ->  | B21: =IF([2]Stock!B21="","",[2]Stock!B21) ->  | C21: =IF([2]Stock!C21="","",[2]Stock!C21) -> 0 | D21: =IF(A21="","",IFERROR(VLOOKUP(A21,Brassage!$B$25:$H$33,1,FALSE),"")) ->  | E21: =IF(A21="","",IFERROR(VLOOKUP(A21,Brassage!$B$25:$H$33,2,FALSE),"")) ->  | F21: =IF(Stock!D21="0","0",SUMIF(Brassage!$B$25:$B$33,Stock!D21,Brassage!$H$25:$H$33)) -> 0 | H21: =IF([2]Stock!E21="","",[2]Stock!E21) ->  | I21: =IF([2]Stock!F21="","",[2]Stock!F21) ->  | J21: =IF([2]Stock!G21="","",[2]Stock!G21) ->  | K21: =IF([2]Stock!H21="","",[2]Stock!H21) -> 0 | L21: =IF(H21="","",IFERROR(VLOOKUP(H21,Brassage!$B$45:$H$57,1,FALSE),"")) ->  | M21: =IF(L21="","",IFERROR(VLOOKUP(L21,Brassage!$B$45:$H$57,2,FALSE),"")) ->  | N21: =IF(L21="0","0",SUMIF(Brassage!$B$45:$B$57,L21,Brassage!$F$45:$F$57)) -> 0 | P21: =IF([2]Stock!J21="","",[2]Stock!J21) ->  | Q21: =IF([2]Stock!K21="","",[2]Stock!K21) -> 0 | R21: =IF(P21="","",IFERROR(VLOOKUP(P21,Brassage!$B$61:$H$62,1,FALSE),"")) ->  | S21: =IF(R21="0","0",IFERROR(VLOOKUP(P21,Brassage!$B$61:$H$62,7,FALSE),"0")) -> 0 | U21: =IF([2]Stock!M21="","",[2]Stock!M21) ->  | V21: =IF([2]Stock!N21="","",[2]Stock!N21) -> 0 | W21: =IF(U21="","",IFERROR(VLOOKUP(U21,Brassage!$B$39:$H$42,1,FALSE),"")) ->  | X21: =IF(U21="0","0",IFERROR(VLOOKUP(U21,Brassage!$B$39:$H$42,5,FALSE),"0")) -> 0
A22: =IF([2]Stock!A22="","",[2]Stock!A22) ->  | B22: =IF([2]Stock!B22="","",[2]Stock!B22) ->  | C22: =IF([2]Stock!C22="","",[2]Stock!C22) -> 0 | D22: =IF(A22="","",IFERROR(VLOOKUP(A22,Brassage!$B$25:$H$33,1,FALSE),"")) ->  | E22: =IF(A22="","",IFERROR(VLOOKUP(A22,Brassage!$B$25:$H$33,2,FALSE),"")) ->  | F22: =IF(Stock!D22="0","0",SUMIF(Brassage!$B$25:$B$33,Stock!D22,Brassage!$H$25:$H$33)) -> 0 | H22: =IF([2]Stock!E22="","",[2]Stock!E22) ->  | I22: =IF([2]Stock!F22="","",[2]Stock!F22) ->  | J22: =IF([2]Stock!G22="","",[2]Stock!G22) ->  | K22: =IF([2]Stock!H22="","",[2]Stock!H22) -> 0 | L22: =IF(H22="","",IFERROR(VLOOKUP(H22,Brassage!$B$45:$H$57,1,FALSE),"")) ->  | M22: =IF(L22="","",IFERROR(VLOOKUP(L22,Brassage!$B$45:$H$57,2,FALSE),"")) ->  | N22: =IF(L22="0","0",SUMIF(Brassage!$B$45:$B$57,L22,Brassage!$F$45:$F$57)) -> 0 | P22: =IF([2]Stock!J22="","",[2]Stock!J22) ->  | Q22: =IF([2]Stock!K22="","",[2]Stock!K22) -> 0 | R22: =IF(P22="","",IFERROR(VLOOKUP(P22,Brassage!$B$61:$H$62,1,FALSE),"")) ->  | S22: =IF(R22="0","0",IFERROR(VLOOKUP(P22,Brassage!$B$61:$H$62,7,FALSE),"0")) -> 0 | U22: =IF([2]Stock!M22="","",[2]Stock!M22) ->  | V22: =IF([2]Stock!N22="","",[2]Stock!N22) -> 0 | W22: =IF(U22="","",IFERROR(VLOOKUP(U22,Brassage!$B$39:$H$42,1,FALSE),"")) ->  | X22: =IF(U22="0","0",IFERROR(VLOOKUP(U22,Brassage!$B$39:$H$42,5,FALSE),"0")) -> 0
A23: =IF([2]Stock!A23="","",[2]Stock!A23) ->  | B23: =IF([2]Stock!B23="","",[2]Stock!B23) ->  | C23: =IF([2]Stock!C23="","",[2]Stock!C23) -> 0 | D23: =IF(A23="","",IFERROR(VLOOKUP(A23,Brassage!$B$25:$H$33,1,FALSE),"")) ->  | E23: =IF(A23="","",IFERROR(VLOOKUP(A23,Brassage!$B$25:$H$33,2,FALSE),"")) ->  | F23: =IF(Stock!D23="0","0",SUMIF(Brassage!$B$25:$B$33,Stock!D23,Brassage!$H$25:$H$33)) -> 0 | H23: =IF([2]Stock!E23="","",[2]Stock!E23) ->  | I23: =IF([2]Stock!F23="","",[2]Stock!F23) ->  | J23: =IF([2]Stock!G23="","",[2]Stock!G23) ->  | K23: =IF([2]Stock!H23="","",[2]Stock!H23) -> 0 | L23: =IF(H23="","",IFERROR(VLOOKUP(H23,Brassage!$B$45:$H$57,1,FALSE),"")) ->  | M23: =IF(L23="","",IFERROR(VLOOKUP(L23,Brassage!$B$45:$H$57,2,FALSE),"")) ->  | N23: =IF(L23="0","0",SUMIF(Brassage!$B$45:$B$57,L23,Brassage!$F$45:$F$57)) -> 0 | P23: =IF([2]Stock!J23="","",[2]Stock!J23) ->  | Q23: =IF([2]Stock!K23="","",[2]Stock!K23) -> 0 | R23: =IF(P23="","",IFERROR(VLOOKUP(P23,Brassage!$B$61:$H$62,1,FALSE),"")) ->  | S23: =IF(R23="0","0",IFERROR(VLOOKUP(P23,Brassage!$B$61:$H$62,7,FALSE),"0")) -> 0 | U23: =IF([2]Stock!M23="","",[2]Stock!M23) ->  | V23: =IF([2]Stock!N23="","",[2]Stock!N23) -> 0 | W23: =IF(U23="","",IFERROR(VLOOKUP(U23,Brassage!$B$39:$H$42,1,FALSE),"")) ->  | X23: =IF(U23="0","0",IFERROR(VLOOKUP(U23,Brassage!$B$39:$H$42,5,FALSE),"0")) -> 0
A24: =IF([2]Stock!A24="","",[2]Stock!A24) ->  | B24: =IF([2]Stock!B24="","",[2]Stock!B24) ->  | C24: =IF([2]Stock!C24="","",[2]Stock!C24) -> 0 | D24: =IF(A24="","",IFERROR(VLOOKUP(A24,Brassage!$B$25:$H$33,1,FALSE),"")) ->  | E24: =IF(A24="","",IFERROR(VLOOKUP(A24,Brassage!$B$25:$H$33,2,FALSE),"")) ->  | F24: =IF(Stock!D24="0","0",SUMIF(Brassage!$B$25:$B$33,Stock!D24,Brassage!$H$25:$H$33)) -> 0 | H24: =IF([2]Stock!E24="","",[2]Stock!E24) ->  | I24: =IF([2]Stock!F24="","",[2]Stock!F24) ->  | J24: =IF([2]Stock!G24="","",[2]Stock!G24) ->  | K24: =IF([2]Stock!H24="","",[2]Stock!H24) -> 0 | L24: =IF(H24="","",IFERROR(VLOOKUP(H24,Brassage!$B$45:$H$57,1,FALSE),"")) ->  | M24: =IF(L24="","",IFERROR(VLOOKUP(L24,Brassage!$B$45:$H$57,2,FALSE),"")) ->  | N24: =IF(L24="0","0",SUMIF(Brassage!$B$45:$B$57,L24,Brassage!$F$45:$F$57)) -> 0 | P24: =IF([2]Stock!J24="","",[2]Stock!J24) ->  | Q24: =IF([2]Stock!K24="","",[2]Stock!K24) -> 0 | R24: =IF(P24="","",IFERROR(VLOOKUP(P24,Brassage!$B$61:$H$62,1,FALSE),"")) ->  | S24: =IF(R24="0","0",IFERROR(VLOOKUP(P24,Brassage!$B$61:$H$62,7,FALSE),"0")) -> 0 | U24: =IF([2]Stock!M24="","",[2]Stock!M24) ->  | V24: =IF([2]Stock!N24="","",[2]Stock!N24) -> 0 | W24: =IF(U24="","",IFERROR(VLOOKUP(U24,Brassage!$B$39:$H$42,1,FALSE),"")) ->  | X24: =IF(U24="0","0",IFERROR(VLOOKUP(U24,Brassage!$B$39:$H$42,5,FALSE),"0")) -> 0
A25: =IF([2]Stock!A25="","",[2]Stock!A25) ->  | B25: =IF([2]Stock!B25="","",[2]Stock!B25) ->  | C25: =IF([2]Stock!C25="","",[2]Stock!C25) -> 0 | D25: =IF(A25="","",IFERROR(VLOOKUP(A25,Brassage!$B$25:$H$33,1,FALSE),"")) ->  | E25: =IF(A25="","",IFERROR(VLOOKUP(A25,Brassage!$B$25:$H$33,2,FALSE),"")) ->  | F25: =IF(Stock!D25="0","0",SUMIF(Brassage!$B$25:$B$33,Stock!D25,Brassage!$H$25:$H$33)) -> 0 | H25: =IF([2]Stock!E25="","",[2]Stock!E25) ->  | I25: =IF([2]Stock!F25="","",[2]Stock!F25) ->  | J25: =IF([2]Stock!G25="","",[2]Stock!G25) ->  | K25: =IF([2]Stock!H25="","",[2]Stock!H25) -> 0 | L25: =IF(H25="","",IFERROR(VLOOKUP(H25,Brassage!$B$45:$H$57,1,FALSE),"")) ->  | M25: =IF(L25="","",IFERROR(VLOOKUP(L25,Brassage!$B$45:$H$57,2,FALSE),"")) ->  | N25: =IF(L25="0","0",SUMIF(Brassage!$B$45:$B$57,L25,Brassage!$F$45:$F$57)) -> 0 | P25: =IF([2]Stock!J25="","",[2]Stock!J25) ->  | Q25: =IF([2]Stock!K25="","",[2]Stock!K25) -> 0 | R25: =IF(P25="","",IFERROR(VLOOKUP(P25,Brassage!$B$61:$H$62,1,FALSE),"")) ->  | S25: =IF(R25="0","0",IFERROR(VLOOKUP(P25,Brassage!$B$61:$H$62,7,FALSE),"0")) -> 0 | U25: =IF([2]Stock!M25="","",[2]Stock!M25) ->  | V25: =IF([2]Stock!N25="","",[2]Stock!N25) -> 0 | W25: =IF(U25="","",IFERROR(VLOOKUP(U25,Brassage!$B$39:$H$42,1,FALSE),"")) ->  | X25: =IF(U25="0","0",IFERROR(VLOOKUP(U25,Brassage!$B$39:$H$42,5,FALSE),"0")) -> 0
A26: =IF([2]Stock!A26="","",[2]Stock!A26) ->  | B26: =IF([2]Stock!B26="","",[2]Stock!B26) ->  | C26: =IF([2]Stock!C26="","",[2]Stock!C26) -> 0 | D26: =IF(A26="","",IFERROR(VLOOKUP(A26,Brassage!$B$25:$H$33,1,FALSE),"")) ->  | E26: =IF(A26="","",IFERROR(VLOOKUP(A26,Brassage!$B$25:$H$33,2,FALSE),"")) ->  | F26: =IF(Stock!D26="0","0",SUMIF(Brassage!$B$25:$B$33,Stock!D26,Brassage!$H$25:$H$33)) -> 0 | H26: =IF([2]Stock!E26="","",[2]Stock!E26) ->  | I26: =IF([2]Stock!F26="","",[2]Stock!F26) ->  | J26: =IF([2]Stock!G26="","",[2]Stock!G26) ->  | K26: =IF([2]Stock!H26="","",[2]Stock!H26) -> 0 | L26: =IF(H26="","",IFERROR(VLOOKUP(H26,Brassage!$B$45:$H$57,1,FALSE),"")) ->  | M26: =IF(L26="","",IFERROR(VLOOKUP(L26,Brassage!$B$45:$H$57,2,FALSE),"")) ->  | N26: =IF(L26="0","0",SUMIF(Brassage!$B$45:$B$57,L26,Brassage!$F$45:$F$57)) -> 0 | P26: =IF([2]Stock!J26="","",[2]Stock!J26) ->  | Q26: =IF([2]Stock!K26="","",[2]Stock!K26) -> 0 | R26: =IF(P26="","",IFERROR(VLOOKUP(P26,Brassage!$B$61:$H$62,1,FALSE),"")) ->  | S26: =IF(R26="0","0",IFERROR(VLOOKUP(P26,Brassage!$B$61:$H$62,7,FALSE),"0")) -> 0 | U26: =IF([2]Stock!M26="","",[2]Stock!M26) ->  | V26: =IF([2]Stock!N26="","",[2]Stock!N26) -> 0 | W26: =IF(U26="","",IFERROR(VLOOKUP(U26,Brassage!$B$39:$H$42,1,FALSE),"")) ->  | X26: =IF(U26="0","0",IFERROR(VLOOKUP(U26,Brassage!$B$39:$H$42,5,FALSE),"0")) -> 0
A27: =IF([2]Stock!A27="","",[2]Stock!A27) ->  | B27: =IF([2]Stock!B27="","",[2]Stock!B27) ->  | C27: =IF([2]Stock!C27="","",[2]Stock!C27) -> 0 | D27: =IF(A27="","",IFERROR(VLOOKUP(A27,Brassage!$B$25:$H$33,1,FALSE),"")) ->  | E27: =IF(A27="","",IFERROR(VLOOKUP(A27,Brassage!$B$25:$H$33,2,FALSE),"")) ->  | F27: =IF(Stock!D27="0","0",SUMIF(Brassage!$B$25:$B$33,Stock!D27,Brassage!$H$25:$H$33)) -> 0 | H27: =IF([2]Stock!E27="","",[2]Stock!E27) ->  | I27: =IF([2]Stock!F27="","",[2]Stock!F27) ->  | J27: =IF([2]Stock!G27="","",[2]Stock!G27) ->  | K27: =IF([2]Stock!H27="","",[2]Stock!H27) -> 0 | L27: =IF(H27="","",IFERROR(VLOOKUP(H27,Brassage!$B$45:$H$57,1,FALSE),"")) ->  | M27: =IF(L27="","",IFERROR(VLOOKUP(L27,Brassage!$B$45:$H$57,2,FALSE),"")) ->  | N27: =IF(L27="0","0",SUMIF(Brassage!$B$45:$B$57,L27,Brassage!$F$45:$F$57)) -> 0 | P27: =IF([2]Stock!J27="","",[2]Stock!J27) ->  | Q27: =IF([2]Stock!K27="","",[2]Stock!K27) -> 0 | R27: =IF(P27="","",IFERROR(VLOOKUP(P27,Brassage!$B$61:$H$62,1,FALSE),"")) ->  | S27: =IF(R27="0","0",IFERROR(VLOOKUP(P27,Brassage!$B$61:$H$62,7,FALSE),"0")) -> 0 | U27: =IF([2]Stock!M27="","",[2]Stock!M27) ->  | V27: =IF([2]Stock!N27="","",[2]Stock!N27) -> 0 | W27: =IF(U27="","",IFERROR(VLOOKUP(U27,Brassage!$B$39:$H$42,1,FALSE),"")) ->  | X27: =IF(U27="0","0",IFERROR(VLOOKUP(U27,Brassage!$B$39:$H$42,5,FALSE),"0")) -> 0
A28: =IF([2]Stock!A28="","",[2]Stock!A28) ->  | B28: =IF([2]Stock!B28="","",[2]Stock!B28) ->  | C28: =IF([2]Stock!C28="","",[2]Stock!C28) -> 0 | D28: =IF(A28="","",IFERROR(VLOOKUP(A28,Brassage!$B$25:$H$33,1,FALSE),"")) ->  | E28: =IF(A28="","",IFERROR(VLOOKUP(A28,Brassage!$B$25:$H$33,2,FALSE),"")) ->  | F28: =IF(Stock!D28="0","0",SUMIF(Brassage!$B$25:$B$33,Stock!D28,Brassage!$H$25:$H$33)) -> 0 | H28: =IF([2]Stock!E28="","",[2]Stock!E28) ->  | I28: =IF([2]Stock!F28="","",[2]Stock!F28) ->  | J28: =IF([2]Stock!G28="","",[2]Stock!G28) ->  | K28: =IF([2]Stock!H28="","",[2]Stock!H28) -> 0 | L28: =IF(H28="","",IFERROR(VLOOKUP(H28,Brassage!$B$45:$H$57,1,FALSE),"")) ->  | M28: =IF(L28="","",IFERROR(VLOOKUP(L28,Brassage!$B$45:$H$57,2,FALSE),"")) ->  | N28: =IF(L28="0","0",SUMIF(Brassage!$B$45:$B$57,L28,Brassage!$F$45:$F$57)) -> 0 | P28: =IF([2]Stock!J28="","",[2]Stock!J28) ->  | Q28: =IF([2]Stock!K28="","",[2]Stock!K28) -> 0 | R28: =IF(P28="","",IFERROR(VLOOKUP(P28,Brassage!$B$61:$H$62,1,FALSE),"")) ->  | S28: =IF(R28="0","0",IFERROR(VLOOKUP(P28,Brassage!$B$61:$H$62,7,FALSE),"0")) -> 0 | U28: =IF([2]Stock!M28="","",[2]Stock!M28) ->  | V28: =IF([2]Stock!N28="","",[2]Stock!N28) -> 0 | W28: =IF(U28="","",IFERROR(VLOOKUP(U28,Brassage!$B$39:$H$42,1,FALSE),"")) ->  | X28: =IF(U28="0","0",IFERROR(VLOOKUP(U28,Brassage!$B$39:$H$42,5,FALSE),"0")) -> 0
A29: =IF([2]Stock!A29="","",[2]Stock!A29) ->  | B29: =IF([2]Stock!B29="","",[2]Stock!B29) ->  | C29: =IF([2]Stock!C29="","",[2]Stock!C29) -> 0 | D29: =IF(A29="","",IFERROR(VLOOKUP(A29,Brassage!$B$25:$H$33,1,FALSE),"")) ->  | E29: =IF(A29="","",IFERROR(VLOOKUP(A29,Brassage!$B$25:$H$33,2,FALSE),"")) ->  | F29: =IF(Stock!D29="0","0",SUMIF(Brassage!$B$25:$B$33,Stock!D29,Brassage!$H$25:$H$33)) -> 0 | H29: =IF([2]Stock!E29="","",[2]Stock!E29) ->  | I29: =IF([2]Stock!F29="","",[2]Stock!F29) ->  | J29: =IF([2]Stock!G29="","",[2]Stock!G29) ->  | K29: =IF([2]Stock!H29="","",[2]Stock!H29) -> 0 | L29: =IF(H29="","",IFERROR(VLOOKUP(H29,Brassage!$B$45:$H$57,1,FALSE),"")) ->  | M29: =IF(L29="","",IFERROR(VLOOKUP(L29,Brassage!$B$45:$H$57,2,FALSE),"")) ->  | N29: =IF(L29="0","0",SUMIF(Brassage!$B$45:$B$57,L29,Brassage!$F$45:$F$57)) -> 0 | P29: =IF([2]Stock!J29="","",[2]Stock!J29) ->  | Q29: =IF([2]Stock!K29="","",[2]Stock!K29) -> 0 | R29: =IF(P29="","",IFERROR(VLOOKUP(P29,Brassage!$B$61:$H$62,1,FALSE),"")) ->  | S29: =IF(R29="0","0",IFERROR(VLOOKUP(P29,Brassage!$B$61:$H$62,7,FALSE),"0")) -> 0 | U29: =IF([2]Stock!M29="","",[2]Stock!M29) ->  | V29: =IF([2]Stock!N29="","",[2]Stock!N29) -> 0 | W29: =IF(U29="","",IFERROR(VLOOKUP(U29,Brassage!$B$39:$H$42,1,FALSE),"")) ->  | X29: =IF(U29="0","0",IFERROR(VLOOKUP(U29,Brassage!$B$39:$H$42,5,FALSE),"0")) -> 0
A30: =IF([2]Stock!A30="","",[2]Stock!A30) ->  | B30: =IF([2]Stock!B30="","",[2]Stock!B30) ->  | C30: =IF([2]Stock!C30="","",[2]Stock!C30) -> 0 | D30: =IF(A30="","",IFERROR(VLOOKUP(A30,Brassage!$B$25:$H$33,1,FALSE),"")) ->  | E30: =IF(A30="","",IFERROR(VLOOKUP(A30,Brassage!$B$25:$H$33,2,FALSE),"")) ->  | F30: =IF(Stock!D30="0","0",SUMIF(Brassage!$B$25:$B$33,Stock!D30,Brassage!$H$25:$H$33)) -> 0 | H30: =IF([2]Stock!E30="","",[2]Stock!E30) ->  | I30: =IF([2]Stock!F30="","",[2]Stock!F30) ->  | J30: =IF([2]Stock!G30="","",[2]Stock!G30) ->  | K30: =IF([2]Stock!H30="","",[2]Stock!H30) -> 0 | L30: =IF(H30="","",IFERROR(VLOOKUP(H30,Brassage!$B$45:$H$57,1,FALSE),"")) ->  | M30: =IF(L30="","",IFERROR(VLOOKUP(L30,Brassage!$B$45:$H$57,2,FALSE),"")) ->  | N30: =IF(L30="0","0",SUMIF(Brassage!$B$45:$B$57,L30,Brassage!$F$45:$F$57)) -> 0 | P30: =IF([2]Stock!J30="","",[2]Stock!J30) ->  | Q30: =IF([2]Stock!K30="","",[2]Stock!K30) -> 0 | R30: =IF(P30="","",IFERROR(VLOOKUP(P30,Brassage!$B$61:$H$62,1,FALSE),"")) ->  | S30: =IF(R30="0","0",IFERROR(VLOOKUP(P30,Brassage!$B$61:$H$62,7,FALSE),"0")) -> 0 | U30: =IF([2]Stock!M30="","",[2]Stock!M30) ->  | V30: =IF([2]Stock!N30="","",[2]Stock!N30) -> 0 | W30: =IF(U30="","",IFERROR(VLOOKUP(U30,Brassage!$B$39:$H$42,1,FALSE),"")) ->  | X30: =IF(U30="0","0",IFERROR(VLOOKUP(U30,Brassage!$B$39:$H$42,5,FALSE),"0")) -> 0
A31: =IF([2]Stock!A31="","",[2]Stock!A31) ->  | B31: =IF([2]Stock!B31="","",[2]Stock!B31) ->  | C31: =IF([2]Stock!C31="","",[2]Stock!C31) -> 0 | D31: =IF(A31="","",IFERROR(VLOOKUP(A31,Brassage!$B$25:$H$33,1,FALSE),"")) ->  | E31: =IF(A31="","",IFERROR(VLOOKUP(A31,Brassage!$B$25:$H$33,2,FALSE),"")) ->  | F31: =IF(Stock!D31="0","0",SUMIF(Brassage!$B$25:$B$33,Stock!D31,Brassage!$H$25:$H$33)) -> 0 | H31: =IF([2]Stock!E31="","",[2]Stock!E31) ->  | I31: =IF([2]Stock!F31="","",[2]Stock!F31) ->  | J31: =IF([2]Stock!G31="","",[2]Stock!G31) ->  | K31: =IF([2]Stock!H31="","",[2]Stock!H31) -> 0 | L31: =IF(H31="","",IFERROR(VLOOKUP(H31,Brassage!$B$45:$H$57,1,FALSE),"")) ->  | M31: =IF(L31="","",IFERROR(VLOOKUP(L31,Brassage!$B$45:$H$57,2,FALSE),"")) ->  | N31: =IF(L31="0","0",SUMIF(Brassage!$B$45:$B$57,L31,Brassage!$F$45:$F$57)) -> 0 | P31: =IF([2]Stock!J31="","",[2]Stock!J31) ->  | Q31: =IF([2]Stock!K31="","",[2]Stock!K31) -> 0 | R31: =IF(P31="","",IFERROR(VLOOKUP(P31,Brassage!$B$61:$H$62,1,FALSE),"")) ->  | S31: =IF(R31="0","0",IFERROR(VLOOKUP(P31,Brassage!$B$61:$H$62,7,FALSE),"0")) -> 0 | U31: =IF([2]Stock!M31="","",[2]Stock!M31) ->  | V31: =IF([2]Stock!N31="","",[2]Stock!N31) -> 0 | W31: =IF(U31="","",IFERROR(VLOOKUP(U31,Brassage!$B$39:$H$42,1,FALSE),"")) ->  | X31: =IF(U31="0","0",IFERROR(VLOOKUP(U31,Brassage!$B$39:$H$42,5,FALSE),"0")) -> 0
A32: =IF([2]Stock!A32="","",[2]Stock!A32) ->  | B32: =IF([2]Stock!B32="","",[2]Stock!B32) ->  | C32: =IF([2]Stock!C32="","",[2]Stock!C32) -> 0 | D32: =IF(A32="","",IFERROR(VLOOKUP(A32,Brassage!$B$25:$H$33,1,FALSE),"")) ->  | E32: =IF(A32="","",IFERROR(VLOOKUP(A32,Brassage!$B$25:$H$33,2,FALSE),"")) ->  | F32: =IF(Stock!D32="0","0",SUMIF(Brassage!$B$25:$B$33,Stock!D32,Brassage!$H$25:$H$33)) -> 0 | H32: =IF([2]Stock!E32="","",[2]Stock!E32) ->  | I32: =IF([2]Stock!F32="","",[2]Stock!F32) ->  | J32: =IF([2]Stock!G32="","",[2]Stock!G32) ->  | K32: =IF([2]Stock!H32="","",[2]Stock!H32) -> 0 | L32: =IF(H32="","",IFERROR(VLOOKUP(H32,Brassage!$B$45:$H$57,1,FALSE),"")) ->  | M32: =IF(L32="","",IFERROR(VLOOKUP(L32,Brassage!$B$45:$H$57,2,FALSE),"")) ->  | N32: =IF(L32="0","0",SUMIF(Brassage!$B$45:$B$57,L32,Brassage!$F$45:$F$57)) -> 0 | P32: =IF([2]Stock!J32="","",[2]Stock!J32) ->  | Q32: =IF([2]Stock!K32="","",[2]Stock!K32) -> 0 | R32: =IF(P32="","",IFERROR(VLOOKUP(P32,Brassage!$B$61:$H$62,1,FALSE),"")) ->  | S32: =IF(R32="0","0",IFERROR(VLOOKUP(P32,Brassage!$B$61:$H$62,7,FALSE),"0")) -> 0 | U32: =IF([2]Stock!M32="","",[2]Stock!M32) ->  | V32: =IF([2]Stock!N32="","",[2]Stock!N32) -> 0 | W32: =IF(U32="","",IFERROR(VLOOKUP(U32,Brassage!$B$39:$H$42,1,FALSE),"")) ->  | X32: =IF(U32="0","0",IFERROR(VLOOKUP(U32,Brassage!$B$39:$H$42,5,FALSE),"0")) -> 0
A33: =IF([2]Stock!A33="","",[2]Stock!A33) ->  | B33: =IF([2]Stock!B33="","",[2]Stock!B33) ->  | C33: =IF([2]Stock!C33="","",[2]Stock!C33) ->  | D33: =IF(A33="","",IFERROR(VLOOKUP(A33,Brassage!$B$25:$H$33,1,FALSE),"")) ->  | E33: =IF(A33="","",IFERROR(VLOOKUP(A33,Brassage!$B$25:$H$33,2,FALSE),"")) ->  | F33: =IF(Stock!D33="0","0",SUMIF(Brassage!$B$25:$B$33,Stock!D33,Brassage!$H$25:$H$33)) -> 0 | H33: =IF([2]Stock!E33="","",[2]Stock!E33) ->  | I33: =IF([2]Stock!F33="","",[2]Stock!F33) ->  | J33: =IF([2]Stock!G33="","",[2]Stock!G33) ->  | K33: =IF([2]Stock!H33="","",[2]Stock!H33) ->  | L33: =IF(H33="","",IFERROR(VLOOKUP(H33,Brassage!$B$45:$H$57,1,FALSE),"")) ->  | M33: =IF(L33="","",IFERROR(VLOOKUP(L33,Brassage!$B$45:$H$57,2,FALSE),"")) ->  | N33: =IF(L33="0","0",SUMIF(Brassage!$B$45:$B$57,L33,Brassage!$F$45:$F$57)) -> 0 | P33: =IF([2]Stock!J33="","",[2]Stock!J33) ->  | Q33: =IF([2]Stock!K33="","",[2]Stock!K33) ->  | R33: =IF(P33="","",IFERROR(VLOOKUP(P33,Brassage!$B$61:$H$62,1,FALSE),"")) ->  | S33: =IF(R33="0","0",IFERROR(VLOOKUP(P33,Brassage!$B$61:$H$62,7,FALSE),"0")) -> 0 | U33: =IF([2]Stock!M33="","",[2]Stock!M33) ->  | V33: =IF([2]Stock!N33="","",[2]Stock!N33) ->  | W33: =IF(U33="","",IFERROR(VLOOKUP(U33,Brassage!$B$39:$H$42,1,FALSE),"")) ->  | X33: =IF(U33="0","0",IFERROR(VLOOKUP(U33,Brassage!$B$39:$H$42,5,FALSE),"0")) -> 0
A34: =IF([2]Stock!A34="","",[2]Stock!A34) ->  | B34: =IF([2]Stock!B34="","",[2]Stock!B34) ->  | C34: =IF([2]Stock!C34="","",[2]Stock!C34) ->  | D34: =IF(A34="","",IFERROR(VLOOKUP(A34,Brassage!$B$25:$H$33,1,FALSE),"")) ->  | E34: =IF(A34="","",IFERROR(VLOOKUP(A34,Brassage!$B$25:$H$33,2,FALSE),"")) ->  | F34: =IF(Stock!D34="0","0",SUMIF(Brassage!$B$25:$B$33,Stock!D34,Brassage!$H$25:$H$33)) -> 0 | H34: =IF([2]Stock!E34="","",[2]Stock!E34) ->  | I34: =IF([2]Stock!F34="","",[2]Stock!F34) ->  | J34: =IF([2]Stock!G34="","",[2]Stock!G34) ->  | K34: =IF([2]Stock!H34="","",[2]Stock!H34) ->  | L34: =IF(H34="","",IFERROR(VLOOKUP(H34,Brassage!$B$45:$H$57,1,FALSE),"")) ->  | M34: =IF(L34="","",IFERROR(VLOOKUP(L34,Brassage!$B$45:$H$57,2,FALSE),"")) ->  | N34: =IF(L34="0","0",SUMIF(Brassage!$B$45:$B$57,L34,Brassage!$F$45:$F$57)) -> 0 | P34: =IF([2]Stock!J34="","",[2]Stock!J34) ->  | Q34: =IF([2]Stock!K34="","",[2]Stock!K34) ->  | R34: =IF(P34="","",IFERROR(VLOOKUP(P34,Brassage!$B$61:$H$62,1,FALSE),"")) ->  | S34: =IF(R34="0","0",IFERROR(VLOOKUP(P34,Brassage!$B$61:$H$62,7,FALSE),"0")) -> 0 | U34: =IF([2]Stock!M34="","",[2]Stock!M34) ->  | V34: =IF([2]Stock!N34="","",[2]Stock!N34) ->  | W34: =IF(U34="","",IFERROR(VLOOKUP(U34,Brassage!$B$39:$H$42,1,FALSE),"")) ->  | X34: =IF(U34="0","0",IFERROR(VLOOKUP(U34,Brassage!$B$39:$H$42,5,FALSE),"0")) -> 0
A35: =IF([2]Stock!A35="","",[2]Stock!A35) ->  | B35: =IF([2]Stock!B35="","",[2]Stock!B35) ->  | C35: =IF([2]Stock!C35="","",[2]Stock!C35) ->  | D35: =IF(A35="","",IFERROR(VLOOKUP(A35,Brassage!$B$25:$H$33,1,FALSE),"")) ->  | E35: =IF(A35="","",IFERROR(VLOOKUP(A35,Brassage!$B$25:$H$33,2,FALSE),"")) ->  | F35: =IF(Stock!D35="0","0",SUMIF(Brassage!$B$25:$B$33,Stock!D35,Brassage!$H$25:$H$33)) -> 0 | H35: =IF([2]Stock!E35="","",[2]Stock!E35) ->  | I35: =IF([2]Stock!F35="","",[2]Stock!F35) ->  | J35: =IF([2]Stock!G35="","",[2]Stock!G35) ->  | K35: =IF([2]Stock!H35="","",[2]Stock!H35) ->  | L35: =IF(H35="","",IFERROR(VLOOKUP(H35,Brassage!$B$45:$H$57,1,FALSE),"")) ->  | M35: =IF(L35="","",IFERROR(VLOOKUP(L35,Brassage!$B$45:$H$57,2,FALSE),"")) ->  | N35: =IF(L35="0","0",SUMIF(Brassage!$B$45:$B$57,L35,Brassage!$F$45:$F$57)) -> 0 | P35: =IF([2]Stock!J35="","",[2]Stock!J35) ->  | Q35: =IF([2]Stock!K35="","",[2]Stock!K35) ->  | R35: =IF(P35="","",IFERROR(VLOOKUP(P35,Brassage!$B$61:$H$62,1,FALSE),"")) ->  | S35: =IF(R35="0","0",IFERROR(VLOOKUP(P35,Brassage!$B$61:$H$62,7,FALSE),"0")) -> 0 | U35: =IF([2]Stock!M35="","",[2]Stock!M35) ->  | V35: =IF([2]Stock!N35="","",[2]Stock!N35) ->  | W35: =IF(U35="","",IFERROR(VLOOKUP(U35,Brassage!$B$39:$H$42,1,FALSE),"")) ->  | X35: =IF(U35="0","0",IFERROR(VLOOKUP(U35,Brassage!$B$39:$H$42,5,FALSE),"0")) -> 0
A36: =IF([2]Stock!A36="","",[2]Stock!A36) ->  | B36: =IF([2]Stock!B36="","",[2]Stock!B36) ->  | C36: =IF([2]Stock!C36="","",[2]Stock!C36) ->  | D36: =IF(A36="","",IFERROR(VLOOKUP(A36,Brassage!$B$25:$H$33,1,FALSE),"")) ->  | E36: =IF(A36="","",IFERROR(VLOOKUP(A36,Brassage!$B$25:$H$33,2,FALSE),"")) ->  | F36: =IF(Stock!D36="0","0",SUMIF(Brassage!$B$25:$B$33,Stock!D36,Brassage!$H$25:$H$33)) -> 0 | H36: =IF([2]Stock!E36="","",[2]Stock!E36) ->  | I36: =IF([2]Stock!F36="","",[2]Stock!F36) ->  | J36: =IF([2]Stock!G36="","",[2]Stock!G36) ->  | K36: =IF([2]Stock!H36="","",[2]Stock!H36) ->  | L36: =IF(H36="","",IFERROR(VLOOKUP(H36,Brassage!$B$45:$H$57,1,FALSE),"")) ->  | M36: =IF(L36="","",IFERROR(VLOOKUP(L36,Brassage!$B$45:$H$57,2,FALSE),"")) ->  | N36: =IF(L36="0","0",SUMIF(Brassage!$B$45:$B$57,L36,Brassage!$F$45:$F$57)) -> 0 | P36: =IF([2]Stock!J36="","",[2]Stock!J36) ->  | Q36: =IF([2]Stock!K36="","",[2]Stock!K36) ->  | R36: =IF(P36="","",IFERROR(VLOOKUP(P36,Brassage!$B$61:$H$62,1,FALSE),"")) ->  | S36: =IF(R36="0","0",IFERROR(VLOOKUP(P36,Brassage!$B$61:$H$62,7,FALSE),"0")) -> 0 | U36: =IF([2]Stock!M36="","",[2]Stock!M36) ->  | V36: =IF([2]Stock!N36="","",[2]Stock!N36) ->  | W36: =IF(U36="","",IFERROR(VLOOKUP(U36,Brassage!$B$39:$H$42,1,FALSE),"")) ->  | X36: =IF(U36="0","0",IFERROR(VLOOKUP(U36,Brassage!$B$39:$H$42,5,FALSE),"0")) -> 0
A37: =IF([2]Stock!A37="","",[2]Stock!A37) ->  | B37: =IF([2]Stock!B37="","",[2]Stock!B37) ->  | C37: =IF([2]Stock!C37="","",[2]Stock!C37) ->  | D37: =IF(A37="","",IFERROR(VLOOKUP(A37,Brassage!$B$25:$H$33,1,FALSE),"")) ->  | E37: =IF(A37="","",IFERROR(VLOOKUP(A37,Brassage!$B$25:$H$33,2,FALSE),"")) ->  | F37: =IF(Stock!D37="0","0",SUMIF(Brassage!$B$25:$B$33,Stock!D37,Brassage!$H$25:$H$33)) -> 0 | H37: =IF([2]Stock!E37="","",[2]Stock!E37) ->  | I37: =IF([2]Stock!F37="","",[2]Stock!F37) ->  | J37: =IF([2]Stock!G37="","",[2]Stock!G37) ->  | K37: =IF([2]Stock!H37="","",[2]Stock!H37) ->  | L37: =IF(H37="","",IFERROR(VLOOKUP(H37,Brassage!$B$45:$H$57,1,FALSE),"")) ->  | M37: =IF(L37="","",IFERROR(VLOOKUP(L37,Brassage!$B$45:$H$57,2,FALSE),"")) ->  | N37: =IF(L37="0","0",SUMIF(Brassage!$B$45:$B$57,L37,Brassage!$F$45:$F$57)) -> 0 | P37: =IF([2]Stock!J37="","",[2]Stock!J37) ->  | Q37: =IF([2]Stock!K37="","",[2]Stock!K37) ->  | R37: =IF(P37="","",IFERROR(VLOOKUP(P37,Brassage!$B$61:$H$62,1,FALSE),"")) ->  | S37: =IF(R37="0","0",IFERROR(VLOOKUP(P37,Brassage!$B$61:$H$62,7,FALSE),"0")) -> 0 | U37: =IF([2]Stock!M37="","",[2]Stock!M37) ->  | V37: =IF([2]Stock!N37="","",[2]Stock!N37) ->  | W37: =IF(U37="","",IFERROR(VLOOKUP(U37,Brassage!$B$39:$H$42,1,FALSE),"")) ->  | X37: =IF(U37="0","0",IFERROR(VLOOKUP(U37,Brassage!$B$39:$H$42,5,FALSE),"0")) -> 0
A38: =IF([2]Stock!A38="","",[2]Stock!A38) ->  | B38: =IF([2]Stock!B38="","",[2]Stock!B38) ->  | C38: =IF([2]Stock!C38="","",[2]Stock!C38) ->  | D38: =IF(A38="","",IFERROR(VLOOKUP(A38,Brassage!$B$25:$H$33,1,FALSE),"")) ->  | E38: =IF(A38="","",IFERROR(VLOOKUP(A38,Brassage!$B$25:$H$33,2,FALSE),"")) ->  | F38: =IF(Stock!D38="0","0",SUMIF(Brassage!$B$25:$B$33,Stock!D38,Brassage!$H$25:$H$33)) -> 0 | H38: =IF([2]Stock!E38="","",[2]Stock!E38) ->  | I38: =IF([2]Stock!F38="","",[2]Stock!F38) ->  | J38: =IF([2]Stock!G38="","",[2]Stock!G38) ->  | K38: =IF([2]Stock!H38="","",[2]Stock!H38) ->  | L38: =IF(H38="","",IFERROR(VLOOKUP(H38,Brassage!$B$45:$H$57,1,FALSE),"")) ->  | M38: =IF(L38="","",IFERROR(VLOOKUP(L38,Brassage!$B$45:$H$57,2,FALSE),"")) ->  | N38: =IF(L38="0","0",SUMIF(Brassage!$B$45:$B$57,L38,Brassage!$F$45:$F$57)) -> 0 | P38: =IF([2]Stock!J38="","",[2]Stock!J38) ->  | Q38: =IF([2]Stock!K38="","",[2]Stock!K38) ->  | R38: =IF(P38="","",IFERROR(VLOOKUP(P38,Brassage!$B$61:$H$62,1,FALSE),"")) ->  | S38: =IF(R38="0","0",IFERROR(VLOOKUP(P38,Brassage!$B$61:$H$62,7,FALSE),"0")) -> 0 | U38: =IF([2]Stock!M38="","",[2]Stock!M38) ->  | V38: =IF([2]Stock!N38="","",[2]Stock!N38) ->  | W38: =IF(U38="","",IFERROR(VLOOKUP(U38,Brassage!$B$39:$H$42,1,FALSE),"")) ->  | X38: =IF(U38="0","0",IFERROR(VLOOKUP(U38,Brassage!$B$39:$H$42,5,FALSE),"0")) -> 0
A39: =IF([2]Stock!A39="","",[2]Stock!A39) ->  | B39: =IF([2]Stock!B39="","",[2]Stock!B39) ->  | C39: =IF([2]Stock!C39="","",[2]Stock!C39) ->  | D39: =IF(A39="","",IFERROR(VLOOKUP(A39,Brassage!$B$25:$H$33,1,FALSE),"")) ->  | E39: =IF(A39="","",IFERROR(VLOOKUP(A39,Brassage!$B$25:$H$33,2,FALSE),"")) ->  | F39: =IF(Stock!D39="0","0",SUMIF(Brassage!$B$25:$B$33,Stock!D39,Brassage!$H$25:$H$33)) -> 0 | H39: =IF([2]Stock!E39="","",[2]Stock!E39) ->  | I39: =IF([2]Stock!F39="","",[2]Stock!F39) ->  | J39: =IF([2]Stock!G39="","",[2]Stock!G39) ->  | K39: =IF([2]Stock!H39="","",[2]Stock!H39) ->  | L39: =IF(H39="","",IFERROR(VLOOKUP(H39,Brassage!$B$45:$H$57,1,FALSE),"")) ->  | M39: =IF(L39="","",IFERROR(VLOOKUP(L39,Brassage!$B$45:$H$57,2,FALSE),"")) ->  | N39: =IF(L39="0","0",SUMIF(Brassage!$B$45:$B$57,L39,Brassage!$F$45:$F$57)) -> 0 | P39: =IF([2]Stock!J39="","",[2]Stock!J39) ->  | Q39: =IF([2]Stock!K39="","",[2]Stock!K39) ->  | R39: =IF(P39="","",IFERROR(VLOOKUP(P39,Brassage!$B$61:$H$62,1,FALSE),"")) ->  | S39: =IF(R39="0","0",IFERROR(VLOOKUP(P39,Brassage!$B$61:$H$62,7,FALSE),"0")) -> 0 | U39: =IF([2]Stock!M39="","",[2]Stock!M39) ->  | V39: =IF([2]Stock!N39="","",[2]Stock!N39) ->  | W39: =IF(U39="","",IFERROR(VLOOKUP(U39,Brassage!$B$39:$H$42,1,FALSE),"")) ->  | X39: =IF(U39="0","0",IFERROR(VLOOKUP(U39,Brassage!$B$39:$H$42,5,FALSE),"0")) -> 0
A40: =IF([2]Stock!A40="","",[2]Stock!A40) ->  | B40: =IF([2]Stock!B40="","",[2]Stock!B40) ->  | C40: =IF([2]Stock!C40="","",[2]Stock!C40) ->  | D40: =IF(A40="","",IFERROR(VLOOKUP(A40,Brassage!$B$25:$H$33,1,FALSE),"")) ->  | E40: =IF(A40="","",IFERROR(VLOOKUP(A40,Brassage!$B$25:$H$33,2,FALSE),"")) ->  | F40: =IF(Stock!D40="0","0",SUMIF(Brassage!$B$25:$B$33,Stock!D40,Brassage!$H$25:$H$33)) -> 0 | H40: =IF([2]Stock!E40="","",[2]Stock!E40) ->  | I40: =IF([2]Stock!F40="","",[2]Stock!F40) ->  | J40: =IF([2]Stock!G40="","",[2]Stock!G40) ->  | K40: =IF([2]Stock!H40="","",[2]Stock!H40) ->  | L40: =IF(H40="","",IFERROR(VLOOKUP(H40,Brassage!$B$45:$H$57,1,FALSE),"")) ->  | M40: =IF(L40="","",IFERROR(VLOOKUP(L40,Brassage!$B$45:$H$57,2,FALSE),"")) ->  | N40: =IF(L40="0","0",SUMIF(Brassage!$B$45:$B$57,L40,Brassage!$F$45:$F$57)) -> 0 | P40: =IF([2]Stock!J40="","",[2]Stock!J40) ->  | Q40: =IF([2]Stock!K40="","",[2]Stock!K40) ->  | R40: =IF(P40="","",IFERROR(VLOOKUP(P40,Brassage!$B$61:$H$62,1,FALSE),"")) ->  | S40: =IF(R40="0","0",IFERROR(VLOOKUP(P40,Brassage!$B$61:$H$62,7,FALSE),"0")) -> 0 | U40: =IF([2]Stock!M40="","",[2]Stock!M40) ->  | V40: =IF([2]Stock!N40="","",[2]Stock!N40) ->  | W40: =IF(U40="","",IFERROR(VLOOKUP(U40,Brassage!$B$39:$H$42,1,FALSE),"")) ->  | X40: =IF(U40="0","0",IFERROR(VLOOKUP(U40,Brassage!$B$39:$H$42,5,FALSE),"0")) -> 0
A41: =IF([2]Stock!A41="","",[2]Stock!A41) ->  | B41: =IF([2]Stock!B41="","",[2]Stock!B41) ->  | C41: =IF([2]Stock!C41="","",[2]Stock!C41) ->  | D41: =IF(A41="","",IFERROR(VLOOKUP(A41,Brassage!$B$25:$H$33,1,FALSE),"")) ->  | E41: =IF(A41="","",IFERROR(VLOOKUP(A41,Brassage!$B$25:$H$33,2,FALSE),"")) ->  | F41: =IF(Stock!D41="0","0",SUMIF(Brassage!$B$25:$B$33,Stock!D41,Brassage!$H$25:$H$33)) -> 0 | H41: =IF([2]Stock!E41="","",[2]Stock!E41) ->  | I41: =IF([2]Stock!F41="","",[2]Stock!F41) ->  | J41: =IF([2]Stock!G41="","",[2]Stock!G41) ->  | K41: =IF([2]Stock!H41="","",[2]Stock!H41) ->  | L41: =IF(H41="","",IFERROR(VLOOKUP(H41,Brassage!$B$45:$H$57,1,FALSE),"")) ->  | M41: =IF(L41="","",IFERROR(VLOOKUP(L41,Brassage!$B$45:$H$57,2,FALSE),"")) ->  | N41: =IF(L41="0","0",SUMIF(Brassage!$B$45:$B$57,L41,Brassage!$F$45:$F$57)) -> 0 | P41: =IF([2]Stock!J41="","",[2]Stock!J41) ->  | Q41: =IF([2]Stock!K41="","",[2]Stock!K41) ->  | R41: =IF(P41="","",IFERROR(VLOOKUP(P41,Brassage!$B$61:$H$62,1,FALSE),"")) ->  | S41: =IF(R41="0","0",IFERROR(VLOOKUP(P41,Brassage!$B$61:$H$62,7,FALSE),"0")) -> 0 | U41: =IF([2]Stock!M41="","",[2]Stock!M41) ->  | V41: =IF([2]Stock!N41="","",[2]Stock!N41) ->  | W41: =IF(U41="","",IFERROR(VLOOKUP(U41,Brassage!$B$39:$H$42,1,FALSE),"")) ->  | X41: =IF(U41="0","0",IFERROR(VLOOKUP(U41,Brassage!$B$39:$H$42,5,FALSE),"0")) -> 0
A42: =IF([2]Stock!A42="","",[2]Stock!A42) ->  | B42: =IF([2]Stock!B42="","",[2]Stock!B42) ->  | C42: =IF([2]Stock!C42="","",[2]Stock!C42) ->  | D42: =IF(A42="","",IFERROR(VLOOKUP(A42,Brassage!$B$25:$H$33,1,FALSE),"")) ->  | E42: =IF(A42="","",IFERROR(VLOOKUP(A42,Brassage!$B$25:$H$33,2,FALSE),"")) ->  | F42: =IF(Stock!D42="0","0",SUMIF(Brassage!$B$25:$B$33,Stock!D42,Brassage!$H$25:$H$33)) -> 0 | H42: =IF([2]Stock!E42="","",[2]Stock!E42) ->  | I42: =IF([2]Stock!F42="","",[2]Stock!F42) ->  | J42: =IF([2]Stock!G42="","",[2]Stock!G42) ->  | K42: =IF([2]Stock!H42="","",[2]Stock!H42) ->  | L42: =IF(H42="","",IFERROR(VLOOKUP(H42,Brassage!$B$45:$H$57,1,FALSE),"")) ->  | M42: =IF(L42="","",IFERROR(VLOOKUP(L42,Brassage!$B$45:$H$57,2,FALSE),"")) ->  | N42: =IF(L42="0","0",SUMIF(Brassage!$B$45:$B$57,L42,Brassage!$F$45:$F$57)) -> 0 | P42: =IF([2]Stock!J42="","",[2]Stock!J42) ->  | Q42: =IF([2]Stock!K42="","",[2]Stock!K42) ->  | R42: =IF(P42="","",IFERROR(VLOOKUP(P42,Brassage!$B$61:$H$62,1,FALSE),"")) ->  | S42: =IF(R42="0","0",IFERROR(VLOOKUP(P42,Brassage!$B$61:$H$62,7,FALSE),"0")) -> 0 | U42: =IF([2]Stock!M42="","",[2]Stock!M42) ->  | V42: =IF([2]Stock!N42="","",[2]Stock!N42) ->  | W42: =IF(U42="","",IFERROR(VLOOKUP(U42,Brassage!$B$39:$H$42,1,FALSE),"")) ->  | X42: =IF(U42="0","0",IFERROR(VLOOKUP(U42,Brassage!$B$39:$H$42,5,FALSE),"0")) -> 0
A43: =IF([2]Stock!A43="","",[2]Stock!A43) ->  | B43: =IF([2]Stock!B43="","",[2]Stock!B43) ->  | C43: =IF([2]Stock!C43="","",[2]Stock!C43) ->  | D43: =IF(A43="","",IFERROR(VLOOKUP(A43,Brassage!$B$25:$H$33,1,FALSE),"")) ->  | E43: =IF(A43="","",IFERROR(VLOOKUP(A43,Brassage!$B$25:$H$33,2,FALSE),"")) ->  | F43: =IF(Stock!D43="0","0",SUMIF(Brassage!$B$25:$B$33,Stock!D43,Brassage!$H$25:$H$33)) -> 0 | H43: =IF([2]Stock!E43="","",[2]Stock!E43) ->  | I43: =IF([2]Stock!F43="","",[2]Stock!F43) ->  | J43: =IF([2]Stock!G43="","",[2]Stock!G43) ->  | K43: =IF([2]Stock!H43="","",[2]Stock!H43) ->  | L43: =IF(H43="","",IFERROR(VLOOKUP(H43,Brassage!$B$45:$H$57,1,FALSE),"")) ->  | M43: =IF(L43="","",IFERROR(VLOOKUP(L43,Brassage!$B$45:$H$57,2,FALSE),"")) ->  | N43: =IF(L43="0","0",SUMIF(Brassage!$B$45:$B$57,L43,Brassage!$F$45:$F$57)) -> 0 | P43: =IF([2]Stock!J43="","",[2]Stock!J43) ->  | Q43: =IF([2]Stock!K43="","",[2]Stock!K43) ->  | R43: =IF(P43="","",IFERROR(VLOOKUP(P43,Brassage!$B$61:$H$62,1,FALSE),"")) ->  | S43: =IF(R43="0","0",IFERROR(VLOOKUP(P43,Brassage!$B$61:$H$62,7,FALSE),"0")) -> 0 | U43: =IF([2]Stock!M43="","",[2]Stock!M43) ->  | V43: =IF([2]Stock!N43="","",[2]Stock!N43) ->  | W43: =IF(U43="","",IFERROR(VLOOKUP(U43,Brassage!$B$39:$H$42,1,FALSE),"")) ->  | X43: =IF(U43="0","0",IFERROR(VLOOKUP(U43,Brassage!$B$39:$H$42,5,FALSE),"0")) -> 0
A44: =IF([2]Stock!A44="","",[2]Stock!A44) ->  | B44: =IF([2]Stock!B44="","",[2]Stock!B44) ->  | C44: =IF([2]Stock!C44="","",[2]Stock!C44) ->  | D44: =IF(A44="","",IFERROR(VLOOKUP(A44,Brassage!$B$25:$H$33,1,FALSE),"")) ->  | E44: =IF(A44="","",IFERROR(VLOOKUP(A44,Brassage!$B$25:$H$33,2,FALSE),"")) ->  | F44: =IF(Stock!D44="0","0",SUMIF(Brassage!$B$25:$B$33,Stock!D44,Brassage!$H$25:$H$33)) -> 0 | H44: =IF([2]Stock!E44="","",[2]Stock!E44) ->  | I44: =IF([2]Stock!F44="","",[2]Stock!F44) ->  | J44: =IF([2]Stock!G44="","",[2]Stock!G44) ->  | K44: =IF([2]Stock!H44="","",[2]Stock!H44) ->  | L44: =IF(H44="","",IFERROR(VLOOKUP(H44,Brassage!$B$45:$H$57,1,FALSE),"")) ->  | M44: =IF(L44="","",IFERROR(VLOOKUP(L44,Brassage!$B$45:$H$57,2,FALSE),"")) ->  | N44: =IF(L44="0","0",SUMIF(Brassage!$B$45:$B$57,L44,Brassage!$F$45:$F$57)) -> 0 | P44: =IF([2]Stock!J44="","",[2]Stock!J44) ->  | Q44: =IF([2]Stock!K44="","",[2]Stock!K44) ->  | R44: =IF(P44="","",IFERROR(VLOOKUP(P44,Brassage!$B$61:$H$62,1,FALSE),"")) ->  | S44: =IF(R44="0","0",IFERROR(VLOOKUP(P44,Brassage!$B$61:$H$62,7,FALSE),"0")) -> 0 | U44: =IF([2]Stock!M44="","",[2]Stock!M44) ->  | V44: =IF([2]Stock!N44="","",[2]Stock!N44) ->  | W44: =IF(U44="","",IFERROR(VLOOKUP(U44,Brassage!$B$39:$H$42,1,FALSE),"")) ->  | X44: =IF(U44="0","0",IFERROR(VLOOKUP(U44,Brassage!$B$39:$H$42,5,FALSE),"0")) -> 0
A45: =IF([2]Stock!A45="","",[2]Stock!A45) ->  | B45: =IF([2]Stock!B45="","",[2]Stock!B45) ->  | C45: =IF([2]Stock!C45="","",[2]Stock!C45) ->  | D45: =IF(A45="","",IFERROR(VLOOKUP(A45,Brassage!$B$25:$H$33,1,FALSE),"")) ->  | E45: =IF(A45="","",IFERROR(VLOOKUP(A45,Brassage!$B$25:$H$33,2,FALSE),"")) ->  | F45: =IF(Stock!D45="0","0",SUMIF(Brassage!$B$25:$B$33,Stock!D45,Brassage!$H$25:$H$33)) -> 0 | H45: =IF([2]Stock!E45="","",[2]Stock!E45) ->  | I45: =IF([2]Stock!F45="","",[2]Stock!F45) ->  | J45: =IF([2]Stock!G45="","",[2]Stock!G45) ->  | K45: =IF([2]Stock!H45="","",[2]Stock!H45) ->  | L45: =IF(H45="","",IFERROR(VLOOKUP(H45,Brassage!$B$45:$H$57,1,FALSE),"")) ->  | M45: =IF(L45="","",IFERROR(VLOOKUP(L45,Brassage!$B$45:$H$57,2,FALSE),"")) ->  | N45: =IF(L45="0","0",SUMIF(Brassage!$B$45:$B$57,L45,Brassage!$F$45:$F$57)) -> 0 | P45: =IF([2]Stock!J45="","",[2]Stock!J45) ->  | Q45: =IF([2]Stock!K45="","",[2]Stock!K45) ->  | R45: =IF(P45="","",IFERROR(VLOOKUP(P45,Brassage!$B$61:$H$62,1,FALSE),"")) ->  | S45: =IF(R45="0","0",IFERROR(VLOOKUP(P45,Brassage!$B$61:$H$62,7,FALSE),"0")) -> 0 | U45: =IF([2]Stock!M45="","",[2]Stock!M45) ->  | V45: =IF([2]Stock!N45="","",[2]Stock!N45) ->  | W45: =IF(U45="","",IFERROR(VLOOKUP(U45,Brassage!$B$39:$H$42,1,FALSE),"")) ->  | X45: =IF(U45="0","0",IFERROR(VLOOKUP(U45,Brassage!$B$39:$H$42,5,FALSE),"0")) -> 0
A46: =IF([2]Stock!A46="","",[2]Stock!A46) ->  | B46: =IF([2]Stock!B46="","",[2]Stock!B46) ->  | C46: =IF([2]Stock!C46="","",[2]Stock!C46) ->  | D46: =IF(A46="","",IFERROR(VLOOKUP(A46,Brassage!$B$25:$H$33,1,FALSE),"")) ->  | E46: =IF(A46="","",IFERROR(VLOOKUP(A46,Brassage!$B$25:$H$33,2,FALSE),"")) ->  | F46: =IF(Stock!D46="0","0",SUMIF(Brassage!$B$25:$B$33,Stock!D46,Brassage!$H$25:$H$33)) -> 0 | H46: =IF([2]Stock!E46="","",[2]Stock!E46) ->  | I46: =IF([2]Stock!F46="","",[2]Stock!F46) ->  | J46: =IF([2]Stock!G46="","",[2]Stock!G46) ->  | K46: =IF([2]Stock!H46="","",[2]Stock!H46) ->  | L46: =IF(H46="","",IFERROR(VLOOKUP(H46,Brassage!$B$45:$H$57,1,FALSE),"")) ->  | M46: =IF(L46="","",IFERROR(VLOOKUP(L46,Brassage!$B$45:$H$57,2,FALSE),"")) ->  | N46: =IF(L46="0","0",SUMIF(Brassage!$B$45:$B$57,L46,Brassage!$F$45:$F$57)) -> 0 | P46: =IF([2]Stock!J46="","",[2]Stock!J46) ->  | Q46: =IF([2]Stock!K46="","",[2]Stock!K46) ->  | R46: =IF(P46="","",IFERROR(VLOOKUP(P46,Brassage!$B$61:$H$62,1,FALSE),"")) ->  | S46: =IF(R46="0","0",IFERROR(VLOOKUP(P46,Brassage!$B$61:$H$62,7,FALSE),"0")) -> 0 | U46: =IF([2]Stock!M46="","",[2]Stock!M46) ->  | V46: =IF([2]Stock!N46="","",[2]Stock!N46) ->  | W46: =IF(U46="","",IFERROR(VLOOKUP(U46,Brassage!$B$39:$H$42,1,FALSE),"")) ->  | X46: =IF(U46="0","0",IFERROR(VLOOKUP(U46,Brassage!$B$39:$H$42,5,FALSE),"0")) -> 0
A47: =IF([2]Stock!A47="","",[2]Stock!A47) ->  | B47: =IF([2]Stock!B47="","",[2]Stock!B47) ->  | C47: =IF([2]Stock!C47="","",[2]Stock!C47) ->  | D47: =IF(A47="","",IFERROR(VLOOKUP(A47,Brassage!$B$25:$H$33,1,FALSE),"")) ->  | E47: =IF(A47="","",IFERROR(VLOOKUP(A47,Brassage!$B$25:$H$33,2,FALSE),"")) ->  | F47: =IF(Stock!D47="0","0",SUMIF(Brassage!$B$25:$B$33,Stock!D47,Brassage!$H$25:$H$33)) -> 0 | H47: =IF([2]Stock!E47="","",[2]Stock!E47) ->  | I47: =IF([2]Stock!F47="","",[2]Stock!F47) ->  | J47: =IF([2]Stock!G47="","",[2]Stock!G47) ->  | K47: =IF([2]Stock!H47="","",[2]Stock!H47) ->  | L47: =IF(H47="","",IFERROR(VLOOKUP(H47,Brassage!$B$45:$H$57,1,FALSE),"")) ->  | M47: =IF(L47="","",IFERROR(VLOOKUP(L47,Brassage!$B$45:$H$57,2,FALSE),"")) ->  | N47: =IF(L47="0","0",SUMIF(Brassage!$B$45:$B$57,L47,Brassage!$F$45:$F$57)) -> 0 | P47: =IF([2]Stock!J47="","",[2]Stock!J47) ->  | Q47: =IF([2]Stock!K47="","",[2]Stock!K47) ->  | R47: =IF(P47="","",IFERROR(VLOOKUP(P47,Brassage!$B$61:$H$62,1,FALSE),"")) ->  | S47: =IF(R47="0","0",IFERROR(VLOOKUP(P47,Brassage!$B$61:$H$62,7,FALSE),"0")) -> 0 | U47: =IF([2]Stock!M47="","",[2]Stock!M47) ->  | V47: =IF([2]Stock!N47="","",[2]Stock!N47) ->  | W47: =IF(U47="","",IFERROR(VLOOKUP(U47,Brassage!$B$39:$H$42,1,FALSE),"")) ->  | X47: =IF(U47="0","0",IFERROR(VLOOKUP(U47,Brassage!$B$39:$H$42,5,FALSE),"0")) -> 0
A48: =IF([2]Stock!A48="","",[2]Stock!A48) ->  | B48: =IF([2]Stock!B48="","",[2]Stock!B48) ->  | C48: =IF([2]Stock!C48="","",[2]Stock!C48) ->  | D48: =IF(A48="","",IFERROR(VLOOKUP(A48,Brassage!$B$25:$H$33,1,FALSE),"")) ->  | E48: =IF(A48="","",IFERROR(VLOOKUP(A48,Brassage!$B$25:$H$33,2,FALSE),"")) ->  | F48: =IF(Stock!D48="0","0",SUMIF(Brassage!$B$25:$B$33,Stock!D48,Brassage!$H$25:$H$33)) -> 0 | H48: =IF([2]Stock!E48="","",[2]Stock!E48) ->  | I48: =IF([2]Stock!F48="","",[2]Stock!F48) ->  | J48: =IF([2]Stock!G48="","",[2]Stock!G48) ->  | K48: =IF([2]Stock!H48="","",[2]Stock!H48) ->  | L48: =IF(H48="","",IFERROR(VLOOKUP(H48,Brassage!$B$45:$H$57,1,FALSE),"")) ->  | M48: =IF(L48="","",IFERROR(VLOOKUP(L48,Brassage!$B$45:$H$57,2,FALSE),"")) ->  | N48: =IF(L48="0","0",SUMIF(Brassage!$B$45:$B$57,L48,Brassage!$F$45:$F$57)) -> 0 | P48: =IF([2]Stock!J48="","",[2]Stock!J48) ->  | Q48: =IF([2]Stock!K48="","",[2]Stock!K48) ->  | R48: =IF(P48="","",IFERROR(VLOOKUP(P48,Brassage!$B$61:$H$62,1,FALSE),"")) ->  | S48: =IF(R48="0","0",IFERROR(VLOOKUP(P48,Brassage!$B$61:$H$62,7,FALSE),"0")) -> 0 | U48: =IF([2]Stock!M48="","",[2]Stock!M48) ->  | V48: =IF([2]Stock!N48="","",[2]Stock!N48) ->  | W48: =IF(U48="","",IFERROR(VLOOKUP(U48,Brassage!$B$39:$H$42,1,FALSE),"")) ->  | X48: =IF(U48="0","0",IFERROR(VLOOKUP(U48,Brassage!$B$39:$H$42,5,FALSE),"0")) -> 0
A49: =IF([2]Stock!A49="","",[2]Stock!A49) ->  | B49: =IF([2]Stock!B49="","",[2]Stock!B49) ->  | C49: =IF([2]Stock!C49="","",[2]Stock!C49) ->  | D49: =IF(A49="","",IFERROR(VLOOKUP(A49,Brassage!$B$25:$H$33,1,FALSE),"")) ->  | E49: =IF(A49="","",IFERROR(VLOOKUP(A49,Brassage!$B$25:$H$33,2,FALSE),"")) ->  | F49: =IF(Stock!D49="0","0",SUMIF(Brassage!$B$25:$B$33,Stock!D49,Brassage!$H$25:$H$33)) -> 0 | H49: =IF([2]Stock!E49="","",[2]Stock!E49) ->  | I49: =IF([2]Stock!F49="","",[2]Stock!F49) ->  | J49: =IF([2]Stock!G49="","",[2]Stock!G49) ->  | K49: =IF([2]Stock!H49="","",[2]Stock!H49) ->  | L49: =IF(H49="","",IFERROR(VLOOKUP(H49,Brassage!$B$45:$H$57,1,FALSE),"")) ->  | M49: =IF(L49="","",IFERROR(VLOOKUP(L49,Brassage!$B$45:$H$57,2,FALSE),"")) ->  | N49: =IF(L49="0","0",SUMIF(Brassage!$B$45:$B$57,L49,Brassage!$F$45:$F$57)) -> 0 | P49: =IF([2]Stock!J49="","",[2]Stock!J49) ->  | Q49: =IF([2]Stock!K49="","",[2]Stock!K49) ->  | R49: =IF(P49="","",IFERROR(VLOOKUP(P49,Brassage!$B$61:$H$62,1,FALSE),"")) ->  | S49: =IF(R49="0","0",IFERROR(VLOOKUP(P49,Brassage!$B$61:$H$62,7,FALSE),"0")) -> 0 | U49: =IF([2]Stock!M49="","",[2]Stock!M49) ->  | V49: =IF([2]Stock!N49="","",[2]Stock!N49) ->  | W49: =IF(U49="","",IFERROR(VLOOKUP(U49,Brassage!$B$39:$H$42,1,FALSE),"")) ->  | X49: =IF(U49="0","0",IFERROR(VLOOKUP(U49,Brassage!$B$39:$H$42,5,FALSE),"0")) -> 0
A50: =IF([2]Stock!A50="","",[2]Stock!A50) ->  | B50: =IF([2]Stock!B50="","",[2]Stock!B50) ->  | C50: =IF([2]Stock!C50="","",[2]Stock!C50) ->  | D50: =IF(A50="","",IFERROR(VLOOKUP(A50,Brassage!$B$25:$H$33,1,FALSE),"")) ->  | E50: =IF(A50="","",IFERROR(VLOOKUP(A50,Brassage!$B$25:$H$33,2,FALSE),"")) ->  | F50: =IF(Stock!D50="0","0",SUMIF(Brassage!$B$25:$B$33,Stock!D50,Brassage!$H$25:$H$33)) -> 0 | H50: =IF([2]Stock!E50="","",[2]Stock!E50) ->  | I50: =IF([2]Stock!F50="","",[2]Stock!F50) ->  | J50: =IF([2]Stock!G50="","",[2]Stock!G50) ->  | K50: =IF([2]Stock!H50="","",[2]Stock!H50) ->  | L50: =IF(H50="","",IFERROR(VLOOKUP(H50,Brassage!$B$45:$H$57,1,FALSE),"")) ->  | M50: =IF(L50="","",IFERROR(VLOOKUP(L50,Brassage!$B$45:$H$57,2,FALSE),"")) ->  | N50: =IF(L50="0","0",SUMIF(Brassage!$B$45:$B$57,L50,Brassage!$F$45:$F$57)) -> 0 | P50: =IF([2]Stock!J50="","",[2]Stock!J50) ->  | Q50: =IF([2]Stock!K50="","",[2]Stock!K50) ->  | R50: =IF(P50="","",IFERROR(VLOOKUP(P50,Brassage!$B$61:$H$62,1,FALSE),"")) ->  | S50: =IF(R50="0","0",IFERROR(VLOOKUP(P50,Brassage!$B$61:$H$62,7,FALSE),"0")) -> 0 | U50: =IF([2]Stock!M50="","",[2]Stock!M50) ->  | V50: =IF([2]Stock!N50="","",[2]Stock!N50) ->  | W50: =IF(U50="","",IFERROR(VLOOKUP(U50,Brassage!$B$39:$H$42,1,FALSE),"")) ->  | X50: =IF(U50="0","0",IFERROR(VLOOKUP(U50,Brassage!$B$39:$H$42,5,FALSE),"0")) -> 0
A51: =IF([2]Stock!A51="","",[2]Stock!A51) ->  | B51: =IF([2]Stock!B51="","",[2]Stock!B51) ->  | C51: =IF([2]Stock!C51="","",[2]Stock!C51) ->  | D51: =IF(A51="","",IFERROR(VLOOKUP(A51,Brassage!$B$25:$H$33,1,FALSE),"")) ->  | E51: =IF(A51="","",IFERROR(VLOOKUP(A51,Brassage!$B$25:$H$33,2,FALSE),"")) ->  | F51: =IF(Stock!D51="0","0",SUMIF(Brassage!$B$25:$B$33,Stock!D51,Brassage!$H$25:$H$33)) -> 0 | H51: =IF([2]Stock!E51="","",[2]Stock!E51) ->  | I51: =IF([2]Stock!F51="","",[2]Stock!F51) ->  | J51: =IF([2]Stock!G51="","",[2]Stock!G51) ->  | K51: =IF([2]Stock!H51="","",[2]Stock!H51) ->  | L51: =IF(H51="","",IFERROR(VLOOKUP(H51,Brassage!$B$45:$H$57,1,FALSE),"")) ->  | M51: =IF(L51="","",IFERROR(VLOOKUP(L51,Brassage!$B$45:$H$57,2,FALSE),"")) ->  | N51: =IF(L51="0","0",SUMIF(Brassage!$B$45:$B$57,L51,Brassage!$F$45:$F$57)) -> 0 | P51: =IF([2]Stock!J51="","",[2]Stock!J51) ->  | Q51: =IF([2]Stock!K51="","",[2]Stock!K51) ->  | R51: =IF(P51="","",IFERROR(VLOOKUP(P51,Brassage!$B$61:$H$62,1,FALSE),"")) ->  | S51: =IF(R51="0","0",IFERROR(VLOOKUP(P51,Brassage!$B$61:$H$62,7,FALSE),"0")) -> 0 | U51: =IF([2]Stock!M51="","",[2]Stock!M51) ->  | V51: =IF([2]Stock!N51="","",[2]Stock!N51) ->  | W51: =IF(U51="","",IFERROR(VLOOKUP(U51,Brassage!$B$39:$H$42,1,FALSE),"")) ->  | X51: =IF(U51="0","0",IFERROR(VLOOKUP(U51,Brassage!$B$39:$H$42,5,FALSE),"0")) -> 0
A52: =IF([2]Stock!A52="","",[2]Stock!A52) ->  | B52: =IF([2]Stock!B52="","",[2]Stock!B52) ->  | C52: =IF([2]Stock!C52="","",[2]Stock!C52) ->  | D52: =IF(A52="","",IFERROR(VLOOKUP(A52,Brassage!$B$25:$H$33,1,FALSE),"")) ->  | E52: =IF(A52="","",IFERROR(VLOOKUP(A52,Brassage!$B$25:$H$33,2,FALSE),"")) ->  | F52: =IF(Stock!D52="0","0",SUMIF(Brassage!$B$25:$B$33,Stock!D52,Brassage!$H$25:$H$33)) -> 0 | H52: =IF([2]Stock!E52="","",[2]Stock!E52) ->  | I52: =IF([2]Stock!F52="","",[2]Stock!F52) ->  | J52: =IF([2]Stock!G52="","",[2]Stock!G52) ->  | K52: =IF([2]Stock!H52="","",[2]Stock!H52) ->  | L52: =IF(H52="","",IFERROR(VLOOKUP(H52,Brassage!$B$45:$H$57,1,FALSE),"")) ->  | M52: =IF(L52="","",IFERROR(VLOOKUP(L52,Brassage!$B$45:$H$57,2,FALSE),"")) ->  | N52: =IF(L52="0","0",SUMIF(Brassage!$B$45:$B$57,L52,Brassage!$F$45:$F$57)) -> 0 | P52: =IF([2]Stock!J52="","",[2]Stock!J52) ->  | Q52: =IF([2]Stock!K52="","",[2]Stock!K52) ->  | R52: =IF(P52="","",IFERROR(VLOOKUP(P52,Brassage!$B$61:$H$62,1,FALSE),"")) ->  | S52: =IF(R52="0","0",IFERROR(VLOOKUP(P52,Brassage!$B$61:$H$62,7,FALSE),"0")) -> 0 | U52: =IF([2]Stock!M52="","",[2]Stock!M52) ->  | V52: =IF([2]Stock!N52="","",[2]Stock!N52) ->  | W52: =IF(U52="","",IFERROR(VLOOKUP(U52,Brassage!$B$39:$H$42,1,FALSE),"")) ->  | X52: =IF(U52="0","0",IFERROR(VLOOKUP(U52,Brassage!$B$39:$H$42,5,FALSE),"0")) -> 0
A53: =IF([2]Stock!A53="","",[2]Stock!A53) ->  | B53: =IF([2]Stock!B53="","",[2]Stock!B53) ->  | C53: =IF([2]Stock!C53="","",[2]Stock!C53) ->  | D53: =IF(A53="","",IFERROR(VLOOKUP(A53,Brassage!$B$25:$H$33,1,FALSE),"")) ->  | E53: =IF(A53="","",IFERROR(VLOOKUP(A53,Brassage!$B$25:$H$33,2,FALSE),"")) ->  | F53: =IF(Stock!D53="0","0",SUMIF(Brassage!$B$25:$B$33,Stock!D53,Brassage!$H$25:$H$33)) -> 0 | H53: =IF([2]Stock!E53="","",[2]Stock!E53) ->  | I53: =IF([2]Stock!F53="","",[2]Stock!F53) ->  | J53: =IF([2]Stock!G53="","",[2]Stock!G53) ->  | K53: =IF([2]Stock!H53="","",[2]Stock!H53) ->  | L53: =IF(H53="","",IFERROR(VLOOKUP(H53,Brassage!$B$45:$H$57,1,FALSE),"")) ->  | M53: =IF(L53="","",IFERROR(VLOOKUP(L53,Brassage!$B$45:$H$57,2,FALSE),"")) ->  | N53: =IF(L53="0","0",SUMIF(Brassage!$B$45:$B$57,L53,Brassage!$F$45:$F$57)) -> 0 | P53: =IF([2]Stock!J53="","",[2]Stock!J53) ->  | Q53: =IF([2]Stock!K53="","",[2]Stock!K53) ->  | R53: =IF(P53="","",IFERROR(VLOOKUP(P53,Brassage!$B$61:$H$62,1,FALSE),"")) ->  | S53: =IF(R53="0","0",IFERROR(VLOOKUP(P53,Brassage!$B$61:$H$62,7,FALSE),"0")) -> 0 | U53: =IF([2]Stock!M53="","",[2]Stock!M53) ->  | V53: =IF([2]Stock!N53="","",[2]Stock!N53) ->  | W53: =IF(U53="","",IFERROR(VLOOKUP(U53,Brassage!$B$39:$H$42,1,FALSE),"")) ->  | X53: =IF(U53="0","0",IFERROR(VLOOKUP(U53,Brassage!$B$39:$H$42,5,FALSE),"0")) -> 0
A54: =IF([2]Stock!A54="","",[2]Stock!A54) ->  | B54: =IF([2]Stock!B54="","",[2]Stock!B54) ->  | C54: =IF([2]Stock!C54="","",[2]Stock!C54) ->  | D54: =IF(A54="","",IFERROR(VLOOKUP(A54,Brassage!$B$25:$H$33,1,FALSE),"")) ->  | E54: =IF(A54="","",IFERROR(VLOOKUP(A54,Brassage!$B$25:$H$33,2,FALSE),"")) ->  | F54: =IF(Stock!D54="0","0",SUMIF(Brassage!$B$25:$B$33,Stock!D54,Brassage!$H$25:$H$33)) -> 0 | H54: =IF([2]Stock!E54="","",[2]Stock!E54) ->  | I54: =IF([2]Stock!F54="","",[2]Stock!F54) ->  | J54: =IF([2]Stock!G54="","",[2]Stock!G54) ->  | K54: =IF([2]Stock!H54="","",[2]Stock!H54) ->  | L54: =IF(H54="","",IFERROR(VLOOKUP(H54,Brassage!$B$45:$H$57,1,FALSE),"")) ->  | M54: =IF(L54="","",IFERROR(VLOOKUP(L54,Brassage!$B$45:$H$57,2,FALSE),"")) ->  | N54: =IF(L54="0","0",SUMIF(Brassage!$B$45:$B$57,L54,Brassage!$F$45:$F$57)) -> 0 | P54: =IF([2]Stock!J54="","",[2]Stock!J54) ->  | Q54: =IF([2]Stock!K54="","",[2]Stock!K54) ->  | R54: =IF(P54="","",IFERROR(VLOOKUP(P54,Brassage!$B$61:$H$62,1,FALSE),"")) ->  | S54: =IF(R54="0","0",IFERROR(VLOOKUP(P54,Brassage!$B$61:$H$62,7,FALSE),"0")) -> 0 | U54: =IF([2]Stock!M54="","",[2]Stock!M54) ->  | V54: =IF([2]Stock!N54="","",[2]Stock!N54) ->  | W54: =IF(U54="","",IFERROR(VLOOKUP(U54,Brassage!$B$39:$H$42,1,FALSE),"")) ->  | X54: =IF(U54="0","0",IFERROR(VLOOKUP(U54,Brassage!$B$39:$H$42,5,FALSE),"0")) -> 0
A55: =IF([2]Stock!A55="","",[2]Stock!A55) ->  | B55: =IF([2]Stock!B55="","",[2]Stock!B55) ->  | C55: =IF([2]Stock!C55="","",[2]Stock!C55) ->  | D55: =IF(A55="","",IFERROR(VLOOKUP(A55,Brassage!$B$25:$H$33,1,FALSE),"")) ->  | E55: =IF(A55="","",IFERROR(VLOOKUP(A55,Brassage!$B$25:$H$33,2,FALSE),"")) ->  | F55: =IF(Stock!D55="0","0",SUMIF(Brassage!$B$25:$B$33,Stock!D55,Brassage!$H$25:$H$33)) -> 0 | H55: =IF([2]Stock!E55="","",[2]Stock!E55) ->  | I55: =IF([2]Stock!F55="","",[2]Stock!F55) ->  | J55: =IF([2]Stock!G55="","",[2]Stock!G55) ->  | K55: =IF([2]Stock!H55="","",[2]Stock!H55) ->  | L55: =IF(H55="","",IFERROR(VLOOKUP(H55,Brassage!$B$45:$H$57,1,FALSE),"")) ->  | M55: =IF(L55="","",IFERROR(VLOOKUP(L55,Brassage!$B$45:$H$57,2,FALSE),"")) ->  | N55: =IF(L55="0","0",SUMIF(Brassage!$B$45:$B$57,L55,Brassage!$F$45:$F$57)) -> 0 | P55: =IF([2]Stock!J55="","",[2]Stock!J55) ->  | Q55: =IF([2]Stock!K55="","",[2]Stock!K55) ->  | R55: =IF(P55="","",IFERROR(VLOOKUP(P55,Brassage!$B$61:$H$62,1,FALSE),"")) ->  | S55: =IF(R55="0","0",IFERROR(VLOOKUP(P55,Brassage!$B$61:$H$62,7,FALSE),"0")) -> 0 | U55: =IF([2]Stock!M55="","",[2]Stock!M55) ->  | V55: =IF([2]Stock!N55="","",[2]Stock!N55) ->  | W55: =IF(U55="","",IFERROR(VLOOKUP(U55,Brassage!$B$39:$H$42,1,FALSE),"")) ->  | X55: =IF(U55="0","0",IFERROR(VLOOKUP(U55,Brassage!$B$39:$H$42,5,FALSE),"0")) -> 0
A56: =IF([2]Stock!A56="","",[2]Stock!A56) ->  | B56: =IF([2]Stock!B56="","",[2]Stock!B56) ->  | C56: =IF([2]Stock!C56="","",[2]Stock!C56) ->  | D56: =IF(A56="","",IFERROR(VLOOKUP(A56,Brassage!$B$25:$H$33,1,FALSE),"")) ->  | E56: =IF(A56="","",IFERROR(VLOOKUP(A56,Brassage!$B$25:$H$33,2,FALSE),"")) ->  | F56: =IF(Stock!D56="0","0",SUMIF(Brassage!$B$25:$B$33,Stock!D56,Brassage!$H$25:$H$33)) -> 0 | H56: =IF([2]Stock!E56="","",[2]Stock!E56) ->  | I56: =IF([2]Stock!F56="","",[2]Stock!F56) ->  | J56: =IF([2]Stock!G56="","",[2]Stock!G56) ->  | K56: =IF([2]Stock!H56="","",[2]Stock!H56) ->  | L56: =IF(H56="","",IFERROR(VLOOKUP(H56,Brassage!$B$45:$H$57,1,FALSE),"")) ->  | M56: =IF(L56="","",IFERROR(VLOOKUP(L56,Brassage!$B$45:$H$57,2,FALSE),"")) ->  | N56: =IF(L56="0","0",SUMIF(Brassage!$B$45:$B$57,L56,Brassage!$F$45:$F$57)) -> 0 | P56: =IF([2]Stock!J56="","",[2]Stock!J56) ->  | Q56: =IF([2]Stock!K56="","",[2]Stock!K56) ->  | R56: =IF(P56="","",IFERROR(VLOOKUP(P56,Brassage!$B$61:$H$62,1,FALSE),"")) ->  | S56: =IF(R56="0","0",IFERROR(VLOOKUP(P56,Brassage!$B$61:$H$62,7,FALSE),"0")) -> 0 | U56: =IF([2]Stock!M56="","",[2]Stock!M56) ->  | V56: =IF([2]Stock!N56="","",[2]Stock!N56) ->  | W56: =IF(U56="","",IFERROR(VLOOKUP(U56,Brassage!$B$39:$H$42,1,FALSE),"")) ->  | X56: =IF(U56="0","0",IFERROR(VLOOKUP(U56,Brassage!$B$39:$H$42,5,FALSE),"0")) -> 0
A57: =IF([2]Stock!A57="","",[2]Stock!A57) ->  | B57: =IF([2]Stock!B57="","",[2]Stock!B57) ->  | C57: =IF([2]Stock!C57="","",[2]Stock!C57) ->  | D57: =IF(A57="","",IFERROR(VLOOKUP(A57,Brassage!$B$25:$H$33,1,FALSE),"")) ->  | E57: =IF(A57="","",IFERROR(VLOOKUP(A57,Brassage!$B$25:$H$33,2,FALSE),"")) ->  | F57: =IF(Stock!D57="0","0",SUMIF(Brassage!$B$25:$B$33,Stock!D57,Brassage!$H$25:$H$33)) -> 0 | H57: =IF([2]Stock!E57="","",[2]Stock!E57) ->  | I57: =IF([2]Stock!F57="","",[2]Stock!F57) ->  | J57: =IF([2]Stock!G57="","",[2]Stock!G57) ->  | K57: =IF([2]Stock!H57="","",[2]Stock!H57) ->  | L57: =IF(H57="","",IFERROR(VLOOKUP(H57,Brassage!$B$45:$H$57,1,FALSE),"")) ->  | M57: =IF(L57="","",IFERROR(VLOOKUP(L57,Brassage!$B$45:$H$57,2,FALSE),"")) ->  | N57: =IF(L57="0","0",SUMIF(Brassage!$B$45:$B$57,L57,Brassage!$F$45:$F$57)) -> 0 | P57: =IF([2]Stock!J57="","",[2]Stock!J57) ->  | Q57: =IF([2]Stock!K57="","",[2]Stock!K57) ->  | R57: =IF(P57="","",IFERROR(VLOOKUP(P57,Brassage!$B$61:$H$62,1,FALSE),"")) ->  | S57: =IF(R57="0","0",IFERROR(VLOOKUP(P57,Brassage!$B$61:$H$62,7,FALSE),"0")) -> 0 | U57: =IF([2]Stock!M57="","",[2]Stock!M57) ->  | V57: =IF([2]Stock!N57="","",[2]Stock!N57) ->  | W57: =IF(U57="","",IFERROR(VLOOKUP(U57,Brassage!$B$39:$H$42,1,FALSE),"")) ->  | X57: =IF(U57="0","0",IFERROR(VLOOKUP(U57,Brassage!$B$39:$H$42,5,FALSE),"0")) -> 0
A58: =IF([2]Stock!A58="","",[2]Stock!A58) ->  | B58: =IF([2]Stock!B58="","",[2]Stock!B58) ->  | C58: =IF([2]Stock!C58="","",[2]Stock!C58) ->  | D58: =IF(A58="","",IFERROR(VLOOKUP(A58,Brassage!$B$25:$H$33,1,FALSE),"")) ->  | E58: =IF(A58="","",IFERROR(VLOOKUP(A58,Brassage!$B$25:$H$33,2,FALSE),"")) ->  | F58: =IF(Stock!D58="0","0",SUMIF(Brassage!$B$25:$B$33,Stock!D58,Brassage!$H$25:$H$33)) -> 0 | H58: =IF([2]Stock!E58="","",[2]Stock!E58) ->  | I58: =IF([2]Stock!F58="","",[2]Stock!F58) ->  | J58: =IF([2]Stock!G58="","",[2]Stock!G58) ->  | K58: =IF([2]Stock!H58="","",[2]Stock!H58) ->  | L58: =IF(H58="","",IFERROR(VLOOKUP(H58,Brassage!$B$45:$H$57,1,FALSE),"")) ->  | M58: =IF(L58="","",IFERROR(VLOOKUP(L58,Brassage!$B$45:$H$57,2,FALSE),"")) ->  | N58: =IF(L58="0","0",SUMIF(Brassage!$B$45:$B$57,L58,Brassage!$F$45:$F$57)) -> 0 | P58: =IF([2]Stock!J58="","",[2]Stock!J58) ->  | Q58: =IF([2]Stock!K58="","",[2]Stock!K58) ->  | R58: =IF(P58="","",IFERROR(VLOOKUP(P58,Brassage!$B$61:$H$62,1,FALSE),"")) ->  | S58: =IF(R58="0","0",IFERROR(VLOOKUP(P58,Brassage!$B$61:$H$62,7,FALSE),"0")) -> 0 | U58: =IF([2]Stock!M58="","",[2]Stock!M58) ->  | V58: =IF([2]Stock!N58="","",[2]Stock!N58) ->  | W58: =IF(U58="","",IFERROR(VLOOKUP(U58,Brassage!$B$39:$H$42,1,FALSE),"")) ->  | X58: =IF(U58="0","0",IFERROR(VLOOKUP(U58,Brassage!$B$39:$H$42,5,FALSE),"0")) -> 0
A59: =IF([2]Stock!A59="","",[2]Stock!A59) ->  | B59: =IF([2]Stock!B59="","",[2]Stock!B59) ->  | C59: =IF([2]Stock!C59="","",[2]Stock!C59) ->  | D59: =IF(A59="","",IFERROR(VLOOKUP(A59,Brassage!$B$25:$H$33,1,FALSE),"")) ->  | E59: =IF(A59="","",IFERROR(VLOOKUP(A59,Brassage!$B$25:$H$33,2,FALSE),"")) ->  | F59: =IF(Stock!D59="0","0",SUMIF(Brassage!$B$25:$B$33,Stock!D59,Brassage!$H$25:$H$33)) -> 0 | H59: =IF([2]Stock!E59="","",[2]Stock!E59) ->  | I59: =IF([2]Stock!F59="","",[2]Stock!F59) ->  | J59: =IF([2]Stock!G59="","",[2]Stock!G59) ->  | K59: =IF([2]Stock!H59="","",[2]Stock!H59) ->  | L59: =IF(H59="","",IFERROR(VLOOKUP(H59,Brassage!$B$45:$H$57,1,FALSE),"")) ->  | M59: =IF(L59="","",IFERROR(VLOOKUP(L59,Brassage!$B$45:$H$57,2,FALSE),"")) ->  | N59: =IF(L59="0","0",SUMIF(Brassage!$B$45:$B$57,L59,Brassage!$F$45:$F$57)) -> 0 | P59: =IF([2]Stock!J59="","",[2]Stock!J59) ->  | Q59: =IF([2]Stock!K59="","",[2]Stock!K59) ->  | R59: =IF(P59="","",IFERROR(VLOOKUP(P59,Brassage!$B$61:$H$62,1,FALSE),"")) ->  | S59: =IF(R59="0","0",IFERROR(VLOOKUP(P59,Brassage!$B$61:$H$62,7,FALSE),"0")) -> 0 | U59: =IF([2]Stock!M59="","",[2]Stock!M59) ->  | V59: =IF([2]Stock!N59="","",[2]Stock!N59) ->  | W59: =IF(U59="","",IFERROR(VLOOKUP(U59,Brassage!$B$39:$H$42,1,FALSE),"")) ->  | X59: =IF(U59="0","0",IFERROR(VLOOKUP(U59,Brassage!$B$39:$H$42,5,FALSE),"0")) -> 0
A60: =IF([2]Stock!A60="","",[2]Stock!A60) ->  | B60: =IF([2]Stock!B60="","",[2]Stock!B60) ->  | C60: =IF([2]Stock!C60="","",[2]Stock!C60) ->  | D60: =IF(A60="","",IFERROR(VLOOKUP(A60,Brassage!$B$25:$H$33,1,FALSE),"")) ->  | E60: =IF(A60="","",IFERROR(VLOOKUP(A60,Brassage!$B$25:$H$33,2,FALSE),"")) ->  | F60: =IF(Stock!D60="0","0",SUMIF(Brassage!$B$25:$B$33,Stock!D60,Brassage!$H$25:$H$33)) -> 0 | H60: =IF([2]Stock!E60="","",[2]Stock!E60) ->  | I60: =IF([2]Stock!F60="","",[2]Stock!F60) ->  | J60: =IF([2]Stock!G60="","",[2]Stock!G60) ->  | K60: =IF([2]Stock!H60="","",[2]Stock!H60) ->  | L60: =IF(H60="","",IFERROR(VLOOKUP(H60,Brassage!$B$45:$H$57,1,FALSE),"")) ->  | M60: =IF(L60="","",IFERROR(VLOOKUP(L60,Brassage!$B$45:$H$57,2,FALSE),"")) ->  | N60: =IF(L60="0","0",SUMIF(Brassage!$B$45:$B$57,L60,Brassage!$F$45:$F$57)) -> 0 | P60: =IF([2]Stock!J60="","",[2]Stock!J60) ->  | Q60: =IF([2]Stock!K60="","",[2]Stock!K60) ->  | R60: =IF(P60="","",IFERROR(VLOOKUP(P60,Brassage!$B$61:$H$62,1,FALSE),"")) ->  | S60: =IF(R60="0","0",IFERROR(VLOOKUP(P60,Brassage!$B$61:$H$62,7,FALSE),"0")) -> 0 | U60: =IF([2]Stock!M60="","",[2]Stock!M60) ->  | V60: =IF([2]Stock!N60="","",[2]Stock!N60) ->  | W60: =IF(U60="","",IFERROR(VLOOKUP(U60,Brassage!$B$39:$H$42,1,FALSE),"")) ->  | X60: =IF(U60="0","0",IFERROR(VLOOKUP(U60,Brassage!$B$39:$H$42,5,FALSE),"0")) -> 0
A61: =IF([2]Stock!A61="","",[2]Stock!A61) ->  | B61: =IF([2]Stock!B61="","",[2]Stock!B61) ->  | C61: =IF([2]Stock!C61="","",[2]Stock!C61) ->  | D61: =IF(A61="","",IFERROR(VLOOKUP(A61,Brassage!$B$25:$H$33,1,FALSE),"")) ->  | E61: =IF(A61="","",IFERROR(VLOOKUP(A61,Brassage!$B$25:$H$33,2,FALSE),"")) ->  | F61: =IF(Stock!D61="0","0",SUMIF(Brassage!$B$25:$B$33,Stock!D61,Brassage!$H$25:$H$33)) -> 0 | H61: =IF([2]Stock!E61="","",[2]Stock!E61) ->  | I61: =IF([2]Stock!F61="","",[2]Stock!F61) ->  | J61: =IF([2]Stock!G61="","",[2]Stock!G61) ->  | K61: =IF([2]Stock!H61="","",[2]Stock!H61) ->  | L61: =IF(H61="","",IFERROR(VLOOKUP(H61,Brassage!$B$45:$H$57,1,FALSE),"")) ->  | M61: =IF(L61="","",IFERROR(VLOOKUP(L61,Brassage!$B$45:$H$57,2,FALSE),"")) ->  | N61: =IF(L61="0","0",SUMIF(Brassage!$B$45:$B$57,L61,Brassage!$F$45:$F$57)) -> 0 | P61: =IF([2]Stock!J61="","",[2]Stock!J61) ->  | Q61: =IF([2]Stock!K61="","",[2]Stock!K61) ->  | R61: =IF(P61="","",IFERROR(VLOOKUP(P61,Brassage!$B$61:$H$62,1,FALSE),"")) ->  | S61: =IF(R61="0","0",IFERROR(VLOOKUP(P61,Brassage!$B$61:$H$62,7,FALSE),"0")) -> 0 | U61: =IF([2]Stock!M61="","",[2]Stock!M61) ->  | V61: =IF([2]Stock!N61="","",[2]Stock!N61) ->  | W61: =IF(U61="","",IFERROR(VLOOKUP(U61,Brassage!$B$39:$H$42,1,FALSE),"")) ->  | X61: =IF(U61="0","0",IFERROR(VLOOKUP(U61,Brassage!$B$39:$H$42,5,FALSE),"0")) -> 0
A62: =IF([2]Stock!A62="","",[2]Stock!A62) ->  | B62: =IF([2]Stock!B62="","",[2]Stock!B62) ->  | C62: =IF([2]Stock!C62="","",[2]Stock!C62) ->  | D62: =IF(A62="","",IFERROR(VLOOKUP(A62,Brassage!$B$25:$H$33,1,FALSE),"")) ->  | E62: =IF(A62="","",IFERROR(VLOOKUP(A62,Brassage!$B$25:$H$33,2,FALSE),"")) ->  | F62: =IF(Stock!D62="0","0",SUMIF(Brassage!$B$25:$B$33,Stock!D62,Brassage!$H$25:$H$33)) -> 0 | H62: =IF([2]Stock!E62="","",[2]Stock!E62) ->  | I62: =IF([2]Stock!F62="","",[2]Stock!F62) ->  | J62: =IF([2]Stock!G62="","",[2]Stock!G62) ->  | K62: =IF([2]Stock!H62="","",[2]Stock!H62) ->  | L62: =IF(H62="","",IFERROR(VLOOKUP(H62,Brassage!$B$45:$H$57,1,FALSE),"")) ->  | M62: =IF(L62="","",IFERROR(VLOOKUP(L62,Brassage!$B$45:$H$57,2,FALSE),"")) ->  | N62: =IF(L62="0","0",SUMIF(Brassage!$B$45:$B$57,L62,Brassage!$F$45:$F$57)) -> 0 | P62: =IF([2]Stock!J62="","",[2]Stock!J62) ->  | Q62: =IF([2]Stock!K62="","",[2]Stock!K62) ->  | R62: =IF(P62="","",IFERROR(VLOOKUP(P62,Brassage!$B$61:$H$62,1,FALSE),"")) ->  | S62: =IF(R62="0","0",IFERROR(VLOOKUP(P62,Brassage!$B$61:$H$62,7,FALSE),"0")) -> 0 | U62: =IF([2]Stock!M62="","",[2]Stock!M62) ->  | V62: =IF([2]Stock!N62="","",[2]Stock!N62) ->  | W62: =IF(U62="","",IFERROR(VLOOKUP(U62,Brassage!$B$39:$H$42,1,FALSE),"")) ->  | X62: =IF(U62="0","0",IFERROR(VLOOKUP(U62,Brassage!$B$39:$H$42,5,FALSE),"0")) -> 0
A63: =IF([2]Stock!A63="","",[2]Stock!A63) ->  | B63: =IF([2]Stock!B63="","",[2]Stock!B63) ->  | C63: =IF([2]Stock!C63="","",[2]Stock!C63) ->  | D63: =IF(A63="","",IFERROR(VLOOKUP(A63,Brassage!$B$25:$H$33,1,FALSE),"")) ->  | E63: =IF(A63="","",IFERROR(VLOOKUP(A63,Brassage!$B$25:$H$33,2,FALSE),"")) ->  | F63: =IF(Stock!D63="0","0",SUMIF(Brassage!$B$25:$B$33,Stock!D63,Brassage!$H$25:$H$33)) -> 0 | H63: =IF([2]Stock!E63="","",[2]Stock!E63) ->  | I63: =IF([2]Stock!F63="","",[2]Stock!F63) ->  | J63: =IF([2]Stock!G63="","",[2]Stock!G63) ->  | K63: =IF([2]Stock!H63="","",[2]Stock!H63) ->  | L63: =IF(H63="","",IFERROR(VLOOKUP(H63,Brassage!$B$45:$H$57,1,FALSE),"")) ->  | M63: =IF(L63="","",IFERROR(VLOOKUP(L63,Brassage!$B$45:$H$57,2,FALSE),"")) ->  | N63: =IF(L63="0","0",SUMIF(Brassage!$B$45:$B$57,L63,Brassage!$F$45:$F$57)) -> 0 | P63: =IF([2]Stock!J63="","",[2]Stock!J63) ->  | Q63: =IF([2]Stock!K63="","",[2]Stock!K63) ->  | R63: =IF(P63="","",IFERROR(VLOOKUP(P63,Brassage!$B$61:$H$62,1,FALSE),"")) ->  | S63: =IF(R63="0","0",IFERROR(VLOOKUP(P63,Brassage!$B$61:$H$62,7,FALSE),"0")) -> 0 | U63: =IF([2]Stock!M63="","",[2]Stock!M63) ->  | V63: =IF([2]Stock!N63="","",[2]Stock!N63) ->  | W63: =IF(U63="","",IFERROR(VLOOKUP(U63,Brassage!$B$39:$H$42,1,FALSE),"")) ->  | X63: =IF(U63="0","0",IFERROR(VLOOKUP(U63,Brassage!$B$39:$H$42,5,FALSE),"0")) -> 0
A64: =IF([2]Stock!A64="","",[2]Stock!A64) ->  | B64: =IF([2]Stock!B64="","",[2]Stock!B64) ->  | C64: =IF([2]Stock!C64="","",[2]Stock!C64) ->  | D64: =IF(A64="","",IFERROR(VLOOKUP(A64,Brassage!$B$25:$H$33,1,FALSE),"")) ->  | E64: =IF(A64="","",IFERROR(VLOOKUP(A64,Brassage!$B$25:$H$33,2,FALSE),"")) ->  | F64: =IF(Stock!D64="0","0",SUMIF(Brassage!$B$25:$B$33,Stock!D64,Brassage!$H$25:$H$33)) -> 0 | H64: =IF([2]Stock!E64="","",[2]Stock!E64) ->  | I64: =IF([2]Stock!F64="","",[2]Stock!F64) ->  | J64: =IF([2]Stock!G64="","",[2]Stock!G64) ->  | K64: =IF([2]Stock!H64="","",[2]Stock!H64) ->  | L64: =IF(H64="","",IFERROR(VLOOKUP(H64,Brassage!$B$45:$H$57,1,FALSE),"")) ->  | M64: =IF(L64="","",IFERROR(VLOOKUP(L64,Brassage!$B$45:$H$57,2,FALSE),"")) ->  | N64: =IF(L64="0","0",SUMIF(Brassage!$B$45:$B$57,L64,Brassage!$F$45:$F$57)) -> 0 | P64: =IF([2]Stock!J64="","",[2]Stock!J64) ->  | Q64: =IF([2]Stock!K64="","",[2]Stock!K64) ->  | R64: =IF(P64="","",IFERROR(VLOOKUP(P64,Brassage!$B$61:$H$62,1,FALSE),"")) ->  | S64: =IF(R64="0","0",IFERROR(VLOOKUP(P64,Brassage!$B$61:$H$62,7,FALSE),"0")) -> 0 | U64: =IF([2]Stock!M64="","",[2]Stock!M64) ->  | V64: =IF([2]Stock!N64="","",[2]Stock!N64) ->  | W64: =IF(U64="","",IFERROR(VLOOKUP(U64,Brassage!$B$39:$H$42,1,FALSE),"")) ->  | X64: =IF(U64="0","0",IFERROR(VLOOKUP(U64,Brassage!$B$39:$H$42,5,FALSE),"0")) -> 0
A65: =IF([2]Stock!A65="","",[2]Stock!A65) ->  | B65: =IF([2]Stock!B65="","",[2]Stock!B65) ->  | C65: =IF([2]Stock!C65="","",[2]Stock!C65) ->  | D65: =IF(A65="","",IFERROR(VLOOKUP(A65,Brassage!$B$25:$H$33,1,FALSE),"")) ->  | E65: =IF(A65="","",IFERROR(VLOOKUP(A65,Brassage!$B$25:$H$33,2,FALSE),"")) ->  | F65: =IF(Stock!D65="0","0",SUMIF(Brassage!$B$25:$B$33,Stock!D65,Brassage!$H$25:$H$33)) -> 0 | H65: =IF([2]Stock!E65="","",[2]Stock!E65) ->  | I65: =IF([2]Stock!F65="","",[2]Stock!F65) ->  | J65: =IF([2]Stock!G65="","",[2]Stock!G65) ->  | K65: =IF([2]Stock!H65="","",[2]Stock!H65) ->  | L65: =IF(H65="","",IFERROR(VLOOKUP(H65,Brassage!$B$45:$H$57,1,FALSE),"")) ->  | M65: =IF(L65="","",IFERROR(VLOOKUP(L65,Brassage!$B$45:$H$57,2,FALSE),"")) ->  | N65: =IF(L65="0","0",SUMIF(Brassage!$B$45:$B$57,L65,Brassage!$F$45:$F$57)) -> 0 | P65: =IF([2]Stock!J65="","",[2]Stock!J65) ->  | Q65: =IF([2]Stock!K65="","",[2]Stock!K65) ->  | R65: =IF(P65="","",IFERROR(VLOOKUP(P65,Brassage!$B$61:$H$62,1,FALSE),"")) ->  | S65: =IF(R65="0","0",IFERROR(VLOOKUP(P65,Brassage!$B$61:$H$62,7,FALSE),"0")) -> 0 | U65: =IF([2]Stock!M65="","",[2]Stock!M65) ->  | V65: =IF([2]Stock!N65="","",[2]Stock!N65) ->  | W65: =IF(U65="","",IFERROR(VLOOKUP(U65,Brassage!$B$39:$H$42,1,FALSE),"")) ->  | X65: =IF(U65="0","0",IFERROR(VLOOKUP(U65,Brassage!$B$39:$H$42,5,FALSE),"0")) -> 0
A66: =IF([2]Stock!A66="","",[2]Stock!A66) ->  | B66: =IF([2]Stock!B66="","",[2]Stock!B66) ->  | C66: =IF([2]Stock!C66="","",[2]Stock!C66) ->  | D66: =IF(A66="","",IFERROR(VLOOKUP(A66,Brassage!$B$25:$H$33,1,FALSE),"")) ->  | E66: =IF(A66="","",IFERROR(VLOOKUP(A66,Brassage!$B$25:$H$33,2,FALSE),"")) ->  | F66: =IF(Stock!D66="0","0",SUMIF(Brassage!$B$25:$B$33,Stock!D66,Brassage!$H$25:$H$33)) -> 0 | H66: =IF([2]Stock!E66="","",[2]Stock!E66) ->  | I66: =IF([2]Stock!F66="","",[2]Stock!F66) ->  | J66: =IF([2]Stock!G66="","",[2]Stock!G66) ->  | K66: =IF([2]Stock!H66="","",[2]Stock!H66) ->  | L66: =IF(H66="","",IFERROR(VLOOKUP(H66,Brassage!$B$45:$H$57,1,FALSE),"")) ->  | M66: =IF(L66="","",IFERROR(VLOOKUP(L66,Brassage!$B$45:$H$57,2,FALSE),"")) ->  | N66: =IF(L66="0","0",SUMIF(Brassage!$B$45:$B$57,L66,Brassage!$F$45:$F$57)) -> 0 | P66: =IF([2]Stock!J66="","",[2]Stock!J66) ->  | Q66: =IF([2]Stock!K66="","",[2]Stock!K66) ->  | R66: =IF(P66="","",IFERROR(VLOOKUP(P66,Brassage!$B$61:$H$62,1,FALSE),"")) ->  | S66: =IF(R66="0","0",IFERROR(VLOOKUP(P66,Brassage!$B$61:$H$62,7,FALSE),"0")) -> 0 | U66: =IF([2]Stock!M66="","",[2]Stock!M66) ->  | V66: =IF([2]Stock!N66="","",[2]Stock!N66) ->  | W66: =IF(U66="","",IFERROR(VLOOKUP(U66,Brassage!$B$39:$H$42,1,FALSE),"")) ->  | X66: =IF(U66="0","0",IFERROR(VLOOKUP(U66,Brassage!$B$39:$H$42,5,FALSE),"0")) -> 0
A67: =IF([2]Stock!A67="","",[2]Stock!A67) ->  | B67: =IF([2]Stock!B67="","",[2]Stock!B67) ->  | C67: =IF([2]Stock!C67="","",[2]Stock!C67) ->  | D67: =IF(A67="","",IFERROR(VLOOKUP(A67,Brassage!$B$25:$H$33,1,FALSE),"")) ->  | E67: =IF(A67="","",IFERROR(VLOOKUP(A67,Brassage!$B$25:$H$33,2,FALSE),"")) ->  | F67: =IF(Stock!D67="0","0",SUMIF(Brassage!$B$25:$B$33,Stock!D67,Brassage!$H$25:$H$33)) -> 0 | H67: =IF([2]Stock!E67="","",[2]Stock!E67) ->  | I67: =IF([2]Stock!F67="","",[2]Stock!F67) ->  | J67: =IF([2]Stock!G67="","",[2]Stock!G67) ->  | K67: =IF([2]Stock!H67="","",[2]Stock!H67) ->  | L67: =IF(H67="","",IFERROR(VLOOKUP(H67,Brassage!$B$45:$H$57,1,FALSE),"")) ->  | M67: =IF(L67="","",IFERROR(VLOOKUP(L67,Brassage!$B$45:$H$57,2,FALSE),"")) ->  | N67: =IF(L67="0","0",SUMIF(Brassage!$B$45:$B$57,L67,Brassage!$F$45:$F$57)) -> 0 | P67: =IF([2]Stock!J67="","",[2]Stock!J67) ->  | Q67: =IF([2]Stock!K67="","",[2]Stock!K67) ->  | R67: =IF(P67="","",IFERROR(VLOOKUP(P67,Brassage!$B$61:$H$62,1,FALSE),"")) ->  | S67: =IF(R67="0","0",IFERROR(VLOOKUP(P67,Brassage!$B$61:$H$62,7,FALSE),"0")) -> 0 | U67: =IF([2]Stock!M67="","",[2]Stock!M67) ->  | V67: =IF([2]Stock!N67="","",[2]Stock!N67) ->  | W67: =IF(U67="","",IFERROR(VLOOKUP(U67,Brassage!$B$39:$H$42,1,FALSE),"")) ->  | X67: =IF(U67="0","0",IFERROR(VLOOKUP(U67,Brassage!$B$39:$H$42,5,FALSE),"0")) -> 0
A68: =IF([2]Stock!A68="","",[2]Stock!A68) ->  | B68: =IF([2]Stock!B68="","",[2]Stock!B68) ->  | C68: =IF([2]Stock!C68="","",[2]Stock!C68) ->  | D68: =IF(A68="","",IFERROR(VLOOKUP(A68,Brassage!$B$25:$H$33,1,FALSE),"")) ->  | E68: =IF(A68="","",IFERROR(VLOOKUP(A68,Brassage!$B$25:$H$33,2,FALSE),"")) ->  | F68: =IF(Stock!D68="0","0",SUMIF(Brassage!$B$25:$B$33,Stock!D68,Brassage!$H$25:$H$33)) -> 0 | H68: =IF([2]Stock!E68="","",[2]Stock!E68) ->  | I68: =IF([2]Stock!F68="","",[2]Stock!F68) ->  | J68: =IF([2]Stock!G68="","",[2]Stock!G68) ->  | K68: =IF([2]Stock!H68="","",[2]Stock!H68) ->  | L68: =IF(H68="","",IFERROR(VLOOKUP(H68,Brassage!$B$45:$H$57,1,FALSE),"")) ->  | M68: =IF(L68="","",IFERROR(VLOOKUP(L68,Brassage!$B$45:$H$57,2,FALSE),"")) ->  | N68: =IF(L68="0","0",SUMIF(Brassage!$B$45:$B$57,L68,Brassage!$F$45:$F$57)) -> 0 | P68: =IF([2]Stock!J68="","",[2]Stock!J68) ->  | Q68: =IF([2]Stock!K68="","",[2]Stock!K68) ->  | R68: =IF(P68="","",IFERROR(VLOOKUP(P68,Brassage!$B$61:$H$62,1,FALSE),"")) ->  | S68: =IF(R68="0","0",IFERROR(VLOOKUP(P68,Brassage!$B$61:$H$62,7,FALSE),"0")) -> 0 | U68: =IF([2]Stock!M68="","",[2]Stock!M68) ->  | V68: =IF([2]Stock!N68="","",[2]Stock!N68) ->  | W68: =IF(U68="","",IFERROR(VLOOKUP(U68,Brassage!$B$39:$H$42,1,FALSE),"")) ->  | X68: =IF(U68="0","0",IFERROR(VLOOKUP(U68,Brassage!$B$39:$H$42,5,FALSE),"0")) -> 0
A69: =IF([2]Stock!A69="","",[2]Stock!A69) ->  | B69: =IF([2]Stock!B69="","",[2]Stock!B69) ->  | C69: =IF([2]Stock!C69="","",[2]Stock!C69) ->  | D69: =IF(A69="","",IFERROR(VLOOKUP(A69,Brassage!$B$25:$H$33,1,FALSE),"")) ->  | E69: =IF(A69="","",IFERROR(VLOOKUP(A69,Brassage!$B$25:$H$33,2,FALSE),"")) ->  | F69: =IF(Stock!D69="0","0",SUMIF(Brassage!$B$25:$B$33,Stock!D69,Brassage!$H$25:$H$33)) -> 0 | H69: =IF([2]Stock!E69="","",[2]Stock!E69) ->  | I69: =IF([2]Stock!F69="","",[2]Stock!F69) ->  | J69: =IF([2]Stock!G69="","",[2]Stock!G69) ->  | K69: =IF([2]Stock!H69="","",[2]Stock!H69) ->  | L69: =IF(H69="","",IFERROR(VLOOKUP(H69,Brassage!$B$45:$H$57,1,FALSE),"")) ->  | M69: =IF(L69="","",IFERROR(VLOOKUP(L69,Brassage!$B$45:$H$57,2,FALSE),"")) ->  | N69: =IF(L69="0","0",SUMIF(Brassage!$B$45:$B$57,L69,Brassage!$F$45:$F$57)) -> 0 | P69: =IF([2]Stock!J69="","",[2]Stock!J69) ->  | Q69: =IF([2]Stock!K69="","",[2]Stock!K69) ->  | R69: =IF(P69="","",IFERROR(VLOOKUP(P69,Brassage!$B$61:$H$62,1,FALSE),"")) ->  | S69: =IF(R69="0","0",IFERROR(VLOOKUP(P69,Brassage!$B$61:$H$62,7,FALSE),"0")) -> 0 | U69: =IF([2]Stock!M69="","",[2]Stock!M69) ->  | V69: =IF([2]Stock!N69="","",[2]Stock!N69) ->  | W69: =IF(U69="","",IFERROR(VLOOKUP(U69,Brassage!$B$39:$H$42,1,FALSE),"")) ->  | X69: =IF(U69="0","0",IFERROR(VLOOKUP(U69,Brassage!$B$39:$H$42,5,FALSE),"0")) -> 0
A70: =IF([2]Stock!A70="","",[2]Stock!A70) ->  | B70: =IF([2]Stock!B70="","",[2]Stock!B70) ->  | C70: =IF([2]Stock!C70="","",[2]Stock!C70) ->  | D70: =IF(A70="","",IFERROR(VLOOKUP(A70,Brassage!$B$25:$H$33,1,FALSE),"")) ->  | E70: =IF(A70="","",IFERROR(VLOOKUP(A70,Brassage!$B$25:$H$33,2,FALSE),"")) ->  | F70: =IF(Stock!D70="0","0",SUMIF(Brassage!$B$25:$B$33,Stock!D70,Brassage!$H$25:$H$33)) -> 0 | H70: =IF([2]Stock!E70="","",[2]Stock!E70) ->  | I70: =IF([2]Stock!F70="","",[2]Stock!F70) ->  | J70: =IF([2]Stock!G70="","",[2]Stock!G70) ->  | K70: =IF([2]Stock!H70="","",[2]Stock!H70) ->  | L70: =IF(H70="","",IFERROR(VLOOKUP(H70,Brassage!$B$45:$H$57,1,FALSE),"")) ->  | M70: =IF(L70="","",IFERROR(VLOOKUP(L70,Brassage!$B$45:$H$57,2,FALSE),"")) ->  | N70: =IF(L70="0","0",SUMIF(Brassage!$B$45:$B$57,L70,Brassage!$F$45:$F$57)) -> 0 | P70: =IF([2]Stock!J70="","",[2]Stock!J70) ->  | Q70: =IF([2]Stock!K70="","",[2]Stock!K70) ->  | R70: =IF(P70="","",IFERROR(VLOOKUP(P70,Brassage!$B$61:$H$62,1,FALSE),"")) ->  | S70: =IF(R70="0","0",IFERROR(VLOOKUP(P70,Brassage!$B$61:$H$62,7,FALSE),"0")) -> 0 | U70: =IF([2]Stock!M70="","",[2]Stock!M70) ->  | V70: =IF([2]Stock!N70="","",[2]Stock!N70) ->  | W70: =IF(U70="","",IFERROR(VLOOKUP(U70,Brassage!$B$39:$H$42,1,FALSE),"")) ->  | X70: =IF(U70="0","0",IFERROR(VLOOKUP(U70,Brassage!$B$39:$H$42,5,FALSE),"0")) -> 0
A71: =IF([2]Stock!A71="","",[2]Stock!A71) ->  | B71: =IF([2]Stock!B71="","",[2]Stock!B71) ->  | C71: =IF([2]Stock!C71="","",[2]Stock!C71) ->  | D71: =IF(A71="","",IFERROR(VLOOKUP(A71,Brassage!$B$25:$H$33,1,FALSE),"")) ->  | E71: =IF(A71="","",IFERROR(VLOOKUP(A71,Brassage!$B$25:$H$33,2,FALSE),"")) ->  | F71: =IF(Stock!D71="0","0",SUMIF(Brassage!$B$25:$B$33,Stock!D71,Brassage!$H$25:$H$33)) -> 0 | H71: =IF([2]Stock!E71="","",[2]Stock!E71) ->  | I71: =IF([2]Stock!F71="","",[2]Stock!F71) ->  | J71: =IF([2]Stock!G71="","",[2]Stock!G71) ->  | K71: =IF([2]Stock!H71="","",[2]Stock!H71) ->  | L71: =IF(H71="","",IFERROR(VLOOKUP(H71,Brassage!$B$45:$H$57,1,FALSE),"")) ->  | M71: =IF(L71="","",IFERROR(VLOOKUP(L71,Brassage!$B$45:$H$57,2,FALSE),"")) ->  | N71: =IF(L71="0","0",SUMIF(Brassage!$B$45:$B$57,L71,Brassage!$F$45:$F$57)) -> 0 | P71: =IF([2]Stock!J71="","",[2]Stock!J71) ->  | Q71: =IF([2]Stock!K71="","",[2]Stock!K71) ->  | R71: =IF(P71="","",IFERROR(VLOOKUP(P71,Brassage!$B$61:$H$62,1,FALSE),"")) ->  | S71: =IF(R71="0","0",IFERROR(VLOOKUP(P71,Brassage!$B$61:$H$62,7,FALSE),"0")) -> 0 | U71: =IF([2]Stock!M71="","",[2]Stock!M71) ->  | V71: =IF([2]Stock!N71="","",[2]Stock!N71) ->  | W71: =IF(U71="","",IFERROR(VLOOKUP(U71,Brassage!$B$39:$H$42,1,FALSE),"")) ->  | X71: =IF(U71="0","0",IFERROR(VLOOKUP(U71,Brassage!$B$39:$H$42,5,FALSE),"0")) -> 0
A72: =IF([2]Stock!A72="","",[2]Stock!A72) ->  | B72: =IF([2]Stock!B72="","",[2]Stock!B72) ->  | C72: =IF([2]Stock!C72="","",[2]Stock!C72) ->  | D72: =IF(A72="","",IFERROR(VLOOKUP(A72,Brassage!$B$25:$H$33,1,FALSE),"")) ->  | E72: =IF(A72="","",IFERROR(VLOOKUP(A72,Brassage!$B$25:$H$33,2,FALSE),"")) ->  | F72: =IF(Stock!D72="0","0",SUMIF(Brassage!$B$25:$B$33,Stock!D72,Brassage!$H$25:$H$33)) -> 0 | H72: =IF([2]Stock!E72="","",[2]Stock!E72) ->  | I72: =IF([2]Stock!F72="","",[2]Stock!F72) ->  | J72: =IF([2]Stock!G72="","",[2]Stock!G72) ->  | K72: =IF([2]Stock!H72="","",[2]Stock!H72) ->  | L72: =IF(H72="","",IFERROR(VLOOKUP(H72,Brassage!$B$45:$H$57,1,FALSE),"")) ->  | M72: =IF(L72="","",IFERROR(VLOOKUP(L72,Brassage!$B$45:$H$57,2,FALSE),"")) ->  | N72: =IF(L72="0","0",SUMIF(Brassage!$B$45:$B$57,L72,Brassage!$F$45:$F$57)) -> 0 | P72: =IF([2]Stock!J72="","",[2]Stock!J72) ->  | Q72: =IF([2]Stock!K72="","",[2]Stock!K72) ->  | R72: =IF(P72="","",IFERROR(VLOOKUP(P72,Brassage!$B$61:$H$62,1,FALSE),"")) ->  | S72: =IF(R72="0","0",IFERROR(VLOOKUP(P72,Brassage!$B$61:$H$62,7,FALSE),"0")) -> 0 | U72: =IF([2]Stock!M72="","",[2]Stock!M72) ->  | V72: =IF([2]Stock!N72="","",[2]Stock!N72) ->  | W72: =IF(U72="","",IFERROR(VLOOKUP(U72,Brassage!$B$39:$H$42,1,FALSE),"")) ->  | X72: =IF(U72="0","0",IFERROR(VLOOKUP(U72,Brassage!$B$39:$H$42,5,FALSE),"0")) -> 0
A73: =IF([2]Stock!A73="","",[2]Stock!A73) ->  | B73: =IF([2]Stock!B73="","",[2]Stock!B73) ->  | C73: =IF([2]Stock!C73="","",[2]Stock!C73) ->  | D73: =IF(A73="","",IFERROR(VLOOKUP(A73,Brassage!$B$25:$H$33,1,FALSE),"")) ->  | E73: =IF(A73="","",IFERROR(VLOOKUP(A73,Brassage!$B$25:$H$33,2,FALSE),"")) ->  | F73: =IF(Stock!D73="0","0",SUMIF(Brassage!$B$25:$B$33,Stock!D73,Brassage!$H$25:$H$33)) -> 0 | H73: =IF([2]Stock!E73="","",[2]Stock!E73) ->  | I73: =IF([2]Stock!F73="","",[2]Stock!F73) ->  | J73: =IF([2]Stock!G73="","",[2]Stock!G73) ->  | K73: =IF([2]Stock!H73="","",[2]Stock!H73) ->  | L73: =IF(H73="","",IFERROR(VLOOKUP(H73,Brassage!$B$45:$H$57,1,FALSE),"")) ->  | M73: =IF(L73="","",IFERROR(VLOOKUP(L73,Brassage!$B$45:$H$57,2,FALSE),"")) ->  | N73: =IF(L73="0","0",SUMIF(Brassage!$B$45:$B$57,L73,Brassage!$F$45:$F$57)) -> 0 | P73: =IF([2]Stock!J73="","",[2]Stock!J73) ->  | Q73: =IF([2]Stock!K73="","",[2]Stock!K73) ->  | R73: =IF(P73="","",IFERROR(VLOOKUP(P73,Brassage!$B$61:$H$62,1,FALSE),"")) ->  | S73: =IF(R73="0","0",IFERROR(VLOOKUP(P73,Brassage!$B$61:$H$62,7,FALSE),"0")) -> 0 | U73: =IF([2]Stock!M73="","",[2]Stock!M73) ->  | V73: =IF([2]Stock!N73="","",[2]Stock!N73) ->  | W73: =IF(U73="","",IFERROR(VLOOKUP(U73,Brassage!$B$39:$H$42,1,FALSE),"")) ->  | X73: =IF(U73="0","0",IFERROR(VLOOKUP(U73,Brassage!$B$39:$H$42,5,FALSE),"0")) -> 0
A74: =IF([2]Stock!A74="","",[2]Stock!A74) ->  | B74: =IF([2]Stock!B74="","",[2]Stock!B74) ->  | C74: =IF([2]Stock!C74="","",[2]Stock!C74) ->  | D74: =IF(A74="","",IFERROR(VLOOKUP(A74,Brassage!$B$25:$H$33,1,FALSE),"")) ->  | E74: =IF(A74="","",IFERROR(VLOOKUP(A74,Brassage!$B$25:$H$33,2,FALSE),"")) ->  | F74: =IF(Stock!D74="0","0",SUMIF(Brassage!$B$25:$B$33,Stock!D74,Brassage!$H$25:$H$33)) -> 0 | H74: =IF([2]Stock!E74="","",[2]Stock!E74) ->  | I74: =IF([2]Stock!F74="","",[2]Stock!F74) ->  | J74: =IF([2]Stock!G74="","",[2]Stock!G74) ->  | K74: =IF([2]Stock!H74="","",[2]Stock!H74) ->  | L74: =IF(H74="","",IFERROR(VLOOKUP(H74,Brassage!$B$45:$H$57,1,FALSE),"")) ->  | M74: =IF(L74="","",IFERROR(VLOOKUP(L74,Brassage!$B$45:$H$57,2,FALSE),"")) ->  | N74: =IF(L74="0","0",SUMIF(Brassage!$B$45:$B$57,L74,Brassage!$F$45:$F$57)) -> 0 | P74: =IF([2]Stock!J74="","",[2]Stock!J74) ->  | Q74: =IF([2]Stock!K74="","",[2]Stock!K74) ->  | R74: =IF(P74="","",IFERROR(VLOOKUP(P74,Brassage!$B$61:$H$62,1,FALSE),"")) ->  | S74: =IF(R74="0","0",IFERROR(VLOOKUP(P74,Brassage!$B$61:$H$62,7,FALSE),"0")) -> 0 | U74: =IF([2]Stock!M74="","",[2]Stock!M74) ->  | V74: =IF([2]Stock!N74="","",[2]Stock!N74) ->  | W74: =IF(U74="","",IFERROR(VLOOKUP(U74,Brassage!$B$39:$H$42,1,FALSE),"")) ->  | X74: =IF(U74="0","0",IFERROR(VLOOKUP(U74,Brassage!$B$39:$H$42,5,FALSE),"0")) -> 0
A75: =IF([2]Stock!A75="","",[2]Stock!A75) ->  | B75: =IF([2]Stock!B75="","",[2]Stock!B75) ->  | C75: =IF([2]Stock!C75="","",[2]Stock!C75) ->  | D75: =IF(A75="","",IFERROR(VLOOKUP(A75,Brassage!$B$25:$H$33,1,FALSE),"")) ->  | E75: =IF(A75="","",IFERROR(VLOOKUP(A75,Brassage!$B$25:$H$33,2,FALSE),"")) ->  | F75: =IF(Stock!D75="0","0",SUMIF(Brassage!$B$25:$B$33,Stock!D75,Brassage!$H$25:$H$33)) -> 0 | H75: =IF([2]Stock!E75="","",[2]Stock!E75) ->  | I75: =IF([2]Stock!F75="","",[2]Stock!F75) ->  | J75: =IF([2]Stock!G75="","",[2]Stock!G75) ->  | K75: =IF([2]Stock!H75="","",[2]Stock!H75) ->  | L75: =IF(H75="","",IFERROR(VLOOKUP(H75,Brassage!$B$45:$H$57,1,FALSE),"")) ->  | M75: =IF(L75="","",IFERROR(VLOOKUP(L75,Brassage!$B$45:$H$57,2,FALSE),"")) ->  | N75: =IF(L75="0","0",SUMIF(Brassage!$B$45:$B$57,L75,Brassage!$F$45:$F$57)) -> 0 | P75: =IF([2]Stock!J75="","",[2]Stock!J75) ->  | Q75: =IF([2]Stock!K75="","",[2]Stock!K75) ->  | R75: =IF(P75="","",IFERROR(VLOOKUP(P75,Brassage!$B$61:$H$62,1,FALSE),"")) ->  | S75: =IF(R75="0","0",IFERROR(VLOOKUP(P75,Brassage!$B$61:$H$62,7,FALSE),"0")) -> 0 | U75: =IF([2]Stock!M75="","",[2]Stock!M75) ->  | V75: =IF([2]Stock!N75="","",[2]Stock!N75) ->  | W75: =IF(U75="","",IFERROR(VLOOKUP(U75,Brassage!$B$39:$H$42,1,FALSE),"")) ->  | X75: =IF(U75="0","0",IFERROR(VLOOKUP(U75,Brassage!$B$39:$H$42,5,FALSE),"0")) -> 0
A76: =IF([2]Stock!A76="","",[2]Stock!A76) ->  | B76: =IF([2]Stock!B76="","",[2]Stock!B76) ->  | C76: =IF([2]Stock!C76="","",[2]Stock!C76) ->  | D76: =IF(A76="","",IFERROR(VLOOKUP(A76,Brassage!$B$25:$H$33,1,FALSE),"")) ->  | E76: =IF(A76="","",IFERROR(VLOOKUP(A76,Brassage!$B$25:$H$33,2,FALSE),"")) ->  | F76: =IF(Stock!D76="0","0",SUMIF(Brassage!$B$25:$B$33,Stock!D76,Brassage!$H$25:$H$33)) -> 0 | H76: =IF([2]Stock!E76="","",[2]Stock!E76) ->  | I76: =IF([2]Stock!F76="","",[2]Stock!F76) ->  | J76: =IF([2]Stock!G76="","",[2]Stock!G76) ->  | K76: =IF([2]Stock!H76="","",[2]Stock!H76) ->  | L76: =IF(H76="","",IFERROR(VLOOKUP(H76,Brassage!$B$45:$H$57,1,FALSE),"")) ->  | M76: =IF(L76="","",IFERROR(VLOOKUP(L76,Brassage!$B$45:$H$57,2,FALSE),"")) ->  | N76: =IF(L76="0","0",SUMIF(Brassage!$B$45:$B$57,L76,Brassage!$F$45:$F$57)) -> 0 | P76: =IF([2]Stock!J76="","",[2]Stock!J76) ->  | Q76: =IF([2]Stock!K76="","",[2]Stock!K76) ->  | R76: =IF(P76="","",IFERROR(VLOOKUP(P76,Brassage!$B$61:$H$62,1,FALSE),"")) ->  | S76: =IF(R76="0","0",IFERROR(VLOOKUP(P76,Brassage!$B$61:$H$62,7,FALSE),"0")) -> 0 | U76: =IF([2]Stock!M76="","",[2]Stock!M76) ->  | V76: =IF([2]Stock!N76="","",[2]Stock!N76) ->  | W76: =IF(U76="","",IFERROR(VLOOKUP(U76,Brassage!$B$39:$H$42,1,FALSE),"")) ->  | X76: =IF(U76="0","0",IFERROR(VLOOKUP(U76,Brassage!$B$39:$H$42,5,FALSE),"0")) -> 0
A77: =IF([2]Stock!A77="","",[2]Stock!A77) ->  | B77: =IF([2]Stock!B77="","",[2]Stock!B77) ->  | C77: =IF([2]Stock!C77="","",[2]Stock!C77) ->  | D77: =IF(A77="","",IFERROR(VLOOKUP(A77,Brassage!$B$25:$H$33,1,FALSE),"")) ->  | E77: =IF(A77="","",IFERROR(VLOOKUP(A77,Brassage!$B$25:$H$33,2,FALSE),"")) ->  | F77: =IF(Stock!D77="0","0",SUMIF(Brassage!$B$25:$B$33,Stock!D77,Brassage!$H$25:$H$33)) -> 0 | H77: =IF([2]Stock!E77="","",[2]Stock!E77) ->  | I77: =IF([2]Stock!F77="","",[2]Stock!F77) ->  | J77: =IF([2]Stock!G77="","",[2]Stock!G77) ->  | K77: =IF([2]Stock!H77="","",[2]Stock!H77) ->  | L77: =IF(H77="","",IFERROR(VLOOKUP(H77,Brassage!$B$45:$H$57,1,FALSE),"")) ->  | M77: =IF(L77="","",IFERROR(VLOOKUP(L77,Brassage!$B$45:$H$57,2,FALSE),"")) ->  | N77: =IF(L77="0","0",SUMIF(Brassage!$B$45:$B$57,L77,Brassage!$F$45:$F$57)) -> 0 | P77: =IF([2]Stock!J77="","",[2]Stock!J77) ->  | Q77: =IF([2]Stock!K77="","",[2]Stock!K77) ->  | R77: =IF(P77="","",IFERROR(VLOOKUP(P77,Brassage!$B$61:$H$62,1,FALSE),"")) ->  | S77: =IF(R77="0","0",IFERROR(VLOOKUP(P77,Brassage!$B$61:$H$62,7,FALSE),"0")) -> 0 | U77: =IF([2]Stock!M77="","",[2]Stock!M77) ->  | V77: =IF([2]Stock!N77="","",[2]Stock!N77) ->  | W77: =IF(U77="","",IFERROR(VLOOKUP(U77,Brassage!$B$39:$H$42,1,FALSE),"")) ->  | X77: =IF(U77="0","0",IFERROR(VLOOKUP(U77,Brassage!$B$39:$H$42,5,FALSE),"0")) -> 0
A78: =IF([2]Stock!A78="","",[2]Stock!A78) ->  | B78: =IF([2]Stock!B78="","",[2]Stock!B78) ->  | C78: =IF([2]Stock!C78="","",[2]Stock!C78) ->  | D78: =IF(A78="","",IFERROR(VLOOKUP(A78,Brassage!$B$25:$H$33,1,FALSE),"")) ->  | E78: =IF(A78="","",IFERROR(VLOOKUP(A78,Brassage!$B$25:$H$33,2,FALSE),"")) ->  | F78: =IF(Stock!D78="0","0",SUMIF(Brassage!$B$25:$B$33,Stock!D78,Brassage!$H$25:$H$33)) -> 0 | H78: =IF([2]Stock!E78="","",[2]Stock!E78) ->  | I78: =IF([2]Stock!F78="","",[2]Stock!F78) ->  | J78: =IF([2]Stock!G78="","",[2]Stock!G78) ->  | K78: =IF([2]Stock!H78="","",[2]Stock!H78) ->  | L78: =IF(H78="","",IFERROR(VLOOKUP(H78,Brassage!$B$45:$H$57,1,FALSE),"")) ->  | M78: =IF(L78="","",IFERROR(VLOOKUP(L78,Brassage!$B$45:$H$57,2,FALSE),"")) ->  | N78: =IF(L78="0","0",SUMIF(Brassage!$B$45:$B$57,L78,Brassage!$F$45:$F$57)) -> 0 | P78: =IF([2]Stock!J78="","",[2]Stock!J78) ->  | Q78: =IF([2]Stock!K78="","",[2]Stock!K78) ->  | R78: =IF(P78="","",IFERROR(VLOOKUP(P78,Brassage!$B$61:$H$62,1,FALSE),"")) ->  | S78: =IF(R78="0","0",IFERROR(VLOOKUP(P78,Brassage!$B$61:$H$62,7,FALSE),"0")) -> 0 | U78: =IF([2]Stock!M78="","",[2]Stock!M78) ->  | V78: =IF([2]Stock!N78="","",[2]Stock!N78) ->  | W78: =IF(U78="","",IFERROR(VLOOKUP(U78,Brassage!$B$39:$H$42,1,FALSE),"")) ->  | X78: =IF(U78="0","0",IFERROR(VLOOKUP(U78,Brassage!$B$39:$H$42,5,FALSE),"0")) -> 0
A79: =IF([2]Stock!A79="","",[2]Stock!A79) ->  | B79: =IF([2]Stock!B79="","",[2]Stock!B79) ->  | C79: =IF([2]Stock!C79="","",[2]Stock!C79) ->  | D79: =IF(A79="","",IFERROR(VLOOKUP(A79,Brassage!$B$25:$H$33,1,FALSE),"")) ->  | E79: =IF(A79="","",IFERROR(VLOOKUP(A79,Brassage!$B$25:$H$33,2,FALSE),"")) ->  | F79: =IF(Stock!D79="0","0",SUMIF(Brassage!$B$25:$B$33,Stock!D79,Brassage!$H$25:$H$33)) -> 0 | H79: =IF([2]Stock!E79="","",[2]Stock!E79) ->  | I79: =IF([2]Stock!F79="","",[2]Stock!F79) ->  | J79: =IF([2]Stock!G79="","",[2]Stock!G79) ->  | K79: =IF([2]Stock!H79="","",[2]Stock!H79) ->  | L79: =IF(H79="","",IFERROR(VLOOKUP(H79,Brassage!$B$45:$H$57,1,FALSE),"")) ->  | M79: =IF(L79="","",IFERROR(VLOOKUP(L79,Brassage!$B$45:$H$57,2,FALSE),"")) ->  | N79: =IF(L79="0","0",SUMIF(Brassage!$B$45:$B$57,L79,Brassage!$F$45:$F$57)) -> 0 | P79: =IF([2]Stock!J79="","",[2]Stock!J79) ->  | Q79: =IF([2]Stock!K79="","",[2]Stock!K79) ->  | R79: =IF(P79="","",IFERROR(VLOOKUP(P79,Brassage!$B$61:$H$62,1,FALSE),"")) ->  | S79: =IF(R79="0","0",IFERROR(VLOOKUP(P79,Brassage!$B$61:$H$62,7,FALSE),"0")) -> 0 | U79: =IF([2]Stock!M79="","",[2]Stock!M79) ->  | V79: =IF([2]Stock!N79="","",[2]Stock!N79) ->  | W79: =IF(U79="","",IFERROR(VLOOKUP(U79,Brassage!$B$39:$H$42,1,FALSE),"")) ->  | X79: =IF(U79="0","0",IFERROR(VLOOKUP(U79,Brassage!$B$39:$H$42,5,FALSE),"0")) -> 0
A80: =IF([2]Stock!A80="","",[2]Stock!A80) ->  | B80: =IF([2]Stock!B80="","",[2]Stock!B80) ->  | C80: =IF([2]Stock!C80="","",[2]Stock!C80) ->  | D80: =IF(A80="","",IFERROR(VLOOKUP(A80,Brassage!$B$25:$H$33,1,FALSE),"")) ->  | E80: =IF(A80="","",IFERROR(VLOOKUP(A80,Brassage!$B$25:$H$33,2,FALSE),"")) ->  | F80: =IF(Stock!D80="0","0",SUMIF(Brassage!$B$25:$B$33,Stock!D80,Brassage!$H$25:$H$33)) -> 0 | H80: =IF([2]Stock!E80="","",[2]Stock!E80) ->  | I80: =IF([2]Stock!F80="","",[2]Stock!F80) ->  | J80: =IF([2]Stock!G80="","",[2]Stock!G80) ->  | K80: =IF([2]Stock!H80="","",[2]Stock!H80) ->  | L80: =IF(H80="","",IFERROR(VLOOKUP(H80,Brassage!$B$45:$H$57,1,FALSE),"")) ->  | M80: =IF(L80="","",IFERROR(VLOOKUP(L80,Brassage!$B$45:$H$57,2,FALSE),"")) ->  | N80: =IF(L80="0","0",SUMIF(Brassage!$B$45:$B$57,L80,Brassage!$F$45:$F$57)) -> 0 | P80: =IF([2]Stock!J80="","",[2]Stock!J80) ->  | Q80: =IF([2]Stock!K80="","",[2]Stock!K80) ->  | R80: =IF(P80="","",IFERROR(VLOOKUP(P80,Brassage!$B$61:$H$62,1,FALSE),"")) ->  | S80: =IF(R80="0","0",IFERROR(VLOOKUP(P80,Brassage!$B$61:$H$62,7,FALSE),"0")) -> 0 | U80: =IF([2]Stock!M80="","",[2]Stock!M80) ->  | V80: =IF([2]Stock!N80="","",[2]Stock!N80) ->  | W80: =IF(U80="","",IFERROR(VLOOKUP(U80,Brassage!$B$39:$H$42,1,FALSE),"")) ->  | X80: =IF(U80="0","0",IFERROR(VLOOKUP(U80,Brassage!$B$39:$H$42,5,FALSE),"0")) -> 0
A81: =IF([2]Stock!A81="","",[2]Stock!A81) ->  | B81: =IF([2]Stock!B81="","",[2]Stock!B81) ->  | C81: =IF([2]Stock!C81="","",[2]Stock!C81) ->  | D81: =IF(A81="","",IFERROR(VLOOKUP(A81,Brassage!$B$25:$H$33,1,FALSE),"")) ->  | E81: =IF(A81="","",IFERROR(VLOOKUP(A81,Brassage!$B$25:$H$33,2,FALSE),"")) ->  | F81: =IF(Stock!D81="0","0",SUMIF(Brassage!$B$25:$B$33,Stock!D81,Brassage!$H$25:$H$33)) -> 0 | H81: =IF([2]Stock!E81="","",[2]Stock!E81) ->  | I81: =IF([2]Stock!F81="","",[2]Stock!F81) ->  | J81: =IF([2]Stock!G81="","",[2]Stock!G81) ->  | K81: =IF([2]Stock!H81="","",[2]Stock!H81) ->  | L81: =IF(H81="","",IFERROR(VLOOKUP(H81,Brassage!$B$45:$H$57,1,FALSE),"")) ->  | M81: =IF(L81="","",IFERROR(VLOOKUP(L81,Brassage!$B$45:$H$57,2,FALSE),"")) ->  | N81: =IF(L81="0","0",SUMIF(Brassage!$B$45:$B$57,L81,Brassage!$F$45:$F$57)) -> 0 | P81: =IF([2]Stock!J81="","",[2]Stock!J81) ->  | Q81: =IF([2]Stock!K81="","",[2]Stock!K81) ->  | R81: =IF(P81="","",IFERROR(VLOOKUP(P81,Brassage!$B$61:$H$62,1,FALSE),"")) ->  | S81: =IF(R81="0","0",IFERROR(VLOOKUP(P81,Brassage!$B$61:$H$62,7,FALSE),"0")) -> 0 | U81: =IF([2]Stock!M81="","",[2]Stock!M81) ->  | V81: =IF([2]Stock!N81="","",[2]Stock!N81) ->  | W81: =IF(U81="","",IFERROR(VLOOKUP(U81,Brassage!$B$39:$H$42,1,FALSE),"")) ->  | X81: =IF(U81="0","0",IFERROR(VLOOKUP(U81,Brassage!$B$39:$H$42,5,FALSE),"0")) -> 0
A82: =IF([2]Stock!A82="","",[2]Stock!A82) ->  | B82: =IF([2]Stock!B82="","",[2]Stock!B82) ->  | C82: =IF([2]Stock!C82="","",[2]Stock!C82) ->  | D82: =IF(A82="","",IFERROR(VLOOKUP(A82,Brassage!$B$25:$H$33,1,FALSE),"")) ->  | E82: =IF(A82="","",IFERROR(VLOOKUP(A82,Brassage!$B$25:$H$33,2,FALSE),"")) ->  | F82: =IF(Stock!D82="0","0",SUMIF(Brassage!$B$25:$B$33,Stock!D82,Brassage!$H$25:$H$33)) -> 0 | H82: =IF([2]Stock!E82="","",[2]Stock!E82) ->  | I82: =IF([2]Stock!F82="","",[2]Stock!F82) ->  | J82: =IF([2]Stock!G82="","",[2]Stock!G82) ->  | K82: =IF([2]Stock!H82="","",[2]Stock!H82) ->  | L82: =IF(H82="","",IFERROR(VLOOKUP(H82,Brassage!$B$45:$H$57,1,FALSE),"")) ->  | M82: =IF(L82="","",IFERROR(VLOOKUP(L82,Brassage!$B$45:$H$57,2,FALSE),"")) ->  | N82: =IF(L82="0","0",SUMIF(Brassage!$B$45:$B$57,L82,Brassage!$F$45:$F$57)) -> 0 | P82: =IF([2]Stock!J82="","",[2]Stock!J82) ->  | Q82: =IF([2]Stock!K82="","",[2]Stock!K82) ->  | R82: =IF(P82="","",IFERROR(VLOOKUP(P82,Brassage!$B$61:$H$62,1,FALSE),"")) ->  | S82: =IF(R82="0","0",IFERROR(VLOOKUP(P82,Brassage!$B$61:$H$62,7,FALSE),"0")) -> 0 | U82: =IF([2]Stock!M82="","",[2]Stock!M82) ->  | V82: =IF([2]Stock!N82="","",[2]Stock!N82) ->  | W82: =IF(U82="","",IFERROR(VLOOKUP(U82,Brassage!$B$39:$H$42,1,FALSE),"")) ->  | X82: =IF(U82="0","0",IFERROR(VLOOKUP(U82,Brassage!$B$39:$H$42,5,FALSE),"0")) -> 0
A83: =IF([2]Stock!A83="","",[2]Stock!A83) ->  | B83: =IF([2]Stock!B83="","",[2]Stock!B83) ->  | C83: =IF([2]Stock!C83="","",[2]Stock!C83) ->  | D83: =IF(A83="","",IFERROR(VLOOKUP(A83,Brassage!$B$25:$H$33,1,FALSE),"")) ->  | E83: =IF(A83="","",IFERROR(VLOOKUP(A83,Brassage!$B$25:$H$33,2,FALSE),"")) ->  | F83: =IF(Stock!D83="0","0",SUMIF(Brassage!$B$25:$B$33,Stock!D83,Brassage!$H$25:$H$33)) -> 0 | H83: =IF([2]Stock!E83="","",[2]Stock!E83) ->  | I83: =IF([2]Stock!F83="","",[2]Stock!F83) ->  | J83: =IF([2]Stock!G83="","",[2]Stock!G83) ->  | K83: =IF([2]Stock!H83="","",[2]Stock!H83) ->  | L83: =IF(H83="","",IFERROR(VLOOKUP(H83,Brassage!$B$45:$H$57,1,FALSE),"")) ->  | M83: =IF(L83="","",IFERROR(VLOOKUP(L83,Brassage!$B$45:$H$57,2,FALSE),"")) ->  | N83: =IF(L83="0","0",SUMIF(Brassage!$B$45:$B$57,L83,Brassage!$F$45:$F$57)) -> 0 | P83: =IF([2]Stock!J83="","",[2]Stock!J83) ->  | Q83: =IF([2]Stock!K83="","",[2]Stock!K83) ->  | R83: =IF(P83="","",IFERROR(VLOOKUP(P83,Brassage!$B$61:$H$62,1,FALSE),"")) ->  | S83: =IF(R83="0","0",IFERROR(VLOOKUP(P83,Brassage!$B$61:$H$62,7,FALSE),"0")) -> 0 | U83: =IF([2]Stock!M83="","",[2]Stock!M83) ->  | V83: =IF([2]Stock!N83="","",[2]Stock!N83) ->  | W83: =IF(U83="","",IFERROR(VLOOKUP(U83,Brassage!$B$39:$H$42,1,FALSE),"")) ->  | X83: =IF(U83="0","0",IFERROR(VLOOKUP(U83,Brassage!$B$39:$H$42,5,FALSE),"0")) -> 0
A84: =IF([2]Stock!A84="","",[2]Stock!A84) ->  | B84: =IF([2]Stock!B84="","",[2]Stock!B84) ->  | C84: =IF([2]Stock!C84="","",[2]Stock!C84) ->  | D84: =IF(A84="","",IFERROR(VLOOKUP(A84,Brassage!$B$25:$H$33,1,FALSE),"")) ->  | E84: =IF(A84="","",IFERROR(VLOOKUP(A84,Brassage!$B$25:$H$33,2,FALSE),"")) ->  | F84: =IF(Stock!D84="0","0",SUMIF(Brassage!$B$25:$B$33,Stock!D84,Brassage!$H$25:$H$33)) -> 0 | H84: =IF([2]Stock!E84="","",[2]Stock!E84) ->  | I84: =IF([2]Stock!F84="","",[2]Stock!F84) ->  | J84: =IF([2]Stock!G84="","",[2]Stock!G84) ->  | K84: =IF([2]Stock!H84="","",[2]Stock!H84) ->  | L84: =IF(H84="","",IFERROR(VLOOKUP(H84,Brassage!$B$45:$H$57,1,FALSE),"")) ->  | M84: =IF(L84="","",IFERROR(VLOOKUP(L84,Brassage!$B$45:$H$57,2,FALSE),"")) ->  | N84: =IF(L84="0","0",SUMIF(Brassage!$B$45:$B$57,L84,Brassage!$F$45:$F$57)) -> 0 | P84: =IF([2]Stock!J84="","",[2]Stock!J84) ->  | Q84: =IF([2]Stock!K84="","",[2]Stock!K84) ->  | R84: =IF(P84="","",IFERROR(VLOOKUP(P84,Brassage!$B$61:$H$62,1,FALSE),"")) ->  | S84: =IF(R84="0","0",IFERROR(VLOOKUP(P84,Brassage!$B$61:$H$62,7,FALSE),"0")) -> 0 | U84: =IF([2]Stock!M84="","",[2]Stock!M84) ->  | V84: =IF([2]Stock!N84="","",[2]Stock!N84) ->  | W84: =IF(U84="","",IFERROR(VLOOKUP(U84,Brassage!$B$39:$H$42,1,FALSE),"")) ->  | X84: =IF(U84="0","0",IFERROR(VLOOKUP(U84,Brassage!$B$39:$H$42,5,FALSE),"0")) -> 0
A85: =IF([2]Stock!A85="","",[2]Stock!A85) ->  | B85: =IF([2]Stock!B85="","",[2]Stock!B85) ->  | C85: =IF([2]Stock!C85="","",[2]Stock!C85) ->  | D85: =IF(A85="","",IFERROR(VLOOKUP(A85,Brassage!$B$25:$H$33,1,FALSE),"")) ->  | E85: =IF(A85="","",IFERROR(VLOOKUP(A85,Brassage!$B$25:$H$33,2,FALSE),"")) ->  | F85: =IF(Stock!D85="0","0",SUMIF(Brassage!$B$25:$B$33,Stock!D85,Brassage!$H$25:$H$33)) -> 0 | H85: =IF([2]Stock!E85="","",[2]Stock!E85) ->  | I85: =IF([2]Stock!F85="","",[2]Stock!F85) ->  | J85: =IF([2]Stock!G85="","",[2]Stock!G85) ->  | K85: =IF([2]Stock!H85="","",[2]Stock!H85) ->  | L85: =IF(H85="","",IFERROR(VLOOKUP(H85,Brassage!$B$45:$H$57,1,FALSE),"")) ->  | M85: =IF(L85="","",IFERROR(VLOOKUP(L85,Brassage!$B$45:$H$57,2,FALSE),"")) ->  | N85: =IF(L85="0","0",SUMIF(Brassage!$B$45:$B$57,L85,Brassage!$F$45:$F$57)) -> 0 | P85: =IF([2]Stock!J85="","",[2]Stock!J85) ->  | Q85: =IF([2]Stock!K85="","",[2]Stock!K85) ->  | R85: =IF(P85="","",IFERROR(VLOOKUP(P85,Brassage!$B$61:$H$62,1,FALSE),"")) ->  | S85: =IF(R85="0","0",IFERROR(VLOOKUP(P85,Brassage!$B$61:$H$62,7,FALSE),"0")) -> 0 | U85: =IF([2]Stock!M85="","",[2]Stock!M85) ->  | V85: =IF([2]Stock!N85="","",[2]Stock!N85) ->  | W85: =IF(U85="","",IFERROR(VLOOKUP(U85,Brassage!$B$39:$H$42,1,FALSE),"")) ->  | X85: =IF(U85="0","0",IFERROR(VLOOKUP(U85,Brassage!$B$39:$H$42,5,FALSE),"0")) -> 0
A86: =IF([2]Stock!A86="","",[2]Stock!A86) ->  | B86: =IF([2]Stock!B86="","",[2]Stock!B86) ->  | C86: =IF([2]Stock!C86="","",[2]Stock!C86) ->  | D86: =IF(A86="","",IFERROR(VLOOKUP(A86,Brassage!$B$25:$H$33,1,FALSE),"")) ->  | E86: =IF(A86="","",IFERROR(VLOOKUP(A86,Brassage!$B$25:$H$33,2,FALSE),"")) ->  | F86: =IF(Stock!D86="0","0",SUMIF(Brassage!$B$25:$B$33,Stock!D86,Brassage!$H$25:$H$33)) -> 0 | H86: =IF([2]Stock!E86="","",[2]Stock!E86) ->  | I86: =IF([2]Stock!F86="","",[2]Stock!F86) ->  | J86: =IF([2]Stock!G86="","",[2]Stock!G86) ->  | K86: =IF([2]Stock!H86="","",[2]Stock!H86) ->  | L86: =IF(H86="","",IFERROR(VLOOKUP(H86,Brassage!$B$45:$H$57,1,FALSE),"")) ->  | M86: =IF(L86="","",IFERROR(VLOOKUP(L86,Brassage!$B$45:$H$57,2,FALSE),"")) ->  | N86: =IF(L86="0","0",SUMIF(Brassage!$B$45:$B$57,L86,Brassage!$F$45:$F$57)) -> 0 | P86: =IF([2]Stock!J86="","",[2]Stock!J86) ->  | Q86: =IF([2]Stock!K86="","",[2]Stock!K86) ->  | R86: =IF(P86="","",IFERROR(VLOOKUP(P86,Brassage!$B$61:$H$62,1,FALSE),"")) ->  | S86: =IF(R86="0","0",IFERROR(VLOOKUP(P86,Brassage!$B$61:$H$62,7,FALSE),"0")) -> 0 | U86: =IF([2]Stock!M86="","",[2]Stock!M86) ->  | V86: =IF([2]Stock!N86="","",[2]Stock!N86) ->  | W86: =IF(U86="","",IFERROR(VLOOKUP(U86,Brassage!$B$39:$H$42,1,FALSE),"")) ->  | X86: =IF(U86="0","0",IFERROR(VLOOKUP(U86,Brassage!$B$39:$H$42,5,FALSE),"0")) -> 0
A87: =IF([2]Stock!A87="","",[2]Stock!A87) ->  | B87: =IF([2]Stock!B87="","",[2]Stock!B87) ->  | C87: =IF([2]Stock!C87="","",[2]Stock!C87) ->  | D87: =IF(A87="","",IFERROR(VLOOKUP(A87,Brassage!$B$25:$H$33,1,FALSE),"")) ->  | E87: =IF(A87="","",IFERROR(VLOOKUP(A87,Brassage!$B$25:$H$33,2,FALSE),"")) ->  | F87: =IF(Stock!D87="0","0",SUMIF(Brassage!$B$25:$B$33,Stock!D87,Brassage!$H$25:$H$33)) -> 0 | H87: =IF([2]Stock!E87="","",[2]Stock!E87) ->  | I87: =IF([2]Stock!F87="","",[2]Stock!F87) ->  | J87: =IF([2]Stock!G87="","",[2]Stock!G87) ->  | K87: =IF([2]Stock!H87="","",[2]Stock!H87) ->  | L87: =IF(H87="","",IFERROR(VLOOKUP(H87,Brassage!$B$45:$H$57,1,FALSE),"")) ->  | M87: =IF(L87="","",IFERROR(VLOOKUP(L87,Brassage!$B$45:$H$57,2,FALSE),"")) ->  | N87: =IF(L87="0","0",SUMIF(Brassage!$B$45:$B$57,L87,Brassage!$F$45:$F$57)) -> 0 | P87: =IF([2]Stock!J87="","",[2]Stock!J87) ->  | Q87: =IF([2]Stock!K87="","",[2]Stock!K87) ->  | R87: =IF(P87="","",IFERROR(VLOOKUP(P87,Brassage!$B$61:$H$62,1,FALSE),"")) ->  | S87: =IF(R87="0","0",IFERROR(VLOOKUP(P87,Brassage!$B$61:$H$62,7,FALSE),"0")) -> 0 | U87: =IF([2]Stock!M87="","",[2]Stock!M87) ->  | V87: =IF([2]Stock!N87="","",[2]Stock!N87) ->  | W87: =IF(U87="","",IFERROR(VLOOKUP(U87,Brassage!$B$39:$H$42,1,FALSE),"")) ->  | X87: =IF(U87="0","0",IFERROR(VLOOKUP(U87,Brassage!$B$39:$H$42,5,FALSE),"0")) -> 0
A88: =IF([2]Stock!A88="","",[2]Stock!A88) ->  | B88: =IF([2]Stock!B88="","",[2]Stock!B88) ->  | C88: =IF([2]Stock!C88="","",[2]Stock!C88) ->  | D88: =IF(A88="","",IFERROR(VLOOKUP(A88,Brassage!$B$25:$H$33,1,FALSE),"")) ->  | E88: =IF(A88="","",IFERROR(VLOOKUP(A88,Brassage!$B$25:$H$33,2,FALSE),"")) ->  | F88: =IF(Stock!D88="0","0",SUMIF(Brassage!$B$25:$B$33,Stock!D88,Brassage!$H$25:$H$33)) -> 0 | H88: =IF([2]Stock!E88="","",[2]Stock!E88) ->  | I88: =IF([2]Stock!F88="","",[2]Stock!F88) ->  | J88: =IF([2]Stock!G88="","",[2]Stock!G88) ->  | K88: =IF([2]Stock!H88="","",[2]Stock!H88) ->  | L88: =IF(H88="","",IFERROR(VLOOKUP(H88,Brassage!$B$45:$H$57,1,FALSE),"")) ->  | M88: =IF(L88="","",IFERROR(VLOOKUP(L88,Brassage!$B$45:$H$57,2,FALSE),"")) ->  | N88: =IF(L88="0","0",SUMIF(Brassage!$B$45:$B$57,L88,Brassage!$F$45:$F$57)) -> 0 | P88: =IF([2]Stock!J88="","",[2]Stock!J88) ->  | Q88: =IF([2]Stock!K88="","",[2]Stock!K88) ->  | R88: =IF(P88="","",IFERROR(VLOOKUP(P88,Brassage!$B$61:$H$62,1,FALSE),"")) ->  | S88: =IF(R88="0","0",IFERROR(VLOOKUP(P88,Brassage!$B$61:$H$62,7,FALSE),"0")) -> 0 | U88: =IF([2]Stock!M88="","",[2]Stock!M88) ->  | V88: =IF([2]Stock!N88="","",[2]Stock!N88) ->  | W88: =IF(U88="","",IFERROR(VLOOKUP(U88,Brassage!$B$39:$H$42,1,FALSE),"")) ->  | X88: =IF(U88="0","0",IFERROR(VLOOKUP(U88,Brassage!$B$39:$H$42,5,FALSE),"0")) -> 0
A89: =IF([2]Stock!A89="","",[2]Stock!A89) ->  | B89: =IF([2]Stock!B89="","",[2]Stock!B89) ->  | C89: =IF([2]Stock!C89="","",[2]Stock!C89) ->  | D89: =IF(A89="","",IFERROR(VLOOKUP(A89,Brassage!$B$25:$H$33,1,FALSE),"")) ->  | E89: =IF(A89="","",IFERROR(VLOOKUP(A89,Brassage!$B$25:$H$33,2,FALSE),"")) ->  | F89: =IF(Stock!D89="0","0",SUMIF(Brassage!$B$25:$B$33,Stock!D89,Brassage!$H$25:$H$33)) -> 0 | H89: =IF([2]Stock!E89="","",[2]Stock!E89) ->  | I89: =IF([2]Stock!F89="","",[2]Stock!F89) ->  | J89: =IF([2]Stock!G89="","",[2]Stock!G89) ->  | K89: =IF([2]Stock!H89="","",[2]Stock!H89) ->  | L89: =IF(H89="","",IFERROR(VLOOKUP(H89,Brassage!$B$45:$H$57,1,FALSE),"")) ->  | M89: =IF(L89="","",IFERROR(VLOOKUP(L89,Brassage!$B$45:$H$57,2,FALSE),"")) ->  | N89: =IF(L89="0","0",SUMIF(Brassage!$B$45:$B$57,L89,Brassage!$F$45:$F$57)) -> 0 | P89: =IF([2]Stock!J89="","",[2]Stock!J89) ->  | Q89: =IF([2]Stock!K89="","",[2]Stock!K89) ->  | R89: =IF(P89="","",IFERROR(VLOOKUP(P89,Brassage!$B$61:$H$62,1,FALSE),"")) ->  | S89: =IF(R89="0","0",IFERROR(VLOOKUP(P89,Brassage!$B$61:$H$62,7,FALSE),"0")) -> 0 | U89: =IF([2]Stock!M89="","",[2]Stock!M89) ->  | V89: =IF([2]Stock!N89="","",[2]Stock!N89) ->  | W89: =IF(U89="","",IFERROR(VLOOKUP(U89,Brassage!$B$39:$H$42,1,FALSE),"")) ->  | X89: =IF(U89="0","0",IFERROR(VLOOKUP(U89,Brassage!$B$39:$H$42,5,FALSE),"0")) -> 0
A90: =IF([2]Stock!A90="","",[2]Stock!A90) ->  | B90: =IF([2]Stock!B90="","",[2]Stock!B90) ->  | C90: =IF([2]Stock!C90="","",[2]Stock!C90) ->  | D90: =IF(A90="","",IFERROR(VLOOKUP(A90,Brassage!$B$25:$H$33,1,FALSE),"")) ->  | E90: =IF(A90="","",IFERROR(VLOOKUP(A90,Brassage!$B$25:$H$33,2,FALSE),"")) ->  | F90: =IF(Stock!D90="0","0",SUMIF(Brassage!$B$25:$B$33,Stock!D90,Brassage!$H$25:$H$33)) -> 0 | H90: =IF([2]Stock!E90="","",[2]Stock!E90) ->  | I90: =IF([2]Stock!F90="","",[2]Stock!F90) ->  | J90: =IF([2]Stock!G90="","",[2]Stock!G90) ->  | K90: =IF([2]Stock!H90="","",[2]Stock!H90) ->  | L90: =IF(H90="","",IFERROR(VLOOKUP(H90,Brassage!$B$45:$H$57,1,FALSE),"")) ->  | M90: =IF(L90="","",IFERROR(VLOOKUP(L90,Brassage!$B$45:$H$57,2,FALSE),"")) ->  | N90: =IF(L90="0","0",SUMIF(Brassage!$B$45:$B$57,L90,Brassage!$F$45:$F$57)) -> 0 | P90: =IF([2]Stock!J90="","",[2]Stock!J90) ->  | Q90: =IF([2]Stock!K90="","",[2]Stock!K90) ->  | R90: =IF(P90="","",IFERROR(VLOOKUP(P90,Brassage!$B$61:$H$62,1,FALSE),"")) ->  | S90: =IF(R90="0","0",IFERROR(VLOOKUP(P90,Brassage!$B$61:$H$62,7,FALSE),"0")) -> 0 | U90: =IF([2]Stock!M90="","",[2]Stock!M90) ->  | V90: =IF([2]Stock!N90="","",[2]Stock!N90) ->  | W90: =IF(U90="","",IFERROR(VLOOKUP(U90,Brassage!$B$39:$H$42,1,FALSE),"")) ->  | X90: =IF(U90="0","0",IFERROR(VLOOKUP(U90,Brassage!$B$39:$H$42,5,FALSE),"0")) -> 0
A91: =IF([2]Stock!A91="","",[2]Stock!A91) ->  | B91: =IF([2]Stock!B91="","",[2]Stock!B91) ->  | C91: =IF([2]Stock!C91="","",[2]Stock!C91) ->  | D91: =IF(A91="","",IFERROR(VLOOKUP(A91,Brassage!$B$25:$H$33,1,FALSE),"")) ->  | E91: =IF(A91="","",IFERROR(VLOOKUP(A91,Brassage!$B$25:$H$33,2,FALSE),"")) ->  | F91: =IF(Stock!D91="0","0",SUMIF(Brassage!$B$25:$B$33,Stock!D91,Brassage!$H$25:$H$33)) -> 0 | H91: =IF([2]Stock!E91="","",[2]Stock!E91) ->  | I91: =IF([2]Stock!F91="","",[2]Stock!F91) ->  | J91: =IF([2]Stock!G91="","",[2]Stock!G91) ->  | K91: =IF([2]Stock!H91="","",[2]Stock!H91) ->  | L91: =IF(H91="","",IFERROR(VLOOKUP(H91,Brassage!$B$45:$H$57,1,FALSE),"")) ->  | M91: =IF(L91="","",IFERROR(VLOOKUP(L91,Brassage!$B$45:$H$57,2,FALSE),"")) ->  | N91: =IF(L91="0","0",SUMIF(Brassage!$B$45:$B$57,L91,Brassage!$F$45:$F$57)) -> 0 | P91: =IF([2]Stock!J91="","",[2]Stock!J91) ->  | Q91: =IF([2]Stock!K91="","",[2]Stock!K91) ->  | R91: =IF(P91="","",IFERROR(VLOOKUP(P91,Brassage!$B$61:$H$62,1,FALSE),"")) ->  | S91: =IF(R91="0","0",IFERROR(VLOOKUP(P91,Brassage!$B$61:$H$62,7,FALSE),"0")) -> 0 | U91: =IF([2]Stock!M91="","",[2]Stock!M91) ->  | V91: =IF([2]Stock!N91="","",[2]Stock!N91) ->  | W91: =IF(U91="","",IFERROR(VLOOKUP(U91,Brassage!$B$39:$H$42,1,FALSE),"")) ->  | X91: =IF(U91="0","0",IFERROR(VLOOKUP(U91,Brassage!$B$39:$H$42,5,FALSE),"0")) -> 0
A92: =IF([2]Stock!A92="","",[2]Stock!A92) ->  | B92: =IF([2]Stock!B92="","",[2]Stock!B92) ->  | C92: =IF([2]Stock!C92="","",[2]Stock!C92) ->  | D92: =IF(A92="","",IFERROR(VLOOKUP(A92,Brassage!$B$25:$H$33,1,FALSE),"")) ->  | E92: =IF(A92="","",IFERROR(VLOOKUP(A92,Brassage!$B$25:$H$33,2,FALSE),"")) ->  | F92: =IF(Stock!D92="0","0",SUMIF(Brassage!$B$25:$B$33,Stock!D92,Brassage!$H$25:$H$33)) -> 0 | H92: =IF([2]Stock!E92="","",[2]Stock!E92) ->  | I92: =IF([2]Stock!F92="","",[2]Stock!F92) ->  | J92: =IF([2]Stock!G92="","",[2]Stock!G92) ->  | K92: =IF([2]Stock!H92="","",[2]Stock!H92) ->  | L92: =IF(H92="","",IFERROR(VLOOKUP(H92,Brassage!$B$45:$H$57,1,FALSE),"")) ->  | M92: =IF(L92="","",IFERROR(VLOOKUP(L92,Brassage!$B$45:$H$57,2,FALSE),"")) ->  | N92: =IF(L92="0","0",SUMIF(Brassage!$B$45:$B$57,L92,Brassage!$F$45:$F$57)) -> 0 | P92: =IF([2]Stock!J92="","",[2]Stock!J92) ->  | Q92: =IF([2]Stock!K92="","",[2]Stock!K92) ->  | R92: =IF(P92="","",IFERROR(VLOOKUP(P92,Brassage!$B$61:$H$62,1,FALSE),"")) ->  | S92: =IF(R92="0","0",IFERROR(VLOOKUP(P92,Brassage!$B$61:$H$62,7,FALSE),"0")) -> 0 | U92: =IF([2]Stock!M92="","",[2]Stock!M92) ->  | V92: =IF([2]Stock!N92="","",[2]Stock!N92) ->  | W92: =IF(U92="","",IFERROR(VLOOKUP(U92,Brassage!$B$39:$H$42,1,FALSE),"")) ->  | X92: =IF(U92="0","0",IFERROR(VLOOKUP(U92,Brassage!$B$39:$H$42,5,FALSE),"0")) -> 0
A93: =IF([2]Stock!A93="","",[2]Stock!A93) ->  | B93: =IF([2]Stock!B93="","",[2]Stock!B93) ->  | C93: =IF([2]Stock!C93="","",[2]Stock!C93) ->  | D93: =IF(A93="","",IFERROR(VLOOKUP(A93,Brassage!$B$25:$H$33,1,FALSE),"")) ->  | E93: =IF(A93="","",IFERROR(VLOOKUP(A93,Brassage!$B$25:$H$33,2,FALSE),"")) ->  | F93: =IF(Stock!D93="0","0",SUMIF(Brassage!$B$25:$B$33,Stock!D93,Brassage!$H$25:$H$33)) -> 0 | H93: =IF([2]Stock!E93="","",[2]Stock!E93) ->  | I93: =IF([2]Stock!F93="","",[2]Stock!F93) ->  | J93: =IF([2]Stock!G93="","",[2]Stock!G93) ->  | K93: =IF([2]Stock!H93="","",[2]Stock!H93) ->  | L93: =IF(H93="","",IFERROR(VLOOKUP(H93,Brassage!$B$45:$H$57,1,FALSE),"")) ->  | M93: =IF(L93="","",IFERROR(VLOOKUP(L93,Brassage!$B$45:$H$57,2,FALSE),"")) ->  | N93: =IF(L93="0","0",SUMIF(Brassage!$B$45:$B$57,L93,Brassage!$F$45:$F$57)) -> 0 | P93: =IF([2]Stock!J93="","",[2]Stock!J93) ->  | Q93: =IF([2]Stock!K93="","",[2]Stock!K93) ->  | R93: =IF(P93="","",IFERROR(VLOOKUP(P93,Brassage!$B$61:$H$62,1,FALSE),"")) ->  | S93: =IF(R93="0","0",IFERROR(VLOOKUP(P93,Brassage!$B$61:$H$62,7,FALSE),"0")) -> 0 | U93: =IF([2]Stock!M93="","",[2]Stock!M93) ->  | V93: =IF([2]Stock!N93="","",[2]Stock!N93) ->  | W93: =IF(U93="","",IFERROR(VLOOKUP(U93,Brassage!$B$39:$H$42,1,FALSE),"")) ->  | X93: =IF(U93="0","0",IFERROR(VLOOKUP(U93,Brassage!$B$39:$H$42,5,FALSE),"0")) -> 0
A94: =IF([2]Stock!A94="","",[2]Stock!A94) ->  | B94: =IF([2]Stock!B94="","",[2]Stock!B94) ->  | C94: =IF([2]Stock!C94="","",[2]Stock!C94) ->  | D94: =IF(A94="","",IFERROR(VLOOKUP(A94,Brassage!$B$25:$H$33,1,FALSE),"")) ->  | E94: =IF(A94="","",IFERROR(VLOOKUP(A94,Brassage!$B$25:$H$33,2,FALSE),"")) ->  | F94: =IF(Stock!D94="0","0",SUMIF(Brassage!$B$25:$B$33,Stock!D94,Brassage!$H$25:$H$33)) -> 0 | H94: =IF([2]Stock!E94="","",[2]Stock!E94) ->  | I94: =IF([2]Stock!F94="","",[2]Stock!F94) ->  | J94: =IF([2]Stock!G94="","",[2]Stock!G94) ->  | K94: =IF([2]Stock!H94="","",[2]Stock!H94) ->  | L94: =IF(H94="","",IFERROR(VLOOKUP(H94,Brassage!$B$45:$H$57,1,FALSE),"")) ->  | M94: =IF(L94="","",IFERROR(VLOOKUP(L94,Brassage!$B$45:$H$57,2,FALSE),"")) ->  | N94: =IF(L94="0","0",SUMIF(Brassage!$B$45:$B$57,L94,Brassage!$F$45:$F$57)) -> 0 | P94: =IF([2]Stock!J94="","",[2]Stock!J94) ->  | Q94: =IF([2]Stock!K94="","",[2]Stock!K94) ->  | R94: =IF(P94="","",IFERROR(VLOOKUP(P94,Brassage!$B$61:$H$62,1,FALSE),"")) ->  | S94: =IF(R94="0","0",IFERROR(VLOOKUP(P94,Brassage!$B$61:$H$62,7,FALSE),"0")) -> 0 | U94: =IF([2]Stock!M94="","",[2]Stock!M94) ->  | V94: =IF([2]Stock!N94="","",[2]Stock!N94) ->  | W94: =IF(U94="","",IFERROR(VLOOKUP(U94,Brassage!$B$39:$H$42,1,FALSE),"")) ->  | X94: =IF(U94="0","0",IFERROR(VLOOKUP(U94,Brassage!$B$39:$H$42,5,FALSE),"0")) -> 0
A95: =IF([2]Stock!A95="","",[2]Stock!A95) ->  | B95: =IF([2]Stock!B95="","",[2]Stock!B95) ->  | C95: =IF([2]Stock!C95="","",[2]Stock!C95) ->  | D95: =IF(A95="","",IFERROR(VLOOKUP(A95,Brassage!$B$25:$H$33,1,FALSE),"")) ->  | E95: =IF(A95="","",IFERROR(VLOOKUP(A95,Brassage!$B$25:$H$33,2,FALSE),"")) ->  | F95: =IF(Stock!D95="0","0",SUMIF(Brassage!$B$25:$B$33,Stock!D95,Brassage!$H$25:$H$33)) -> 0 | H95: =IF([2]Stock!E95="","",[2]Stock!E95) ->  | I95: =IF([2]Stock!F95="","",[2]Stock!F95) ->  | J95: =IF([2]Stock!G95="","",[2]Stock!G95) ->  | K95: =IF([2]Stock!H95="","",[2]Stock!H95) ->  | L95: =IF(H95="","",IFERROR(VLOOKUP(H95,Brassage!$B$45:$H$57,1,FALSE),"")) ->  | M95: =IF(L95="","",IFERROR(VLOOKUP(L95,Brassage!$B$45:$H$57,2,FALSE),"")) ->  | N95: =IF(L95="0","0",SUMIF(Brassage!$B$45:$B$57,L95,Brassage!$F$45:$F$57)) -> 0 | P95: =IF([2]Stock!J95="","",[2]Stock!J95) ->  | Q95: =IF([2]Stock!K95="","",[2]Stock!K95) ->  | R95: =IF(P95="","",IFERROR(VLOOKUP(P95,Brassage!$B$61:$H$62,1,FALSE),"")) ->  | S95: =IF(R95="0","0",IFERROR(VLOOKUP(P95,Brassage!$B$61:$H$62,7,FALSE),"0")) -> 0 | U95: =IF([2]Stock!M95="","",[2]Stock!M95) ->  | V95: =IF([2]Stock!N95="","",[2]Stock!N95) ->  | W95: =IF(U95="","",IFERROR(VLOOKUP(U95,Brassage!$B$39:$H$42,1,FALSE),"")) ->  | X95: =IF(U95="0","0",IFERROR(VLOOKUP(U95,Brassage!$B$39:$H$42,5,FALSE),"0")) -> 0
A96: =IF([2]Stock!A96="","",[2]Stock!A96) ->  | B96: =IF([2]Stock!B96="","",[2]Stock!B96) ->  | C96: =IF([2]Stock!C96="","",[2]Stock!C96) ->  | D96: =IF(A96="","",IFERROR(VLOOKUP(A96,Brassage!$B$25:$H$33,1,FALSE),"")) ->  | E96: =IF(A96="","",IFERROR(VLOOKUP(A96,Brassage!$B$25:$H$33,2,FALSE),"")) ->  | F96: =IF(Stock!D96="0","0",SUMIF(Brassage!$B$25:$B$33,Stock!D96,Brassage!$H$25:$H$33)) -> 0 | H96: =IF([2]Stock!E96="","",[2]Stock!E96) ->  | I96: =IF([2]Stock!F96="","",[2]Stock!F96) ->  | J96: =IF([2]Stock!G96="","",[2]Stock!G96) ->  | K96: =IF([2]Stock!H96="","",[2]Stock!H96) ->  | L96: =IF(H96="","",IFERROR(VLOOKUP(H96,Brassage!$B$45:$H$57,1,FALSE),"")) ->  | M96: =IF(L96="","",IFERROR(VLOOKUP(L96,Brassage!$B$45:$H$57,2,FALSE),"")) ->  | N96: =IF(L96="0","0",SUMIF(Brassage!$B$45:$B$57,L96,Brassage!$F$45:$F$57)) -> 0 | P96: =IF([2]Stock!J96="","",[2]Stock!J96) ->  | Q96: =IF([2]Stock!K96="","",[2]Stock!K96) ->  | R96: =IF(P96="","",IFERROR(VLOOKUP(P96,Brassage!$B$61:$H$62,1,FALSE),"")) ->  | S96: =IF(R96="0","0",IFERROR(VLOOKUP(P96,Brassage!$B$61:$H$62,7,FALSE),"0")) -> 0 | U96: =IF([2]Stock!M96="","",[2]Stock!M96) ->  | V96: =IF([2]Stock!N96="","",[2]Stock!N96) ->  | W96: =IF(U96="","",IFERROR(VLOOKUP(U96,Brassage!$B$39:$H$42,1,FALSE),"")) ->  | X96: =IF(U96="0","0",IFERROR(VLOOKUP(U96,Brassage!$B$39:$H$42,5,FALSE),"0")) -> 0
A97: =IF([2]Stock!A97="","",[2]Stock!A97) ->  | B97: =IF([2]Stock!B97="","",[2]Stock!B97) ->  | C97: =IF([2]Stock!C97="","",[2]Stock!C97) ->  | D97: =IF(A97="","",IFERROR(VLOOKUP(A97,Brassage!$B$25:$H$33,1,FALSE),"")) ->  | E97: =IF(A97="","",IFERROR(VLOOKUP(A97,Brassage!$B$25:$H$33,2,FALSE),"")) ->  | F97: =IF(Stock!D97="0","0",SUMIF(Brassage!$B$25:$B$33,Stock!D97,Brassage!$H$25:$H$33)) -> 0 | H97: =IF([2]Stock!E97="","",[2]Stock!E97) ->  | I97: =IF([2]Stock!F97="","",[2]Stock!F97) ->  | J97: =IF([2]Stock!G97="","",[2]Stock!G97) ->  | K97: =IF([2]Stock!H97="","",[2]Stock!H97) ->  | L97: =IF(H97="","",IFERROR(VLOOKUP(H97,Brassage!$B$45:$H$57,1,FALSE),"")) ->  | M97: =IF(L97="","",IFERROR(VLOOKUP(L97,Brassage!$B$45:$H$57,2,FALSE),"")) ->  | N97: =IF(L97="0","0",SUMIF(Brassage!$B$45:$B$57,L97,Brassage!$F$45:$F$57)) -> 0 | P97: =IF([2]Stock!J97="","",[2]Stock!J97) ->  | Q97: =IF([2]Stock!K97="","",[2]Stock!K97) ->  | R97: =IF(P97="","",IFERROR(VLOOKUP(P97,Brassage!$B$61:$H$62,1,FALSE),"")) ->  | S97: =IF(R97="0","0",IFERROR(VLOOKUP(P97,Brassage!$B$61:$H$62,7,FALSE),"0")) -> 0 | U97: =IF([2]Stock!M97="","",[2]Stock!M97) ->  | V97: =IF([2]Stock!N97="","",[2]Stock!N97) ->  | W97: =IF(U97="","",IFERROR(VLOOKUP(U97,Brassage!$B$39:$H$42,1,FALSE),"")) ->  | X97: =IF(U97="0","0",IFERROR(VLOOKUP(U97,Brassage!$B$39:$H$42,5,FALSE),"0")) -> 0
A98: =IF([2]Stock!A98="","",[2]Stock!A98) ->  | B98: =IF([2]Stock!B98="","",[2]Stock!B98) ->  | C98: =IF([2]Stock!C98="","",[2]Stock!C98) ->  | D98: =IF(A98="","",IFERROR(VLOOKUP(A98,Brassage!$B$25:$H$33,1,FALSE),"")) ->  | E98: =IF(A98="","",IFERROR(VLOOKUP(A98,Brassage!$B$25:$H$33,2,FALSE),"")) ->  | F98: =IF(Stock!D98="0","0",SUMIF(Brassage!$B$25:$B$33,Stock!D98,Brassage!$H$25:$H$33)) -> 0 | H98: =IF([2]Stock!E98="","",[2]Stock!E98) ->  | I98: =IF([2]Stock!F98="","",[2]Stock!F98) ->  | J98: =IF([2]Stock!G98="","",[2]Stock!G98) ->  | K98: =IF([2]Stock!H98="","",[2]Stock!H98) ->  | L98: =IF(H98="","",IFERROR(VLOOKUP(H98,Brassage!$B$45:$H$57,1,FALSE),"")) ->  | M98: =IF(L98="","",IFERROR(VLOOKUP(L98,Brassage!$B$45:$H$57,2,FALSE),"")) ->  | N98: =IF(L98="0","0",SUMIF(Brassage!$B$45:$B$57,L98,Brassage!$F$45:$F$57)) -> 0 | P98: =IF([2]Stock!J98="","",[2]Stock!J98) ->  | Q98: =IF([2]Stock!K98="","",[2]Stock!K98) ->  | R98: =IF(P98="","",IFERROR(VLOOKUP(P98,Brassage!$B$61:$H$62,1,FALSE),"")) ->  | S98: =IF(R98="0","0",IFERROR(VLOOKUP(P98,Brassage!$B$61:$H$62,7,FALSE),"0")) -> 0 | U98: =IF([2]Stock!M98="","",[2]Stock!M98) ->  | V98: =IF([2]Stock!N98="","",[2]Stock!N98) ->  | W98: =IF(U98="","",IFERROR(VLOOKUP(U98,Brassage!$B$39:$H$42,1,FALSE),"")) ->  | X98: =IF(U98="0","0",IFERROR(VLOOKUP(U98,Brassage!$B$39:$H$42,5,FALSE),"0")) -> 0
A99: =IF([2]Stock!A99="","",[2]Stock!A99) ->  | B99: =IF([2]Stock!B99="","",[2]Stock!B99) ->  | C99: =IF([2]Stock!C99="","",[2]Stock!C99) ->  | D99: =IF(A99="","",IFERROR(VLOOKUP(A99,Brassage!$B$25:$H$33,1,FALSE),"")) ->  | E99: =IF(A99="","",IFERROR(VLOOKUP(A99,Brassage!$B$25:$H$33,2,FALSE),"")) ->  | F99: =IF(Stock!D99="0","0",SUMIF(Brassage!$B$25:$B$33,Stock!D99,Brassage!$H$25:$H$33)) -> 0 | H99: =IF([2]Stock!E99="","",[2]Stock!E99) ->  | I99: =IF([2]Stock!F99="","",[2]Stock!F99) ->  | J99: =IF([2]Stock!G99="","",[2]Stock!G99) ->  | K99: =IF([2]Stock!H99="","",[2]Stock!H99) ->  | L99: =IF(H99="","",IFERROR(VLOOKUP(H99,Brassage!$B$45:$H$57,1,FALSE),"")) ->  | M99: =IF(L99="","",IFERROR(VLOOKUP(L99,Brassage!$B$45:$H$57,2,FALSE),"")) ->  | N99: =IF(L99="0","0",SUMIF(Brassage!$B$45:$B$57,L99,Brassage!$F$45:$F$57)) -> 0 | P99: =IF([2]Stock!J99="","",[2]Stock!J99) ->  | Q99: =IF([2]Stock!K99="","",[2]Stock!K99) ->  | R99: =IF(P99="","",IFERROR(VLOOKUP(P99,Brassage!$B$61:$H$62,1,FALSE),"")) ->  | S99: =IF(R99="0","0",IFERROR(VLOOKUP(P99,Brassage!$B$61:$H$62,7,FALSE),"0")) -> 0 | U99: =IF([2]Stock!M99="","",[2]Stock!M99) ->  | V99: =IF([2]Stock!N99="","",[2]Stock!N99) ->  | W99: =IF(U99="","",IFERROR(VLOOKUP(U99,Brassage!$B$39:$H$42,1,FALSE),"")) ->  | X99: =IF(U99="0","0",IFERROR(VLOOKUP(U99,Brassage!$B$39:$H$42,5,FALSE),"0")) -> 0
A100: =IF([2]Stock!A100="","",[2]Stock!A100) ->  | B100: =IF([2]Stock!B100="","",[2]Stock!B100) ->  | C100: =IF([2]Stock!C100="","",[2]Stock!C100) ->  | D100: =IF(A100="","",IFERROR(VLOOKUP(A100,Brassage!$B$25:$H$33,1,FALSE),"")) ->  | E100: =IF(A100="","",IFERROR(VLOOKUP(A100,Brassage!$B$25:$H$33,2,FALSE),"")) ->  | F100: =IF(Stock!D100="0","0",SUMIF(Brassage!$B$25:$B$33,Stock!D100,Brassage!$H$25:$H$33)) -> 0 | H100: =IF([2]Stock!E100="","",[2]Stock!E100) ->  | I100: =IF([2]Stock!F100="","",[2]Stock!F100) ->  | J100: =IF([2]Stock!G100="","",[2]Stock!G100) ->  | K100: =IF([2]Stock!H100="","",[2]Stock!H100) ->  | L100: =IF(H100="","",IFERROR(VLOOKUP(H100,Brassage!$B$45:$H$57,1,FALSE),"")) ->  | M100: =IF(L100="","",IFERROR(VLOOKUP(L100,Brassage!$B$45:$H$57,2,FALSE),"")) ->  | N100: =IF(L100="0","0",SUMIF(Brassage!$B$45:$B$57,L100,Brassage!$F$45:$F$57)) -> 0 | P100: =IF([2]Stock!J100="","",[2]Stock!J100) ->  | Q100: =IF([2]Stock!K100="","",[2]Stock!K100) ->  | R100: =IF(P100="","",IFERROR(VLOOKUP(P100,Brassage!$B$61:$H$62,1,FALSE),"")) ->  | S100: =IF(R100="0","0",IFERROR(VLOOKUP(P100,Brassage!$B$61:$H$62,7,FALSE),"0")) -> 0 | U100: =IF([2]Stock!M100="","",[2]Stock!M100) ->  | V100: =IF([2]Stock!N100="","",[2]Stock!N100) ->  | W100: =IF(U100="","",IFERROR(VLOOKUP(U100,Brassage!$B$39:$H$42,1,FALSE),"")) ->  | X100: =IF(U100="0","0",IFERROR(VLOOKUP(U100,Brassage!$B$39:$H$42,5,FALSE),"0")) -> 0

Sheet Etiquettes
A1: =Brassage!A1 -> # Projet - Weissbier exemple | B1: =A1 -> # Projet - Weissbier exemple | C1: =A1 -> # Projet - Weissbier exemple | D1: =A1 -> # Projet - Weissbier exemple | E1: =A1 -> # Projet - Weissbier exemple | F1: =A1 -> # Projet - Weissbier exemple | I1: =G1 -> 0 | K1: =G1 -> 0 | M1: =G1 -> 0 | O1: =G1 -> 0 | Q1: =G1 -> 0
A5: ="Brassin de "&Brassage!B4&" L" -> Brassin de 28 L | B5: =A5 -> Brassin de 28 L | C5: =A5 -> Brassin de 28 L | D5: =A5 -> Brassin de 28 L | E5: =A5 -> Brassin de 28 L | F5: =A5 -> Brassin de 28 L
B6: =A6 -> 0 | C6: =A6 -> 0 | D6: =A6 -> 0 | E6: =A6 -> 0 | F6: =A6 -> 0 | G6: Brassée | H6: =Brassage!B5 -> 2023-10-15 | I6: =G6 -> Brassée | J6: =H6 -> 2023-10-15 | K6: =G6 -> Brassée | L6: =H6 -> 2023-10-15 | M6: =G6 -> Brassée | N6: =H6 -> 2023-10-15 | O6: =G6 -> Brassée | P6: =H6 -> 2023-10-15 | Q6: =G6 -> Brassée | R6: =H6 -> 2023-10-15 | S6: EBC | T6: ABV | U6: Emb. | V6: Brassée | W6: =S6 -> EBC | X6: ABV | Y6: Emb. | Z6: Brassée | AA6: EBC | AB6: ABV | AC6: Emb. | AD6: Brassée | AE6: EBC | AF6: ABV | AG6: Emb. | AH6: Brassée | AI6: EBC | AJ6: ABV | AK6: Emb. | AL6: Brassée | AM6: EBC | AN6: ABV | AO6: Emb. | AP6: Brassée
A7: ="DI : " &Brassage!N34 -> DI : 1,049 | B7: =A7 -> DI : 1,049 | C7: =A7 -> DI : 1,049 | D7: =A7 -> DI : 1,049 | E7: =A7 -> DI : 1,049 | F7: =A7 -> DI : 1,049 | G7: Emb le | H7: =Brassage!K54 -> 2023-11-06 | I7: Emb le | J7: 2023-11-06 | K7: Emb le | L7: 2023-11-06 | M7: Emb le | N7: 2023-11-06 | O7: Emb le | P7: 2023-11-06 | Q7: Emb le | R7: 2023-11-06
A8: ="DF : " &Brassage!N56 -> DF : 1,01 | B8: =A8 -> DF : 1,01 | C8: =A8 -> DF : 1,01 | D8: =A8 -> DF : 1,01 | E8: =A8 -> DF : 1,01 | F8: =A8 -> DF : 1,01 | G8: ABV - | H8: =Brassage!E8 -> 5.06275 | I8: ABV - | J8: 5.06275 | K8: ABV - | L8: 5.06275 | M8: ABV - | N8: 5.06275 | O8: ABV - | P8: 5.06275 | Q8: ABV - | R8: 5.06275
A9: ="Empatage à "&ROUND(Brassage!B11,1)&"°C" -> Empatage à 66°C | B9: =A9 -> Empatage à 66°C | C9: =A9 -> Empatage à 66°C | D9: =A9 -> Empatage à 66°C | E9: =A9 -> Empatage à 66°C | F9: =A9 -> Empatage à 66°C | G9: EBC - | H9: =Brassage!E6 -> 12.3739512 | I9: EBC - | J9: 12.3739512 | K9: EBC - | L9: 12.3739512 | M9: EBC - | N9: 12.3739512 | O9: EBC - | P9: 12.3739512 | Q9: EBC - | R9: 12.3739512 | S9: =Brassage!$E$6 -> 12.3739512 | T9: =Brassage!$O$61 -> 5.805269946 | U9: =Brassage!$K$54 -> 2023-11-06 | V9: =Brassage!$B$5 -> 2023-10-15 | W9: =S9 -> 12.3739512 | X9: 5.805269946 | Y9: 2023-11-06 | Z9: 2023-10-15 | AA9: 12.3739512 | AB9: 5.805269946 | AC9: 2023-11-06 | AD9: 2023-10-15 | AE9: 12.3739512 | AF9: 5.805269946 | AG9: 2023-11-06 | AH9: 2023-10-15 | AI9: 12.3739512 | AJ9: 5.805269946 | AK9: 2023-11-06 | AL9: 2023-10-15 | AM9: 12.3739512 | AN9: 5.805269946 | AO9: 2023-11-06 | AP9: 2023-10-15
G10: IBU - | H10: =Brassage!E7 -> 11.71336855 | I10: IBU - | J10: 11.71336855 | K10: IBU - | L10: 11.71336855 | M10: IBU - | N10: 11.71336855 | O10: IBU - | P10: 11.71336855 | Q10: IBU - | R10: 11.71336855
A11: ="Grains et sucres" -> Grains et sucres | B11: =A11 -> Grains et sucres | C11: =A11 -> Grains et sucres | D11: =A11 -> Grains et sucres | E11: =A11 -> Grains et sucres | F11: =A11 -> Grains et sucres | G11: IBU/DI - | H11: =Brassage!E7/((Brassage!N34-1)*1000) -> 0.2390483377 | I11: IBU/DI - | J11: 0.2390483377 | K11: IBU/DI - | L11: 0.2390483377 | M11: IBU/DI - | N11: 0.2390483377 | O11: IBU/DI - | P11: 0.2390483377 | Q11: IBU/DI - | R11: 0.2390483377
A12: =IF(Brassage!H25=0,"","- "&ROUND(Brassage!H25,0)&"g "&Brassage!B25) -> - 3574g Pale ale Swaen | B12: - 3574g Pale ale Swaen | C12: - 3574g Pale ale Swaen | D12: - 3574g Pale ale Swaen | E12: - 3574g Pale ale Swaen | F12: - 3574g Pale ale Swaen | G12: vol CO2 | H12: =Brassage!E9 -> 3.6 | I12: vol CO2 | J12: 3.6 | K12: vol CO2 | L12: 3.6 | M12: vol CO2 | N12: 3.6 | O12: vol CO2 | P12: 3.6 | Q12: vol CO2 | R12: 3.6 | S12: vol CO2 | T12: IBU/RE | U12: IBU/DI | V12: IBU | W12: =S12 -> vol CO2 | X12: IBU/RE | Y12: IBU/DI | Z12: IBU | AA12: vol CO2 | AB12: IBU/RE | AC12: IBU/DI | AD12: IBU | AE12: vol CO2 | AF12: IBU/RE | AG12: IBU/DI | AH12: IBU | AI12: vol CO2 | AJ12: IBU/RE | AK12: IBU/DI | AL12: IBU | AM12: vol CO2 | AN12: IBU/RE | AO12: IBU/DI | AP12: IBU
A13: =IF(Brassage!H26=0,"","- "&ROUND(Brassage!H26,0)&"g "&Brassage!B26) -> - 3574g Froment - Vieux Silo | B13: - 3574g Froment - Vieux Silo | C13: - 3574g Froment - Vieux Silo | D13: - 3574g Froment - Vieux Silo | E13: - 3574g Froment - Vieux Silo | F13: - 3574g Froment - Vieux Silo | I13: 0 | J13: 0 | K13: 0 | L13: 0 | M13: 0 | N13: 0 | O13: 0 | P13: 0 | Q13: 0 | R13: 0
A14: =IF(Brassage!H27=0,"","- "&ROUND(Brassage!H27,0)&"g "&Brassage!B27) -> - 146g Cara Gold - Vieux Silo | B14: - 146g Cara Gold - Vieux Silo | C14: - 146g Cara Gold - Vieux Silo | D14: - 146g Cara Gold - Vieux Silo | E14: - 146g Cara Gold - Vieux Silo | F14: - 146g Cara Gold - Vieux Silo | G14: =Brassage!A1 -> # Projet - Weissbier exemple | H14: =Brassage!B3 -> 10A - Weissbier | I14: # Projet - Weissbier exemple | J14: 10A - Weissbier | K14: # Projet - Weissbier exemple | L14: 10A - Weissbier | M14: # Projet - Weissbier exemple | N14: 10A - Weissbier | O14: # Projet - Weissbier exemple | P14: 10A - Weissbier | Q14: # Projet - Weissbier exemple | R14: 10A - Weissbier
A15: =IF(Brassage!H28=0,"","- "&ROUND(Brassage!H28,0)&"g "&Brassage!B28) ->  | S15: =Brassage!$E$9 -> 3.6 | T15: =Brassage!$E$7/(0.1808*(259-(259/Brassage!$N$34))+(0.8192*(259-(259/Brassage!$L$56)))) -> 2.543957109 | U15: =Brassage!E11 -> 2.520682653 | V15: =Brassage!$E$7 -> 11.71336855 | W15: =S15 -> 3.6 | X15: 2.543957109 | Y15: 2.520682653 | Z15: 11.71336855 | AA15: 3.6 | AB15: 2.543957109 | AC15: 2.520682653 | AD15: 11.71336855 | AE15: 3.6 | AF15: 2.543957109 | AG15: 2.520682653 | AH15: 11.71336855 | AI15: 3.6 | AJ15: 2.543957109 | AK15: 2.520682653 | AL15: 11.71336855 | AM15: 3.6 | AN15: 2.543957109 | AO15: 2.520682653 | AP15: 11.71336855
A16: =IF(Brassage!H29=0,"","- "&ROUND(Brassage!H29,0)&"g "&Brassage!B29) -> 
A17: =IF(Brassage!H30=0,"","- "&ROUND(Brassage!H30,0)&"g "&Brassage!B30) -> 
A18: =IF(Brassage!H31=0,"","- "&ROUND(Brassage!H31,0)&"g "&Brassage!B31) ->  | S18: =Brassage!$A$1 -> # Projet - Weissbier exemple | U18: =Brassage!$B$3 -> 10A - Weissbier | W18: =S18 -> # Projet - Weissbier exemple | Y18: =U18 -> 10A - Weissbier | AA18: =W18 -> # Projet - Weissbier exemple | AC18: =Y18 -> 10A - Weissbier | AE18: =AA18 -> # Projet - Weissbier exemple | AG18: =AC18 -> 10A - Weissbier | AI18: =AE18 -> # Projet - Weissbier exemple | AK18: =AG18 -> 10A - Weissbier | AM18: =AI18 -> # Projet - Weissbier exemple | AO18: =AK18 -> 10A - Weissbier
A19: Autres | B19: =A19 -> Autres | C19: =A19 -> Autres | D19: =A19 -> Autres | E19: =A19 -> Autres | F19: =A19 -> Autres
A20: =IF(Brassage!B39=0,"",Brassage!F39&" "&Brassage!B39) ->  | B20: =A20 ->  | C20: =A20 ->  | D20: =A20 ->  | E20: =A20 ->  | F20: =A20 -> 
A21: =IF(Brassage!B40=0,"",Brassage!F40&"g "&Brassage!B40) ->  | B21: =A21 ->  | C21: =A21 ->  | D21: =A21 ->  | E21: =A21 ->  | F21: =A21 -> 
A22: =IF(Brassage!B41=0,"",Brassage!F41&"g "&Brassage!B41) ->  | B22: =A22 ->  | C22: =A22 ->  | D22: =A22 ->  | E22: =A22 ->  | F22: =A22 -> 
A24: Houblons | B24: =A24 -> Houblons | C24: =A24 -> Houblons | D24: =A24 -> Houblons | E24: =A24 -> Houblons | F24: =A24 -> Houblons
A25: =IF(Brassage!F45=0,"","- "&Brassage!F45&"g "&Brassage!B45&" "&100*Brassage!C45&"%"&" "&"("&Brassage!D45&" "&Brassage!E45&"')") -> - 8g Magnum 13,9% (Ebullition 60') | B25: - 8g Magnum 13,9% (Ebullition 60') | C25: - 8g Magnum 13,9% (Ebullition 60') | D25: - 8g Magnum 13,9% (Ebullition 60') | E25: - 8g Magnum 13,9% (Ebullition 60') | F25: - 8g Magnum 13,9% (Ebullition 60')
A26: =IF(Brassage!F46=0,"","- "&Brassage!F46&"g "&Brassage!B46&" "&100*Brassage!C46&"%"&" "&"("&Brassage!D46&" "&Brassage!E46&"')") -> - 30g Tettnanger 4,1% (Ebullition 10') | B26: - 30g Tettnanger 4,1% (Ebullition 10') | C26: - 30g Tettnanger 4,1% (Ebullition 10') | D26: - 30g Tettnanger 4,1% (Ebullition 10') | E26: - 30g Tettnanger 4,1% (Ebullition 10') | F26: - 30g Tettnanger 4,1% (Ebullition 10')
A27: =IF(Brassage!F47=0,"","- "&Brassage!F47&"g "&Brassage!B47&" "&100*Brassage!C47&"%"&" "&"("&Brassage!D47&" "&Brassage!E47&"')") -> 
A28: =IF(Brassage!F48=0,"","- "&Brassage!F48&"g "&Brassage!B48&" "&100*Brassage!C48&"%"&" "&"("&Brassage!D48&" "&Brassage!E48&"')") -> 
A29: =IF(Brassage!F49=0,"","- "&Brassage!F49&"g "&Brassage!B49&" "&100*Brassage!C49&"%"&" "&"("&Brassage!D49&" "&Brassage!E49&"')") -> 
A30: =IF(Brassage!F53=0,"","- "&Brassage!F53&"g "&Brassage!B53&" "&100*Brassage!C53&"%"&" "&"("&Brassage!D53&" "&Brassage!E53&"')") -> 
A31: =IF(Brassage!F54=0,"","- "&Brassage!F54&"g "&Brassage!B54&" "&100*Brassage!C54&"%"&" "&"("&Brassage!D54&" "&Brassage!E54&"')") -> 
A32: Levures | B32: Levures | C32: =A32 -> Levures | D32: =A32 -> Levures | E32: =A32 -> Levures | F32: =A32 -> Levures
A33: =IF(Brassage!B61=0,"",Brassage!B61) -> Wyeast 3068 Weihenstephan Weizen | B33: Wyeast 3068 Weihenstephan Weizen | C33: =A33 -> Wyeast 3068 Weihenstephan Weizen | D33: =A33 -> Wyeast 3068 Weihenstephan Weizen | E33: =A33 -> Wyeast 3068 Weihenstephan Weizen | F33: =A33 -> Wyeast 3068 Weihenstephan Weizen
A34: =IF(Brassage!B62=0,"",Brassage!B62) ->  | C34: =A34 ->  | D34: =A34 ->  | E34: =A34 ->  | F34: =A34 -> 
B35: 0
S37: =$A$1 -> # Projet - Weissbier exemple | W37: =S37 -> # Projet - Weissbier exemple | AA37: =W37 -> # Projet - Weissbier exemple | AE37: =AA37 -> # Projet - Weissbier exemple | AI37: =AE37 -> # Projet - Weissbier exemple | AM37: =AI37 -> # Projet - Weissbier exemple
I41: =G41 -> 0 | J41: =H41 -> 0 | K41: =G41 -> 0 | L41: =H41 -> 0 | M41: =G41 -> 0 | N41: =H41 -> 0 | O41: =G41 -> 0 | P41: =H41 -> 0 | Q41: =G41 -> 0 | R41: =H41 -> 0
I42: =G42 -> 0 | K42: =G42 -> 0 | M42: =G42 -> 0 | O42: =G42 -> 0 | Q42: =G42 -> 0

Sheet Profil matériel
A1: =IFERROR(INDEX($I$1:$I$572,SMALL(IF(FREQUENCY(IF($I$1:$I$572<>"",MATCH($I$1:$I$572,$I$1:$I$572,0)), ROW($I$1:$I$572)-ROW($I$1)+1),ROW($I$1:$I$572)-ROW($I$1)+1),ROWS(I$2:I2))),"") -> Profil Matériel
A2: =IFERROR(INDEX($I$1:$I$572,SMALL(IF(FREQUENCY(IF($I$1:$I$572<>"",MATCH($I$1:$I$572,$I$1:$I$572,0)), ROW($I$1:$I$572)-ROW($I$1)+1),ROW($I$1:$I$572)-ROW($I$1)+1),ROWS(I$2:I3))),"") -> Profil Hiver
A3: =IFERROR(INDEX($I$1:$I$572,SMALL(IF(FREQUENCY(IF($I$1:$I$572<>"",MATCH($I$1:$I$572,$I$1:$I$572,0)), ROW($I$1:$I$572)-ROW($I$1)+1),ROW($I$1:$I$572)-ROW($I$1)+1),ROWS(I$2:I4))),"") -> Profil Eté | I3: Profil Matériel | J3: Température du malt | L3: 19 | M3: Température cuve d'empatage | O3: 70.3
A4: =IFERROR(INDEX($I$1:$I$572,SMALL(IF(FREQUENCY(IF($I$1:$I$572<>"",MATCH($I$1:$I$572,$I$1:$I$572,0)), ROW($I$1:$I$572)-ROW($I$1)+1),ROW($I$1:$I$572)-ROW($I$1)+1),ROWS(I$2:I5))),"") -> Profil exemple | J4: Humidité du malt | L4: 0.04 | M4: c*m cuve empatage | O4: =5.83*500 -> 2915
A5: =IFERROR(INDEX($I$1:$I$572,SMALL(IF(FREQUENCY(IF($I$1:$I$572<>"",MATCH($I$1:$I$572,$I$1:$I$572,0)), ROW($I$1:$I$572)-ROW($I$1)+1),ROW($I$1:$I$572)-ROW($I$1)+1),ROWS(I$2:I6))),"") ->  | J5: Rétention grains | L5: 1 | M5: Facteur correctif T°empatage | O5: =-((232.2934*(Brassage!$L$4*100)^2 -7471.1515*(Brassage!$L$4*100)+63999.0441)*0.5*Brassage!$H$34/1000)/((Brassage!$H$34/1000)*(23.9246*Brassage!$L$4*100+1585.0029)+Brassage!$M$10*4185) -> -1.158459888
A6: =IFERROR(INDEX($I$1:$I$572,SMALL(IF(FREQUENCY(IF($I$1:$I$572<>"",MATCH($I$1:$I$572,$I$1:$I$572,0)), ROW($I$1:$I$572)-ROW($I$1)+1),ROW($I$1:$I$572)-ROW($I$1)+1),ROWS(I$2:I7))),"") ->  | J6: Durée d'ébulition | L6: 60 | M6: Pertes cuve filtration | O6: 1.2
A7: =IFERROR(INDEX($I$1:$I$572,SMALL(IF(FREQUENCY(IF($I$1:$I$572<>"",MATCH($I$1:$I$572,$I$1:$I$572,0)), ROW($I$1:$I$572)-ROW($I$1)+1),ROW($I$1:$I$572)-ROW($I$1)+1),ROWS(I$2:I7))),"") ->  | J7: % d'évaporation/h | L7: 0.1 | M7: Pertes cuve ébu | O7: 1
A8: =IFERROR(INDEX($I$1:$I$572,SMALL(IF(FREQUENCY(IF($I$1:$I$572<>"",MATCH($I$1:$I$572,$I$1:$I$572,0)), ROW($I$1:$I$572)-ROW($I$1)+1),ROW($I$1:$I$572)-ROW($I$1)+1),ROWS(I$2:I7))),"") ->  | J8: Ratio d'empatage | L8: 3.5 | M8: Pertes cuve tampon | O8: 1
A9: =IFERROR(INDEX($I$1:$I$572,SMALL(IF(FREQUENCY(IF($I$1:$I$572<>"",MATCH($I$1:$I$572,$I$1:$I$572,0)), ROW($I$1:$I$572)-ROW($I$1)+1),ROW($I$1:$I$572)-ROW($I$1)+1),ROWS(I$2:I7))),"") ->  | J9: Volume d'eau total | L9: / | M9: Pertes fermenteur | O9: 1.5
A10: =IFERROR(INDEX($I$1:$I$572,SMALL(IF(FREQUENCY(IF($I$1:$I$572<>"",MATCH($I$1:$I$572,$I$1:$I$572,0)), ROW($I$1:$I$572)-ROW($I$1)+1),ROW($I$1:$I$572)-ROW($I$1)+1),ROWS(I$2:I7))),"") ->  | I10: Profil Hiver | J10: Température du malt | L10: 19 | M10: Température cuve d'empatage | O10: 70.3
A11: =IFERROR(INDEX($I$1:$I$572,SMALL(IF(FREQUENCY(IF($I$1:$I$572<>"",MATCH($I$1:$I$572,$I$1:$I$572,0)), ROW($I$1:$I$572)-ROW($I$1)+1),ROW($I$1:$I$572)-ROW($I$1)+1),ROWS(I$2:I7))),"") ->  | J11: Humidité du malt | L11: 0.04 | M11: c*m cuve empatage | O11: =5.83*500 -> 2915
A12: =IFERROR(INDEX($I$1:$I$572,SMALL(IF(FREQUENCY(IF($I$1:$I$572<>"",MATCH($I$1:$I$572,$I$1:$I$572,0)), ROW($I$1:$I$572)-ROW($I$1)+1),ROW($I$1:$I$572)-ROW($I$1)+1),ROWS(I$2:I7))),"") ->  | J12: Rétention grains | L12: 1 | M12: Facteur correctif T°empatage | O12: =-((232.2934*(Brassage!$L$4*100)^2 -7471.1515*(Brassage!$L$4*100)+63999.0441)*0.5*Brassage!$H$34/1000)/((Brassage!$H$34/1000)*(23.9246*Brassage!$L$4*100+1585.0029)+Brassage!$M$10*4185) -> -1.158459888
A13: =IFERROR(INDEX($I$1:$I$572,SMALL(IF(FREQUENCY(IF($I$1:$I$572<>"",MATCH($I$1:$I$572,$I$1:$I$572,0)), ROW($I$1:$I$572)-ROW($I$1)+1),ROW($I$1:$I$572)-ROW($I$1)+1),ROWS(I$2:I7))),"") ->  | J13: Durée d'ébulition | L13: 60 | M13: Pertes cuve filtration | O13: 1.2
A14: =IFERROR(INDEX($I$1:$I$572,SMALL(IF(FREQUENCY(IF($I$1:$I$572<>"",MATCH($I$1:$I$572,$I$1:$I$572,0)), ROW($I$1:$I$572)-ROW($I$1)+1),ROW($I$1:$I$572)-ROW($I$1)+1),ROWS(I$2:I7))),"") ->  | J14: % d'évaporation/h | L14: 0.1 | M14: Pertes cuve ébu | O14: 1
A15: =IFERROR(INDEX($I$1:$I$572,SMALL(IF(FREQUENCY(IF($I$1:$I$572<>"",MATCH($I$1:$I$572,$I$1:$I$572,0)), ROW($I$1:$I$572)-ROW($I$1)+1),ROW($I$1:$I$572)-ROW($I$1)+1),ROWS(I$2:I7))),"") ->  | J15: Ratio d'empatage | L15: 3.5 | M15: Pertes cuve tampon | O15: 1
A16: =IFERROR(INDEX($I$1:$I$572,SMALL(IF(FREQUENCY(IF($I$1:$I$572<>"",MATCH($I$1:$I$572,$I$1:$I$572,0)), ROW($I$1:$I$572)-ROW($I$1)+1),ROW($I$1:$I$572)-ROW($I$1)+1),ROWS(I$2:I7))),"") ->  | J16: Volume d'eau total | M16: Pertes fermenteur | O16: 1.5
A17: =IFERROR(INDEX($I$1:$I$572,SMALL(IF(FREQUENCY(IF($I$1:$I$572<>"",MATCH($I$1:$I$572,$I$1:$I$572,0)), ROW($I$1:$I$572)-ROW($I$1)+1),ROW($I$1:$I$572)-ROW($I$1)+1),ROWS(I$2:I7))),"") ->  | I17: Profil Eté | J17: Température du malt | L17: 24 | M17: Température cuve d'empatage | O17: 70.3
A18: =IFERROR(INDEX($I$1:$I$572,SMALL(IF(FREQUENCY(IF($I$1:$I$572<>"",MATCH($I$1:$I$572,$I$1:$I$572,0)), ROW($I$1:$I$572)-ROW($I$1)+1),ROW($I$1:$I$572)-ROW($I$1)+1),ROWS(I$2:I7))),"") ->  | J18: Humidité du malt | L18: 0.04 | M18: c*m cuve empatage | O18: =5.83*500 -> 2915
A19: =IFERROR(INDEX($I$1:$I$572,SMALL(IF(FREQUENCY(IF($I$1:$I$572<>"",MATCH($I$1:$I$572,$I$1:$I$572,0)), ROW($I$1:$I$572)-ROW($I$1)+1),ROW($I$1:$I$572)-ROW($I$1)+1),ROWS(I$2:I7))),"") ->  | J19: Rétention grains | L19: 1 | M19: Facteur correctif T°empatage | O19: =-((232.2934*(Brassage!$L$4*100)^2 -7471.1515*(Brassage!$L$4*100)+63999.0441)*0.5*Brassage!$H$34/1000)/((Brassage!$H$34/1000)*(23.9246*Brassage!$L$4*100+1585.0029)+Brassage!$M$10*4185) -> -1.158459888
A20: =IFERROR(INDEX($I$1:$I$572,SMALL(IF(FREQUENCY(IF($I$1:$I$572<>"",MATCH($I$1:$I$572,$I$1:$I$572,0)), ROW($I$1:$I$572)-ROW($I$1)+1),ROW($I$1:$I$572)-ROW($I$1)+1),ROWS(I$2:I7))),"") ->  | J20: Durée d'ébulition | L20: 60 | M20: Pertes cuve filtration | O20: 1.2
A21: =IFERROR(INDEX($I$1:$I$572,SMALL(IF(FREQUENCY(IF($I$1:$I$572<>"",MATCH($I$1:$I$572,$I$1:$I$572,0)), ROW($I$1:$I$572)-ROW($I$1)+1),ROW($I$1:$I$572)-ROW($I$1)+1),ROWS(I$2:I7))),"") ->  | J21: % d'évaporation/h | L21: 0.1 | M21: Pertes cuve ébu | O21: 1
A22: =IFERROR(INDEX($I$1:$I$572,SMALL(IF(FREQUENCY(IF($I$1:$I$572<>"",MATCH($I$1:$I$572,$I$1:$I$572,0)), ROW($I$1:$I$572)-ROW($I$1)+1),ROW($I$1:$I$572)-ROW($I$1)+1),ROWS(I$2:I7))),"") ->  | J22: Ratio d'empatage | L22: 3.5 | M22: Pertes cuve tampon | O22: 1
A23: =IFERROR(INDEX($I$1:$I$572,SMALL(IF(FREQUENCY(IF($I$1:$I$572<>"",MATCH($I$1:$I$572,$I$1:$I$572,0)), ROW($I$1:$I$572)-ROW($I$1)+1),ROW($I$1:$I$572)-ROW($I$1)+1),ROWS(I$2:I7))),"") ->  | J23: Volume d'eau total | M23: Pertes fermenteur | O23: 1.5
A24: =IFERROR(INDEX($I$1:$I$572,SMALL(IF(FREQUENCY(IF($I$1:$I$572<>"",MATCH($I$1:$I$572,$I$1:$I$572,0)), ROW($I$1:$I$572)-ROW($I$1)+1),ROW($I$1:$I$572)-ROW($I$1)+1),ROWS(I$2:I7))),"") ->  | I24: Profil exemple | J24: Température du malt | L24: 20 | M24: Température cuve d'empatage | O24: 70.3
A25: =IFERROR(INDEX($I$1:$I$572,SMALL(IF(FREQUENCY(IF($I$1:$I$572<>"",MATCH($I$1:$I$572,$I$1:$I$572,0)), ROW($I$1:$I$572)-ROW($I$1)+1),ROW($I$1:$I$572)-ROW($I$1)+1),ROWS(I$2:I7))),"") ->  | J25: Humidité du malt | L25: 0.04 | M25: c*m cuve empatage | O25: =5.83*500 -> 2915
A26: =IFERROR(INDEX($I$1:$I$572,SMALL(IF(FREQUENCY(IF($I$1:$I$572<>"",MATCH($I$1:$I$572,$I$1:$I$572,0)), ROW($I$1:$I$572)-ROW($I$1)+1),ROW($I$1:$I$572)-ROW($I$1)+1),ROWS(I$2:I7))),"") ->  | J26: Rétention grains | L26: 1 | M26: Facteur correctif T°empatage | O26: =-((232.2934*(Brassage!$L$4*100)^2 -7471.1515*(Brassage!$L$4*100)+63999.0441)*0.5*Brassage!$H$34/1000)/((Brassage!$H$34/1000)*(23.9246*Brassage!$L$4*100+1585.0029)+Brassage!$M$10*4185) -> -1.158459888
A27: =IFERROR(INDEX($I$1:$I$572,SMALL(IF(FREQUENCY(IF($I$1:$I$572<>"",MATCH($I$1:$I$572,$I$1:$I$572,0)), ROW($I$1:$I$572)-ROW($I$1)+1),ROW($I$1:$I$572)-ROW($I$1)+1),ROWS(I$2:I7))),"") ->  | J27: Durée d'ébulition | L27: 60 | M27: Pertes cuve filtration | O27: 1
A28: =IFERROR(INDEX($I$1:$I$572,SMALL(IF(FREQUENCY(IF($I$1:$I$572<>"",MATCH($I$1:$I$572,$I$1:$I$572,0)), ROW($I$1:$I$572)-ROW($I$1)+1),ROW($I$1:$I$572)-ROW($I$1)+1),ROWS(I$2:I8))),"") ->  | J28: % d'évaporation/h | L28: 0.1 | M28: Pertes cuve ébu | O28: 0.5
A29: =IFERROR(INDEX($I$1:$I$572,SMALL(IF(FREQUENCY(IF($I$1:$I$572<>"",MATCH($I$1:$I$572,$I$1:$I$572,0)), ROW($I$1:$I$572)-ROW($I$1)+1),ROW($I$1:$I$572)-ROW($I$1)+1),ROWS(I$2:I9))),"") ->  | J29: Ratio d'empatage | L29: 3.5 | M29: Pertes cuve tampon | O29: 1
A30: =IFERROR(INDEX($I$1:$I$572,SMALL(IF(FREQUENCY(IF($I$1:$I$572<>"",MATCH($I$1:$I$572,$I$1:$I$572,0)), ROW($I$1:$I$572)-ROW($I$1)+1),ROW($I$1:$I$572)-ROW($I$1)+1),ROWS(I$2:I9))),"") ->  | J30: Volume d'eau total | L30: / | M30: Pertes fermenteur | O30: 1
A31: =IFERROR(INDEX($I$1:$I$572,SMALL(IF(FREQUENCY(IF($I$1:$I$572<>"",MATCH($I$1:$I$572,$I$1:$I$572,0)), ROW($I$1:$I$572)-ROW($I$1)+1),ROW($I$1:$I$572)-ROW($I$1)+1),ROWS(I$2:I9))),"") -> 
A32: =IFERROR(INDEX($I$1:$I$572,SMALL(IF(FREQUENCY(IF($I$1:$I$572<>"",MATCH($I$1:$I$572,$I$1:$I$572,0)), ROW($I$1:$I$572)-ROW($I$1)+1),ROW($I$1:$I$572)-ROW($I$1)+1),ROWS(I$2:I9))),"") -> 
A33: =IFERROR(INDEX($I$1:$I$572,SMALL(IF(FREQUENCY(IF($I$1:$I$572<>"",MATCH($I$1:$I$572,$I$1:$I$572,0)), ROW($I$1:$I$572)-ROW($I$1)+1),ROW($I$1:$I$572)-ROW($I$1)+1),ROWS(I$2:I9))),"") -> 
A34: =IFERROR(INDEX($I$1:$I$572,SMALL(IF(FREQUENCY(IF($I$1:$I$572<>"",MATCH($I$1:$I$572,$I$1:$I$572,0)), ROW($I$1:$I$572)-ROW($I$1)+1),ROW($I$1:$I$572)-ROW($I$1)+1),ROWS(I$2:I9))),"") -> 
A35: =IFERROR(INDEX($I$1:$I$572,SMALL(IF(FREQUENCY(IF($I$1:$I$572<>"",MATCH($I$1:$I$572,$I$1:$I$572,0)), ROW($I$1:$I$572)-ROW($I$1)+1),ROW($I$1:$I$572)-ROW($I$1)+1),ROWS(I$2:I9))),"") -> 
A36: =IFERROR(INDEX($I$1:$I$572,SMALL(IF(FREQUENCY(IF($I$1:$I$572<>"",MATCH($I$1:$I$572,$I$1:$I$572,0)), ROW($I$1:$I$572)-ROW($I$1)+1),ROW($I$1:$I$572)-ROW($I$1)+1),ROWS(I$2:I9))),"") -> 
A37: =IFERROR(INDEX($I$1:$I$572,SMALL(IF(FREQUENCY(IF($I$1:$I$572<>"",MATCH($I$1:$I$572,$I$1:$I$572,0)), ROW($I$1:$I$572)-ROW($I$1)+1),ROW($I$1:$I$572)-ROW($I$1)+1),ROWS(I$2:I9))),"") -> 
A38: =IFERROR(INDEX($I$1:$I$572,SMALL(IF(FREQUENCY(IF($I$1:$I$572<>"",MATCH($I$1:$I$572,$I$1:$I$572,0)), ROW($I$1:$I$572)-ROW($I$1)+1),ROW($I$1:$I$572)-ROW($I$1)+1),ROWS(I$2:I9))),"") -> 
A39: =IFERROR(INDEX($I$1:$I$572,SMALL(IF(FREQUENCY(IF($I$1:$I$572<>"",MATCH($I$1:$I$572,$I$1:$I$572,0)), ROW($I$1:$I$572)-ROW($I$1)+1),ROW($I$1:$I$572)-ROW($I$1)+1),ROWS(I$2:I9))),"") -> 
A40: =IFERROR(INDEX($I$1:$I$572,SMALL(IF(FREQUENCY(IF($I$1:$I$572<>"",MATCH($I$1:$I$572,$I$1:$I$572,0)), ROW($I$1:$I$572)-ROW($I$1)+1),ROW($I$1:$I$572)-ROW($I$1)+1),ROWS(I$2:I9))),"") -> 
A41: =IFERROR(INDEX($I$1:$I$572,SMALL(IF(FREQUENCY(IF($I$1:$I$572<>"",MATCH($I$1:$I$572,$I$1:$I$572,0)), ROW($I$1:$I$572)-ROW($I$1)+1),ROW($I$1:$I$572)-ROW($I$1)+1),ROWS(I$2:I9))),"") -> 
A42: =IFERROR(INDEX($I$1:$I$572,SMALL(IF(FREQUENCY(IF($I$1:$I$572<>"",MATCH($I$1:$I$572,$I$1:$I$572,0)), ROW($I$1:$I$572)-ROW($I$1)+1),ROW($I$1:$I$572)-ROW($I$1)+1),ROWS(I$2:I9))),"") -> 
A43: =IFERROR(INDEX($I$1:$I$572,SMALL(IF(FREQUENCY(IF($I$1:$I$572<>"",MATCH($I$1:$I$572,$I$1:$I$572,0)), ROW($I$1:$I$572)-ROW($I$1)+1),ROW($I$1:$I$572)-ROW($I$1)+1),ROWS(I$2:I9))),"") -> 
A44: =IFERROR(INDEX($I$1:$I$572,SMALL(IF(FREQUENCY(IF($I$1:$I$572<>"",MATCH($I$1:$I$572,$I$1:$I$572,0)), ROW($I$1:$I$572)-ROW($I$1)+1),ROW($I$1:$I$572)-ROW($I$1)+1),ROWS(I$2:I9))),"") -> 
A45: =IFERROR(INDEX($I$1:$I$572,SMALL(IF(FREQUENCY(IF($I$1:$I$572<>"",MATCH($I$1:$I$572,$I$1:$I$572,0)), ROW($I$1:$I$572)-ROW($I$1)+1),ROW($I$1:$I$572)-ROW($I$1)+1),ROWS(I$2:I9))),"") -> 
A46: =IFERROR(INDEX($I$1:$I$572,SMALL(IF(FREQUENCY(IF($I$1:$I$572<>"",MATCH($I$1:$I$572,$I$1:$I$572,0)), ROW($I$1:$I$572)-ROW($I$1)+1),ROW($I$1:$I$572)-ROW($I$1)+1),ROWS(I$2:I9))),"") -> 
A47: =IFERROR(INDEX($I$1:$I$572,SMALL(IF(FREQUENCY(IF($I$1:$I$572<>"",MATCH($I$1:$I$572,$I$1:$I$572,0)), ROW($I$1:$I$572)-ROW($I$1)+1),ROW($I$1:$I$572)-ROW($I$1)+1),ROWS(I$2:I9))),"") -> 
A48: =IFERROR(INDEX($I$1:$I$572,SMALL(IF(FREQUENCY(IF($I$1:$I$572<>"",MATCH($I$1:$I$572,$I$1:$I$572,0)), ROW($I$1:$I$572)-ROW($I$1)+1),ROW($I$1:$I$572)-ROW($I$1)+1),ROWS(I$2:I9))),"") -> 
A49: =IFERROR(INDEX($I$1:$I$572,SMALL(IF(FREQUENCY(IF($I$1:$I$572<>"",MATCH($I$1:$I$572,$I$1:$I$572,0)), ROW($I$1:$I$572)-ROW($I$1)+1),ROW($I$1:$I$572)-ROW($I$1)+1),ROWS(I$2:I9))),"") -> 
A50: =IFERROR(INDEX($I$1:$I$572,SMALL(IF(FREQUENCY(IF($I$1:$I$572<>"",MATCH($I$1:$I$572,$I$1:$I$572,0)), ROW($I$1:$I$572)-ROW($I$1)+1),ROW($I$1:$I$572)-ROW($I$1)+1),ROWS(I$2:I9))),"") -> 
A51: =IFERROR(INDEX($I$1:$I$572,SMALL(IF(FREQUENCY(IF($I$1:$I$572<>"",MATCH($I$1:$I$572,$I$1:$I$572,0)), ROW($I$1:$I$572)-ROW($I$1)+1),ROW($I$1:$I$572)-ROW($I$1)+1),ROWS(I$2:I9))),"") -> 
A52: =IFERROR(INDEX($I$1:$I$572,SMALL(IF(FREQUENCY(IF($I$1:$I$572<>"",MATCH($I$1:$I$572,$I$1:$I$572,0)), ROW($I$1:$I$572)-ROW($I$1)+1),ROW($I$1:$I$572)-ROW($I$1)+1),ROWS(I$2:I9))),"") -> 
A53: =IFERROR(INDEX($I$1:$I$572,SMALL(IF(FREQUENCY(IF($I$1:$I$572<>"",MATCH($I$1:$I$572,$I$1:$I$572,0)), ROW($I$1:$I$572)-ROW($I$1)+1),ROW($I$1:$I$572)-ROW($I$1)+1),ROWS(I$2:I9))),"") -> 
A54: =IFERROR(INDEX($I$1:$I$572,SMALL(IF(FREQUENCY(IF($I$1:$I$572<>"",MATCH($I$1:$I$572,$I$1:$I$572,0)), ROW($I$1:$I$572)-ROW($I$1)+1),ROW($I$1:$I$572)-ROW($I$1)+1),ROWS(I$2:I9))),"") -> 
A55: =IFERROR(INDEX($I$1:$I$572,SMALL(IF(FREQUENCY(IF($I$1:$I$572<>"",MATCH($I$1:$I$572,$I$1:$I$572,0)), ROW($I$1:$I$572)-ROW($I$1)+1),ROW($I$1:$I$572)-ROW($I$1)+1),ROWS(I$2:I9))),"") -> 
A56: =IFERROR(INDEX($I$1:$I$572,SMALL(IF(FREQUENCY(IF($I$1:$I$572<>"",MATCH($I$1:$I$572,$I$1:$I$572,0)), ROW($I$1:$I$572)-ROW($I$1)+1),ROW($I$1:$I$572)-ROW($I$1)+1),ROWS(I$2:I9))),"") -> 
A57: =IFERROR(INDEX($I$1:$I$572,SMALL(IF(FREQUENCY(IF($I$1:$I$572<>"",MATCH($I$1:$I$572,$I$1:$I$572,0)), ROW($I$1:$I$572)-ROW($I$1)+1),ROW($I$1:$I$572)-ROW($I$1)+1),ROWS(I$2:I9))),"") -> 
A58: =IFERROR(INDEX($I$1:$I$572,SMALL(IF(FREQUENCY(IF($I$1:$I$572<>"",MATCH($I$1:$I$572,$I$1:$I$572,0)), ROW($I$1:$I$572)-ROW($I$1)+1),ROW($I$1:$I$572)-ROW($I$1)+1),ROWS(I$2:I9))),"") -> 
A59: =IFERROR(INDEX($I$1:$I$572,SMALL(IF(FREQUENCY(IF($I$1:$I$572<>"",MATCH($I$1:$I$572,$I$1:$I$572,0)), ROW($I$1:$I$572)-ROW($I$1)+1),ROW($I$1:$I$572)-ROW($I$1)+1),ROWS(I$2:I9))),"") -> 
A60: =IFERROR(INDEX($I$1:$I$572,SMALL(IF(FREQUENCY(IF($I$1:$I$572<>"",MATCH($I$1:$I$572,$I$1:$I$572,0)), ROW($I$1:$I$572)-ROW($I$1)+1),ROW($I$1:$I$572)-ROW($I$1)+1),ROWS(I$2:I9))),"") -> 
A61: =IFERROR(INDEX($I$1:$I$572,SMALL(IF(FREQUENCY(IF($I$1:$I$572<>"",MATCH($I$1:$I$572,$I$1:$I$572,0)), ROW($I$1:$I$572)-ROW($I$1)+1),ROW($I$1:$I$572)-ROW($I$1)+1),ROWS(I$2:I9))),"") -> 
A62: =IFERROR(INDEX($I$1:$I$572,SMALL(IF(FREQUENCY(IF($I$1:$I$572<>"",MATCH($I$1:$I$572,$I$1:$I$572,0)), ROW($I$1:$I$572)-ROW($I$1)+1),ROW($I$1:$I$572)-ROW($I$1)+1),ROWS(I$2:I10))),"") -> 
A63: =IFERROR(INDEX($I$1:$I$572,SMALL(IF(FREQUENCY(IF($I$1:$I$572<>"",MATCH($I$1:$I$572,$I$1:$I$572,0)), ROW($I$1:$I$572)-ROW($I$1)+1),ROW($I$1:$I$572)-ROW($I$1)+1),ROWS(I$2:I11))),"") -> 
A64: =IFERROR(INDEX($I$1:$I$572,SMALL(IF(FREQUENCY(IF($I$1:$I$572<>"",MATCH($I$1:$I$572,$I$1:$I$572,0)), ROW($I$1:$I$572)-ROW($I$1)+1),ROW($I$1:$I$572)-ROW($I$1)+1),ROWS(I$2:I12))),"") -> 
A65: =IFERROR(INDEX($I$1:$I$572,SMALL(IF(FREQUENCY(IF($I$1:$I$572<>"",MATCH($I$1:$I$572,$I$1:$I$572,0)), ROW($I$1:$I$572)-ROW($I$1)+1),ROW($I$1:$I$572)-ROW($I$1)+1),ROWS(I$2:I13))),"") -> 
A66: =IFERROR(INDEX($I$1:$I$572,SMALL(IF(FREQUENCY(IF($I$1:$I$572<>"",MATCH($I$1:$I$572,$I$1:$I$572,0)), ROW($I$1:$I$572)-ROW($I$1)+1),ROW($I$1:$I$572)-ROW($I$1)+1),ROWS(I$2:I14))),"") -> 
A67: =IFERROR(INDEX($I$1:$I$572,SMALL(IF(FREQUENCY(IF($I$1:$I$572<>"",MATCH($I$1:$I$572,$I$1:$I$572,0)), ROW($I$1:$I$572)-ROW($I$1)+1),ROW($I$1:$I$572)-ROW($I$1)+1),ROWS(I$2:I15))),"") -> 
A68: =IFERROR(INDEX($I$1:$I$572,SMALL(IF(FREQUENCY(IF($I$1:$I$572<>"",MATCH($I$1:$I$572,$I$1:$I$572,0)), ROW($I$1:$I$572)-ROW($I$1)+1),ROW($I$1:$I$572)-ROW($I$1)+1),ROWS(I$2:I16))),"") -> 
A69: =IFERROR(INDEX($I$1:$I$572,SMALL(IF(FREQUENCY(IF($I$1:$I$572<>"",MATCH($I$1:$I$572,$I$1:$I$572,0)), ROW($I$1:$I$572)-ROW($I$1)+1),ROW($I$1:$I$572)-ROW($I$1)+1),ROWS(I$2:I17))),"") -> 
A70: =IFERROR(INDEX($I$1:$I$572,SMALL(IF(FREQUENCY(IF($I$1:$I$572<>"",MATCH($I$1:$I$572,$I$1:$I$572,0)), ROW($I$1:$I$572)-ROW($I$1)+1),ROW($I$1:$I$572)-ROW($I$1)+1),ROWS(I$2:I18))),"") -> 
A71: =IFERROR(INDEX($I$1:$I$572,SMALL(IF(FREQUENCY(IF($I$1:$I$572<>"",MATCH($I$1:$I$572,$I$1:$I$572,0)), ROW($I$1:$I$572)-ROW($I$1)+1),ROW($I$1:$I$572)-ROW($I$1)+1),ROWS(I$2:I19))),"") -> 
A72: =IFERROR(INDEX($I$1:$I$572,SMALL(IF(FREQUENCY(IF($I$1:$I$572<>"",MATCH($I$1:$I$572,$I$1:$I$572,0)), ROW($I$1:$I$572)-ROW($I$1)+1),ROW($I$1:$I$572)-ROW($I$1)+1),ROWS(I$2:I20))),"") -> 
A73: =IFERROR(INDEX($I$1:$I$572,SMALL(IF(FREQUENCY(IF($I$1:$I$572<>"",MATCH($I$1:$I$572,$I$1:$I$572,0)), ROW($I$1:$I$572)-ROW($I$1)+1),ROW($I$1:$I$572)-ROW($I$1)+1),ROWS(I$2:I21))),"") -> 
A74: =IFERROR(INDEX($I$1:$I$572,SMALL(IF(FREQUENCY(IF($I$1:$I$572<>"",MATCH($I$1:$I$572,$I$1:$I$572,0)), ROW($I$1:$I$572)-ROW($I$1)+1),ROW($I$1:$I$572)-ROW($I$1)+1),ROWS(I$2:I22))),"") -> 
A75: =IFERROR(INDEX($I$1:$I$572,SMALL(IF(FREQUENCY(IF($I$1:$I$572<>"",MATCH($I$1:$I$572,$I$1:$I$572,0)), ROW($I$1:$I$572)-ROW($I$1)+1),ROW($I$1:$I$572)-ROW($I$1)+1),ROWS(I$2:I23))),"") -> 
A76: =IFERROR(INDEX($I$1:$I$572,SMALL(IF(FREQUENCY(IF($I$1:$I$572<>"",MATCH($I$1:$I$572,$I$1:$I$572,0)), ROW($I$1:$I$572)-ROW($I$1)+1),ROW($I$1:$I$572)-ROW($I$1)+1),ROWS(I$2:I23))),"") -> 
A77: =IFERROR(INDEX($I$1:$I$572,SMALL(IF(FREQUENCY(IF($I$1:$I$572<>"",MATCH($I$1:$I$572,$I$1:$I$572,0)), ROW($I$1:$I$572)-ROW($I$1)+1),ROW($I$1:$I$572)-ROW($I$1)+1),ROWS(I$2:I23))),"") -> 
A78: =IFERROR(INDEX($I$1:$I$572,SMALL(IF(FREQUENCY(IF($I$1:$I$572<>"",MATCH($I$1:$I$572,$I$1:$I$572,0)), ROW($I$1:$I$572)-ROW($I$1)+1),ROW($I$1:$I$572)-ROW($I$1)+1),ROWS(I$2:I23))),"") -> 
A79: =IFERROR(INDEX($I$1:$I$572,SMALL(IF(FREQUENCY(IF($I$1:$I$572<>"",MATCH($I$1:$I$572,$I$1:$I$572,0)), ROW($I$1:$I$572)-ROW($I$1)+1),ROW($I$1:$I$572)-ROW($I$1)+1),ROWS(I$2:I23))),"") -> 
A80: =IFERROR(INDEX($I$1:$I$572,SMALL(IF(FREQUENCY(IF($I$1:$I$572<>"",MATCH($I$1:$I$572,$I$1:$I$572,0)), ROW($I$1:$I$572)-ROW($I$1)+1),ROW($I$1:$I$572)-ROW($I$1)+1),ROWS(I$2:I23))),"") -> 
A81: =IFERROR(INDEX($I$1:$I$572,SMALL(IF(FREQUENCY(IF($I$1:$I$572<>"",MATCH($I$1:$I$572,$I$1:$I$572,0)), ROW($I$1:$I$572)-ROW($I$1)+1),ROW($I$1:$I$572)-ROW($I$1)+1),ROWS(I$2:I23))),"") -> 
A82: =IFERROR(INDEX($I$1:$I$572,SMALL(IF(FREQUENCY(IF($I$1:$I$572<>"",MATCH($I$1:$I$572,$I$1:$I$572,0)), ROW($I$1:$I$572)-ROW($I$1)+1),ROW($I$1:$I$572)-ROW($I$1)+1),ROWS(I$2:I23))),"") -> 
A83: =IFERROR(INDEX($I$1:$I$572,SMALL(IF(FREQUENCY(IF($I$1:$I$572<>"",MATCH($I$1:$I$572,$I$1:$I$572,0)), ROW($I$1:$I$572)-ROW($I$1)+1),ROW($I$1:$I$572)-ROW($I$1)+1),ROWS(I$2:I23))),"") -> 
A84: =IFERROR(INDEX($I$1:$I$572,SMALL(IF(FREQUENCY(IF($I$1:$I$572<>"",MATCH($I$1:$I$572,$I$1:$I$572,0)), ROW($I$1:$I$572)-ROW($I$1)+1),ROW($I$1:$I$572)-ROW($I$1)+1),ROWS(I$2:I23))),"") -> 
A85: =IFERROR(INDEX($I$1:$I$572,SMALL(IF(FREQUENCY(IF($I$1:$I$572<>"",MATCH($I$1:$I$572,$I$1:$I$572,0)), ROW($I$1:$I$572)-ROW($I$1)+1),ROW($I$1:$I$572)-ROW($I$1)+1),ROWS(I$2:I23))),"") -> 
A86: =IFERROR(INDEX($I$1:$I$572,SMALL(IF(FREQUENCY(IF($I$1:$I$572<>"",MATCH($I$1:$I$572,$I$1:$I$572,0)), ROW($I$1:$I$572)-ROW($I$1)+1),ROW($I$1:$I$572)-ROW($I$1)+1),ROWS(I$2:I23))),"") -> 
A87: =IFERROR(INDEX($I$1:$I$572,SMALL(IF(FREQUENCY(IF($I$1:$I$572<>"",MATCH($I$1:$I$572,$I$1:$I$572,0)), ROW($I$1:$I$572)-ROW($I$1)+1),ROW($I$1:$I$572)-ROW($I$1)+1),ROWS(I$2:I23))),"") -> 
A88: =IFERROR(INDEX($I$1:$I$572,SMALL(IF(FREQUENCY(IF($I$1:$I$572<>"",MATCH($I$1:$I$572,$I$1:$I$572,0)), ROW($I$1:$I$572)-ROW($I$1)+1),ROW($I$1:$I$572)-ROW($I$1)+1),ROWS(I$2:I23))),"") -> 
A89: =IFERROR(INDEX($I$1:$I$572,SMALL(IF(FREQUENCY(IF($I$1:$I$572<>"",MATCH($I$1:$I$572,$I$1:$I$572,0)), ROW($I$1:$I$572)-ROW($I$1)+1),ROW($I$1:$I$572)-ROW($I$1)+1),ROWS(I$2:I23))),"") -> 
A90: =IFERROR(INDEX($I$1:$I$572,SMALL(IF(FREQUENCY(IF($I$1:$I$572<>"",MATCH($I$1:$I$572,$I$1:$I$572,0)), ROW($I$1:$I$572)-ROW($I$1)+1),ROW($I$1:$I$572)-ROW($I$1)+1),ROWS(I$2:I23))),"") -> 
A91: =IFERROR(INDEX($I$1:$I$572,SMALL(IF(FREQUENCY(IF($I$1:$I$572<>"",MATCH($I$1:$I$572,$I$1:$I$572,0)), ROW($I$1:$I$572)-ROW($I$1)+1),ROW($I$1:$I$572)-ROW($I$1)+1),ROWS(I$2:I23))),"") -> 
A92: =IFERROR(INDEX($I$1:$I$572,SMALL(IF(FREQUENCY(IF($I$1:$I$572<>"",MATCH($I$1:$I$572,$I$1:$I$572,0)), ROW($I$1:$I$572)-ROW($I$1)+1),ROW($I$1:$I$572)-ROW($I$1)+1),ROWS(I$2:I23))),"") -> 
A93: =IFERROR(INDEX($I$1:$I$572,SMALL(IF(FREQUENCY(IF($I$1:$I$572<>"",MATCH($I$1:$I$572,$I$1:$I$572,0)), ROW($I$1:$I$572)-ROW($I$1)+1),ROW($I$1:$I$572)-ROW($I$1)+1),ROWS(I$2:I23))),"") -> 
A94: =IFERROR(INDEX($I$1:$I$572,SMALL(IF(FREQUENCY(IF($I$1:$I$572<>"",MATCH($I$1:$I$572,$I$1:$I$572,0)), ROW($I$1:$I$572)-ROW($I$1)+1),ROW($I$1:$I$572)-ROW($I$1)+1),ROWS(I$2:I23))),"") -> 
A95: =IFERROR(INDEX($I$1:$I$572,SMALL(IF(FREQUENCY(IF($I$1:$I$572<>"",MATCH($I$1:$I$572,$I$1:$I$572,0)), ROW($I$1:$I$572)-ROW($I$1)+1),ROW($I$1:$I$572)-ROW($I$1)+1),ROWS(I$2:I23))),"") -> 
A96: =IFERROR(INDEX($I$1:$I$572,SMALL(IF(FREQUENCY(IF($I$1:$I$572<>"",MATCH($I$1:$I$572,$I$1:$I$572,0)), ROW($I$1:$I$572)-ROW($I$1)+1),ROW($I$1:$I$572)-ROW($I$1)+1),ROWS(I$2:I23))),"") -> 
A97: =IFERROR(INDEX($I$1:$I$572,SMALL(IF(FREQUENCY(IF($I$1:$I$572<>"",MATCH($I$1:$I$572,$I$1:$I$572,0)), ROW($I$1:$I$572)-ROW($I$1)+1),ROW($I$1:$I$572)-ROW($I$1)+1),ROWS(I$2:I23))),"") -> 
A98: =IFERROR(INDEX($I$1:$I$572,SMALL(IF(FREQUENCY(IF($I$1:$I$572<>"",MATCH($I$1:$I$572,$I$1:$I$572,0)), ROW($I$1:$I$572)-ROW($I$1)+1),ROW($I$1:$I$572)-ROW($I$1)+1),ROWS(I$2:I23))),"") -> 
A99: =IFERROR(INDEX($I$1:$I$572,SMALL(IF(FREQUENCY(IF($I$1:$I$572<>"",MATCH($I$1:$I$572,$I$1:$I$572,0)), ROW($I$1:$I$572)-ROW($I$1)+1),ROW($I$1:$I$572)-ROW($I$1)+1),ROWS(I$2:I23))),"") -> 
A100: =IFERROR(INDEX($I$1:$I$572,SMALL(IF(FREQUENCY(IF($I$1:$I$572<>"",MATCH($I$1:$I$572,$I$1:$I$572,0)), ROW($I$1:$I$572)-ROW($I$1)+1),ROW($I$1:$I$572)-ROW($I$1)+1),ROWS(I$2:I23))),"") -> 

Sheet Houblons
A1: Variété | B1: Utilisation | C1: % d'acide alpha | D1: % d'acide béta | E1: Description | F1: Substituts possibles | G1: Pays d'origine | H1: Ales compatibles | I1: Pale Ales compatibles | J1: Fermentation basses compatibles | K1: IPA compatibles | L1: Stouts et Porter compatibles | M1: Autres styles compatibles | N1: Généalogie
A2: Admiral | B2: Amérisant | C2: 13.5 – 16 % | D2: 4.5 – 6 % | E2: Une variété Anglaise à grande teneur en acide alpha, souvent utilisée dans les ales anglaises. Peut substituer la variété Target mais est plus délicate avec un caractère de houblon plaisant, arômes abricots et orange, | F2: Target Northdown Challenger Pilgrim | G2: UK | H2: Ales Anglaises foncées | I2: Bitter | J2: Lager | K2: IPA
A3: Agnus (Lamb) | B3: Amérisant | C3: 11-15% | D3: 4 – 6.6 % | E3: Il apporte à la bière un caractère épicé et herbacé. C'est un houblon que l'on retrouve dans les bières Pilsner ou les Lagers. | F3: Nugget Horizon Magnum | G3: République Tchèque | J3: Lager Pilsner | M3: Bière de froment | N3: Sladek Saaz Northern Brewer Fuggle
A4: Ahil | B4: Double | C4: 8.5 – 11.5 % | D4: 3.5 – 5.2 % | E4: Floral. C’est le précurseur des « superstyrian ». Classé en aromatique par la plupart des « guide », son taux d’alpha permet de l’utiliser en amérisant | G4: Slovénie | H4: Ales Belges | N4: Brewer’s Gold (frère de Apolon & Atlas)
A5: Ahtanum (YCR1) | B5: Aromatique | C5: 5.7 – 6.3 % | D5: 5 – 6.5 % | E5: Ce houblon procure un arôme typique américain similaire au Cascade, williamette et amarillo, Notes d’herbes, de menthe, de citron, de fleurs d'agrume et de pin, | F5: Amarillo Cascade | G5: USA | H5: American Brown Ale | K5: AIPA | N5: Whitebread Golding Brewer’s Gold
A6: Alliance | B6: Double | C6: 4.5 – 7.5 % | D6: 2 – 5 % | F6: Fuggle | G6: UK
A7: Amallia | B7: Double | C7: 5 – 9 % | D7: 4 – 8.5 % | E7: Très terreux, et avec un profil très agrume | F7: Brown Ale Dark Ale | G7: USA | H7: Brown Ale Dark Ale
A8: Amarillo (VGXP01) | B8: Aromatique | C8: 10 - 12 % | D8: 5,5 - 8 % | E8: Son arôme et la saveur est décrit comme une version suralimentée du Cascade. Il caractérise par des arômes floraux, tropicaux et d'agrumes (citron, orange et pamplemousse). | F8: Cascade Centennial Simcoe | G8: USA | I8: APA | K8: AIPA
A9: Amethyst | B9: Aromatique | C9: 3,5-6% | D9: 7 – 8 % | E9: Arômes terreux, agrumes, épicé | F9: Saaz | G9: République Tchèque | I9: Pale Ale | J9: Lager | N9: Saaz
A10: Apollo (#01051) | B10: Amérisant | C10: 15-19% | D10: 5.5 – 8 % | E10: Caractérisé par son taux fortement élevé en alpha, cette variété de houblon procurera à votre bière une saveur particulière et franche, avec des notes d’agrume (citron vert, pamplemousse) et résineuses | F10: Colombus Magnum Nugget Zeus | G10: USA | K10: IPA Impérial IPA | N10: Zeus
A11: Apolon | B11: Double | C11: 10-12% | D11: 3.5 – 4 % | G11: Slovénie | H11: Ales Anglaises | I11: Bitter | K11: IPA | N11: Brewer’s Gold (frère de Ahil et Atlas)
A12: Aquila | B12: Aromatique | C12: 6.5 – 9 % | D12: 4 – 5 % | E12: Cultivar abandonné à l’échelle industrielle | F12: Cluster Galena | G12: USA | H12: Saison Belge | N12: Brewer’s Gold
A13: Aramis | B13: Double | C13: 7 - 8.5%; | D13: 3.5 – 4.5 % | E13: Nouvelle race à haute teneur en acides alpha avec un arome plaisant de fruits, avec une pointe de poire et pomme qui oscille avec des goûts d'épices, | F13: Centennial Challenger Ahtanum Willamette Challenger Athanum | G13: France | H13: Saison | J13: Lager Pilsner | M13: Blanche belge
A14: Archer | B14: Double | C14: 4-6% | D14: 2 – 3 % | E14: Floral, notes de citron vert et de pêche. DH possible | F14: Summer | G14: UK | I14: Bitter blonde
A15: Ariana | B15: Amérisant | C15: 9-13% | D15: 4,5-6 % | E15: Cette variété se distingue par des notes de cassis, de pêche, de poire et de fruits tropicaux. Utilisé en dry hopping, ce houblon confère également des notes de pamplemousse, de groseille, d'agrumes et de vanille. | G15: Allemagne | H15: Amber ale | I15: Pale Ale | K15: IPA
A16: Atlas (Styrian Atlas) | B16: Amérisant | C16: 5 - 9% | D16: 3.8 – 4 % | E16: Arome frais, notes d'herbe fraîche, | F16: Styrian Golding Aurora | G16: Slovénie | H16: Ales Belges | I16: APA | N16: Ahil Apolon
A17: Aurora (Super Styrian) | B17: Aromatique | C17: 5 - 10% | D17: 2.5 – 5.5 % | E17: Grande teneur en acides alpha, arôme ressemblant à Styrian Golding mais plus léger, notes herbacées et fleuries. | F17: Perle Sladek | G17: Slovénie | H17: Ales Anglaises Ales Belges Ales Américaines | I17: APA | J17: Lager Pilsner | M17: Bière de froment
A18: Azacca ® (#483, Azaaca) | B18: Double | C18: 14-16 % | D18: 4 – 5.5 % | E18: Agrumes (citron, pamplemousse, orange), fruits tropicaux (papaye, ananas, mangue, papaye), épicé, herbeux | G18: USA | K18: AIPA | N18: Northern Brewer Toyomidori Summit
A19: Bačka | B19: Aromatique | C19: 3 – 6.5 % | D19: 4 – 7 % | E19: Arômes de « houblons nobles », Très vieille variété serbe | G19: Serbie | J19: Lager Pilsner
A20: Banner | B20: Amérisant | C20: 8.5 – 12.5 % | D20: 5 – 8 % | F20: Aquila Cluster Galena | G20: USA | I20: Bitter | N20: Brewer’s Gold
A21: Barbe Rouge | B21: Double | C21: 3,8-6% | D21: 4 - 6.5 % | E21: notes prononcées de fruits rouges tel que la fraise, la cerise avec une belle balance côté herbal et épicé | G21: France
A22: Beata | B22: Aromatique | C22: 3.5 – 3.8 % | E22: Pomme, Abricot, Amande | G22: UK | N22: Strisselspalt
A23: Beata | B23: Aromatique | C23: 3 - 7% | D23: 9 - 11% | E23: Abricot, et pomme, avec une pointe d'amande | F23: Boaticea Belma | G23: UK
A24: Belma | B24: Double | C24: 12.1 | E24: Notes d'orange, melon, fraise, ananas avec un soupçon de pamplemousse | F24: Golding | G24: USA | I24: Pale Ale | K24: IPA
A25: Bianca (Bianco, Bianca Gold) | B25: Aromatique | C25: 7 – 7.8 %% | D25: 3.2-3.4 % | F25: Saaz Sunbeam | G25: USA | H25: Ales Belges | J25: Lager Pilsner | N25: Demi-frère de SunBeam
A26: Bitter Gold | B26: Amérisant | C26: 14 – 19 % | D26: 6 – 7.5 % | E26: En théorie très neutre, mais certains écrits rapportent des notes de poire, de pastèque et de fruit à noyau | F26: Nugget Galena | G26: USA | H26: Ales | I26: Bitter | J26: Lager Pilsner | K26: AIPA | N26: Bullion, Brewer’s Gold, Comet et Fuggle
A27: Blato | B27: Aromatique | C27: 4.2 – 4.9 % | D27: 3.3 – 3.5 % | F27: Saaz | G27: République Tchèque | J27: Lager Pilsner | N27: Saaz (probablement)
A28: Blisk | B28: Double | C28: 9.7 – 14 % | D28: 3.3 – 4.8 % | G28: Slovénie | H28: Ales Anglaises | I28: ESB | N28: Atlas
A29: Boadicea | B29: Double | C29: 9 - 11% | D29: 3 – 4 % | E29: Boadicea a des caractéristiques délicates, légèrement fleuries et épicées avec un arôme aux senteurs herbacées. En bouche, il a un soupçon de notes fleuries qui rappellent un verger en fleur. Les propriétés amérisantes de Boadicea sont légères et arrondies. | F29: Challenger Sovereign | G29: UK | I29: APA | J29: Pilsner | K29: AIPA | N29: Challenger Northdown
A30: Bobek (Styrian Golding B, Styrian Bobek) | B30: Aromatique | C30: 3 - 8% | D30: 4.5 – 6.5 % | E30: Arôme doux et amertume moderée, Epicé, résineux, « plaisant » | F30: Cascade Smaragd Styrian Golding Fuggle Willamette | G30: Slovénie | H30: Ales Anglaises | I30: Bitter ESB | J30: Lager Pilsner | L30: Stout | M30: Ales Belges | N30: Northern Brewer
A31: Bohemie | B31: Aromatique | C31: 5 – 8 % | D31: 6 – 9 % | G31: République Tchèque | N31: Saaz Sladek
A32: BOR (BOR704) | B32: Aromatique | C32: 6 – 9 % | D32: 3 – 5.5 % | E32: Dans le style du Saaz | F32: Saaz | G32: République Tchèque | I32: Pale Ale | J32: Pilsner | M32: Wheat Beer | N32: Saaz Northern Brewer
A33: Bouclier | B33: Aromatique | C33: 7-9% | D33: 2.4 – 3.3 % | E33: Ce houblon offre un mélange d'arômes français et anglais avec des notes fruitées (agrumes), herbacées et épicées | F33: Tettnang Spalt(Select) Tradition Northen Brewer | G33: France | H33: Ales Anglaises Saison | I33: Pale Ale Bitter ESB | J33: Lager Pilsner | L33: Imperial Stout | N33: Strisselspalt Wye Challenger, Early Bird Golding Northern Brewer
A34: Bramling | B34: Aromatique | C34: 5,7-5,8% | D34: 2,9-3,2 % | F34: Whitbread Golding Progress East Kent Golding | G34: UK | H34: Golden Ale | I34: Pale Ale Bitter | K34: IPA | L34: Stout
A35: Bramling cross | B35: Double | C35: 5 - 8% | D35: 2.3 – 3.2 % | E35: Flaveur intense d’épices / cassis, légèrement résineux avec quelques notes boisées. En DH : notes de fruits frais, et notamment de cassis ; ainsi que des notes de citron | F35: Willamette East Kent Golding Progress Whitbread Golding | G35: UK | H35: Golden Ale Strong Ale | K35: IPA | L35: Porter Stout | N35: Golding
A36: Bravo ( #01046) | B36: Amérisant | C36: 12 - 17% | D36: 3.5 – 5.5 % | E36: Arôme riche, notes distinctes de résines et de pin, Floral, Fruité, Vanille, Epicé, un peu terreux | F36: Nugget Columbus Zeus Apollo Magnum, Chinook Centennial | G36: USA | I36: APA | K36: AIPA | N36: Zeus
A37: Brewer’s Gold | B37: Amérisant | C37: 7 - 11,3% | D37: 3 – 3.1 % | E37: Houblon Anglais amérisant de référence développé en 1919. Beaucoup d’houblons arômatiques de nos jours furent développés à partir du Brewer ‘s Gold. Grande teneur en résines, donne une amertume bien équilibrée, un caractère fruité et épicé. Donne des arômes légers de fruits et épices aux bières à haute fermentation. | F37: Northdown Northern Brewer Pioneer Bullion Galena Cascade | G37: UK USA | K37: IPA | N37: Bullion
A38: Buket | B38: Double | C38: 8.5 – 13.5 % | D38: 4.2 – 6.3 % | G38: Slovénie | H38: Ales Anglaises | I38: ESB | J38: Lager Pilsner | N38: Fuggle, Northern Brewer
A39: Bullion | B39: Amérisant | C39: 6,5 - 9% | D39: 5 – 6 % | E39: Arôme de cassis et fruits épicés. saveur de grosseille noire si utilisé durant l'ebullition | F39: Northern Brewer Brewer'S Gold Columbus | G39: UK | H39: Barley Wine | J39: Dopplebpock | K39: IPA | L39: Stout (guiness) | N39: Brewers Gold
A40: Calicross | B40: Double | C40: 5.8 – 7.9 % | D40: 4 – 7.5 % | E40: Fruité, terreux, Floral. Variété presque éteinte commercialement, sauf en NZ | G40: NZ
A41: Calista | B41: Amérisant | C41: 9-13% | E41: Au nez il offrira à la bière des notes intensément fruitées avec des touches d'abricot, de mûres et de framboise, de fruits de la passion, de pêche, de pamplemousse et de groseille. | G41: Allemagne | I41: Pale Ale | J41: Lager | K41: IPA | N41: Fuggle Late Cluster
A42: Calypso | B42: Double | C42: 11-14% | D42: 5 – 6 % | E42: Pomme, poire, fruits à noyaux et tropicaux, thé, un peu terreux, note citronnée et mentholée | F42: Cascade Belma Huell Melon | G42: USA | H42: Ales Américaines Barley Wines | I42: APA | K42: IPA | L42: Stout | N42: Nugget
A43: Cascade | B43: Double | C43: 4,5 -6% | D43: 4.8 – 7 % | E43: Arôme américain ainsi que des arômes d’agrumes et de fruits. Très floral et épicé, notes de citron et pamplemousse. Fournit une amertume très douce même si utilisé en grandes quantités. La version argentine développe un profil citronnelle, poivré, épicé et serait à considérer comme non-substituable avec les autres variétés. | F43: Amarillo Centennial Athanum Columbus | G43: USA NZ UK Argentine | H43: Ales Américaines bien houblonnée DH | I43: Pale Ale américaine bien houblonnée DH | K43: IPA | N43: Serrbianka Fuggle
A44: Cashmere | B44: Double | C44: 7.7 – 9.1 % | D44: 3.5 – 4.5 % | E44: Melon, noix de coco, ananas, citron, amertume douce, parfois herbeuse | G44: USA | H44: Saison | N44: Cascade Northern Brewer
A45: Cekin | B45: Aromatique | C45: 6 – 8 % | D45: 2 – 3 % | E45: Styrian | F45: Styrian, Savinjski Golding | G45: Slovénie | H45: Ale Anglaise | I45: Bitter | J45: Pilsner | N45: Aurora
A46: Centennial (Super Cascade) | B46: Double | C46: 9,5 - 8,5% | D46: 3.2 – 5.5 % | E46: Cette variété de houblon confère à votre bière un arôme Américain typique. Développé à partir des années 1974. Aromatique et légèrement amérisant, arôme épicé, floral avec des notes d’agrumes très délicates (citron) | F46: Cascade Chinook Columbus Galena Zeux Nugget | G46: USA | H46: Barley Wine Imperial Barley Wine | I46: Pale Ale Bitter | K46: IPA | N46: Brewer’s Gold Fuggle EKG Bavarian
A47: Challenger | B47: Double | C47: 6.5 – 8.5% | D47: 3.2 – 4.5 % | E47: Amertume douce mais puissante. Arôme du type Challenger , flaveur plus riche. amertume rafraîchissante et forme une bonne base pour des ajouts de houblons ultérieurs. Utilisé comme ajout ultérieur, il donnera une amertume agréable et fruitée à la bière. | F47: Northdown Northern Brewer First Gold-Ekg-Styriang Perle | G47: UK | H47: Ales Belges | I47: Bitter ESB Butterknowle Bitter | K47: Full Sail IPA | L47: Porter Stout | N47: Northern Brewer Zattler
A48: Chelan | B48: Amérisant | C48: 12 – 14.5 % | D48: 8.5 – 9.8 % | E48: Amertume forte et brutale, notes chocolatée, fraise et pomme | F48: Galena Nugget | G48: USA | N48: Galena
A49: Chinook (W-421-38) | B49: Double | C49: 12 – 14 % | D49: 3 – 4 % | E49: Ce houblon se caractérise par un arôme très typé d’épices. Caractère très prononcé de pamplemousse, floral, abricot, notes de fruit de sureau et autres baies rouges, arome de pin caractéristique, fort arome d'épice,. Houblon amérisant très volatile , perd son charme si mis en trop grande quantité | F49: Columbus Simcoe Galena Eroica Brewer'S Gold Nugget Bullion Zeus | G49: USA | H49: Barley Wine Saison | I49: APA | J49: Lager | K49: AIPA | L49: Porter Stout | N49: Petham Golding
A50: Cicero | B50: Double | C50: 6 – 7 % | D50: 2.5 – 2.7 % | E50: Serait dans le profil du Styrian | F50: Styrian Saaz | G50: Slovénie | H50: Pale Ale | J50: Lager Pilsner | N50: Aurora, frère du Cekin
A51: Citra (HBC394) | B51: Aromatique | C51: 9 - 11% | D51: 3.5 – 4.5 % | E51: Une variété de houblon américaine, à la fois aromatique et amérisant en raison de son taux élevé d’acides Alpha. Il développe des saveurs d’agrumes (Pamplemousse, citron vert), de fruits exotiques (goyave, mangue, fruits tropicaux, litchi) et de groseille. Amertume brutale. | F51: Fuggle Willamette Goldings Simcoe Mosaïc Centennial Cascade | G51: USA | H51: Ales Américaines fortes | I51: APA | J51: Lager | K51: AIPA | N51: Hallertau Tettnang
A52: Cluster (Golden Cluster) | B52: Double | C52: 5.5 – 8.5 % | D52: 4 – 6 % | E52: Egalement connue sous le nom de Golden Cluster. Elle développe des arômes de cassis, et floral, le cultivar australien présente une forte prédominance résineuse, Amertume bien équilibrée avec un arôme intense de fruits et houblon. | F52: Willamette Eroica Galena Brewers Gold | G52: USA Australie | I52: APA | J52: Lager | K52: AIPA | L52: Porter Stout
A53: Columbia | B53: Aromatique | C53: 8 – 8.5 % | D53: 3.9 – 4.1 % | E53: Houblons frais, zeste d’agrumes | G53: USA
A54: Columbus (Tomahawk, CTZ, Zeus) | B54: Amérisant | C54: 14 – 17 % | D54: 4.5 – 5 % | E54: Ce houblon américain confère aux bières des arômes de bois, herbeux, légèrement citronné/agrumes, notes de poivre noir et réglisse. | F54: Galea Nugget Chinook Simcoe | G54: USA | H54: Barley Wine Imperial Brown Ale | I54: APA | K54: AIPA | L54: Stout Imperial Stout
A55: Comet | B55: Amérisant | C55: 9.4 – 12.4 % | D55: 3 – 6 % | E55: Résineux, Géranium, Pamplemousse, Mandarine, Citronnelle | F55: Summit, Galena | G55: USA Allemagne | H55: American Ale | J55: Lager | K55: IPA | N55: Sunshine
A56: Crystal | B56: Aromatique | C56: 3.5 – 5.5 % | D56: 6 - 8,5 % | E56: Son arôme d’épice est plus présent que le Hallertau toutefois.Houblon aromatique avec une flaveur délicate et de notes de tangerine | F56: Liberty Mount Hood Hallertau Hersbrucker Strisselpalt | G56: USA | I56: Bitter Forte | J56: Lager | K56: IPA | N56: Hallertau Cascade Brewer’s Gold Early Green
A57: Dana (Extra Styrian Dana, Styrian Dana) | B57: Double | C57: 11 - 16% | D57: 4.7 – 6.1 % | E57: Arôme intense pour une amertume harmonieuse | F57: Styrian Golding Bobek | G57: Slovénie | H57: Polyvalent | I57: Polyvalent | J57: Polyvalent | K57: Polyvalent | L57: Polyvalent | M57: Polyvalent | N57: Magnum
A58: Delta (#04188) | B58: Double | C58: 5,5-7% | D58: 6.5 – 7 % | E58: Arôme plaisant légèrement épicé avec une pointe de citron et de gingembre. | F58: Fuggle Willamette | G58: USA | I58: Pale Ale Bitter ESB | K58: IPA | N58: Fuggle Cascade
A59: Denali (#06277) | B59: Double | C59: 13 – 15 % | D59: 4 – 5 % | E59: Ananas, pin agrumes | G59: USA | N59: Nugget Zeus
A60: Dr Rudi (Super Alpha) | B60: Double | C60: 11-14% | D60: 7 – 8.5 % | E60: Pin, herbeux, notes d’agrumes et de citronelle. | F60: Green Bullet | G60: NZ | H60: Amérisant tout style | I60: Amérisant tout style | J60: Lager | K60: IPA | L60: Amérisant tout style | M60: Amérisant tout style
A61: Dunav | B61: Aromatique | C61: 5 – 10 % | D61: 2.8 – 4.6 % | G61: Slovénie | N61: Northern Brewer Styrian Golding
A62: East Kent Golding (Canterbury Golding, EKG) | B62: Aromatique | C62: 5 - 7% | D62: 1.9 – 2.8 % | E62: Ce houblon aromatique pouvant être utilisé comme amérisant, est surnommé le roi des houblons anglais du fait de son arôme très fin. Epicé/floral (thym lavande), terreux, arrondi, arôme doux, presque sucré, délicat. | F62: Progress Sovereign Goldings Fuggle | G62: UK | H62: Toutes bières anglaise | I62: Toutes bières anglaise | J62: Toutes bières anglaise | K62: Toutes bières anglaise | L62: Toutes bières anglaise | N62: Kirin 2
A63: Eastern Gold | B63: Amérisant | C63: 11 – 14 % | D63: 5 – 6 % | G63: Japon | M63: Toutes bières anglaise
A64: Ekuanot (Equinox, HBC366) | B64: Double | C64: 13-15,5% | D64: 4 – 5 % | E64: Agrumes, fruits tropicaux (papaye, mangue) , fruité (melon), herbeux et pomme de pin | F64: Citra Galaxy Athanum | G64: USA | I64: APA | K64: IPA
A65: El dorado | B65: Aromatique | C65: 13 - 17% | D65: 7 – 8 % | E65: Houblon aromatique à la teneur en acide alpha élevée. Saveur certaines de fruits, plus particulièrement fruits tropicaux ((ananas, mangue), mais aussi poire, cerise, fruits à noyaux | F65: Galena Simcoe | G65: USA | I65: Pale Ale | K65: IPA | M65: Wheat Beer
A66: Ella (Stella) | B66: Aromatique | C66: 14-16% | D66: 4 – 7.8 % | E66: Agrumes (bergamote, pamplemousse), fruits tropicaux, floral, épicé, pointes d'anis. | F66: Citra Delta | G66: Australie | J66: Lager Pilsner | K66: IPA
A67: Elsaesser | B67: Aromatique | C67: 4 – 4.7 % | D67: 3 – 5 % | G67: France
A68: Endéavour | B68: Double | C68: 5-9% | D68: 3.8 – 5.3 % | E68: Arôme complexe De cassis, de framboises, d'épice, de pamplemousse et de citron. Il est plus doux que Cascade. Amertume ronde et fruitée | F68: Northern Brewer | G68: UK | H68: Ales Anglaises | I68: Bitter | J68: Lagers Anglaises | N68: Cascade
A69: Enigma | B69: Double | C69: 13.5 – 16.5 % | D69: 4.8 – 6.4 % | E69: Pinot gris, framboises, groseilles, notes de fruit tropicaux | G69: Australie | M69: Blanche américaine | N69: Brewer’s Gold Galena
A70: Epic | B70: Aromatique | C70: 3 – 5 % | D70: 1.7 – 2.5 % | E70: Arôme profond de baies sauvages, avec une note de citronnelle. Légèrement herbeux. | G70: UK | N70: Tetenan Tettnanger
A71: Eroica | B71: Amérisant | C71: 9 – 12 % | D71: 4 – 5.5 % | E71: Confère un arôme bien présent dans votre bière avec un taux d’alpha assez élevé. | F71: Galena Nugget Olympic | G71: USA | H71: Brown Ale | I71: APA | L71: Stout | N71: Alliance
A72: Eureka (#05256) | B72: Double | C72: 11-20% | D72: 4.6 – 6 % | E72: Arôme des agrumes, de la résine et de fruits tropicaux avec des tons complexes de cassis, myrtille, fraise, mangue, poire, cerise | F72: Simcoe Summit | G72: Slovénie | I72: APA | N72: Merkur Apollo
A73: Falconer’s Flight® (7C's) | B73: Double | C73: 9 – 12 % | D73: 4 – 5.2 % | E73: Agrumes (pamplemousse), fruité, épicé, floral, notes terreuses | F73: voir notes | G73: USA
A74: Feux-Coeur Français | B74: Amérisant | C74: 12 – 16 % | D74: 3 – 6 % | G74: Australie
A75: First Gold | B75: Double | C75: 6.5 – 8.5 % | D75: 2.3 – 4.1 % | E75: Houblon Anglais de référence. Un peu épicé Fruité, baies rouges, herbeux, avec des notes agrumes / marmelade / abricot/orange. | F75: Northdown Challenger Boadicea Goldings Willamette | G75: UK | H75: Ales Belges Saison Bières de garde | I75: APA | K75: IPA | N75: Whitebread Golding
A76: Flyer | B76: Double | C76: 9-12% | D76: 4.1 – 6 % | E76: Epicé, agrumes, réglisse et résineux. Un houblon d'agrumes aux arômes de fruits lapidés, de réglisse, de mélasse et de caramel avec de légères notes brûlées. | F76: Bramling Cross | G76: UK | I76: Bitter ESB | K76: IPA
A77: Fuggle | B77: Aromatique | C77: 4 – 5.5 % | D77: 2 – 3 % | E77: Cette variété fut développée à partir du 19eme siècle en Angleterre. Le Fuggles confère une subtile saveur épice à la bière. Arôme doux, épicé. Léger fruité, boisé. Goût de terre | F77: Styrian Golding Willamette Progress Golding Sovereign | G77: UK France | H77: Ales Anglaises Ales Belges Ales Rouges | K77: IPA | L77: Porter Stout
A78: Galaxy | B78: Double | C78: 13 - 15% | D78: 5 – 6.9 % | E78: un houblon avec un caractère marqué de citron, myrtille, cassis, pêche et fruit de la passion | F78: Cascade Amarillo Citra Riwaka Centennial | G78: Australie | I78: Pale Ale | K78: IPA | N78: Perle
A79: Galena | B79: Amérisant | C79: 12 – 14% | D79: 7.2 – 8.7 % | E79: Un houblon amérisant développé à partir du Brewer’s Gold (par polonisation naturelle dans l’état d’Idaho). arôme de cassis, agrumes (pamplemousse, citron vert), groseille, poire, ananas, résineux donne à la bière un caractère très fruité, l'amérisant le plus utilisé aux US | F79: Nugget Target Cluster Super Galena | G79: USA | H79: Brown Ale | I79: APA | K79: AIPA | L79: Stout | M79: Bière de Froment américaine | N79: Brewers gold
A80: Gargoyle ® | B80: Aromatique | C80: 4 – 6 % | E80: Mangue, fruits tropicaux, agrumes, floral. Variété propriété de Hops-Meister’s | G80: USA | I80: APA | J80: Lager | K80: IPA | N80: Elsasser Brewer’s Gold Northern Brewer Bullion Early Green German Aroma EKG Bavarian Fuggle
A81: Glacier | B81: Double | C81: 5.5 % | D81: 5.4 – 9.5 % | E81: Une excellente nouvelle variété avec les propriétés équilibrées d'amertume, combinée avec un bon profil d'arôme. Prune, bois (cèdre), mûre | F81: Eroica Nugget Olympic Fuggle Willamette Tettnanger | G81: USA | I81: APA Bitter ESB | K81: IPA | L81: Porter Stout
A82: Gold | B82: Aromatique | C82: 3.5 – 6.5 % | D82: 3.5 – 5.9 % | E82: Miel, ortie, foin, origan, basilic | G82: Slovénie | N82: Styrian Savinsjki Golding
A83: Golden Star | B83: Aromatique | C83: 4.9 – 5.4 % | D83: 4.5 – 4.6 % | E83: Disponible presque exclusivement au Japon | G83: Japon | N83: Saaz White Vine Shinshuwase
A84: Golding | B84: Aromatique | C84: 4 – 5.5 % | D84: 2 – 3.5 % | E84: Le Goldings est appelé East Kent Goldings si sa culture se situe dans la région de Kent. Il confère à la bière un goût doux et sucré. Tous les Goldings sont substitutables entre eux (East Kent Goldings, Styrian Goldings, etc). Épicé et doux avec un caractère américain prononcé, légèrement fleuri, terreux, herbeux, floral, touche d’agrume (zeste de citron, orange, pamplemousse). | F84: East Kent Goldings Progress First Gold Fuggle | G84: UK Belgique USA NZ | H84: Saison Tripel | I84: Bitter ESB | J84: Kölsch | N84: EKG
A85: Green bullet | B85: Double | C85: 10 - 13% | D85: 5 – 7 % | E85: Fraîcheur de pin/citron et un arôme excellent, floral, épicé, fruits secs (raisin), résineux, | F85: Centennial Crystal Mount Hood Liberty Hallertau | G85: NZ | H85: Ales Anglaises | I85: Bitter | J85: Lager | K85: IPA | N85: Smoothcone
A86: Greensburg | B86: Double | C86: 5.2 % | D86: 7.20 % | E86: Un autre houblon américain découvert dans le sud d’Idaho. Ce houblon fut généralement utilisé dans les micros brasseries américaine autrefois. Arôme fruité, boisé, | G86: USA | H86: Ales Américaines | I86: APA | M86: Ales Américaines
A87: Hallertau | B87: Aromatique | C87: 3,5 - 6,5 % | D87: 2,5 - 3,5 % | E87: Arôme terreux, herbaux, épicé | F87: Hallertauer Mittelfrüh Hallertauer Tradition Liberty Mount Hood | G87: USA | J87: La plupart des bière de fermentation basse | N87: Hallertauer
A88: Hallertau Blanc | B88: Aromatique | C88: 9-12% | D88: 4.5 – 5.5 % | E88: Fruité, floral, raisin façon « vin blanc », fleur de sureau, bote de café, myrtille, cassis | F88: Nelson Sauvin | G88: Allemagne | H88: Ales Belges Brettanomyces | I88: Pale Ale | K88: IPA | M88: Bière de froment | N88: Cascade Huell
A89: Hallertau Hersbrucker | B89: Aromatique | C89: 2 - 5% | D89: 2.5 – 6 % | E89: Crée pour remplacer la variété Mittlefruh, caractéristiques très similaires, LE houblon aromatique ses Allemands ; arômes épicés et fleuris, foin, herbe, d'une finesse exceptionnelle. Noble, Plus asséchant & plus épicé que Hallertauer. | F89: Strisselspalt Hallertauer Mittlefruh Mount Hood Spalter | G89: Allemagne | H89: Toutes bières allemandes Ales Européenes | J89: Lager Pilsner | N89: Hallertau
A90: Hallertau Taurus (Taurus) | B90: Amérisant | C90: 12-18% | D90: 4 – 6 % | E90: Epicé, poivré, notes de banane, chocolat | F90: Magnum Herkules Merkur | G90: Allemagne | H90: Ales Allemandes Ales Belges | J90: Lager Pilsner
A91: Hallertau Tradition (Tradition) | B91: Aromatique | C91: 5 – 7 % | D91: 3 – 6 % | E91: Développé en 1991 à partir d’Hallertau Mittlefrüh par l’institut de recherche allemand afin de développer sa résistance aux maladies. Moyenne jusqu’à haute amertume, très bon arôme, bonne conservation. Amertume harmonieuse, floral intense, herbeux, épicé, notes de lavande | F91: Hallertauer Mittelfrüh Hallertau Hersbrucker Celeia | G91: Allemagne | J91: Pilsner | M91: Hefeweizen | N91: Hallertauer Gold
A92: Hallertauer Aroma (Wakatu) | B92: Double | C92: 7 - 10% | D92: 8.4 – 8.6 % | E92: Cultivé de Mittlefruh, caractérisé par une flaveur de fleurs et vanille, Arômes spécifique de zest frais de citron vert, épicié et floral, | F92: Hallertauer Mittlefruh | G92: NZ | J92: Lager Pilsner
A93: Hallertauer Merkur (Merkur) | B93: Double | C93: 12 - 14 % | D93: 4,5 - 5,5 % | E93: Arôme sucré, ananas, mentholé, légèrement terreux et agrumes | G93: Allemagne | N93: Magnum
A94: Hallertauer Mittelfrüh | B94: Aromatique | C94: 3.5 – 5.5 % | D94: 3 – 5 % | E94: Le houblon allemand de référence. Léger arôme de houblon avec des notes d’herbes et épices, L'arôme est doux, plaisant fleuri, épicé, herbeux, notes résineuses, | F94: Hallertau Hersbrucker Hallertau Tradition Saphir Liberty Mount Hood | G94: Allemagne | H94: Ales Allemandes | J94: Pilsner | M94: Hefeweizen | N94: Hallertau
A95: Hallertauer Perle (Perle) | B95: Double | C95: 5 – 7 % | D95: 2.5 – 4.5 % | E95: Utilisé principalement pour son amertume. L'arôme plaisant, légèrement épicé, avec goût de menthe et ses arômes vert, Très populaire grâce à la combinaison d’un bon arôme et d’un acide alpha élevé, bon pouvoir de conservation. Touche légèrement épicée. | F95: Northern Brewer | G95: Allemagne | J95: Lager Pilsner | N95: Northern Brewer
A96: Harmonie | B96: Aromatique | C96: 4-8% | D96: 5 – 8 % | E96: Amertume douce, Il confère à la bière des notes plaisantes à la fois d'épices, d'oignon et d'agrumes mais aussi des notes plus subtiles de résine. | G96: République Tchèque | J96: Lager Pilsner | N96: Saaz
A97: Helga (Southern Hallertau) | B97: Double | C97: 5.4 – 7.3 % | D97: 5 – 7 % | E97: Caractéristiques de « houblon noble » (floral, un peu épicé, terreux, herbeux) | G97: Australie | N97: Hallertau Mittelfrüh
A98: Herald | B98: Double | C98: 11 – 13 % | D98: 4.8 – 5.5 % | E98: Amertume franche, notes d’agrumes (orange et pamplemousse) | F98: Pionner Target | G98: UK | I98: Pale ale Bitter | N98: Pionner Pilgrim
A99: Herkules | B99: Amérisant | C99: 14 - 17% | D99: 4 – 5.5 % | E99: Haute teneur en acides alpha, arôme épicé (poivre), melon, résineux, notes d’orange et de citron | F99: Warrior Taurus | G99: Allemagne | H99: Ales Allemandes | J99: Lagers Allemandes | N99: Taurus Hull Cascade
A100: Hersbrucker (Hersbrucker Spät) | B100: Aromatique | C100: 1.5 – 5 % | D100: 2.5 – 6 % | E100: Floral, épicé, fruité, notes de foin et de tabac | F100: Spalter Tettnanger | G100: Allemagne
A101: Horizon | B101: Double | C101: 11- 13 % | D101: 5.5- 7.5 % | E101: Houblon Américain à fort taux d’acidité développé dans l’Oregon à partir des années 1970. Très aromatique, bière au goût très frais floral, épicé, citronné | F101: Magnum | G101: USA | N101: Brewer’s Gold Nugget
A102: Huell Melon (Hüll Melon) | B102: Amérisant | C102: 6,9-7,5% | D102: 6 – 9 % | E102: Melon honeydew, fruits tropicaux, orange, vanille, fraise des bois | F102: Calypso Cascade | G102: Allemagne | H102: Ales Belges Saison | K102: IPA | M102: Hefeweizen | N102: Cascade Huell
A103: Ivanhoe ® | B103: Aromatique | C103: 6.5 – 9 % | E103: Arôme doux aux notes florales et d’herbe | G103: USA | I103: Pale Ale | J103: Lager | L103: Stout
A104: Jester | B104: Aromatique | C104: 7-9% | D104: 4 – 6 % | E104: Pamplemousse, fruits tropicaux | F104: Challeger | G104: UK
A105: Junga | B105: Double | C105: 10 - 13% | D105: 5 – 8 % | E105: Très haute valeur amérisante, même qualité que le Magnum allemand mais avec un bel arôme lavec des notes de cassis, de pamplemousse et d'épices. | F105: Nugget Target Galena Chinock | G105: Pologne | J105: Lager | K105: IPA | N105: Northern Brewer Marynka
A106: Kazbek | B106: Aromatique | C106: 5-8% | D106: 4 – 6 % | E106: Jus multivitaminé, Papaye, zeste de mandarine, mélisse, notes mentholée. il confère à la bière des notes terreuses. Il est souvent décrit comme apportant des touches herbacées, sauvages et naturelles à la bière. | F106: Saaz Sterling | G106: République Tchèque | H106: Ales Belges | I106: Bitter (rares) | J106: Pilsner Lager
A107: Kirin II | B107: Double | C107: 7.5 – 8.2 % | D107: 6.2 – 6.4 % | E107: Hors du Japon, point de salut ! Cultivar local, produit sous contrôle de l’état, et non exporté. | G107: Japon | N107: Saaz White Vine
A108: Kohatu | B108: Double | C108: 6 - 8% | D108: 4 – 5 % | E108: Houblon a fort arôme avec un caractère floral intense, aiguilles de pins et fruit tropicaux. | F108: Motueka Wai-Iti | G108: NZ | I108: Pale Ale | K108: IPA | N108: Hallertau Mittelfrüh
A109: Lemondrop (#01210) | B109: Double | C109: 5 – 7 % | D109: 4 – 6 % | E109: Agrumes (citron), herbeux (thé vert), mentholé, note de melon | F109: Cascade Mandarina Bavaria Centennial | G109: USA | N109: Cascade
A110: Liberty | B110: Aromatique | C110: 3 – 5 % | D110: 3 – 4 % | E110: Ce houblon Américain est entre le Hallertauer Mittlefruh et le Downy mildew développé en 1983. Procure des arômes d’épices, de résines, avec des notes de citron / agrumes | F110: Crystal Mount Hood Tradition Hallertauer Mittelfrüh | G110: USA | H110: Brown Ale | I110: Pale Ale | J110: Lager Bock | M110: Hefeweizen American Wheat | N110: Hallertau ’Ultra Mt Hood Crystal
A111: Loral (HBC291) | B111: Double | C111: 11.3 – 12.2 % | D111: 4.9 – 5.3 % | E111: Floral, épicé (poivre), agrume (citron), baies noires | G111: USA
A112: Lublin (Lubelski, Polish Lublin, Lubelska) | B112: Aromatique | C112: 3 - 5% | D112: 2.5 – 3.5 % | E112: Ce houblon est la Saaz polonaise utilisé dans les blondes de ce même pays. Confère de légers arômes d’épices boisées, résineux, herbeux (thé), floral, notes citronnées. Saveur noble et intense, plus de notes de fruits et herbes que celles de résines. | F112: Styrian Goldings Saaz | G112: Pologne | J112: Pilsner polonaise | N112: Saaz
A113: Magnat | B113: Amérisant | C113: 13.3 – 13.3 % | D113: 3.2 – 3.2 % | E113: Aiguilles de pin, boisé, âcre | G113: Pologne | N113: Magnum
A114: Magnum (Hallertauer Magnum) | B114: Amérisant | C114: 10 – 12.6 % | D114: 5 – 7 % | E114: Cultivé à partir des années 1980 à l’institut Allemand de recherche. Ce houblon sera aussi bien amérisant qu’arômatique. Arôme aréable et caractère fruité et poivré. | F114: Pilgrim Target Hallertauer Taurus Herkules Hallertauer Merkur | G114: Allemagne | H114: Tout type de bières | I114: Pale Ale Tout type de bières | J114: Pilsner Tout type de bières | K114: IPA Tout type de bières | L114: Stout Tout type de bières | M114: Tout type de bières | N114: Galena
A115: Mandarina Bavaria | B115: Aromatique | C115: 8,5-1,5 | D115: 4 – 7 % | E115: Belle notes fruitées avec des touches de mandarine et d'orange bien marquée, note de bubble gum | F115: Nugget Colombus Perle Hallertauer Tradition Lemondrop Cascade | G115: Allemagne | H115: Ales belges Ales françaises | I115: Pale Ale Belge | K115: English IPA | M115: Ales Américaines | N115: Cascade
A116: Marco Polo (Makepoluo) | B116: Amérisant | C116: 12.6 % - 12.6 % | E116: Groseille, Origan, citron, fleur de sureau. 8 % des plantations chinoises seraient avec ce cultivar | G116: Chine | N116: Colombus
A117: Marynka | B117: Double | C117: 8 - 12% | D117: 10 – 13 % | E117: Combinaison intense et plaisante de fruits, résines et herbes, C'est un houblon amer typique. Arômes forts résineux, épicé, floral, anisé, agrume (pamplemousse, citron) | F117: Northern Brewer Tettnanger Stisselspalt | G117: Pologne | I117: Pale Ale Bitter | J117: Pilsner | K117: IPA | N117: Brewer’s Gold
A118: Melba | B118: Double | C118: 7 – 10 % | D118: 2.5 – 5 % | E118: Fruits de la passion, agrume (pamplemousse), amertume épicée | F118: Galaxy | G118: Australie
A119: Millennium | B119: Amérisant | C119: 15.5 % | D119: 5 – 6.5 % | E119: Floral, fruité (poire), herbeux, note de caramel au beurre (toffee) | F119: Nugget Columbus | G119: USA | H119: Toute bière américaine | I119: Toute bière américaine | J119: Toute bière américaine | K119: Toute bière américaine | L119: Toute bière américaine | M119: Toute bière américaine | N119: Nugget
A120: Minstrel | B120: Aromatique | C120: 5-7% | D120: 3 – 3.5 % | E120: Baies épicées, avec des notes d’orange. L’amertume est légère | F120: Challenger | G120: UK
A121: Mistral | B121: Aromatique | C121: 7,7-8,2 | D121: 3.1 – 3.8 % | E121: Notes de fruits blancs et des touches florales avec ses traits de rose et de jasmin. L'ensemble est complété par des pointes de lychee, de kumquat et de raisins blanc qui viennent apporter fraicheur et finesse à la bière. | G121: France | H121: Bières française : whirpool et dh +++ | I121: Pale Ale | J121: Lager Pilsner | M121: Weissbier | N121: Cascade Strisselspalt
A122: Monroe | B122: Aromatique | C122: 2.5 – 2.5 % | E122: Framboise, orange, sucre, cerise. Nommé en mémoire de Marylin Monroe « dans sa robe rouge », extravagante comme le serait ce houblon | G122: Allemagne
A123: Mosaïc (Citra on steroids, HBC 369) | B123: Aromatique | C123: 11-14% | D123: 3.2 – 3.9 % | E123: Il se caractérise par une palette aromatique complexe. En effet, il présente à la fois des notes d'agrumes, de fruits tropicaux, de fruits rouges (myrtille, mandarine, papaye), associées à des notes herbacées, terreuses et de pin, note de bubble gum. | F123: Citra Simcoe | G123: USA | I123: Pale Ale | K123: IPA | N123: City
A124: Motueka (Belgian Saaz, B-Saaz) | B124: Aromatique | C124: 5 - 8% | D124: 5 – 5.5 % | E124: Il dégage d'excellents arômes citronnés aux notes variées, tapissés de saveurs de fruits tropicaux. Arôme et caractère unique, particulièrement bon pour les lagers traditionnels, ales belges et bières amères | F124: Saaz Sterling | G124: NZ | H124: Saison | J124: Pilsner Bohemian Pilsner | N124: Saaz
A125: Mount Hood (Mt Hood) | B125: Aromatique | C125: 5 – 8 % | D125: 4 – 7.5 % | E125: Houblon américain développé à partir de la variété Hallertau.Un caractère floral, épicé, herbeux, arôme doux, notes d’estragon (?) et de miel (?). Amertume parfois âcre | F125: Hallertau Hersbrucker Strisselspalt Crystal | G125: USA | J125: Lager | M125: Bière de froment | N125: Hallertau Mittelfrüh frère du Liberty
A126: Mount Rainier (Mt Rainer) | B126: Aromatique | C126: 5 – 9.4 | D126: 5 – 7 % | E126: Herbeux (herbe, thé), floral, boisé (cèdre). On retrouve parfois des valeurs jusqu’à 10 % pour l’acide beta | F126: Hallertau Fuggle | G126: USA | L126: Stout | M126: Bière aux fruits | N126: Magnum
A127: National | B127: Double | C127: 5 – 6 % | E127: Chocolat, bergamote, ail | G127: Ukraine
A128: Nelson Sauvin | B128: Double | C128: 12 - 14 % | D128: 6 – 8 % | E128: Cette nouvelle variété d’houblon a été développée à Nelson en Nouvelle Zélande. Arômes uniques de Sauvignon Blanc et à ses touches de fruits tropicaux. | F128: Pacific Jade Hallertau Blanc | G128: NZ | K128: IPA | N128: Smoothcone
A129: Newport | B129: Amérisant | C129: 10 – 17 % | D129: 5.5 – 6.5 % | E129: Il offre des arômes terreux et citronnés ainsi que des saveurs amères, résineuses avec une touche de vin doux. | F129: Nugget Galean Magnum | G129: USA | I129: Pale Ale | K129: IPA Black IPA | L129: Porter | N129: Magnum
A130: Northdown (Wye Northdown) | B130: Amérisant | C130: 6 – 9.5 % | D130: 4.5 – 6 % | E130: Houblon Anglais développé à partir des années 1970. Sensiblement identique au Challenger et Target. Une variété à double destination, arôme du type Challenger , flaveur plus riche, l présente des arômes aux notes fruitées et résineuses. | F130: Challenger Northern Brewer Phoenix Brewer Gold Admiral | G130: UK | H130: Ales Anglaises | I130: Bitter | K130: English IPA | L130: Porter Stout | N130: Northern Brewer
A131: Northern Brewer | B131: Double | C131: 8 – 10 % | D131: 3 – 5 % | E131: Cette variété d’houblon fut développée en Angleterre en 1934 (par un croisement d’houblons femelles sauvages américains et de mâle anglais). Généralement utilisée pour ses qualités arômatique (arômes boisé et fruité) et amérisant, en complément d’autres variétés. Brewer. Polyvalent, mais plutôt utilisé pour l'amertume. Saveurs fortes et très parfumées. Notes boisées (goût du bois) et de menthe | F131: Northdown Challenger Chinook Perle Aurora | G131: Allemagne | H131: Bières brunes Toute ale en amérisant | I131: Toute ale en amérisant | J131: Altbier Kölsch | K131: Toute ale en amérisant | L131: Toute ale en amérisant | M131: Toute ale en amérisant | N131: Canterbury’s Golding (EKG) Brewer’s Gold
A132: Nugget | B132: Amérisant | C132: 12 – 14 % | D132: 4 – 5.5 % | E132: Bien que confère des arômes de fleurs et de résine c’est avant tout un houblon amérisant. Arome lourd d'épice et d'herbes; amérisant fort | F132: Target Galena Magnum Zeus | G132: USA | H132: Ales Américaines | I132: APA | K132: AIPA | M132: Ales Américaines | N132: Brewer’s Gold
A133: Olicana® | B133: Double | C133: 6 – 9 % | D133: 4 – 6 % | E133: Fruits tropicaux (mangue, pamplemousse, passion). Amertume complexe avec une forte dominante agrume / fruits de la passion | G133: UK
A134: Olympic | B134: Aromatique | C134: 10.6 – 13.8 % | D134: 3.8 – 6.1 % | E134: Epicé, agrumes | F134: Brewer’s Gold Chinook | G134: USA | N134: Brewer’s Gold Fuggle EKG Bavarian
A135: Opal | B135: Double | C135: 4 - 6% | D135: 3.5 – 5.5 % | E135: Piquant, un arôme léger de citron , épicé (anis, poivre), herbeux, agrumes | F135: Tettnang Ekg-Goldings Savinjski Smaragd | G135: Allemagne | H135: Brown Ale Saison Tripel Blonde Ale | J135: Pilsner Lager Helles Kolsch | M135: Hefeweizen
A136: Pacific Gem | B136: Amérisant | C136: 14 – 16 % | D136: 5 – 9 % | E136: Ses arômes de bois et de fruits, flaveur distincte de baies / fruits confèrent une saveur unique à la bière,. Peut-être utilisé en DH. | F136: Cluster Fuggle Pacific Sunrise Pacifig Jade Galena | G136: NZ | H136: Strong Ale Imperial Ale | J136: Lager | L136: Porter | N136: Smoothcone Californie Cluster Late Fuggle
A137: Pacific jade | B137: Aromatique | C137: 12 - 14% | D137: 7 – 8 % | E137: Un houblon excellent à amertume plaisante et un arôme doux doté d'un parfum unique et intense d'agrumes, d'herbes et de poivre noir concassé, ce houblon aromatique est devenu de plus en plus populaire | F137: Pacific Gem | G137: NZ | I137: Pale Ale | J137: Lager | N137: First Choice (Late Cluster) Saaz
A138: Pacifica (Pacific hallertau) | B138: Aromatique | C138: 4 - 8% | D138: 5.9 – 6.1 % | E138: Confiture d'oranges, floral | F138: Hallertau Hersbrucker Perle Hallertau Mittelfrüh | G138: NZ | I138: Pale Ale | J138: Lager allemande Hells
A139: Palisade (YCR 4) | B139: Aromatique | C139: 6 – 10 % | D139: 5.5 – 8 % | E139: Une flaveur fruitée et bien équilibrée : terreux, floral, fruité (abricot), herbeux, pin. | F139: Cascade Willamette Chinook | G139: USA | I139: Pale Ale Bitter | K139: IPA | N139: Tettnanger
A140: Perle | B140: Aromatique | C140: 7 – 9.5 % | D140: 2.5 – 4.5 % | E140: Houblon en partie Allemand est souvent utilisé en combinaison d’autres variétés d’houblons. Il confère à la bière des arômes d’épices, de fruits et de fleurs. Utilisé principalement pour son amertume, son goût de menthe et ses bons arômes verts. L'arôme est plaisant et légèrement épicé | F140: Northdown Northern Brewer First Gold | G140: Allemagne France | J140: Lager | N140: Nothern Brewer
A141: Phoenix | B141: Double | C141: 10 - 12% | D141: 3.8 – 4.5 % | E141: Floral, épicé, chocolaté | F141: Challenger | G141: UK | H141: Saison Trippel | K141: IPA | L141: Porter Stout | N141: Yeoman
A142: Pilgrim | B142: Double | C142: 10 - 12% | D142: 4.3 – 5 % | E142: Ressemble à la variété Target mais avec un arôme de houblon plus intense, fruité (poire), agrumes (citron, pamplemousse), épicé. Un arôme d'épices, de bois de cèdre et de miel. | F142: Admiral Target Pioneer | G142: UK | H142: Brown Ale | I142: Bitter Pale Ale | L142: Porter | N142: First Gold Herald
A143: Pilot | B143: Amérisant | C143: 8 - 12% | D143: 3.3. - 5 % | E143: Doux, amertume rafraîchissante et « crisp » caractère herbacé avec des notes de citron, note d’agrumes (marmelade), épicé | F143: Galena | G143: UK
A144: Pioneer | B144: Double | C144: 7 – 9.5 % | D144: 3.5 – 4.5 % | E144: Arôme extraordinaire de citron / pamplemousse, agrumes (citron, pamplemousse), notes résineuses (cèdre). Amertume "propre" fraiche et intense. | F144: Brewers Gold East Kent Goldings | G144: UK | H144: Red Ale Specialty Ale | I144: ESB | K144: IPA | N144: Omega Herald
A145: Polaris | B145: Aromatique | C145: 18-23% | D145: 4 – 6 % | E145: Fruits tropicaux (ananas), agrume (bergamote), mentholé, eucalyptus | F145: Herkules | G145: Allemagne | I145: Pale Ale Bitter | J145: Lager | K145: IPA
A146: Premiant | B146: Aromatique | C146: 7 - 12% | D146: 4.5 – 8 % | E146: Arôme fruité, notes agrumes (citronnelle) et lavande, | F146: Strisselspalt Crystal Mount Hood | G146: République Tchèque | J146: Lager Pilsner | L146: Porter Stout | M146: Weizen | N146: Northern Brewer Saaz
A147: Pride of Ringwood | B147: Amérisant | C147: 7 – 10 % | D147: 4 – 7 % | E147: Houblon Australien peu connu utilisé pour la première fois en 1965 quand il fut l’houblon avec le plus haut taux d’alpha dans le monde. Fort arôme de bois et d’herbes. | F147: Centennial Galena Custer | G147: Australie | H147: Fruit Lambic | I147: Pale Ales | J147: Australian Lager | N147: Pride of kent
A148: Progress | B148: Aromatique | C148: 5 – 7 % | D148: 2 – 2.7 % | E148: Le Progress est un houblon Anglais développé dans les années 1960 pour remplacer le Fuggles. Il est souvent combiné avec le Goldings.Arome fruité intense, herbeux, épicé, fruité (cassis), résineux, terreux, belle amertume. Une alternative plus sucrée à Fuggles mais caractérisée par une amertume plus douce | F148: East Kent Goldings Fuggle | G148: UK | H148: Ales Belges | I148: Bitter Pale Ale Belge | K148: IPA | M148: Blanche Belge | N148: Whitebread Golding
A149: Rakau (AlphaAroma, Alpharoma, Whole Orchard) | B149: Double | C149: 11-14% | D149: 5 – 6 % | E149: Arôme frais et fruité avec des notes d'abricot et de pins, figue. Amertume assez brutale. | F149: Amarillo Admiral Summit | G149: NZ | I149: Australian Pale Ale | K149: IPA | N149: Smoothcone
A150: Relax | B150: Aromatique | C150: 0.25 – 0.5 % | D150: 0.13 | E150: thé vert, bleuet, citronelle, hibiscus, melon blanc d'Antibes (honeydew) | G150: Allemagne | N150: Huel
A151: Riwaka | B151: Aromatique | C151: 4 - 8% | D151: 4 – 5 % | E151: Caractère intense d'agrumes et pamplemousse. | F151: Saaz | G151: NZ | I151: Pale Ale | J151: Lager Pilsner
